Workbook

Sheet Generic (hidden)
K2: =M8+I15 -> 113
S4: ='Simple AR Calculator'!B89 -> 4.929058058 | U4: =AA4 -> 0.228835081 | W4: =S4+U4 -> 5.157893139 | Y4: ='Simple AR Calculator'!E89 -> 19.53834433 | AA4: ='Simple AR Calculator'!K13/'Simple AR Calculator'!D9 -> 0.228835081
O5: =I15/M8 -> 4.880392823 | S5: ='Simple AR Calculator'!B90 -> 5.05357668 | T5: =S4/S5 -> 0.9753602982 | U5: =U4*T5 -> 0.2231966529 | W5: =S5+U5 -> 5.276773333 | Y5: ='Simple AR Calculator'!E90 -> 19.54978977 | Z5: =Y5/Y4 -> 1.000585794 | AA5: =AA4*Z5 -> 0.2289691312
S6: ='Simple AR Calculator'!B91 -> 5.108864291 | T6: 0.9891781015 | U6: 0.2207812413 | W6: 5.329645532 | Y6: ='Simple AR Calculator'!E91 -> 19.5634299 | Z6: =Y6/Y5 -> 1.000697713 | AA6: =AA5*Z6 -> 0.2291288859
O7: AR is active calculation | S7: ='Simple AR Calculator'!B92 -> 5.155375776 | T7: 0.9909780612 | U7: 0.2187893665 | W7: 5.374165142 | Y7: ='Simple AR Calculator'!E92 -> 19.57968355 | Z7: 1.000830818 | AA7: 0.2293192502
M8: =M14+L10 -> 19.21640329 | O8: =I18/M14 -> 5.411764706 | S8: ='Simple AR Calculator'!B93 -> 5.194483732 | T8: 0.9924712526 | U8: 0.2171421566 | W8: 5.411625888 | Y8: ='Simple AR Calculator'!E93 -> 19.59904861 | Z8: 1.000989039 | AA8: 0.2295460558
O9: =I15/M8 -> 4.880392823 | P9: =AVERAGE(O8,O9) -> 5.146078764 | S9: ='Simple AR Calculator'!B94 -> 5.227352218 | T9: 0.9937122114 | U9: 0.2157768126 | W9: 5.44312903 | Y9: ='Simple AR Calculator'!E94 -> 19.62211667 | Z9: 1.001176999 | AA9: 0.2298162313
L10: =I18-I15 -> 1.592550081 | M10: =M8-M14 -> 1.592550081 | O10: =1/O8 -> 0.1847826087 | S10: ='Simple AR Calculator'!B95 -> 5.254966577 | T10: 0.9947450933 | U10: 0.2146429256 | W10: 5.469609502 | Y10: ='Simple AR Calculator'!E95 -> 19.64959011 | Z10: 1.001400126 | AA10: 0.230138003
I11: ='Simple AR Calculator'!C17 -> 113 | O11: =1/O9 -> 0.2049015389 | S11: ='Simple AR Calculator'!B96 -> 5.278159573 | T11: 0.9956058554 | U11: 0.2136997535 | W11: 5.491859327 | Y11: ='Simple AR Calculator'!E96 -> 19.68230216 | Z11: 1.00166477 | AA11: 0.2305211298
B12: CosA = a/b | D12: =I28/I11 -> 0.9646017699 | S12: ='Simple AR Calculator'!B97 -> 5.297634105 | T12: 0.996323919 | U12: 0.2129141759 | W12: 5.510548281 | Y12: ='Simple AR Calculator'!E97 -> 19.72124033 | Z12: 1.001978334 | AA12: 0.2309771777
D13: =DEGREES(ACOS(D12)) -> 15.29036684 | S13: ='Simple AR Calculator'!B98 -> 5.313982821 | T13: 0.9969234534 | U13: 0.2122591355 | W13: 5.526241957 | Y13: ='Simple AR Calculator'!E98 -> 19.76757363 | Z13: 1.002349411 | AA13: 0.231519838
M14: =D15 -> 17.62385321 | P14: =I15+M8 -> 113 | S14: ='Simple AR Calculator'!B99 -> 5.327704961 | T14: 0.9974243806 | U14: 0.2117124368 | W14: 5.539417398 | Y14: ='Simple AR Calculator'!E99 -> 19.82268398 | Z14: 1.002787917 | AA14: 0.2321652961
B15: PRO adj to hyp | D15: =(M24*I11)/I28 -> 17.62385321 | E15: mm | I15: =C24 -> 93.78359671 | P15: =M14+I18 -> 113 | S15: ='Simple AR Calculator'!B100 -> 5.339220768 | T15: 0.9978431671 | U15: 0.2112558085 | W15: 5.550476577 | Y15: ='Simple AR Calculator'!E100 -> 19.88820242 | Z15: 1.003305225 | AA15: 0.2329326546
B16: o = TanA*adj | D16: =(TAN(RADIANS(E23))*I28) -> 29.79932885 | E16: mm | S16: ='Simple AR Calculator'!B111 -> 5.277387955 | T16: 1.011716556 | U16: 0.213730999 | W16: 5.491118954 | Y16: ='Simple AR Calculator'!E111 -> 20.04351421 | Z16: 1.007809242 | AA16: 0.2347516821
D17: =(TAN(RADIANS(E23))*I24) -> 25.1517271 | E17: mm | S17: ='Simple AR Calculator'!B101 -> 5.348883765 | T17: 0.9866335084 | U17: 0.2108741654 | W17: 5.559757931 | Y17: ='Simple AR Calculator'!E101 -> 19.9660503 | Z17: 0.9961352136 | AA17: 0.233844417
I18: =I11-M14 -> 95.37614679 | L18: =D17 -> 25.1517271 | N18: =D16 -> 29.79932885 | S18: ='Simple AR Calculator'!B102 -> 5.356991195 | T18: 0.9984865703 | U18: 0.2105550222 | W18: 5.567546217 | Y18: ='Simple AR Calculator'!E102 -> 20.05848602 | Z18: 1.004629645 | AA18: 0.2349270336
S19: ='Simple AR Calculator'!B103 -> 5.363792869 | T19: 0.9987319282 | U19: 0.2102880233 | W19: 5.574080893 | Y19: ='Simple AR Calculator'!E103 -> 20.1681572 | Z19: 1.00546757 | AA19: 0.2362115136
S20: ='Simple AR Calculator'!B104 -> 5.369498663 | T20: 0.9989373693 | U20: 0.2100645648 | W20: 5.579563228 | Y20: ='Simple AR Calculator'!E104 -> 20.29815843 | Z20: 1.006445865 | AA20: 0.2377341012
B21: ROT = | C21: =E23-C27 -> 11.19214231 | S21: ='Simple AR Calculator'!B105 -> 5.374284845 | T21: 0.9991094291 | U21: 0.2098774874 | W21: 5.584162332 | Y21: ='Simple AR Calculator'!E105 -> 20.45209409 | Z21: 1.007583725 | AA21: 0.2395370114
C22: =(TAN(RADIANS(F22))*I24) -> 18.20337913 | F22: =C21 -> 11.19214231 | M22: =N18-L18 -> 4.647601747 | S22: ='Simple AR Calculator'!B106 -> 5.378299419 | T22: 0.9992535607 | U22: 0.2097208266 | W22: 5.588020245 | Y22: ='Simple AR Calculator'!E106 -> 20.63414546 | Z22: 1.008901356 | AA22: 0.2416692156
B23: Pthag = a2+b2=c2 | D23: A | E23: =D13 -> 15.29036684 | S23: ='Simple AR Calculator'!B107 -> 5.381666632 | T23: 0.9993743177 | U23: 0.209589608 | W23: 5.59125624 | Y23: ='Simple AR Calculator'!E107 -> 20.84914074 | Z23: 1.010419394 | AA23: 0.2441872623
C24: =SQRT(C22^2+I24^2) -> 93.78359671 | I24: ='Simple AR Calculator'!C9 -> 92 | M24: ='Simple AR Calculator'!C12 -> 17 | O24: =I24/M24 -> 5.411764706 | S24: ='Simple AR Calculator'!B108 -> 5.384490769 | T24: 0.9994755052 | U24: 0.2094796794 | W24: 5.593970449 | Y24: ='Simple AR Calculator'!E108 -> 21.10262602 | Z24: 1.012158068 | AA24: 0.2471561077
B25: carry in | C25: ='Simple AR Calculator'!C147 -> 4.091256807 | D25: whip rot
C26: ='Simple AR Calculator'!E147 -> 3.735028069
C27: ='Simple AR Calculator'!C130 -> 4.098224522 | O27: =N18/I24 -> 0.3239057484 | P27: is 19.82!
I28: =I24+M24 -> 109 | O28: =L18/I28 -> 0.2307497899
B29: Geometric angle of whip rotation = | N29: tan | O29: =C22/I24 -> 0.1978628166 | P29: is 13.6502
G30: =1/O24 -> 0.1847826087 | H30: =1/G30 -> 5.411764706 | I30: AR | J30: =H30*0.95 -> 5.141176471 | O30: =L18/I24 -> 0.2733883381 | P30: is 17.146
B31: f /d = | C31: Sk_in_Seg / Whip_O_Mom = | F31: Iso Sys AR | G31: =M8/I15 -> 0.2049015389 | H31: =1/G31 -> 4.880392823 | I31: AR
B32: Now AR * Sk_rots_Ideal of | E32: 19.49 | F32: =E32*G31 -> 3.993530994 | G32: which = Whip Rot
B33: Whip Rot * Key Ratio = Key Rot | F33: =C25*(132/266) -> 2.030247739 | N33: =L10 -> 1.592550081
N34: a | O34: B
C35: cosA = (b2 + c2 - a2) / (2bc) | F35: =(M38^2 +P37^ 2 - N33^2) / (2*M38*P37) -> 1.012717725 | G35: =DEGREES(ACOS(F35)) ->  | M35: C | U35: Driving | V35: Driven (f) | AA35: Driving | AB35: Driven (f) | AH35: Torques
C36: a2-b2-c2 | F36: =(I24^2 - I11^2 -N18^2) / (-2*I24*I11) -> 0.2497595229 | U36: ='Simple AR Calculator'!D7 -> 130.3840481 | V36: ='Simple AR Calculator'!D10 -> 66.25896166 | AA36: ='Simple AR Calculator'!C7 -> 122 | AB36: ='Simple AR Calculator'!C10 -> 62.5 | AH36: =50*'Simple AR Calculator'!C8 -> 12000 | AI36: ='Simple AR Calculator'!H12/1000 -> 0.008738143539 | AV36: (8.7680774*10^(-5))*x^3-0.0046096*x^2+0.0859817*x+5.120083
O37: c | P37: =N18 -> 29.79932885 | S37: 20.1 | T37: =AB37 -> 17 | U37: ='Simple AR Calculator'!D9 -> 93.5212139 | V37: ='Simple AR Calculator'!F16 -> 19.53753946 | W37: (f) / drive | AA37: ='Simple AR Calculator'!C9 -> 92 | AB37: ='Simple AR Calculator'!C12 -> 17 | AC37: (f) / drive | AH37: ='Simple AR Calculator'!H12*'Simple AR Calculator'!C11 -> 1135.95866 | AI37: ='Simple AR Calculator'!C11/1000 -> 0.13
M38: =L18 -> 25.1517271 | N38: b | U38: =U36*U37 -> 12193.67445 | V38: =V36*V37 -> 1294.537078 | W38: =V38/U38 -> 0.1061646416 | X38: =1/W38 -> 9.419331947 | Y38: =X38/2 -> 4.709665973 | AA38: =AA36*AA37 -> 11224 | AB38: =AB36*AB37 -> 1062.5 | AC38: =AB38/AA38 -> 0.09466322167 | AD38: =1/AC38 -> 10.56376471 | AE38: =AD38/2 -> 5.281882353 | AH38: =AH37/AH36 -> 0.09466322167 | AI38: is T_o / T_i aka MA | AV38: -0.0017161*x^2+0.059923*x+5.1733233
C39: cosB = (a2 - b2 + c2) / 2ac | F39: =(G27^2 - E32^2 + B29^2) / (2*G27*B29) ->  | G39: =DEGREES(ACOS(F39)) ->  | H39: =G35+G39+G42 ->  | M39: 22.3425 | AH39: =AH36/AH37 -> 10.56376471 | AI39: =AI36*AI37^2 -> 0.0001476746258 | AJ39: is I_ham
U40: Driving | V40: Driven (f) | AA40: Driving | AB40: Driven (f) | AH40: =AH39^2 -> 111.5931248 | AI40: =AB45 -> 0.0001879026998 | AJ40: I_SW
U41: =V36 -> 66.25896166 | V41: =U36 -> 130.3840481 | AA41: =AB36 -> 62.5 | AB41: =AA36 -> 122 | AH41: =AI40*AH40 -> 0.02096864942 | AI41: inertia
C42: cosC = (a2 + b2 - c2) / 2ab | F42: =(G27^2 + E32^2 - B29^2) / (2*G27*E32) ->  | G42: =DEGREES(ACOS(F42)) ->  | N42: A | S42: 21.4 | T42: =AA42 -> 17 | U42: =V37 -> 19.53753946 | V42: =U37 -> 93.5212139 | W42: (f) / drive | AA42: =AB37 -> 17 | AB42: =AA37 -> 92 | AC42: (f) / drive
U43: =U41*U42 -> 1294.537078 | V43: =V41*V42 -> 12193.67445 | W43: =V43/U43 -> 9.419331947 | X43: =1/W43 -> 0.1061646416 | Y43: =X43/2 -> 0.05308232079 | AA43: =AA41*AA42 -> 1062.5 | AB43: =AB41*AB42 -> 11224 | AC43: =AB43/AA43 -> 10.56376471 | AD43: =1/AC43 -> 0.09466322167 | AE43: =AD43/2 -> 0.04733161083
C45: =M24 -> 17 | I45: =M24 -> 17 | K45: Si Diag | N45: a 2 = b 2 + c 2 - 2 b c cos(A) | R45: =SQRT(H50^2+I45^2) -> 21.40093456 | U45: Iham | V45: ='Simple AR Calculator'!D58 -> 0.0001879026998 | AA45: Iham | AB45: =V45 -> 0.0001879026998
E46: =C45/D48 -> 0.9646017699 | G46: KNUCKLE TRIG | J46: ='Simple AR Calculator'!C14 -> 6 | N46: b 2 = a 2 + c 2 - 2 a c cos(B) | R46: =G47/I45 -> 0.7647058824 | U46: Inert Ham | V46: =X38^2* V45 -> 0.01667144425 | AA46: Inert Ham | AB46: =AD38^2* AB45 -> 0.02096864942
E47: =DEGREES(ACOS(E46)) -> 15.29036684 | F47: deg | G47: =H49+J49 -> 13 | N47: c 2 = b 2 + a 2 - 2 b a cos(C) | V47: =V46*10000 -> 166.7144425 | AB47: =AB46*10000 -> 209.6864942 | AG47: ='Simple AR Calculator'!D7 -> 130.3840481 | BG47: Parts
D48: =M14 -> 17.62385321 | E48: =H52-E47 -> 22.11498979 | F48: deg | G48: =(H49/2)+J49 -> 8 | R48: =SQRT(G48^2+I45^2) -> 18.78829423 | AG48: ='Simple AR Calculator'!D8 -> 240 | BD48: =BD50/1000 -> 0.008738143539 | BE48: ='Simple AR Calculator'!D8/1000 -> 0.24 | BF48: Key | BG48: =BE48*BB55 -> 1.182973934
D49: =J56 -> 17 | E49: =E47+E48 -> 37.40535663 | G49: Knuckle diameter | H49: ='Simple AR Calculator'!C13 -> 10 | J49: =J46/2 -> 3 | AG49: ='Simple AR Calculator'!D11 -> 137.5681649 | BD49: ='Simple AR Calculator'!C63 -> 0.1747628708 | BE49: 8.9 | BF49: Rots | BG49: =BG48^2 -> 1.399427328
D50: =D48-D49 -> 0.623853211 | G50: 9.32 | H50: =H49+J49 -> 13 | T50: a= sqrt (b2+c2−2bccosA) | X50: =X170 -> 19.53753946 | AG50: ='Simple AR Calculator'!G128 -> 19.53753946 | AH50: =X54 -> 21.40093456 | BD50: ='Simple AR Calculator'!H12 -> 8.738143539 | BE50: ='Simple AR Calculator'!D58 -> 0.0001879026998 | BF50: Iham | BG50: =(BD48*BG49)*10000 -> 122.2839687 | BI50: =BI55/145 -> 0.01435677019
H51: =G47/I45 -> 0.7647058824 | I51: =SQRT(I45^2+H50^2) -> 21.40093456 | T51: Sharp angle A of Cosine Triangle Recession yield SI Arm | Z51: Ang B of Cosine Triangle Recession yield AR invCos | AG51: ='Simple AR Calculator'!E9 -> 93.5212139 | BG51: =(BE50/(1/BE49)^2)*10000 -> 148.8377285 | BI51: Shank Key Angle RO & squared | BL51: Shank Key Angle RO S/L | BY51: AR config | BZ51: Rads | CA51: Δ Inv. T | CB51: CosT | CC51: invCosT | CD51: AR invCos | CE51: Cos
H52: =DEGREES(ATAN(H51)) -> 37.40535663 | K52: B | T52: Involute T = tanA - A | V52: [where T is the involute ang. And where ang A is in rads] | AE52: ='Simple AR Calculator'!C47 -> 4.929058058 | AG52: ='Simple AR Calculator'!D10 -> 66.25896166 | AO52: ='Simple AR Calculator'!E56 -> 43 | AQ52: ='Simple AR Calculator'!D47 -> 8.723776327 | AR52: =AO52/AQ52 -> 4.929058058 | BA52: =INDEX(BA55:BA75,MATCH(MIN(ABS(BA55:BA75-6)),ABS(BA55:BA75-6),0)) -> 6.239866645 | BB52: 6 | BI52: Key Ang involute | BL52: Key Ang S/L decrease | BX52: ='Simple AR Calculator'!C47 -> 4.929058058 | BY52: ='Simple AR Calculator'!C49 -> 5.399167545 | CA52: =BY52 -> 5.399167545 | CB52: =COS(RADIANS(CA52)) -> 0.9955633318 | CC52: =1/CB52 -> 1.00445644 | CD52: =($AG$47/$AG$48) * ($AG$49/$AG$50)* ($AG$51/$AG$52) * Generic!CC52 -> 5.423228611 | CE52: =($AG$47/$AG$48) * ($AG$49/$AG$50)* ($AG$51/$AG$52) -> 5.399167545
T53: Ang A end | U53: Rads | V53: Δ Inv. T | W53: CosA | X53: Si Arm in | Z53: Ang B | AA53: Rads | AB53: Δ Inv. T | AC53: CosT | AD53: invCosT | AE53: Cos | AF53: Parts Calc | AG53: InvCos | AJ53: Si Arm | AK53: InvCosAR | AL53: Shnk Ang | AM53: CosConfig | AN53: Blow Pot. | AO53: Ham Rise | AP53: Dip Pot. | AQ53: Key Dwn | AS53: Readouts below per KEY ANGLE recesion: Yield Dip, ARCos, Blow | AZ53: Readouts Shorter Version of Left | BE53: Readout per Shank Angle Recession | BY53: =BY52 -> 5.399167545 | BZ53: =(RADIANS(BY53)) -> 0.09423325052 | CA53: =BZ53-BY53 -> -5.304934294 | CB53: =COS(RADIANS(CA53)) -> 0.9957167396 | CC53: =1/CB53 -> 1.004301686 | CD53: =($AG$47/$AG$48) * ($AG$49/$AG$50)* ($AG$51/$AG$52) * Generic!CC53 -> 5.422393066 | CE53: 5.399167545
S54: ='Simple AR Calculator'!B166 -> 0.8438627173 | T54: =T55 -> 4.942087239 | U54: =(RADIANS(T54)) -> 0.08625569424 | V54: =T54 -> 4.942087239 | W54: =COS(RADIANS(V54)) -> 0.9962822835 | X54: =SQRT($H$62^2+$F$60^2-2*$H$62*$F$60*(COS(RADIANS(V54)))) -> 21.40093456 | Y54: ='Simple AR Calculator'!J131 -> 4.042562623 | Z54: =Z55 -> 22.11498979 | AB54: =Z54 -> 22.11498979 | AC54: =COS(RADIANS(AB54)) -> 0.9264301709 | AD54: =1/AC54 -> 1.079412169 | AE54: =($AG$47/$AG$48) * ($AG$49/$AH$50)* ($AG$51/$AG$52) * Generic!AC54 -> 4.566428099 | AF54: =($AG$47/$AG$48) * ($AG$49/X54)* ($AG$51/$AG$52) -> 4.929058058 | AG54: =($AG$47/$AG$48) * ($AG$49/$AG$50)* ($AG$51/$AG$52)*AD54 -> 5.827927149 | AH54: =($AG$47/$AG$48) * ($AG$49/$AH$50)* ($AG$51/$AG$52)*AD54 -> 5.320485248 | AJ54: =X54 -> 21.40093456 | AK54: =AG54 -> 5.827927149 | AL54: =BE56 -> 17.90907453 | AM54: =BB55 -> 4.929058058 | AN54: =BC55 -> 42.97162114 | AO54: =$AO$52-AN54 -> 0.02837885837 | AP54: =BA55 -> 8.718018866 | AQ54: =$AQ$52-AP54 -> 0.005757460764 | AR54: =$AO$52/AM54 -> 8.723776327 | AS54: Ang A end | AT54: Rads | AU54: Δ Inv. T | AV54: sinA | AW54: Δ Dip | AX54: ARCos | AY54: Blow | BA54: Δ Dip | BB54: Cos | BC54: Blow | BD54: Inertia | BE54: Shk Ang | BF54: Rads | BG54: Δ Inv. T | BH54: sinA | BJ54: Shk/Key | BK54: Squared | BM54: Shk/key | BN54: Squared | BO54: Inertia | BR54: Ang B | BS54: Rads | BT54: Δ Inv. T | BU54: CosT | BY54: =ABS(CA53) -> 5.304934294 | BZ54: =(RADIANS(BY54)) -> 0.09258857004 | CA54: =BZ54-BY54 -> -5.212345724 | CB54: =COS(RADIANS(CA54)) -> 0.9958648466 | CC54: =1/CB54 -> 1.004152324 | CD54: =($AG$47/$AG$48) * ($AG$49/$AG$50)* ($AG$51/$AG$52) * Generic!CC54 -> 5.421586637 | CE54: 5.399167545
I55: =F60-K64 -> 1.854932886 | T55: ='Simple AR Calculator'!C129 -> 4.942087239 | U55: =(RADIANS(T55)) -> 0.08625569424 | V55: =U55-T55 -> -4.855831545 | W55: =COS(RADIANS(V55)) -> 0.9964108468 | X55: =SQRT($H$62^2+$F$60^2-2*$H$62*$F$60*(COS(RADIANS(V55)))) -> 21.33735486 | Y55: 1 | Z55: ='Simple AR Calculator'!I156 -> 22.11498979 | AA55: =(RADIANS(Z55)) -> 0.385979386 | AB55: =AA55-Z55 -> -21.72901041 | AC55: =COS(RADIANS(AB55)) -> 0.9289452396 | AD55: =1/AC55 -> 1.076489719 | AE55: =($AG$47/$AG$48) * ($AG$49/$AG$50)* ($AG$51/$AG$52) * Generic!AC55 -> 5.015530989 | AF55: =($AG$47/$AG$48) * ($AG$49/X55)* ($AG$51/$AG$52) -> 4.943745352 | AG55: =($AG$47/$AG$48) * ($AG$49/$AG$50)* ($AG$51/$AG$52)*AD55 -> 5.812148353 | AH55: =($AG$47/$AG$48) * ($AG$49/$AH$50)* ($AG$51/$AG$52)*AD55 -> 5.306080324 | AJ55: =X59 -> 21.10262602 | AK55: =AG59 -> 5.754916194 | AL55: =BE59 -> 16.98762862 | AM55: =BB56 -> 5.05357668 | AN55: =BC56 -> 41.0621834 | AO55: =$AO$52-AN55 -> 1.9378166 | AP55: 8.125370604 | AQ55: 0.5984057235 | AR55: =$AO$52/AM55 -> 8.50882508 | AS55: ='Simple AR Calculator'!E144 -> 2.081731678 | AT55: =(RADIANS(AS55)) -> 0.03633307192 | AU55: =AS55 -> 2.081731678 | AV55: =SIN(RADIANS(AU55)) -> 0.03632507861 | AW55: =AV55*'Simple AR Calculator'!$C$8 -> 8.718018866 | AX55: =AF54 -> 4.929058058 | AY55: =AW55*AX55 -> 42.97162114 | AZ55: 1 | BA55: =AW55 -> 8.718018866 | BB55: =AX55 -> 4.929058058 | BC55: =AY55 -> 42.97162114 | BD55: =(($BE$48*BB55)^2*$BD$48)*10000 -> 122.2839687 | BE55: ='Simple AR Calculator'!J145 -> 17.90907453 | BF55: =(RADIANS(BE55)) -> 0.3125723166 | BG55: =BE55 -> 17.90907453 | BH55: =SIN(RADIANS(BG55)) -> 0.3075073279 | BI55: =AS55 -> 2.081731678 | BJ55: =BE55/BI55 -> 8.602969694 | BK55: =BJ55^2 -> 74.01108756 | BL55: =BI55 -> 2.081731678 | BM55: =BE55/BL55 -> 8.602969694 | BN55: =BM55^2 -> 74.01108756 | BO55: =BN55*$BE$50 -> 0.01390688317 | BR55: =BR56 -> 27.05707703 | BT55: =BR55 -> 27.05707703 | BU55: =COS(RADIANS(BT55)) -> 0.8905538249 | BY55: =ABS(CA54) -> 5.212345724 | BZ55: =(RADIANS(BY55)) -> 0.09097259464 | CA55: =BZ55-BY55 -> -5.12137313 | CB55: =COS(RADIANS(CA55)) -> 0.9960078357 | CC55: =1/CB55 -> 1.004008166 | CD55: =($AG$47/$AG$48) * ($AG$49/$AG$50)* ($AG$51/$AG$52) * Generic!CC55 -> 5.420808302 | CE55: 5.399167545
G56: Shank CL | J56: =I45 -> 17 | K56: =H52 -> 37.40535663 | L56: degrees inc. | T56: =ABS(V55) -> 4.855831545 | U56: =(RADIANS(T56)) -> 0.08475024838 | V56: =U56-T56 -> -4.771081296 | W56: =COS(RADIANS(V56)) -> 0.9965349668 | X56: =SQRT($H$62^2+$F$60^2-2*$H$62*$F$60*(COS(RADIANS(V56)))) -> 21.2757923 | Z56: =ABS(AB55) -> 21.72901041 | AA56: =(RADIANS(Z56)) -> 0.3792427748 | AB56: =AA56-Z56 -> -21.34976763 | AC56: =COS(RADIANS(AB56)) -> 0.9313753528 | AD56: =1/AC56 -> 1.073680978 | AE56: =($AG$47/$AG$48) * ($AG$49/$AG$50)* ($AG$51/$AG$52) * Generic!AC56 -> 5.028651577 | AF56: 4.958050326 | AG56: 5.796983491 | AH56: 5.292235878 | AJ56: =X64 -> 20.84914074 | AK56: =AG64 -> 5.694867504 | AL56: =BE64 -> 15.55603033 | AM56: 5.108864291 | AN56: 38.01429746 | AO56: =$AO$52-AN56 -> 4.985702541 | AP56: 7.4408509 | AQ56: 1.282925427 | AR56: =$AO$52/AM56 -> 8.416743438 | AS56: =AS55 -> 2.081731678 | AT56: =(RADIANS(AS56)) -> 0.03633307192 | AU56: =AT56-AS56 -> -2.045398606 | AV56: =SIN(RADIANS(AU56)) -> -0.03569135813 | AW56: =ABS(AV56)*'Simple AR Calculator'!$C$8 -> 8.56592595 | AX56: =AE55 -> 5.015530989 | AY56: =AW56*AX56 -> 42.96266705 | BA56: =AW59 -> 8.125370604 | BB56: =AX59 -> 5.05357668 | BC56: =AY59 -> 41.0621834 | BD56: =(($BE$48*BB56)^2*$BD$48)*10000 -> 128.5403202 | BE56: =BE55 -> 17.90907453 | BF56: =(RADIANS(BE56)) -> 0.3125723166 | BG56: =BF56-BE56 -> -17.59650222 | BH56: =SIN(RADIANS(BG56)) -> -0.3023117 | BI56: =AS56 -> 2.081731678 | BJ56: =BE56/BI56 -> 8.602969694 | BK56: =BJ56^2 -> 74.01108756 | BL56: =BL55- $BI$50 -> 2.067374907 | BM56: =BE56/BL56 -> 8.662712539 | BN56: =BM56^2 -> 75.04258854 | BO56: =BN56*$BE$50 -> 0.01410070499 | BR56: ='Simple AR Calculator'!I162 -> 27.05707703 | BS56: =(RADIANS(BR56)) -> 0.4722350802 | BT56: =BS56-BR56 -> -26.58484195 | BU56: 0.8942726637 | BY56: 5.12137313 | BZ56: 0.08938482333 | CA56: -5.031988306 | CB56: 0.9961458837 | CC56: 1.003869028 | CD56: =($AG$47/$AG$48) * ($AG$49/$AG$50)* ($AG$51/$AG$52) * Generic!CC56 -> 5.420057075 | CE56: 5.399167545
T57: =ABS(V56) -> 4.771081296 | U57: =(RADIANS(T57)) -> 0.0832710775 | V57: =U57-T57 -> -4.687810219 | W57: 0.9966547968 | X57: 21.21618802 | Z57: =ABS(AB56) -> 21.34976763 | AA57: =(RADIANS(Z57)) -> 0.3726237398 | AB57: =AA57-Z57 -> -20.97714389 | AC57: 0.9337233103 | AD57: 1.070981081 | AE57: =($AG$47/$AG$48) * ($AG$49/$AG$50)* ($AG$51/$AG$52) * Generic!AC57 -> 5.041328593 | AF57: 4.97197936 | AG57: 5.782406292 | AH57: 5.278927926 | AJ57: =X69 -> 20.63414546 | AK57: =AG69 -> 5.645318316 | AL57: =BE69 -> 14.24507711 | AM57: 5.155375776 | AN57: 35.12854718 | AO57: 7.871452824 | AP57: 6.813964433 | AQ57: 1.909811894 | AR57: 8.340808094 | AS57: =ABS(AU56) -> 2.045398606 | AT57: =(RADIANS(AS57)) -> 0.03569894018 | AU57: -2.009699665 | AV57: =SIN(RADIANS(AU57)) -> -0.03506868417 | AW57: =ABS(AV57)*'Simple AR Calculator'!$C$8 -> 8.416484201 | AX57: 5.028651577 | AY57: 42.32356655 | BA57: =AW64 -> 7.4408509 | BB57: =AX64 -> 5.108864291 | BC57: =AY64 -> 38.01429746 | BD57: 131.3682428 | BE57: =ABS(BG56) -> 17.59650222 | BF57: =(RADIANS(BE57)) -> 0.3071169005 | BG57: =BF57-BE57 -> -17.28938532 | BH57: =SIN(RADIANS(BG57)) -> -0.2971979889 | BI57: 2.045398606 | BJ57: 8.602969694 | BK57: 74.01108756 | BL57: =BL56- $BI$50 -> 2.053018137 | BM57: =BE57/BL57 -> 8.5710408 | BN57: 73.4627404 | BO57: 0.01380384726 | BR57: =ABS(BT56) -> 26.58484195 | BS57: =(RADIANS(BR57)) -> 0.4639930232 | BT57: =BS57-BR57 -> -26.12084893 | BU57: 0.8978674302 | BY57: 5.031988306 | BZ57: 0.08782476386 | CA57: -4.944163542 | CB57: 0.9962791609 | CC57: 1.003734735 | CD57: =($AG$47/$AG$48) * ($AG$49/$AG$50)* ($AG$51/$AG$52) * Generic!CC57 -> 5.419332007 | CE57: 5.399167545
K58: =E48 -> 22.11498979 | L58: degrees | M58: =K56-K58 -> 15.29036684 | N58: deg | T58: 4.687810219 | U58: 0.08181772303 | V58: -4.605992496 | W58: 0.9967704851 | X58: 21.1584846 | Z58: =ABS(AB57) -> 20.97714389 | AA58: 0.3661202286 | AB58: -20.61102367 | AC58: 0.9359918243 | AD58: 1.0683854 | AE58: =($AG$47/$AG$48) * ($AG$49/$AG$50)* ($AG$51/$AG$52) * Generic!AC58 -> 5.05357668 | AF58: 4.985538942 | AG58: 5.768391779 | AH58: 5.266133667 | AJ58: =X74 -> 20.45209409 | AK58: =AG74 -> 5.604322444 | AL58: =BE74 -> 13.04460185 | AM58: 5.194483732 | AN58: 32.41288577 | AO58: 10.58711423 | AP58: 6.239866645 | AQ58: 2.483909682 | AR58: 8.278012257 | AS58: 2.009699665 | AT58: =(RADIANS(AS58)) -> 0.03507587614 | AU58: -1.974623789 | AV58: -0.03445686467 | AW58: =ABS(AV58)*'Simple AR Calculator'!$C$8 -> 8.26964752 | AX58: 5.041328593 | AY58: 41.6900105 | BA58: =AW69 -> 6.813964433 | BB58: =AX69 -> 5.155375776 | BC58: =AY69 -> 35.12854718 | BD58: 133.7711039 | BE58: =ABS(BG57) -> 17.28938532 | BF58: =(RADIANS(BE58)) -> 0.3017566994 | BG58: =BF58-BE58 -> -16.98762862 | BH58: -0.2921652113 | BI58: 2.009699665 | BJ58: 8.602969694 | BK58: 74.01108756 | BL58: 2.038661367 | BM58: 8.480753889 | BN58: 71.92318653 | BO58: 0.01351456093 | BR58: =ABS(BT57) -> 26.12084893 | BS58: =(RADIANS(BR58)) -> 0.4558948173 | BT58: =BS58-BR58 -> -25.66495411 | BU58: 0.9013421073 | BY58: 4.944163542 | BZ58: 0.08629193257 | CA58: -4.85787161 | CB58: 0.9964078321 | CC58: 1.003605118 | CD58: =($AG$47/$AG$48) * ($AG$49/$AG$50)* ($AG$51/$AG$52) * Generic!CC58 -> 5.418632181 | CE58: 5.399167545
F59: c | J59: a | K59: =I51 -> 21.40093456 | L59: mm | M59: ='Simple AR Calculator'!C134 -> 22.11498979 | T59: 4.605992496 | U59: 0.08038973437 | V59: -4.525602761 | W59: 0.9968821746 | X59: 21.10262602 | Z59: 20.61102367 | AA59: =(RADIANS(Z59)) -> 0.3597302252 | AB59: -20.25129344 | AC59: =COS(RADIANS(AB59)) -> 0.9381835222 | AD59: 1.065889537 | AE59: =($AG$47/$AG$48) * ($AG$49/$AG$50)* ($AG$51/$AG$52) * Generic!AC59 -> 5.065410024 | AF59: 4.998735646 | AG59: 5.754916194 | AH59: 5.253831411 | AJ59: =X79 -> 20.29815843 | AK59: =AG79 -> 5.570327616 | AL59: =BE79 -> 11.94529422 | AM59: 5.227352218 | AN59: 29.86970935 | AO59: 13.13029065 | AP59: 5.714118372 | AQ59: 3.009657955 | AR59: 8.225961866 | AS59: 1.974623789 | AT59: 0.03446368661 | AU59: -1.940160103 | AV59: -0.03385571085 | AW59: =ABS(AV59)*'Simple AR Calculator'!$C$8 -> 8.125370604 | AX59: =AE58 -> 5.05357668 | AY59: 41.0621834 | AZ59: 5 | BA59: =AW74 -> 6.239866645 | BB59: =AX74 -> 5.194483732 | BC59: =AY74 -> 32.41288577 | BD59: 135.8083394 | BE59: 16.98762862 | BF59: 0.2964900515 | BG59: -16.69113857 | BH59: -0.2872123784 | BI59: 1.974623789 | BJ59: 8.602969694 | BK59: 74.01108756 | BL59: 2.024304597 | BM59: 8.391834235 | BN59: 70.42288183 | BO59: 0.01323264962 | BR59: =ABS(BT58) -> 25.66495411 | BS59: =(RADIANS(BR59)) -> 0.4479379516 | BT59: -25.21701616 | BU59: 0.9047005612 | BY59: 4.85787161 | BZ59: 0.08478585423 | CA59: -4.773085756 | CB59: 0.9965320563 | CC59: 1.003480012 | CD59: =($AG$47/$AG$48) * ($AG$49/$AG$50)* ($AG$51/$AG$52) * Generic!CC59 -> 5.417956713 | CE59: 5.399167545
F60: =I11 -> 113 | M60: =J56/COS(RADIANS(M58)) -> 17.62385321 | T60: 4.525602761 | U60: 0.07898666882 | V60: -4.446616093 | W60: 0.9969900033 | X60: 21.04855765 | Z60: =ABS(AB59) -> 20.25129344 | AA60: 0.3534517483 | AB60: -19.89784169 | AC60: 0.9403009483 | AD60: 1.063489303 | AE60: =($AG$47/$AG$48) * ($AG$49/$AG$50)* ($AG$51/$AG$52) * Generic!AC60 -> 5.076842362 | AF60: 5.011576123 | AG60: 5.741956928 | AH60: 5.242000518 | AJ60: =X84 -> 20.1681572 | AK60: =AG84 -> 5.542085993 | AL60: =BE84 -> 10.93862854 | AM60: 5.254966577 | AN60: 27.49741321 | AO60: 15.50258679 | AP60: 5.232652351 | AQ60: 3.491123976 | AR60: 8.182735203 | AS60: 1.940160103 | AT60: 0.03386218181 | AU60: -1.906297921 | AV60: -0.03326503721 | AW60: =ABS(AV60)*'Simple AR Calculator'!$C$8 -> 7.983608931 | AX60: 5.065410024 | AY60: 40.4402527 | BA60: =AW79 -> 5.714118372 | BB60: =AX79 -> 5.227352218 | BC60: =AY79 -> 29.86970935 | BD60: 137.5324518 | BE60: 16.69113857 | BF60: 0.2913153239 | BG60: -16.39982324 | BH60: -0.2823384973 | BI60: 1.940160103 | BJ60: 8.602969694 | BK60: 74.01108756 | BL60: 2.009947827 | BM60: 8.304264591 | BN60: 68.96081039 | BO60: 0.01295792245 | BR60: =ABS(BT59) -> 25.21701616 | BS60: =(RADIANS(BR60)) -> 0.4401199595 | BT60: -24.7768962 | BU60: 0.9079465435 | BY60: 4.773085756 | BZ60: 0.08330606191 | CA60: -4.689779694 | CB60: 0.996651987 | CC60: 1.00335926 | CD60: =($AG$47/$AG$48) * ($AG$49/$AG$50)* ($AG$51/$AG$52) * Generic!CC60 -> 5.417304751 | CE60: 5.399167545
K61: =M60 -> 17.62385321 | L61: mm | T61: 4.446616093 | U61: 0.07760809139 | V61: -4.369008001 | W61: 0.9970941046 | X61: 20.9962262 | Z61: 19.89784169 | AA61: 0.3472828516 | AB61: -19.55055884 | AC61: 0.9423465669 | AD61: 1.061180711 | AE61: =($AG$47/$AG$48) * ($AG$49/$AG$50)* ($AG$51/$AG$52) * Generic!AC61 -> 5.087887 | AF61: 5.024067084 | AG61: 5.729492455 | AH61: 5.230621335 | AJ61: =X89 -> 20.05848602 | AK61: =AG89 -> 5.518587781 | AL61: =BE89 -> 10.01679758 | AM61: 5.278159573 | AN61: 25.29158093 | AO61: 17.70841907 | AP61: 4.791742383 | AQ61: 3.932033945 | AR61: 8.146779082 | AS61: 1.906297921 | AT61: 0.03327117524 | AU61: -1.873026746 | AV61: -0.03268466146 | AW61: =ABS(AV61)*'Simple AR Calculator'!$C$8 -> 7.84431875 | AX61: 5.076842362 | AY61: 39.82436973 | BA61: =AW84 -> 5.232652351 | BB61: =AX84 -> 5.254966577 | BC61: =AY84 -> 27.49741321 | BD61: 138.9893661 | BE61: 16.39982324 | BF61: 0.2862309123 | BG61: -16.11359233 | BH61: -0.277542572 | BI61: 1.906297921 | BJ61: 8.602969694 | BK61: 74.01108756 | BL61: 1.995591056 | BM61: 8.218028032 | BN61: 67.53598473 | BO61: 0.01269019387 | BR61: =ABS(BT60) -> 24.7768962 | BS61: =(RADIANS(BR61)) -> 0.4324384171 | BT61: -24.34445778 | BU61: =COS(RADIANS(BT61)) -> 0.911083694 | BY61: 4.689779694 | BZ61: 0.08185209685 | CA61: -4.607927597 | CB61: 0.9967677724 | CC61: 1.003242709 | CD61: =($AG$47/$AG$48) * ($AG$49/$AG$50)* ($AG$51/$AG$52) * Generic!CC61 -> 5.416675473 | CE61: 5.399167545
G62: b | H62: =SQRT(H63) -> 93.5212139 | M62: c = a/h = cos 13.17 = a / 114 | T62: 4.369008001 | U62: 0.07625357467 | V62: -4.292754427 | W62: 0.9971946073 | X62: 20.94557975 | Z62: 19.55055884 | AA62: 0.3412216224 | AB62: -19.20933722 | AC62: 0.9443227639 | AD62: 1.058959964 | AE62: =($AG$47/$AG$48) * ($AG$49/$AG$50)* ($AG$51/$AG$52) * Generic!AC62 -> 5.098556818 | AF62: 5.036215287 | AG62: 5.717502269 | AH62: 5.219675143 | AJ62: =X94 -> 19.9660503 | AK62: =AG94 -> 5.499011226 | AL62: =BE94 -> 9.172652084 | AM62: 5.297634105 | AN62: 23.24588595 | AO62: 19.75411405 | AP62: 4.387974988 | AQ62: 4.335801339 | AR62: 8.116830862 | AS62: 1.873026746 | AT62: 0.03269048369 | AU62: -1.840336262 | AV62: -0.03211440443 | AW62: =ABS(AV62)*'Simple AR Calculator'!$C$8 -> 7.707457064 | AX62: 5.087887 | AY62: 39.2146706 | BA62: =AW89 -> 4.791742383 | BB62: =AX89 -> 5.278159573 | BC62: =AY89 -> 25.29158093 | BD62: 140.2189433 | BE62: 16.11359233 | BF62: 0.2812352405 | BG62: -15.83235709 | BH62: -0.2728236044 | BI62: 1.873026746 | BJ62: 8.602969694 | BK62: 74.01108756 | BL62: 1.981234286 | BM62: 8.133107953 | BN62: 66.14744497 | BO62: 0.0124292835 | BR62: =ABS(BT61) -> 24.34445778 | BS62: 0.424890943 | BT62: -23.91956684 | BU62: 0.9141155437 | BY62: 4.607927597 | BZ62: 0.08042350826 | CA62: -4.527504088 | CB62: 0.9968795556 | CC62: 1.003130212 | CD62: =($AG$47/$AG$48) * ($AG$49/$AG$50)* ($AG$51/$AG$52) * Generic!CC62 -> 5.416068084 | CE62: 5.399167545
H63: =K59^2+F60^2-(2*K59*F60*(COS(RADIANS(K58)))) -> 8746.21745 | J63: =SQRT(H62^2-F66^2) -> 16.79932885 | K63: =H62+K59 -> 114.9221485 | M63: a = cos 13.17 * 114 = 111 | T63: 4.292754427 | U63: 0.07492269872 | V63: -4.217831728 | W63: 0.9972916356 | X63: 20.8965677 | Z63: 19.20933722 | AA63: 0.3352661816 | AB63: -18.87407104 | AC63: 0.9462318494 | AD63: 1.056823442 | AE63: =($AG$47/$AG$48) * ($AG$49/$AG$50)* ($AG$51/$AG$52) * Generic!AC63 -> 5.108864291 | AF63: 5.048027525 | AG63: 5.705966828 | AH63: 5.209144102 | AJ63: =X99 -> 19.88820242 | AK63: =AG99 -> 5.482684415 | AL63: =BE99 -> 8.39964525 | AM63: 5.313982821 | AN63: 21.35276988 | AO63: 21.64723012 | AP63: 4.018223354 | AQ63: 4.705552973 | AR63: 8.091859053 | AS63: 1.840336262 | AT63: 0.03211992712 | AU63: -1.808216335 | AV63: -0.03155409009 | AW63: =ABS(AV63)*'Simple AR Calculator'!$C$8 -> 7.572981622 | AX63: 5.098556818 | AY63: 38.61127708 | BA63: =AW94 -> 4.387974988 | BB63: =AX94 -> 5.297634105 | BC63: =AY94 -> 23.24588595 | BD63: 141.2555682 | BE63: 15.83235709 | BF63: 0.2763267596 | BG63: -15.55603033 | BH63: -0.2681805956 | BI63: 1.840336262 | BJ63: 8.602969694 | BK63: 74.01108756 | BL63: 1.966877516 | BM63: 8.049488064 | BN63: 64.7942581 | BO63: 0.01217501603 | BR63: 23.91956684 | BS63: 0.417475197 | BT63: -23.50209164 | BU63: 0.917045517 | BY63: 4.527504088 | BZ63: 0.07901985324 | CA63: -4.448484235 | CB63: 0.9969874749 | CC63: 1.003021628 | CD63: =($AG$47/$AG$48) * ($AG$49/$AG$50)* ($AG$51/$AG$52) * Generic!CC63 -> 5.41548182 | CE63: 5.399167545
G64: b 2 = a 2 + c 2 - 2 a c cos(B) | K64: =H62+K61 -> 111.1450671 | M64: and 111 - 17 = 94 | T64: 4.217831728 | U64: 0.07361505095 | V64: -4.144216677 | W64: 0.9973853094 | X64: 20.84914074 | Z64: 18.87407104 | AA64: 0.3294146828 | AB64: -18.54465635 | AC64: 0.9480760598 | AD64: 1.054767695 | AE64: =($AG$47/$AG$48) * ($AG$49/$AG$50)* ($AG$51/$AG$52) * Generic!AC64 -> 5.118821492 | AF64: 5.059510616 | AG64: 5.694867504 | AH64: 5.199011205 | AJ64: =X104 -> 19.82268398 | AK64: =AG104 -> 5.469055753 | AL64: =BE104 -> 7.691782014 | AM64: 5.327704961 | AN64: 19.60394788 | AO64: 23.39605212 | AP64: 3.679623407 | AQ64: 5.04415292 | AR64: 8.071017504 | AS64: 1.808216335 | AT64: 0.03155932863 | AU64: -1.776657006 | AV64: -0.03100354542 | AW64: =ABS(AV64)*'Simple AR Calculator'!$C$8 -> 7.4408509 | AX64: 5.108864291 | AY64: 38.01429746 | AZ64: 10 | BA64: =AW99 -> 4.018223354 | BB64: =AX99 -> 5.313982821 | BC64: =AY99 -> 21.35276988 | BD64: 142.1287544 | BE64: 15.55603033 | BF64: 0.2715039478 | BG64: -15.28452638 | BH64: -0.2636125466 | BI64: 1.808216335 | BJ64: 8.602969694 | BK64: 74.01108756 | BL64: 1.952520746 | BM64: 7.967152391 | BN64: 63.47551723 | BO64: 0.01192722106 | BR64: 23.50209164 | BS64: 0.4101888803 | BT64: -23.09190276 | BU64: 0.9198769346 | BY64: =ABS(CA63) -> 4.448484235 | BZ64: 0.07764069663 | CA64: =BZ64-BY64 -> -4.370843539 | CB64: 0.9970916636 | CC64: 1.002916819 | CD64: =($AG$47/$AG$48) * ($AG$49/$AG$50)* ($AG$51/$AG$52) * Generic!CC64 -> 5.414915942 | CE64: 5.399167545
J65: =J56 -> 17 | T65: 4.144216677 | U65: 0.07233022593 | V65: -4.071886451 | W65: 0.9974757448 | X65: 20.80325087 | Z65: 18.54465635 | AA65: 0.323665312 | AB65: -18.22099104 | AC65: 0.9498575599 | AD65: 1.052789431 | AE65: =($AG$47/$AG$48) * ($AG$49/$AG$50)* ($AG$51/$AG$52) * Generic!AC65 -> 5.128440109 | AF65: 5.070671387 | AG65: 5.684186527 | AH65: 5.189260228 | AJ65: =X109 -> 19.76757363 | AK65: =AG109 -> 5.457670883 | AL65: =BE109 -> 7.043572531 | AM65: 5.339220768 | AN65: 17.99078121 | AO65: 25.00921879 | AP65: 3.369551848 | AQ65: 5.354224479 | AR65: 8.053609668 | AS65: 1.776657006 | AT65: 0.03100851444 | AU65: -1.745648492 | AV65: -0.0304626004 | AW65: =ABS(AV65)*'Simple AR Calculator'!$C$8 -> 7.311024096 | AX65: 5.118821492 | AY65: 37.42382727 | BA65: =AW104 -> 3.679623407 | BB65: =AX104 -> 5.327704961 | BC65: =AY104 -> 19.60394788 | BD65: 142.8637319 | BE65: 15.28452638 | BF65: 0.26676531 | BG65: -15.01776107 | BH65: -0.2591184592 | BI65: 1.776657006 | BJ65: 8.602969694 | BK65: 74.01108756 | BL65: 1.938163976 | BM65: 7.886085271 | BN65: 62.19034091 | BO65: 0.01168573296 | BR65: 23.09190276 | BS65: 0.4030297338 | BT65: -22.68887303 | BU65: 0.9226130159 | BY65: 4.370843539 | BZ65: 0.07628561084 | CA65: -4.294557928 | CB65: 0.9971922507 | CC65: 1.002815655 | CD65: =($AG$47/$AG$48) * ($AG$49/$AG$50)* ($AG$51/$AG$52) * Generic!CC65 -> 5.414369738 | CE65: 5.399167545
F66: ='Simple AR Calculator'!C9 -> 92 | M66: =((COS(RADIANS((M58))))*F60) - J56 -> 92 | T66: 4.071886451 | U66: 0.07106782534 | V66: -4.000818626 | W66: 0.9975630535 | X66: 20.75885131 | Z66: 18.22099104 | AA66: 0.3180162867 | AB66: -17.90297476 | AC66: 0.9515784449 | AD66: 1.050885511 | AE66: =($AG$47/$AG$48) * ($AG$49/$AG$50)* ($AG$51/$AG$52) * Generic!AC66 -> 5.137731456 | AF66: 5.081516666 | AG66: 5.673906943 | AH66: 5.179875694 | AJ66: =X114 -> 19.72124033 | AK66: =AG114 -> 5.448154483 | AL66: =BE114 -> 6.449989601 | AM66: 5.348883765 | AN66: 16.50454784 | AO66: 26.49545216 | AP66: 3.085605999 | AQ66: 5.638170328 | AR66: 8.039060463 | AS66: 1.745648492 | AT66: 0.03046731376 | AU66: -1.715181178 | AV66: -0.02993108796 | AW66: =ABS(AV66)*'Simple AR Calculator'!$C$8 -> 7.183461111 | AX66: 5.128440109 | AY66: 36.83995008 | BA66: =AW109 -> 3.369551848 | BB66: =AX109 -> 5.339220768 | BC66: =AY109 -> 17.99078121 | BD66: 143.4819978 | BE66: 15.01776107 | BF66: 0.262109377 | BG66: -14.75565169 | BH66: -0.254697337 | BI66: 1.745648492 | BJ66: 8.602969694 | BK66: 74.01108756 | BL66: 1.923807205 | BM66: 7.80627135 | BN66: 60.9378724 | BO66: 0.01145039074 | BR66: 22.68887303 | BS66: 0.395995538 | BT66: -22.29287749 | BU66: 0.9252568819 | BY66: 4.294557928 | BZ66: 0.07495417576 | CA66: -4.219603752 | CB66: 0.9972893604 | CC66: 1.002718007 | CD66: =($AG$47/$AG$48) * ($AG$49/$AG$50)* ($AG$51/$AG$52) * Generic!CC66 -> 5.413842521 | CE66: 5.399167545
F67: =(J56*I18)/M60 -> 92 | T67: 4.000818626 | U67: 0.06982745779 | V67: -3.930991168 | W67: 0.9976473436 | X67: 20.71589656 | Z67: 17.90297476 | AA67: 0.3124658554 | AB67: -17.5905089 | AC67: 0.9532407426 | AD67: 1.049052936 | AE67: =($AG$47/$AG$48) * ($AG$49/$AG$50)* ($AG$51/$AG$52) * Generic!AC67 -> 5.14670648 | AF67: 5.092053274 | AG67: 5.664012566 | AH67: 5.170842829 | AJ67: =X119 -> 19.68230216 | AK67: =AG119 -> 5.440195769 | AL67: =BE119 -> 5.90642968 | AM67: 5.356991195 | AN67: 15.13663567 | AO67: 27.86336433 | AP67: 2.825585318 | AQ67: 5.898191009 | AR67: 8.02689391 | AS67: =ABS(AU66) -> 1.715181178 | AT67: 0.02993555882 | AU67: =AT67-AS67 -> -1.685245619 | AV67: -0.02940884392 | AW67: =ABS(AV67)*'Simple AR Calculator'!$C$8 -> 7.058122541 | AX67: 5.137731456 | AY67: 36.2627382 | BA67: =AW114 -> 3.085605999 | BB67: =AX114 -> 5.348883765 | BC67: =AY114 -> 16.50454784 | BD67: 144.0018193 | BE67: 14.75565169 | BF67: 0.2575347054 | BG67: -14.49811699 | BH67: -0.250348186 | BI67: 1.715181178 | BJ67: 8.602969694 | BK67: 74.01108756 | BL67: 1.909450435 | BM67: 7.727695583 | BN67: 59.71727902 | BO67: 0.01122103795 | BR67: 22.29287749 | BS67: 0.389084112 | BT67: -21.90379338 | BU67: 0.9278115575 | BY67: 4.219603752 | BZ67: 0.0736459786 | CA67: -4.145957773 | CB67: 0.9973831129 | CC67: 1.002623753 | CD67: =($AG$47/$AG$48) * ($AG$49/$AG$50)* ($AG$51/$AG$52) * Generic!CC67 -> 5.413333627 | CE67: 5.399167545
T68: 3.930991168 | U68: 0.06860873874 | V68: -3.862382429 | W68: 0.9977287193 | X68: 20.67434231 | Z68: =ABS(AB67) -> 17.5905089 | AA68: 0.3070122974 | AB68: =AA68-Z68 -> -17.2834966 | AC68: 0.9548464153 | AD68: 1.047288846 | AE68: =($AG$47/$AG$48) * ($AG$49/$AG$50)* ($AG$51/$AG$52) * Generic!AC68 -> 5.155375776 | AF68: 5.102288011 | AG68: 5.654487945 | AH68: 5.162147523 | AJ68: =X124 -> 19.64959011 | AK68: =AG124 -> 5.433536879 | AL68: =BE124 -> 5.40867718 | AM68: 5.363792869 | AN68: 13.87867695 | AO68: 29.12132305 | AP68: 2.58747444 | AQ68: 6.136301887 | AR68: 8.016715233 | AS68: 1.685245619 | AT68: 0.02941308476 | AU68: -1.655832534 | AV68: -0.02889570694 | AW68: =ABS(AV68)*'Simple AR Calculator'!$C$8 -> 6.934969666 | AX68: 5.14670648 | AY68: 35.69225331 | BA68: =AW119 -> 2.825585318 | BB68: =AX119 -> 5.356991195 | BC68: =AY119 -> 15.13663567 | BD68: 144.438684 | BE68: 14.49811699 | BF68: 0.2530398768 | BG68: -14.24507711 | BH68: -0.2460700152 | BI68: 1.685245619 | BJ68: 8.602969694 | BK68: 74.01108756 | BL68: 1.895093665 | BM68: 7.650343229 | BN68: 58.52775153 | BO68: 0.01099752252 | BR68: 21.90379338 | BS68: 0.3822933132 | BT68: -21.52150007 | BU68: 0.930279974 | BY68: 4.145957773 | BZ68: 0.07236061379 | CA68: -4.07359716 | CB68: 0.9974736242 | CC68: 1.002532775 | CD68: =($AG$47/$AG$48) * ($AG$49/$AG$50)* ($AG$51/$AG$52) * Generic!CC68 -> 5.412842419 | CE68: 5.399167545
T69: 3.862382429 | U69: 0.06741129036 | V69: -3.794971139 | W69: 0.9978072813 | X69: 20.63414546 | Z69: 17.2834966 | AA69: 0.301653922 | AB69: -16.98184268 | AC69: 0.956397362 | AD69: 1.045590504 | AE69: =($AG$47/$AG$48) * ($AG$49/$AG$50)* ($AG$51/$AG$52) * Generic!AC69 -> 5.163749597 | AF69: 5.112227649 | AG69: 5.645318316 | AH69: 5.1537763 | AJ69: =X129 -> 19.62211667 | AK69: =AG129 -> 5.427963499 | AL69: =BE129 -> 4.952871772 | AM69: 5.369498663 | AN69: 12.72263854 | AO69: 30.27736146 | AP69: 2.369427639 | AQ69: 6.354348688 | AR69: 8.008196425 | AS69: 1.655832534 | AT69: 0.02889972959 | AU69: -1.626932805 | AV69: -0.02839151847 | AW69: =ABS(AV69)*'Simple AR Calculator'!$C$8 -> 6.813964433 | AX69: 5.155375776 | AY69: 35.12854718 | AZ69: 15 | BA69: =AW124 -> 2.58747444 | BB69: =AX124 -> 5.363792869 | BC69: =AY124 -> 13.87867695 | BD69: 144.8056992 | BE69: 14.24507711 | BF69: 0.2486234978 | BG69: -13.99645361 | BH69: -0.2418618376 | BI69: 1.655832534 | BJ69: 8.602969694 | BK69: 74.01108756 | BL69: 1.880736895 | BM69: 7.574199853 | BN69: 57.36850341 | BO69: 0.01077969667 | BR69: 21.52150007 | BS69: 0.3756210361 | BT69: -21.14587903 | BU69: 0.9326649719 | BY69: 4.07359716 | BZ69: 0.07109768284 | CA69: -4.002499477 | CB69: 0.9975610062 | CC69: 1.002444957 | CD69: =($AG$47/$AG$48) * ($AG$49/$AG$50)* ($AG$51/$AG$52) * Generic!CC69 -> 5.412368277 | CE69: 5.399167545
T70: =ABS(V69) -> 3.794971139 | U70: 0.06623474139 | V70: =U70-T70 -> -3.728736397 | W70: 0.9978831269 | X70: 20.59526406 | Z70: 16.98184268 | AA70: 0.2963890678 | AB70: -16.68545361 | AC70: 0.9578954197 | AD70: 1.0439553 | AE70: =($AG$47/$AG$48) * ($AG$49/$AG$50)* ($AG$51/$AG$52) * Generic!AC70 -> 5.171837861 | AF70: 5.121878924 | AG70: 5.636489572 | AH70: 5.145716282 | AJ70: =X134 -> 19.59904861 | AK70: =AG134 -> 5.423297253 | AL70: =BE134 -> 4.53547845 | AM70: 5.374284845 | AN70: 11.66087912 | AO70: 31.33912088 | AP70: 2.169754573 | AQ70: 6.554021754 | AR70: 8.001064559 | AS70: 1.626932805 | AT70: 0.02839533415 | AU70: -1.598537471 | AV70: -0.02789612271 | AW70: =ABS(AV70)*'Simple AR Calculator'!$C$8 -> 6.695069452 | AX70: 5.163749597 | AY70: 34.57166218 | BA70: =AW129 -> 2.369427639 | BB70: =AX129 -> 5.369498663 | BC70: =AY129 -> 12.72263854 | BD70: 145.1139404 | BE70: 13.99645361 | BF70: 0.2442841992 | BG70: -13.75216942 | BH70: -0.2377226705 | BI70: 1.626932805 | BJ70: 8.602969694 | BK70: 74.01108756 | BL70: 1.866380125 | BM70: 7.499251321 | BN70: 56.23877037 | BO70: 0.01056741679 | BR70: 21.14587903 | BS70: 0.3690652123 | BT70: -20.77681382 | BU70: 0.9349693028 | BY70: 4.002499477 | BZ70: 0.06985679418 | CA70: -3.932642683 | CB70: 0.9976453671 | CC70: 1.00236019 | CD70: =($AG$47/$AG$48) * ($AG$49/$AG$50)* ($AG$51/$AG$52) * Generic!CC70 -> 5.411910607 | CE70: 5.399167545
T71: 3.728736397 | U71: 0.06507872707 | V71: -3.66365767 | W71: 0.9979563499 | X71: 20.55765734 | Z71: 16.68545361 | AA71: 0.2912161027 | AB71: -16.39423751 | AC71: 0.959342366 | AD71: 1.042380734 | AE71: =($AG$47/$AG$48) * ($AG$49/$AG$50)* ($AG$51/$AG$52) * Generic!AC71 -> 5.179650167 | AF71: 5.131248527 | AG71: 5.62798823 | AH71: 5.137955158 | AJ71: =X139 -> 19.57968355 | AK71: =AG139 -> 5.419389498 | AL71: =BE139 -> 4.153260111 | AM71: 5.378299419 | AN71: 10.68618202 | AO71: 32.31381798 | AP71: 1.986907234 | AQ71: 6.736869093 | AR71: 7.99509225 | AS71: 1.598537471 | AT71: 0.02789974208 | AU71: -1.570637729 | AV71: -0.02740936657 | AW71: =ABS(AV71)*'Simple AR Calculator'!$C$8 -> 6.578247977 | AX71: 5.171837861 | AY71: 34.02163195 | BA71: =AW134 -> 2.169754573 | BB71: =AX134 -> 5.374284845 | BC71: =AY134 -> 11.66087912 | BD71: 145.3727546 | BE71: 13.75216942 | BF71: 0.2400206356 | BG71: -13.51214878 | BH71: -0.2336515362 | BI71: 1.598537471 | BJ71: 8.602969694 | BK71: 74.01108756 | BL71: 1.852023355 | BM71: 7.4254838 | BN71: 55.13780966 | BO71: 0.0103605433 | BR71: 20.77681382 | BS71: 0.3626238092 | BT71: -20.41419001 | BU71: 0.9371956326
T72: 3.66365767 | U72: 0.06394288901 | V72: -3.599714781 | W72: 0.998027041 | X72: 20.52128563 | Z72: 16.39423751 | AA72: 0.2861334229 | AB72: -16.10810409 | AC72: 0.9607399203 | AD72: 1.04086442 | AE72: =($AG$47/$AG$48) * ($AG$49/$AG$50)* ($AG$51/$AG$52) * Generic!AC72 -> 5.187195797 | AF72: 5.140343098 | AG72: 5.619801395 | AH72: 5.130481157 | AJ72: =X144 -> 19.5634299 | AK72: =AG144 -> 5.416116245 | AL72: =BE144 -> 3.803252456 | AM72: 5.381666632 | AN72: 9.791770074 | AO72: 33.20822993 | AP72: 1.819467972 | AQ72: 6.904308355 | AR72: 7.990089863 | AS72: 1.570637729 | AT72: 0.02741279972 | AU72: -1.543224929 | AV72: -0.0269310996 | AW72: =ABS(AV72)*'Simple AR Calculator'!$C$8 -> 6.463463903 | AX72: 5.179650167 | AY72: 33.47848188 | BA72: =AW139 -> 1.986907234 | BB72: =AX139 -> 5.378299419 | BC72: =AY139 -> 10.68618202 | BD72: 145.5900217 | BE72: 13.51214878 | BF72: 0.2358314852 | BG72: -13.27631729 | BH72: -0.2296474626 | BI72: 1.570637729 | BJ72: 8.602969694 | BK72: 74.01108756 | BL72: 1.837666584 | BM72: 7.352883758 | BN72: 54.06489956 | BO72: 0.01015894059 | BR72: 20.41419001 | BS72: 0.3562948298 | BT72: -20.05789518 | BU72: 0.9393465429
T73: 3.599714781 | U73: 0.06282687507 | V73: -3.536887906 | W73: 0.9980952876 | X73: 20.48611037 | Z73: 16.10810409 | AA73: 0.2811394526 | AB73: -15.82696463 | AC73: 0.962089746 | AD73: 1.039404072 | AE73: =($AG$47/$AG$48) * ($AG$49/$AG$50)* ($AG$51/$AG$52) * Generic!AC73 -> 5.194483732 | AF73: 5.149169219 | AG73: 5.611916734 | AH73: 5.123283018 | AJ73: =X149 -> 19.54978977 | AK73: =AG149 -> 5.413373979 | AL73: =BE149 -> 3.482740993 | AM73: 5.384490769 | AN73: 8.971307585 | AO73: 34.02869241 | AP73: 1.666138539 | AQ73: 7.057637788 | AR73: 7.985899102 | AS73: 1.543224929 | AT73: 0.02693435611 | AU73: -1.516290573 | AV73: -0.02646117395 | AW73: =ABS(AV73)*'Simple AR Calculator'!$C$8 -> 6.350681747 | AX73: 5.187195797 | AY73: 32.94222967 | BA73: =AW144 -> 1.819467972 | BB73: =AX144 -> 5.381666632 | BC73: =AY144 -> 9.791770074 | BD73: 145.772379 | BE73: 13.27631729 | BF73: 0.2317154493 | BG73: -13.04460185 | BH73: -0.2257094836 | BI73: 1.543224929 | BJ73: 8.602969694 | BK73: 74.01108756 | BL73: 1.823309814 | BM73: 7.281437961 | BN73: 53.01933878 | BO73: 0.009962476898 | BR73: 20.05789518 | BS73: 0.3500763119 | BT73: -19.70781887 | BU73: 0.9414245343
T74: 3.536887906 | U74: 0.06173033924 | V74: -3.475157567 | W74: 0.9981611742 | X74: 20.45209409 | Z74: 15.82696463 | AA74: 0.2762326435 | AB74: -15.55073199 | AC74: 0.9633934519 | AD74: 1.037997506 | AE74: =($AG$47/$AG$48) * ($AG$49/$AG$50)* ($AG$51/$AG$52) * Generic!AC74 -> 5.201522658 | AF74: 5.157733408 | AG74: 5.604322444 | AH74: 5.116349969 | AJ74: =X154 -> 19.53834433 | AK74: =AG154 -> 5.41107622 | AL74: =BE154 -> 3.189239989 | AM74: 5.386859347 | AN74: 8.218893118 | AO74: 34.78110688 | AP74: 1.525730038 | AQ74: 7.198046289 | AR74: 7.982387739 | AS74: 1.516290573 | AT74: 0.02646426291 | AU74: -1.48982631 | AV74: -0.02599944435 | AW74: =ABS(AV74)*'Simple AR Calculator'!$C$8 -> 6.239866645 | AX74: 5.194483732 | AY74: 32.41288577 | AZ74: 20 | BA74: =AW149 -> 1.666138539 | BB74: =AX149 -> 5.384490769 | BC74: =AY149 -> 8.971307585 | BD74: 145.9254131 | BE74: 13.04460185 | BF74: 0.2276712518 | BG74: -12.81693059 | BH74: -0.2218366393 | BI74: 1.516290573 | BJ74: 8.602969694 | BK74: 74.01108756 | BL74: 1.808953044 | BM74: 7.211133473 | BN74: 52.00044596 | BO74: 0.009771024187 | BR74: 19.70781887 | BS74: 0.3439663276 | BT74: -19.36385254 | BU74: 0.9434320281
T75: 3.475157567 | U75: 0.06065294157 | V75: -3.414504625 | W75: 0.9982247823 | X75: 20.41920037 | Z75: 15.55073199 | AA75: 0.2714114743 | AB75: -15.27932052 | AC75: 0.964652594 | AD75: 1.036642628 | AE75: =($AG$47/$AG$48) * ($AG$49/$AG$50)* ($AG$51/$AG$52) * Generic!AC75 -> 5.208320978 | AF75: 5.16604211 | AG75: 5.597007232 | AH75: 5.109671698 | AS75: 1.48982631 | AT75: 0.02600237439 | AU75: -1.463823935 | AV75: -0.02554576806 | AW75: =ABS(AV75)*'Simple AR Calculator'!$C$8 -> 6.130984334 | AX75: 5.201522658 | AY75: 31.89045393 | BA75: =AW154 -> 1.525730038 | BB75: =AX154 -> 5.386859347 | BC75: =AY154 -> 8.218893118 | BD75: 146.0538233 | BE75: =ABS(BG74) -> 12.81693059 | BF75: 0.2236976389 | BG75: =BF75-BE75 -> -12.59323295 | BH75: -0.2180279771 | BI75: 1.48982631 | BJ75: 8.602969694 | BK75: 74.01108756 | BL75: 1.794596274 | BM75: 7.141957654 | BN75: 51.00755914 | BO75: =(BK75*$BD$52)*10000 -> 0 | BR75: 19.36385254 | BS75: 0.3379629827 | BT75: -19.02588956 | BU75: 0.9453713685
T76: 3.414504625 | U76: 0.05959434804 | V76: -3.354910277 | W76: 0.9982861908 | X76: 20.38739382 | Y76: 22 | Z76: 15.27932052 | AA76: 0.2666744505 | AB76: -15.01264607 | AC76: 0.9658686774 | AD76: 1.035337436 | AE76: =($AG$47/$AG$48) * ($AG$49/$AG$50)* ($AG$51/$AG$52) * Generic!AC76 -> 5.214886815 | AF76: 5.174101696 | AG76: 5.589960282 | AH76: 5.103238332 | AK76: HamRise | AS76: 1.463823935 | AT76: 0.02554854734 | AU76: -1.438275388 | AV76: -0.02510000478 | AW76: =ABS(AV76)*'Simple AR Calculator'!$C$8 -> 6.024001148 | AX76: 5.208320978 | AY76: 31.37493155 | BE76: 12.59323295 | BF76: 0.2197933785 | BG76: -12.37343958 | BH76: -0.2142825512 | BI76: 1.463823935 | BJ76: 8.602969694 | BK76: 74.01108756 | BL76: 1.780239504 | BM76: 7.073898163 | BN76: 50.04003523 | BO76: 0 | BR76: 19.02588956 | BS76: 0.3320644159 | BT76: -18.69382514 | BU76: 0.9472448252
T77: 3.354910277 | U77: 0.05855423045 | V77: -3.296356047 | W77: 0.9983454756 | X77: 20.35664007 | Z77: 15.01264607 | AA77: 0.2620201033 | AB77: -14.75062596 | AC77: 0.9670431573 | AD77: 1.034080012 | AE77: =($AG$47/$AG$48) * ($AG$49/$AG$50)* ($AG$51/$AG$52) * Generic!AC77 -> 5.221228029 | AF77: 5.181918458 | AG77: 5.583171241 | AH77: 5.097040417 | AK77: =AM54*AQ54 -> 0.02837885837 | AL77: ='Simple AR Calculator'!H89 -> 2.080358998 | AS77: 1.438275388 | AT77: 0.02510264107 | AU77: -1.413172747 | AV77: -0.02466201668 | AW77: =ABS(AV77)*'Simple AR Calculator'!$C$8 -> 5.918884004 | AX77: 5.214886815 | AY77: 30.86631015 | BB77: =AVERAGE(BB55:BB75) -> 5.277387955 | BD77: =AVERAGE(BD55:BD75) -> 140.2532059 | BE77: 12.37343958 | BF77: 0.2159572604 | BG77: -12.15748232 | BH77: -0.2105994238 | BI77: 1.438275388 | BJ77: 8.602969694 | BK77: 74.01108756 | BL77: 1.765882733 | BM77: 7.006942954 | BN77: 49.09724956 | BO77: 0 | BR77: 18.69382514 | BS77: 0.3262687985 | BT77: -18.36755634 | BU77: 0.9490545953
T78: 3.296356047 | U78: 0.05753226634 | V78: -3.238823781 | W78: 0.9984027102 | X78: 20.32690575 | Z78: 14.75062596 | AA78: 0.2574469898 | AB78: -14.49317897 | AC78: 0.9681774411 | AD78: 1.032868519 | AE78: =($AG$47/$AG$48) * ($AG$49/$AG$50)* ($AG$51/$AG$52) * Generic!AC78 -> 5.227352218 | AF78: 5.1894986 | AG78: 5.576630187 | AH78: 5.091068898 | AK78: 3.02408921 | AL78: ='Simple AR Calculator'!H90 -> 1.939048719 | AS78: 1.413172747 | AT78: 0.02466451734 | AU78: -1.38850823 | AV78: -0.02423166831 | AW78: =ABS(AV78)*'Simple AR Calculator'!$C$8 -> 5.815600394 | AX78: 5.221228029 | AY78: 30.36457578 | BE78: 12.15748232 | BF78: 0.2121880952 | BG78: -11.94529422 | BH78: -0.2069776648 | BI78: 1.413172747 | BJ78: 8.602969694 | BK78: 74.01108756 | BL78: 1.751525963 | BM78: 6.941080276 | BN78: 48.1785954 | BO78: 0 | BR78: 18.36755634 | BS78: 0.3205743337 | BT78: -18.04698201 | BU78: 0.9508028055
T79: 3.238823781 | U79: 0.05652813886 | V79: -3.182295642 | W79: 0.9984579653 | X79: 20.29815843 | Z79: 14.49317897 | AA79: 0.2529536922 | AB79: -14.24022528 | AC79: 0.9692728896 | AD79: 1.031701197 | AE79: =($AG$47/$AG$48) * ($AG$49/$AG$50)* ($AG$51/$AG$52) * Generic!AC79 -> 5.233266728 | AF79: 5.196848241 | AG79: 5.570327616 | AH79: 5.085315096 | AK79: 6.554291903 | AL79: ='Simple AR Calculator'!H91 -> 1.775803469 | AS79: 1.38850823 | AT79: 0.0242340403 | AU79: -1.364274189 | AV79: -0.02380882655 | AW79: =ABS(AV79)*'Simple AR Calculator'!$C$8 -> 5.714118372 | AX79: 5.227352218 | AY79: 29.86970935 | AZ79: 25 | BE79: 11.94529422 | BF79: 0.2084847143 | BG79: -11.73680951 | BH79: -0.2034163523 | BI79: 1.38850823 | BJ79: 8.602969694 | BK79: 74.01108756 | BL79: 1.737169193 | BM79: 6.876298675 | BN79: 47.28348347 | BO79: 0 | BR79: 18.04698201 | BS79: 0.3149792561 | BT79: -17.73200275 | BU79: 0.9524915139
T80: 3.182295642 | U80: 0.05554153672 | V80: -3.126754105 | W80: 0.9985113095 | X80: 20.27036664 | Z80: 14.24022528 | AA80: 0.2485388174 | AB80: -13.99168646 | AC80: 0.9703308186 | AD80: 1.030576357 | AE80: =($AG$47/$AG$48) * ($AG$49/$AG$50)* ($AG$51/$AG$52) * Generic!AC80 -> 5.238978663 | AF80: 5.203973406 | AG80: 5.564254418 | AH80: 5.079770696 | AK80: 9.845797976 | AL80: ='Simple AR Calculator'!H92 -> 1.626277307 | AS80: 1.364274189 | AT80: 0.02381107651 | AU80: -1.340463113 | AV80: -0.02339336063 | AW80: =ABS(AV80)*'Simple AR Calculator'!$C$8 -> 5.614406551 | AX80: 5.233266728 | AY80: 29.381687 | BE80: 11.73680951 | BF80: 0.2048459696 | BG80: -11.53196354 | BH80: -0.1999145729 | BI80: 1.364274189 | BJ80: 8.602969694 | BK80: 74.01108756 | BL80: 1.722812423 | BM80: 6.812586995 | BN80: 46.41134156 | BO80: 0 | BR80: 17.73200275 | BS80: 0.309481831 | BT80: -17.42252092 | BU80: 0.9541227126
T81: 3.126754105 | U81: 0.05457215403 | V81: -3.072181951 | W81: 0.9985628088 | X81: 20.24349984 | Z81: 13.99168646 | AA81: 0.2442009967 | AB81: -13.74748547 | AC81: 0.9713525002 | AD81: 1.029492383 | AE81: =($AG$47/$AG$48) * ($AG$49/$AG$50)* ($AG$51/$AG$52) * Generic!AC81 -> 5.244494893 | AF81: 5.210880025 | AG81: 5.558401861 | AH81: 5.074427725 | AK81: 12.90262844 | AL81: ='Simple AR Calculator'!H93 -> 1.489322912 | AS81: 1.340463113 | AT81: 0.02339549482 | AU81: -1.317067618 | AV81: -0.02298514202 | AW81: =ABS(AV81)*'Simple AR Calculator'!$C$8 -> 5.516434085 | AX81: 5.238978663 | AY81: 28.90048047 | BE81: 11.53196354 | BF81: 0.2012707329 | BG81: -11.3306928 | BH81: -0.196471422 | BI81: 1.340463113 | BJ81: 8.602969694 | BK81: 74.01108756 | BL81: 1.708455653 | BM81: 6.749934374 | BN81: 45.56161406 | BO81: 0 | BR81: 17.42252092 | BS81: 0.3040803541 | BT81: -17.11844057 | BU81: 0.9556983288
T82: 3.072181951 | U82: 0.05361969026 | V82: -3.018562261 | W82: 0.9986125269 | X82: 20.21752837 | Z82: 13.74748547 | AA82: 0.2399388853 | AB82: -13.50754658 | AC82: 0.9723391642 | AD82: 1.028447724 | AE82: =($AG$47/$AG$48) * ($AG$49/$AG$50)* ($AG$51/$AG$52) * Generic!AC82 -> 5.249822058 | AF82: 5.21757393 | AG82: 5.55276157 | AH82: 5.069278539 | AK82: 15.73254218 | AL82: ='Simple AR Calculator'!H94 -> 1.363887604 | AS82: 1.317067618 | AT82: 0.02298716641 | AU82: -1.294080452 | AV82: -0.02258404444 | AW82: =ABS(AV82)*'Simple AR Calculator'!$C$8 -> 5.420170665 | AX82: 5.244494893 | AY82: 28.42605737 | BE82: 11.3306928 | BF82: 0.197757896 | BG82: -11.13293491 | BH82: -0.1930860039 | BI82: 1.317067618 | BJ82: 8.602969694 | BK82: 74.01108756 | BL82: 1.694098882 | BM82: 6.688330251 | BN82: 44.73376155 | BO82: 0 | BR82: 17.11844057 | BS82: 0.2987731507 | BT82: -16.81966742 | BU82: 0.9572202277
T83: 3.018562261 | U83: 0.05268385012 | V83: -2.965878411 | W83: 0.9986605255 | X83: 20.19242346 | Z83: 13.50754658 | AA83: 0.2357511617 | AB83: -13.27179542 | AC83: 0.9732919998 | AD83: 1.027440892 | AE83: =($AG$47/$AG$48) * ($AG$49/$AG$50)* ($AG$51/$AG$52) * Generic!AC83 -> 5.254966577 | AF83: 5.224060854 | AG83: 5.547325516 | AH83: 5.064315805 | AK83: 18.34573981 | AL83: ='Simple AR Calculator'!H95 -> 1.249005847 | AS83: 1.294080452 | AT83: 0.02258596467 | AU83: -1.271494487 | AV83: -0.02218994378 | AW83: =ABS(AV83)*'Simple AR Calculator'!$C$8 -> 5.325586508 | AX83: 5.249822058 | AY83: 27.95838152 | BE83: 11.13293491 | BF83: 0.1943063696 | BG83: -10.93862854 | BH83: -0.1897574318 | BI83: 1.294080452 | BJ83: 8.602969694 | BK83: 74.01108756 | BL83: 1.679742112 | BM83: 6.627764361 | BN83: 43.92726043 | BO83: 0 | BR83: 16.81966742 | BS83: 0.2935585755 | BT83: -16.52610884 | BU83: 0.9586902137
T84: 2.965878411 | U84: 0.05176434348 | V84: -2.914114067 | W84: 0.998706864 | X84: 20.1681572 | Z84: 13.27179542 | AA84: 0.2316365277 | AB84: -13.04015889 | AC84: 0.9742121562 | AD84: 1.02647046 | AE84: =($AG$47/$AG$48) * ($AG$49/$AG$50)* ($AG$51/$AG$52) * Generic!AC84 -> 5.259934655 | AF84: 5.230346425 | AG84: 5.542085993 | AH84: 5.059532492 | AK84: 20.75390261 | AL84: ='Simple AR Calculator'!H96 -> 1.143792264 | AS84: 1.271494487 | AT84: 0.02219176522 | AU84: -1.249302722 | AV84: -0.02180271813 | AW84: =ABS(AV84)*'Simple AR Calculator'!$C$8 -> 5.232652351 | AX84: 5.254966577 | AY84: 27.49741321 | AZ84: 30 | BE84: 10.93862854 | BF84: 0.1909150836 | BG84: -10.74771345 | BH84: -0.1864848285 | BI84: 1.271494487 | BJ84: 8.602969694 | BK84: 74.01108756 | BL84: 1.665385342 | BM84: 6.568226741 | BN84: 43.14160253 | BO84: 0 | BR84: 16.52610884 | BS84: 0.2884350118 | BT84: -16.23767383 | BU84: 0.9601100324
T85: 2.914114067 | U85: 0.05086088525 | V85: -2.863253182 | W85: 0.9987515997 | X85: 20.14470252 | Z85: 13.04015889 | AA85: 0.2275937077 | AB85: -12.81256518 | AC85: 0.9751007444 | AD85: 1.02553506 | AE85: =($AG$47/$AG$48) * ($AG$49/$AG$50)* ($AG$51/$AG$52) * Generic!AC85 -> 5.264732292 | AF85: 5.236436171 | AG85: 5.537035609 | AH85: 5.054921849 | AK85: 22.96948905 | AL85: ='Simple AR Calculator'!H97 -> 1.047435164 | AS85: 1.249302722 | AT85: 0.02180444585 | AU85: -1.227498276 | AV85: -0.02142224765 | AW85: =ABS(AV85)*'Simple AR Calculator'!$C$8 -> 5.141339436 | AX85: 5.259934655 | AY85: 27.04310947 | BE85: 10.74771345 | BF85: 0.1875829868 | BG85: -10.56013047 | BH85: -0.183267326 | BI85: 1.249302722 | BJ85: 8.602969694 | BK85: 74.01108756 | BL85: 1.651028572 | BM85: 6.509707729 | BN85: 42.37629472 | BO85: 0 | BR85: 16.23767383 | BS85: 0.2834008712 | BT85: -15.95427296 | BU85: 0.9614813725
T86: 2.863253182 | U86: 0.04997319534 | V86: -2.813279986 | W86: 0.9987947881 | X86: 20.12203314 | Z86: 12.81256518 | AA86: 0.2236214481 | AB86: -12.58894374 | AC86: 0.9759588385 | AD86: 1.024633377 | AE86: =($AG$47/$AG$48) * ($AG$49/$AG$50)* ($AG$51/$AG$52) * Generic!AC86 -> 5.269365286 | AF86: 5.242335512 | AG86: 5.532167272 | AH86: 5.050477401 | AK86: 25.00522766 | AL86: ='Simple AR Calculator'!H98 -> 0.9591905456 | AS86: 1.227498276 | AT86: 0.02142388648 | AU86: -1.206074389 | AV86: -0.02104841461 | AW86: =ABS(AV86)*'Simple AR Calculator'!$C$8 -> 5.051619506 | AX86: 5.264732292 | AY86: 26.59542434 | BE86: 10.56013047 | BF86: 0.1843090461 | BG86: -10.37582142 | BH86: -0.1801040662 | BI86: 1.227498276 | BJ86: 8.602969694 | BK86: 74.01108756 | BL86: 1.636671802 | BM86: 6.452197965 | BN86: 41.63085858 | BO86: 0 | BR86: 15.95427296 | BS86: 0.2784545929 | BT86: -15.67581837 | BU86: 0.9628058674
T87: 2.813279986 | U87: 0.04910099854 | V87: -2.764178988 | W87: 0.9988364828 | X87: 20.10012361 | Z87: 12.58894374 | AA87: 0.2197185175 | AB87: -12.36922522 | AC87: 0.9767874764 | AD87: 1.02376415 | AE87: =($AG$47/$AG$48) * ($AG$49/$AG$50)* ($AG$51/$AG$52) * Generic!AC87 -> 5.27383924 | AF87: 5.248049762 | AG87: 5.52747417 | AH87: 5.04619293 | AK87: 26.87375854 | AL87: ='Simple AR Calculator'!H99 -> 0.8783765606 | AS87: 1.206074389 | AT87: 0.02104996912 | AU87: -1.18502442 | AV87: -0.02068110332 | AW87: =ABS(AV87)*'Simple AR Calculator'!$C$8 -> 4.963464797 | AX87: 5.269365286 | AY87: 26.1543091 | BE87: 10.37582142 | BF87: 0.1810922464 | BG87: -10.19472918 | BH87: -0.1769942002 | BI87: 1.206074389 | BJ87: 8.602969694 | BK87: 74.01108756 | BL87: 1.622315031 | BM87: 6.395688396 | BN87: 40.90483006 | BO87: 0 | BR87: 15.67581837 | BS87: 0.2735946434 | BT87: -15.40222372 | BU87: 0.9640850969
T88: 2.764178988 | U88: 0.04824402445 | V88: -2.715934963 | W88: 0.9988767352 | X88: 20.07894922 | Z88: 12.36922522 | AA88: 0.215883706 | AB88: -12.15334151 | AC88: 0.9775876613 | AD88: 1.022926168 | AE88: =($AG$47/$AG$48) * ($AG$49/$AG$50)* ($AG$51/$AG$52) * Generic!AC88 -> 5.278159573 | AF88: 5.253584129 | AG88: 5.522949765 | AH88: 5.04206247 | AK88: 28.58738654 | AL88: ='Simple AR Calculator'!H100 -> 0.8043684004 | AS88: 1.18502442 | AT88: 0.02068257785 | AU88: -1.164341843 | AV88: -0.02032020011 | AW88: =ABS(AV88)*'Simple AR Calculator'!$C$8 -> 4.876848026 | AX88: 5.27383924 | AY88: 25.71971249 | BE88: 10.19472918 | BF88: 0.1779315905 | BG88: -10.01679758 | BH88: -0.1739368894 | BI88: 1.18502442 | BJ88: 8.602969694 | BK88: 74.01108756 | BL88: 1.607958261 | BM88: 6.340170277 | BN88: 40.19775915 | BO88: 0 | BR88: 15.40222372 | BS88: 0.2688195161 | BT88: -15.13340421 | BU88: 0.9653205892
T89: 2.715934963 | U89: 0.04740200738 | V89: -2.668532956 | W89: 0.9989155953 | X89: 20.05848602 | Z89: 12.15334151 | AA89: 0.2121158245 | AB89: -11.94122569 | AC89: 0.978360363 | AD89: 1.022118268 | AE89: =($AG$47/$AG$48) * ($AG$49/$AG$50)* ($AG$51/$AG$52) * Generic!AC89 -> 5.282331519 | AF89: 5.258943711 | AG89: 5.518587781 | AH89: 5.038080287 | AK89: 30.15791773 | AL89: ='Simple AR Calculator'!H111 -> 1.006665416 | AS89: 1.164341843 | AT89: 0.02032159877 | AU89: -1.144020244 | AV89: -0.01996559326 | AW89: =ABS(AV89)*'Simple AR Calculator'!$C$8 -> 4.791742383 | AX89: 5.278159573 | AY89: 25.29158093 | AZ89: 35 | BE89: 10.01679758 | BF89: 0.1748260984 | BG89: -9.841971487 | BH89: -0.1709313048 | BI89: 1.164341843 | BJ89: 8.602969694 | BK89: 74.01108756 | BL89: 1.593601491 | BM89: 6.285635173 | BN89: 39.50920953 | BO89: 0 | BR89: 15.13340421 | BS89: 0.2641277304 | BT89: -14.86927648 | BU89: 0.9665138218
T90: 2.668532956 | U90: 0.04657468628 | V90: -2.62195827 | W90: 0.9989531113 | X90: 20.03871082 | Z90: 11.94122569 | AA90: 0.208413705 | AB90: -11.73281198 | AC90: 0.9791065184 | AD90: 1.021339335 | AE90: =($AG$47/$AG$48) * ($AG$49/$AG$50)* ($AG$51/$AG$52) * Generic!AC90 -> 5.286360137 | AF90: 5.2641335 | AG90: 5.514382187 | AH90: 5.034240877 | AK90: 31.5965573 | AL90: ='Simple AR Calculator'!H101 -> 0.7365935877 | AS90: 1.144020244 | AT90: 0.01996691996 | AU90: -1.124053324 | AV90: -0.01961717303 | AW90: =ABS(AV90)*'Simple AR Calculator'!$C$8 -> 4.708121526 | AX90: 5.282331519 | AY90: 24.86985873 | BE90: 9.841971487 | BF90: 0.1717748073 | BG90: -9.670196679 | BH90: -0.1679766273 | BI90: 1.144020244 | BJ90: 8.602969694 | BK90: 74.01108756 | BL90: 1.579244721 | BM90: 6.232074964 | BN90: 38.83875835 | BO90: 0 | BR90: 14.86927648 | BS90: 0.2595178319 | BT90: -14.60975864 | BU90: 0.9676662239
T91: 2.62195827 | U91: 0.04576180466 | V91: -2.576196465 | W91: 0.9989893296 | X91: 20.01960111 | Z91: 11.73281198 | AA91: 0.2047761996 | AB91: -11.52803578 | AC91: 0.9798270332 | AD91: 1.020588294 | AE91: =($AG$47/$AG$48) * ($AG$49/$AG$50)* ($AG$51/$AG$52) * Generic!AC91 -> 5.290250317 | AF91: 5.269158378 | AG91: 5.510327192 | AH91: 5.030538953 | AK91: 32.9138523 | AL91: ='Simple AR Calculator'!H102 -> 0.6745276415 | AS91: 1.124053324 | AT91: 0.01961843147 | AU91: -1.104434892 | AV91: -0.01927483155 | AW91: =ABS(AV91)*'Simple AR Calculator'!$C$8 -> 4.625959572 | AX91: 5.286360137 | AY91: 24.45448828 | BE91: 9.670196679 | BF91: 0.1687767714 | BG91: -9.501419908 | BH91: -0.165072048 | BI91: 1.124053324 | BJ91: 8.602969694 | BK91: 74.01108756 | BL91: 1.564887951 | BM91: 6.179481844 | BN91: 38.18599586 | BO91: 0 | BR91: 14.60975864 | BS91: 0.2549883913 | BT91: -14.35477025 | BU91: 0.9687791771
T92: 2.576196465 | U92: 0.0449631105 | V92: -2.531233355 | W92: 0.9990242951 | X92: 20.0011351 | Z92: 11.52803578 | AA92: 0.2012021807 | AB92: -11.3268336 | AC92: 0.9805227826 | AD92: 1.019864115 | AE92: =($AG$47/$AG$48) * ($AG$49/$AG$50)* ($AG$51/$AG$52) * Generic!AC92 -> 5.294006785 | AF92: 5.27402312 | AG92: 5.50641723 | AH92: 5.026969434 | AK92: 34.11966679 | AL92: ='Simple AR Calculator'!H103 -> 0.6176900897 | AS92: 1.104434892 | AT92: 0.01927602524 | AU92: -1.085158867 | AV92: -0.01893846286 | AW92: =ABS(AV92)*'Simple AR Calculator'!$C$8 -> 4.545231086 | AX92: 5.290250317 | AY92: 24.0454102 | BE92: 9.501419908 | BF92: 0.165831061 | BG92: -9.335588847 | BH92: -0.162216768 | BI92: 1.104434892 | BJ92: 8.602969694 | BK92: 74.01108756 | BL92: 1.550531181 | BM92: 6.127848332 | BN92: 37.55052518 | BO92: 0 | BR92: 14.35477025 | BS92: 0.2505380043 | BT92: -14.10423225 | BU92: 0.9698540176
T93: 2.531233355 | U93: 0.04417835617 | V93: -2.487054998 | W93: 0.9990580511 | X93: 19.98329165 | Z93: 11.3268336 | AA93: 0.1976905402 | AB93: -11.12914306 | AC93: 0.9811946122 | AD93: 1.019165808 | AE93: =($AG$47/$AG$48) * ($AG$49/$AG$50)* ($AG$51/$AG$52) * Generic!AC93 -> 5.297634105 | AF93: 5.278732391 | AG93: 5.502646954 | AH93: 5.023527439 | AK93: 35.22317978 | AL93: ='Simple AR Calculator'!H104 -> 0.5656408046 | AS93: 1.085158867 | AT93: 0.01893959514 | AU93: -1.066219272 | AV93: -0.01860796282 | AW93: =ABS(AV93)*'Simple AR Calculator'!$C$8 -> 4.465911077 | AX93: 5.294006785 | AY93: 23.64256354 | BE93: 9.335588847 | BF93: 0.162936763 | BG93: -9.172652084 | BH93: -0.1594099983 | BI93: 1.085158867 | BJ93: 8.602969694 | BK93: 74.01108756 | BL93: 1.53617441 | BM93: 6.07716727 | BN93: 36.93196202 | BO93: 0 | BR93: 14.10423225 | BS93: 0.2461652912 | BT93: -13.85806696 | BU93: 0.9708920372
T94: 2.487054998 | U94: 0.0434072984 | V94: -2.4436477 | W94: 0.9990906395 | X94: 19.9660503 | Z94: 11.12914306 | AA94: 0.1942401894 | AB94: -10.93490287 | AC94: 0.9818433392 | AD94: 1.018492421 | AE94: =($AG$47/$AG$48) * ($AG$49/$AG$50)* ($AG$51/$AG$52) * Generic!AC94 -> 5.301136691 | AF94: 5.283290752 | AG94: 5.499011226 | AH94: 5.020208276 | AK94: 36.23289913 | AL94: ='Simple AR Calculator'!H105 -> 0.5179766368 | AS94: 1.066219272 | AT94: 0.01860903684 | AU94: -1.047610235 | AV94: -0.01828322912 | AW94: =ABS(AV94)*'Simple AR Calculator'!$C$8 -> 4.387974988 | AX94: 5.297634105 | AY94: 23.24588595 | AZ94: 40 | BE94: 9.172652084 | BF94: 0.16009298 | BG94: -9.012559104 | BH94: -0.1566509603 | BI94: 1.066219272 | BJ94: 8.602969694 | BK94: 74.01108756 | BL94: 1.52181764 | BM94: 6.02743183 | BN94: 36.32993447 | BO94: 0 | BR94: 13.85806696 | BS94: 0.2418688964 | BT94: -13.61619806 | BU94: 0.9718944848
T95: 2.4436477 | U95: 0.04264969813 | V95: -2.400998002 | W95: 0.9991221005 | X95: 19.94939123 | Z95: 10.93490287 | AA95: 0.1908500585 | AB95: -10.74405281 | AC95: 0.9824697532 | AD95: 1.01784304 | AE95: =($AG$47/$AG$48) * ($AG$49/$AG$50)* ($AG$51/$AG$52) * Generic!AC95 -> 5.304518805 | AF95: 5.287702654 | AG95: 5.495505105 | AH95: 5.017007436 | AK95: 37.15668589 | AL95: ='Simple AR Calculator'!H106 -> 0.4743283252 | AS95: 1.047610235 | AT95: 0.01828424788 | AU95: -1.029325987 | AV95: -0.01796416121 | AW95: =ABS(AV95)*'Simple AR Calculator'!$C$8 -> 4.31139869 | AX95: 5.301136691 | AY95: 22.85531378 | BE95: 9.012559104 | BF95: 0.1572988304 | BG95: -8.855260273 | BH95: -0.1539388853 | BI95: 1.047610235 | BJ95: 8.602969694 | BK95: 74.01108756 | BL95: 1.50746087 | BM95: 5.978635521 | BN95: 35.7440827 | BO95: 0 | BR95: 13.61619806 | BS95: 0.2376474878 | BT95: -13.37855057 | BU95: 0.9728625679
T96: 2.400998002 | U96: 0.04190532047 | V96: -2.359092681 | W96: 0.9991524733 | X96: 19.93329521 | Z96: 10.74405281 | AA96: 0.1875190966 | AB96: -10.55653372 | AC96: 0.9830746173 | AD96: 1.017216783 | AE96: =($AG$47/$AG$48) * ($AG$49/$AG$50)* ($AG$51/$AG$52) * Generic!AC96 -> 5.307784567 | AF96: 5.291972442 | AG96: 5.492123843 | AH96: 5.013920583 | AK96: 38.00178552 | AL96: ='Simple AR Calculator'!H107 -> 0.4343576612 | AS96: 1.029325987 | AT96: 0.01796512755 | AU96: -1.01136086 | AV96: -0.0176506603 | AW96: =ABS(AV96)*'Simple AR Calculator'!$C$8 -> 4.236158472 | AX96: 5.304518805 | AY96: 22.47078228 | BE96: 8.855260273 | BF96: 0.1545534479 | BG96: -8.700706826 | BH96: -0.1512730147 | BI96: 1.029325987 | BJ96: 8.602969694 | BK96: 74.01108756 | BL96: 1.4931041 | BM96: 5.930772191 | BN96: 35.17405878 | BO96: 0 | BR96: 13.37855057 | BS96: 0.2334997567 | BT96: -13.14505082 | BU96: 0.9737974537
T97: 2.359092681 | U97: 0.04117393465 | V97: -2.317918747 | W97: 0.9991817954 | X97: 19.91774365 | Z97: 10.55653372 | AA97: 0.184246271 | AB97: -10.37228745 | AC97: 0.9836586684 | AD97: 1.016612807 | AE97: =($AG$47/$AG$48) * ($AG$49/$AG$50)* ($AG$51/$AG$52) * Generic!AC97 -> 5.310937958 | AF97: 5.296104357 | AG97: 5.488862873 | AH97: 5.010943548 | AS97: 1.01136086 | AT97: 0.01765157693 | AU97: -0.9937092827 | AV97: -0.01734262933 | AW97: =ABS(AV97)*'Simple AR Calculator'!$C$8 -> 4.162231038 | AX97: 5.307784567 | AY97: 22.09222567 | BE97: 8.700706826 | BF97: 0.1518559814 | BG97: -8.548850844 | BH97: -0.1486526002 | BI97: 1.01136086 | BJ97: 8.602969694 | BK97: 74.01108756 | BL97: 1.47874733 | BM97: 5.883836036 | BN97: 34.6195265 | BO97: 0 | BR97: 13.14505082 | BS97: 0.2294244171 | BT97: -12.9156264 | BU97: 0.9747002705
T98: 2.317918747 | U98: 0.04045531393 | V98: -2.277463433 | W98: 0.9992101032 | X98: 19.90271854 | Y98: 44 | Z98: 10.37228745 | AA98: 0.1810305669 | AB98: -10.19125688 | AC98: 0.984222619 | AD98: 1.016030297 | AE98: =($AG$47/$AG$48) * ($AG$49/$AG$50)* ($AG$51/$AG$52) * Generic!AC98 -> 5.313982821 | AF98: 5.300102533 | AG98: 5.485717805 | AH98: 5.008072323 | AS98: 0.9937092827 | AT98: 0.01734349879 | AU98: -0.9763657839 | AV98: -0.0170399729 | AW98: =ABS(AV98)*'Simple AR Calculator'!$C$8 -> 4.089593497 | AX98: 5.310937958 | AY98: 21.71957733 | BE98: 8.548850844 | BF98: 0.1492055945 | BG98: -8.39964525 | BH98: -0.1460769034 | BI98: 0.9937092827 | BJ98: 8.602969694 | BK98: 74.01108756 | BL98: 1.464390559 | BM98: 5.837821604 | BN98: 34.08016108 | BO98: 0 | BR98: 12.9156264 | BS98: 0.2254202056 | BT98: -12.69020619 | BU98: 0.9755721089
T99: 2.277463433 | U99: 0.0397492355 | V99: -2.237714197 | W99: 0.9992374317 | X99: 19.88820242 | Z99: 10.19125688 | AA99: 0.1778709875 | AB99: -10.01338589 | AC99: 0.9847671571 | AD99: 1.015468472 | AE99: =($AG$47/$AG$48) * ($AG$49/$AG$50)* ($AG$51/$AG$52) * Generic!AC99 -> 5.316922874 | AF99: 5.303971003 | AG99: 5.482684415 | AH99: 5.005303053 | AS99: 0.9763657839 | AT99: 0.01704079763 | AU99: -0.9593249863 | AV99: -0.01674259731 | AW99: =ABS(AV99)*'Simple AR Calculator'!$C$8 -> 4.018223354 | AX99: 5.313982821 | AY99: 21.35276988 | AZ99: 45 | BE99: 8.39964525 | BF99: 0.1466014656 | BG99: -8.253043784 | BH99: -0.1435451961 | BI99: 0.9763657839 | BJ99: 8.602969694 | BK99: 74.01108756 | BL99: 1.450033789 | BM99: 5.792723806 | BN99: 33.55564909 | BO99: 0 | BR99: 12.69020619 | BS99: 0.2214858808 | BT99: -12.46872031 | BU99: 0.9764140233
T100: 2.237714197 | U100: 0.03905548046 | V100: -2.198658717 | W100: 0.9992638148 | X100: 19.8741784 | Z100: 10.01338589 | AA100: 0.1747665531 | AB100: -9.83861934 | AC100: 0.9852929475 | AD100: 1.014926578 | AE100: =($AG$47/$AG$48) * ($AG$49/$AG$50)* ($AG$51/$AG$52) * Generic!AC100 -> 5.319761704 | AF100: 5.307713698 | AG100: 5.479758642 | AH100: 5.002632029 | AS100: 0.9593249863 | AT100: 0.01674337961 | AU100: -0.9425816067 | AV100: -0.01645041046 | AW100: =ABS(AV100)*'Simple AR Calculator'!$C$8 -> 3.94809851 | AX100: 5.316922874 | AY100: 20.99173527 | BE100: 8.253043784 | BF100: 0.1440427873 | BG100: -8.109000997 | BH100: -0.14105676 | BI100: 0.9593249863 | BJ100: 8.602969694 | BK100: 74.01108756 | BL100: 1.435677019 | BM100: 5.74853792 | BN100: 33.04568821 | BO100: 0 | BR100: 12.46872031 | BS100: 0.217620223 | BT100: -12.25110009 | BU100: 0.9772270324
T101: 2.198658717 | U101: 0.03837383374 | V101: -2.160284883 | W101: 0.9992892852 | X101: 19.86063013 | Z101: 9.83861934 | AA101: 0.1717163013 | AB101: -9.666903038 | AC101: 0.9858006327 | AD101: 1.014403893 | AE101: =($AG$47/$AG$48) * ($AG$49/$AG$50)* ($AG$51/$AG$52) * Generic!AC101 -> 5.322502782 | AF101: 5.311334447 | AG101: 5.476936579 | AH101: 5.000055685 | AS101: 0.9425816067 | AT101: 0.01645115251 | AU101: -0.9261304542 | AV101: -0.01616332186 | AW101: =ABS(AV101)*'Simple AR Calculator'!$C$8 -> 3.879197246 | AX101: 5.319761704 | AY101: 20.63640495 | BE101: 8.109000997 | BF101: 0.1415287664 | BG101: -7.96747223 | BH101: -0.1386108869 | BI101: 0.9425816067 | BJ101: 8.602969694 | BK101: 74.01108756 | BL101: 1.421320249 | BM101: 5.705259602 | BN101: 32.54998712 | BO101: 0 | BR101: 12.25110009 | BS101: 0.2138220336 | BT101: -12.03727806 | BU101: 0.9780121212
T102: 2.160284883 | U102: 0.03770408399 | V102: -2.122580799 | W102: 0.9993138745 | X102: 19.84754177 | Z102: 9.666903038 | AA102: 0.1687192865 | AB102: -9.498183752 | AC102: 0.986290833 | AD102: 1.013899721 | AE102: =($AG$47/$AG$48) * ($AG$49/$AG$50)* ($AG$51/$AG$52) * Generic!AC102 -> 5.325149455 | AF102: 5.314836978 | AG102: 5.474214465 | AH102: 4.997570588 | AS102: 0.9261304542 | AT102: 0.01616402573 | AU102: -0.9099664285 | AV102: -0.01588124261 | AW102: =ABS(AV102)*'Simple AR Calculator'!$C$8 -> 3.811498225 | AX102: 5.322502782 | AY102: 20.28670991 | BE102: 7.96747223 | BF102: 0.1390586235 | BG102: -7.828413607 | BH102: -0.1362068785 | BI102: 0.9261304542 | BJ102: 8.602969694 | BK102: 74.01108756 | BL102: 1.406963479 | BM102: 5.662884895 | BN102: 32.06826533 | BO102: 0 | BR102: 12.03727806 | BS102: 0.2100901351 | BT102: -11.82718792 | BU102: 0.9787702413
T103: 2.122580799 | U103: 0.03704602359 | V103: -2.085534776 | W103: 0.9993376132 | X103: 19.834898 | Z103: 9.498183752 | AA103: 0.1657745794 | AB103: -9.332409173 | AC103: 0.9867641479 | AD103: 1.01341339 | AE103: =($AG$47/$AG$48) * ($AG$49/$AG$50)* ($AG$51/$AG$52) * Generic!AC103 -> 5.327704961 | AF103: 5.318224925 | AG103: 5.471588684 | AH103: 4.995173435 | AS103: 0.9099664285 | AT103: 0.01588191026 | AU103: -0.8940845182 | AV103: -0.01560408533 | AW103: =ABS(AV103)*'Simple AR Calculator'!$C$8 -> 3.744980479 | AX103: 5.325149455 | AY103: 19.94258076 | BE103: 7.828413607 | BF103: 0.1366315926 | BG103: -7.691782014 | BH103: -0.1338440464 | BI103: 0.9099664285 | BJ103: 8.602969694 | BK103: 74.01108756 | BL103: 1.392606708 | BM103: 5.621410237 | BN103: 31.60025305 | BO103: 0 | BR103: 11.82718792 | BS103: 0.2064233705 | BT103: -11.62076455 | BU103: 0.9795023127
C104: ITF=((Leverage*86)-194)+(StrikeWt-10)*(44+((Leverage-5)*8)) | T104: 2.085534776 | U104: 0.0363994485 | V104: -2.049135327 | W104: 0.9993605307 | X104: 19.82268398 | Z104: 9.332409173 | AA104: 0.1628812672 | AB104: -9.169527905 | AC104: 0.9872211564 | AD104: 1.012944256 | AE104: =($AG$47/$AG$48) * ($AG$49/$AG$50)* ($AG$51/$AG$52) * Generic!AC104 -> 5.330172427 | AF104: 5.321501822 | AG104: 5.469055753 | AH104: 4.992861048 | AS104: 0.8940845182 | AT104: 0.01560471863 | AU104: -0.8784797996 | AV104: -0.0153317642 | AW104: =ABS(AV104)*'Simple AR Calculator'!$C$8 -> 3.679623407 | AX104: 5.327704961 | AY104: 19.60394788 | AZ104: 50 | BE104: 7.691782014 | BF104: 0.1342469215 | BG104: -7.557535093 | BH104: -0.1315217122 | BI104: 0.8940845182 | BJ104: 8.602969694 | BK104: 74.01108756 | BL104: 1.378249938 | BM104: 5.580832475 | BN104: 31.14569112 | BO104: 0 | BR104: 11.62076455 | BS104: 0.202820603 | BT104: -11.41794395 | BU104: 0.980209224
C105: Example: | T105: 2.049135327 | U105: 0.03576415828 | V105: -2.013371169 | W105: 0.9993826553 | X105: 19.81088536 | Z105: 9.169527905 | AA105: 0.1600384528 | AB105: -9.009489453 | AC105: 0.987662418 | AD105: 1.012491699 | AE105: =($AG$47/$AG$48) * ($AG$49/$AG$50)* ($AG$51/$AG$52) * Generic!AC105 -> 5.332554873 | AF105: 5.324671108 | AG105: 5.466612322 | AH105: 4.990630369 | AS105: 0.8784797996 | AT105: 0.01533236491 | AU105: -0.8631474346 | AV105: -0.01506419485 | AW105: =ABS(AV105)*'Simple AR Calculator'!$C$8 -> 3.615406765 | AX105: 5.330172427 | AY105: 19.27074145 | BE105: 7.557535093 | BF105: 0.1319038707 | BG105: -7.425631222 | BH105: -0.129239207 | BI105: 0.8784797996 | BJ105: 8.602969694 | BK105: 74.01108756 | BL105: 1.363893168 | BM105: 5.541148874 | BN105: 30.70433085 | BO105: 0 | BR105: 11.41794395 | BS105: 0.1992807157 | BT105: -11.21866323 | BU105: 0.9808918344
C106: Leverage 5.4 | T106: 2.013371169 | U106: 0.03513995596 | V106: -1.978231213 | W106: 0.9994040145 | X106: 19.79948825 | Z106: 9.009489453 | AA106: 0.1572452549 | AB106: -8.852244198 | AC106: 0.9880884731 | AD106: 1.012055122 | AE106: =($AG$47/$AG$48) * ($AG$49/$AG$50)* ($AG$51/$AG$52) * Generic!AC106 -> 5.334855215 | AF106: 5.327736132 | AG106: 5.464255167 | AH106: 4.988478453 | AS106: 0.8631474346 | AT106: 0.01506476466 | AU106: -0.84808267 | AV106: -0.01480129443 | AW106: =ABS(AV106)*'Simple AR Calculator'!$C$8 -> 3.552310662 | AX106: 5.332554873 | AY106: 18.94289153 | BE106: 7.425631222 | BF106: 0.1296017139 | BG106: -7.296029508 | BH106: -0.1269958718 | BI106: 0.8631474346 | BJ106: 8.602969694 | BK106: 74.01108756 | BL106: 1.349536398 | BM106: 5.502357131 | BN106: 30.27593399 | BO106: 0 | BR106: 11.21866323 | BS106: 0.1958026111 | BT106: -11.02286062 | BU106: 0.9815509738
C107: StrikeWt = 9.5 g | T107: 1.978231213 | U107: 0.03452664803 | V107: -1.943704565 | W107: 0.9994246348 | X107: 19.78847919 | Z107: 8.852244198 | AA107: 0.1545008074 | AB107: -8.69774339 | AC107: 0.9884998435 | AD107: 1.011633949 | AE107: =($AG$47/$AG$48) * ($AG$49/$AG$50)* ($AG$51/$AG$52) * Generic!AC107 -> 5.337076273 | AF107: 5.330700148 | AG107: 5.461981183 | AH107: 4.986402467 | AS107: 0.84808267 | AT107: 0.01480183492 | AU107: -0.8332808351 | AV107: -0.01454298148 | AW107: =ABS(AV107)*'Simple AR Calculator'!$C$8 -> 3.490315555 | AX107: 5.334855215 | AY107: 18.62032814 | BE107: 7.296029508 | BF107: 0.1273397372 | BG107: -7.168689771 | BH107: -0.1247910573 | BI107: 0.84808267 | BJ107: 8.602969694 | BK107: 74.01108756 | BL107: 1.335179628 | BM107: 5.464455386 | BN107: 29.86027267 | BO107: 0 | BR107: 11.02286062 | BS107: 0.1923852108 | BT107: -10.83047541 | BU107: 0.9821874444
C108: Result in ITF calculator: 247 | T108: 1.943704565 | U108: 0.03392404434 | V108: -1.909780521 | W108: 0.9994445417 | X108: 19.77784518 | Z108: 8.69774339 | AA108: 0.1518042597 | AB108: -8.545939131 | AC108: 0.9888970335 | AD108: 1.011227626 | AE108: =($AG$47/$AG$48) * ($AG$49/$AG$50)* ($AG$51/$AG$52) * Generic!AC108 -> 5.339220768 | AF108: 5.33356632 | AG108: 5.459787381 | AH108: 4.98439968 | AS108: 0.8332808351 | AT108: 0.01454349417 | AU108: -0.8187373409 | AV108: -0.014289176 | AW108: =ABS(AV108)*'Simple AR Calculator'!$C$8 -> 3.42940224 | AX108: 5.337076273 | AY108: 18.30298133 | BE108: 7.168689771 | BF108: 0.1251172396 | BG108: -7.043572531 | BH108: -0.1226241237 | BI108: 0.8332808351 | BJ108: 8.602969694 | BK108: 74.01108756 | BL108: 1.320822857 | BM108: 5.427442242 | BN108: 29.45712929 | BO108: 0 | BR108: 10.83047541 | BS108: 0.1890274555 | BT108: -10.64144796 | BU108: 0.982802021
C109: Calculation: | T109: 1.909780521 | U109: 0.03333195807 | V109: -1.876448562 | W109: 0.9994637599 | X109: 19.76757363 | Z109: 8.545939131 | AA109: 0.1491547755 | AB109: -8.396784355 | AC109: 0.9892805301 | AD109: 1.010835622 | AE109: =($AG$47/$AG$48) * ($AG$49/$AG$50)* ($AG$51/$AG$52) * Generic!AC109 -> 5.341291331 | AF109: 5.336337726 | AG109: 5.457670883 | AH109: 4.982467468 | AS109: 0.8187373409 | AT109: 0.01428966231 | AU109: -0.8044476786 | AV109: -0.01403979937 | AW109: =ABS(AV109)*'Simple AR Calculator'!$C$8 -> 3.369551848 | AX109: 5.339220768 | AY109: 17.99078121 | AZ109: 55 | BE109: 7.043572531 | BF109: 0.1229335318 | BG109: -6.920639 | BH109: -0.1204944406 | BI109: 0.8187373409 | BJ109: 8.602969694 | BK109: 74.01108756 | BL109: 1.306466087 | BM109: 5.391316774 | BN109: 29.06629656 | BO109: 0 | BR109: 10.64144796 | BS109: 0.185728304 | BT109: -10.45571965 | BU109: 0.9833954524
C110: ((5.4*86)-194)+(9.5-10)*(44+((Leverage-5)*8)) | T110: 1.876448562 | U110: 0.03275020566 | V110: -1.843698357 | W110: 0.9994823133 | X110: 19.75765237 | Z110: 8.396784355 | AA110: 0.1465515336 | AB110: -8.250232821 | AC110: 0.9896508037 | AD110: 1.010457422 | AE110: =($AG$47/$AG$48) * ($AG$49/$AG$50)* ($AG$51/$AG$52) * Generic!AC110 -> 5.3432905 | AF110: 5.339017356 | AG110: 5.455628919 | AH110: 4.980603299 | AS110: 0.8044476786 | AT110: 0.01404026065 | AU110: -0.7904074179 | AV110: -0.01379477432 | AW110: =ABS(AV110)*'Simple AR Calculator'!$C$8 -> 3.310745838 | AX110: 5.341291331 | AY110: 17.68365804 | BE110: 6.920639 | BF110: 0.1207879369 | BG110: -6.799851063 | BH110: -0.1184013871 | BI110: 0.8044476786 | BJ110: 8.602969694 | BK110: 74.01108756 | BL110: 1.292109317 | BM110: 5.356078552 | BN110: 28.68757745 | BO110: 0 | BR110: 10.45571965 | BS110: 0.1824867336 | BT110: -10.27323292 | BU110: 0.9839684623
C111: (464.4-194) + -0.5*(44+(0.4*8)) | T111: 1.843698357 | U111: 0.03217860674 | V111: -1.81151975 | W111: 0.9995002248 | X111: 19.74806962 | Z111: 8.250232821 | AA111: 0.1439937268 | AB111: -8.106239095 | AC111: 0.9900083087 | AD111: 1.010092533 | AE111: =($AG$47/$AG$48) * ($AG$49/$AG$50)* ($AG$51/$AG$52) * Generic!AC111 -> 5.345220729 | AF111: 5.341608114 | AG111: 5.45365882 | AH111: 4.978804738 | AS111: 0.7904074179 | AT111: 0.01379521188 | AU111: -0.7766122061 | AV111: -0.01355402497 | AW111: =ABS(AV111)*'Simple AR Calculator'!$C$8 -> 3.252965992 | AX111: 5.3432905 | AY111: 17.38154228 | BE111: 6.799851063 | BF111: 0.1186797897 | BG111: -6.681171273 | BH111: -0.1163443518 | BI111: 0.7904074179 | BJ111: 8.602969694 | BK111: 74.01108756 | BL111: 1.277752547 | BM111: 5.321727653 | BN111: 28.32078521 | BO111: 0 | BR111: 10.27323292 | BS111: 0.1793017392 | BT111: -10.09393118 | BU111: 0.9845217495
C112: 270.4 + -0.5*(44+3.2) | T112: 1.81151975 | U112: 0.0316169841 | V112: -1.779902766 | W112: 0.9995175166 | X112: 19.73881399 | Z112: 8.106239095 | AA112: 0.1414805622 | AB112: -7.964758533 | AC112: 0.990353484 | AD112: 1.009740478 | AE112: =($AG$47/$AG$48) * ($AG$49/$AG$50)* ($AG$51/$AG$52) * Generic!AC112 -> 5.347084388 | AF112: 5.344112823 | AG112: 5.451758016 | AH112: 4.977069438 | AS112: 0.7766122061 | AT112: 0.01355444001 | AU112: -0.7630577661 | AV112: -0.01331747672 | AW112: =ABS(AV112)*'Simple AR Calculator'!$C$8 -> 3.196194412 | AX112: 5.345220729 | AY112: 17.08436462 | BE112: 6.681171273 | BF112: 0.1166084366 | BG112: -6.564562836 | BH112: -0.1143227323 | BI112: 0.7766122061 | BJ112: 8.602969694 | BK112: 74.01108756 | BL112: 1.263395777 | BM112: 5.288264688 | BN112: 27.96574341 | BO112: 0 | BR112: 10.09393118 | BS112: 0.1761723335 | BT112: -9.917758845 | BU112: 0.9850559894
C113: 270.4 + -0.5*47.2 | T113: 1.779902766 | U113: 0.03106516363 | V113: -1.748837602 | W113: 0.9995342102 | X113: 19.72987444 | Z113: 7.964758533 | AA113: 0.1390112605 | AB113: -7.825747272 | AC113: 0.9906867533 | AD113: 1.009400799 | AE113: =($AG$47/$AG$48) * ($AG$49/$AG$50)* ($AG$51/$AG$52) * Generic!AC113 -> 5.348883765 | AF113: 5.346534223 | AG113: 5.449924032 | AH113: 4.97539514 | AS113: 0.7630577661 | AT113: 0.0133178704 | AU113: -0.7497398957 | AV113: -0.01308505628 | AW113: =ABS(AV113)*'Simple AR Calculator'!$C$8 -> 3.140413508 | AX113: 5.347084388 | AY113: 16.79205604 | BE113: 6.564562836 | BF113: 0.1145732354 | BG113: -6.449989601 | BH113: -0.1123359354 | BI113: 0.7630577661 | BJ113: 8.602969694 | BK113: 74.01108756 | BL113: 1.249039007 | BM113: 5.255690817 | BN113: 27.62228596 | BO113: 0 | BR113: 9.917758845 | BS113: 0.1730975463 | BT113: -9.744661298 | BU113: 0.9855718344
C114: 270.4 - 23.6 | T114: 1.748837602 | U114: 0.03052297424 | V114: -1.718314628 | W114: 0.9995503262 | X114: 19.72124033 | Z114: 7.825747272 | AA114: 0.1365850563 | AB114: -7.689162216 | AC114: 0.9910085261 | AD114: 1.009073054 | AE114: =($AG$47/$AG$48) * ($AG$49/$AG$50)* ($AG$51/$AG$52) * Generic!AC114 -> 5.350621071 | AF114: 5.348874977 | AG114: 5.448154483 | AH114: 4.973779668 | AS114: 0.7497398957 | AT114: 0.01308542971 | AU114: -0.7366544659 | AV114: -0.01285669166 | AW114: =ABS(AV114)*'Simple AR Calculator'!$C$8 -> 3.085605999 | AX114: 5.348883765 | AY114: 16.50454784 | AZ114: 60 | BE114: 6.449989601 | BF114: 0.1125735553 | BG114: -6.337416046 | BH114: -0.1103833771 | BI114: 0.7497398957 | BJ114: 8.602969694 | BK114: 74.01108756 | BL114: 1.234682236 | BM114: 5.224007774 | BN114: 27.29025722 | BO114: 0 | BR114: 9.744661298 | BS114: 0.1700764241 | BT114: -9.574584874 | BU114: 0.9860699149
C115: = 246.8 | T115: 1.718314628 | U115: 0.02999024784 | V115: -1.68832438 | W115: 0.9995658847 | X115: 19.71290135 | Z115: 7.689162216 | AA115: 0.1342011974 | AB115: -7.554961018 | AC115: 0.9913191979 | AD115: 1.008756818 | AE115: =($AG$47/$AG$48) * ($AG$49/$AG$50)* ($AG$51/$AG$52) * Generic!AC115 -> 5.35229844 | AF115: 5.351137666 | AG115: 5.446447074 | AH115: 4.972220924 | AS115: 0.7366544659 | AT115: 0.01285704588 | AU115: -0.7237974201 | AV115: -0.01263231211 | AW115: =ABS(AV115)*'Simple AR Calculator'!$C$8 -> 3.031754905 | AX115: 5.350621071 | AY115: 16.22177168 | BE115: 6.337416046 | BF115: 0.1106087761 | BG115: -6.22680727 | BH115: -0.1084644824 | BI115: 0.7366544659 | BJ115: 8.602969694 | BK115: 74.01108756 | BL115: 1.220325466 | BM115: 5.193217893 | BN115: 26.96951208 | BO115: 0 | BR115: 9.574584874 | BS115: 0.1671080306 | BT115: -9.407476844 | BU115: 0.9865508399
T116: 1.68832438 | U116: 0.02946681928 | V116: -1.658857561 | W116: 0.9995809049 | X116: 19.70484752 | Z116: 7.554961018 | AA116: 0.1318589446 | AB116: -7.423102074 | AC116: 0.9916191505 | AD116: 1.008451682 | AE116: =($AG$47/$AG$48) * ($AG$49/$AG$50)* ($AG$51/$AG$52) * Generic!AC116 -> 5.353917934 | AF116: 5.3533248 | AG116: 5.444799591 | AH116: 4.970716888 | AS116: 0.7237974201 | AT116: 0.0126326481 | AU116: -0.711164772 | AV116: -0.01241184809 | AW116: =ABS(AV116)*'Simple AR Calculator'!$C$8 -> 2.978843542 | AX116: 5.35229844 | AY116: 15.94365964 | BE116: 6.22680727 | BF116: 0.1086782887 | BG116: -6.118128981 | BH116: -0.1065786849 | BI116: 0.7237974201 | BJ116: 8.602969694 | BK116: 74.01108756 | BL116: 1.205968696 | BM116: 5.163324131 | BN116: 26.65991609 | BO116: 0 | BR116: 9.407476844 | BS116: 0.1641914452 | BT116: -9.243285399 | BU116: 0.9870151975
C117: Data Entry | D117: MAR | E117: DAR | G117: Isolate variables | I117: =O5 -> 4.880392823 | J117: segmentation | T117: 1.658857561 | U117: 0.02895252626 | V117: -1.629905035 | W117: 0.9995954054 | X117: 19.69706921 | Z117: 7.423102074 | AA117: 0.1295575719 | AB117: -7.293544502 | AC117: 0.9919087526 | AD117: 1.00815725 | AE117: =($AG$47/$AG$48) * ($AG$49/$AG$50)* ($AG$51/$AG$52) * Generic!AC117 -> 5.355481544 | AF117: 5.355438812 | AG117: 5.443209903 | AH117: 4.969265615 | AS117: 0.711164772 | AT117: 0.01241216679 | AU117: -0.6987526052 | AV117: -0.01219523131 | AW117: =ABS(AV117)*'Simple AR Calculator'!$C$8 -> 2.926855514 | AX117: 5.353917934 | AY117: 15.67014423 | BE117: 6.118128981 | BF117: 0.1067814948 | BG117: -6.011347486 | BH117: -0.1047254273 | BI117: 0.711164772 | BJ117: 8.602969694 | BK117: 74.01108756 | BL117: 1.191611926 | BM117: 5.134330102 | BN117: 26.3613456 | BO117: 0 | BR117: 9.243285399 | BS117: 0.1613257639 | BT117: -9.081959635 | BU117: 0.9874635561
D118: ='Simple AR Calculator'!C6 -> Standard Action | G118: A = | H118: 5.02 | I118: ='Simple AR Calculator'!C47 -> 4.929058058 | J118: Rest | T118: 1.629905035 | U118: 0.02844720935 | V118: -1.601457825 | W118: 0.9996094043 | X118: 19.68955709 | Z118: 7.293544502 | AA118: 0.1272963657 | AB118: -7.166248136 | AC118: 0.9921883606 | AD118: 1.007873142 | AE118: =($AG$47/$AG$48) * ($AG$49/$AG$50)* ($AG$51/$AG$52) * Generic!AC118 -> 5.356991195 | AF118: 5.357482062 | AG118: 5.441675955 | AH118: 4.967865229 | AS118: 0.6987526052 | AT118: 0.01219553362 | AU118: -0.6865570716 | AV118: -0.01198239465 | AW118: =ABS(AV118)*'Simple AR Calculator'!$C$8 -> 2.875774716 | AX118: 5.355481544 | AY118: 15.40115842 | BE118: 6.011347486 | BF118: 0.1049178061 | BG118: -5.90642968 | BH118: -0.1029041608 | BI118: 0.6987526052 | BJ118: 8.602969694 | BK118: 74.01108756 | BL118: 1.177255156 | BM118: 5.106240102 | BN118: 26.07368798 | BO118: 0 | BR118: 9.081959635 | BS118: 0.1585100982 | BT118: -8.923449536 | BU118: 0.9878964645
C119: Key Out | D119: ='Simple AR Calculator'!C7 -> 122 | E119: ='Simple AR Calculator'!D7 -> 130.3840481 | I119: ='Simple AR Calculator'!C48 -> 5.258943711 | J119: At let-off | T119: 1.601457825 | U119: 0.02795071188 | V119: -1.573507113 | W119: 0.9996229188 | X119: 19.68230216 | Z119: 7.166248136 | AA119: 0.125074625 | AB119: -7.041173511 | AC119: 0.9924583184 | AD119: 1.007598991 | AE119: =($AG$47/$AG$48) * ($AG$49/$AG$50)* ($AG$51/$AG$52) * Generic!AC119 -> 5.358448742 | AF119: =($AG$47/$AG$48) * ($AG$49/X119)* ($AG$51/$AG$52) -> 5.35945684 | AG119: =($AG$47/$AG$48) * ($AG$49/$AG$50)* ($AG$51/$AG$52)*AD119 -> 5.440195769 | AH119: =($AG$47/$AG$48) * ($AG$49/$AH$50)* ($AG$51/$AG$52)*AD119 -> 4.966513924 | AS119: 0.6865570716 | AT119: 0.0119826814 | AU119: -0.6745743902 | AV119: -0.01177327216 | AW119: =ABS(AV119)*'Simple AR Calculator'!$C$8 -> 2.825585318 | AX119: 5.356991195 | AY119: 15.13663567 | AZ119: 65 | BE119: 5.90642968 | BF119: 0.103086645 | BG119: -5.803343035 | BH119: -0.1011143453 | BI119: 0.6865570716 | BJ119: 8.602969694 | BK119: 74.01108756 | BL119: 1.162898385 | BM119: 5.079059146 | BN119: 25.79684181 | BO119: 0 | BR119: 8.923449536 | BS119: 0.155743575 | BT119: -8.767705961 | BU119: 0.988314453
C120: Key In | D120: ='Simple AR Calculator'!C8 -> 240 | E120: ='Simple AR Calculator'!D8 -> 240 | I120: ='Simple AR Calculator'!C49 -> 5.399167545 | J120: Max cosign | T120: 1.573507113 | U120: 0.02746287993 | V120: -1.546044234 | W120: =COS(RADIANS(V120)) -> 0.9996359658 | X120: =SQRT($H$62^2+$F$60^2-2*$H$62*$F$60*(COS(RADIANS(V120)))) -> 19.67529569 | Y120: 66 | Z120: 7.041173511 | AA120: 0.122891661 | AB120: -6.91828185 | AC120: =COS(RADIANS(AB120)) -> 0.9927189583 | AD120: =1/AC120 -> 1.007334444 | AE120: =($AG$47/$AG$48) * ($AG$49/$AG$50)* ($AG$51/$AG$52) * Generic!AC120 -> 5.359855981 | AF120: 5.36136537 | AG120: 5.438767437 | AH120: 4.965209958 | AS120: 0.6745743902 | AT120: 0.01177354416 | AU120: -0.662800846 | AV120: -0.01156779904 | AW120: =ABS(AV120)*'Simple AR Calculator'!$C$8 -> 2.77627177 | AX120: =AE119 -> 5.358448742 | AY120: =AW120*AX120 -> 14.87650998 | BE120: 5.803343035 | BF120: 0.1012874436 | BG120: -5.702055591 | BH120: -0.09935544913 | BI120: =AS120 -> 0.6745743902 | BJ120: =BE120/BI120 -> 8.602969694 | BK120: =BJ120^2 -> 74.01108756 | BL120: 1.148541615 | BM120: =BE120/BL120 -> 5.052793001 | BN120: =BM120^2 -> 25.53071711 | BO120: =(BK120*$BD$52)*10000 -> 0 | BR120: 8.767705961 | BS120: 0.1530253369 | BT120: -8.614680625 | BU120: 0.9887180339
C121: Whip_out | D121: ='Simple AR Calculator'!C9 -> 92 | E121: ='Simple AR Calculator'!E9 -> 93.5212139 | I121: ='Simple AR Calculator'!F8 -> 5.386859347 | J121: AGP rotations to string | T121: 1.546044234 | U121: =(RADIANS(T121)) -> 0.02698356226 | V121: -1.519060671 | W121: 0.9996485613 | X121: 19.66852926 | Z121: 6.91828185 | AA121: =(RADIANS(Z121)) -> 0.1207467969 | AB121: -6.797535053 | AC121: 0.9929706011 | AD121: 1.007079161 | AE121: =($AG$47/$AG$48) * ($AG$49/$AG$50)* ($AG$51/$AG$52) * Generic!AC121 -> 5.361214642 | AF121: 5.363209803 | AG121: 5.437389122 | AH121: 4.963951654 | AS121: 0.662800846 | AT121: 0.01156805705 | AU121: -0.6512327889 | AV121: =SIN(RADIANS(AU121)) -> -0.01136591163 | AW121: =ABS(AV121)*'Simple AR Calculator'!$C$8 -> 2.727818792 | AX121: 5.359855981 | AY121: 14.62071587 | BE121: 5.702055591 | BF121: 0.0995196442 | BG121: -5.602535947 | BH121: =SIN(RADIANS(BG121)) -> -0.09762694905 | BI121: 0.662800846 | BJ121: 8.602969694 | BK121: 74.01108756 | BL121: =BL120- $BI$50 -> 1.134184845 | BM121: 5.02744823 | BN121: 25.2752357 | BO121: 0 | BR121: 8.614680625 | BS121: 0.1503545409 | BT121: -8.464326084 | BU121: 0.9891077018
C122: Whip_in | D122: ='Simple AR Calculator'!C10 -> 62.5 | E122: ='Simple AR Calculator'!D10 -> 66.25896166 | I122: =F127/I119 -> 8.176546919 | J122: Dip | T122: 1.519060671 | U122: 0.02651261025 | V122: -1.492548061 | W122: 0.9996607211 | X122: 19.66199472 | Z122: 6.797535053 | AA122: 0.1186393677 | AB122: -6.678895686 | AC122: 0.9932135566 | AD122: 1.006832814 | AE122: =($AG$47/$AG$48) * ($AG$49/$AG$50)* ($AG$51/$AG$52) * Generic!AC122 -> 5.3625264 | AF122: 5.364992231 | AG122: 5.436059052 | AH122: 4.962737394 | AS122: 0.6512327889 | AT122: =(RADIANS(AS122)) -> 0.01136615636 | AU122: -0.6398666326 | AV122: -0.01116754737 | AW122: =ABS(AV122)*'Simple AR Calculator'!$C$8 -> 2.68021137 | AX122: 5.361214642 | AY122: 14.36918844 | BE122: 5.602535947 | BF122: =(RADIANS(BE122)) -> 0.09778269874 | BG122: -5.504753249 | BH122: -0.0959283301 | BI122: 0.6512327889 | BJ122: 8.602969694 | BK122: 74.01108756 | BL122: 1.119828075 | BM122: 5.003032227 | BN122: 25.03033147 | BO122: 0 | BR122: 8.464326084 | BS122: 0.1477303591 | BT122: =BS122-BR122 -> -8.316595725 | BU122: 0.9894839348
C123: Shank_out | D123: ='Simple AR Calculator'!C11 -> 130 | E123: ='Simple AR Calculator'!D11 -> 137.5681649 | G123: Ko = | H123: (AKiWiSi) / (WoSo) | J123: =(I118*E120*E122*E124)/ (E121*E123) -> 130.3840481 | K123: =J124/J123 -> 1.840715973 | T123: 1.492548061 | U123: 0.02604987791 | V123: -1.466498183 | W123: 0.9996724602 | X123: 19.65568421 | Z123: 6.678895686 | AA123: 0.1165687201 | AB123: -6.562326965 | AC123: 0.9934481242 | AD123: 1.006595086 | AE123: =($AG$47/$AG$48) * ($AG$49/$AG$50)* ($AG$51/$AG$52) * Generic!AC123 -> 5.363792869 | AF123: 5.366714676 | AG123: 5.434775519 | AH123: 4.96156562 | AS123: 0.6398666326 | AT123: 0.01116777951 | AU123: -0.6286988531 | AV123: -0.0109726448 | AW123: =ABS(AV123)*'Simple AR Calculator'!$C$8 -> 2.633434751 | AX123: 5.3625264 | AY123: 14.12186337 | BE123: 5.504753249 | BF123: 0.0960760687 | BG123: -5.40867718 | BH123: -0.09425908548 | BI123: 0.6398666326 | BJ123: 8.602969694 | BK123: 74.01108756 | BL123: 1.105471305 | BM123: 4.979553269 | BN123: 24.79595076 | BO123: 0 | BR123: 8.316595725 | BS123: 0.145151978 | BT123: -8.171443747 | BU123: 0.9898471943
C124: Shank_in | D124: ='Simple AR Calculator'!C12 -> 17 | E124: ='Simple AR Calculator'!K13 -> 21.40093456 | F124: ='Simple AR Calculator'!F16 -> 19.53753946 | G124: Ki = | H124: (KoWoSo) / (AWiSi) | J124: =(E119*E121*E123) / (I118*E122*E124) -> 240 | T124: 1.466498183 | U124: 0.02559522177 | V124: -1.440902961 | W124: 0.9996837931 | X124: 19.64959011 | Z124: 6.562326965 | AA124: 0.1145342121 | AB124: -6.447792753 | AC124: 0.9936745926 | AD124: 1.006365673 | AE124: =($AG$47/$AG$48) * ($AG$49/$AG$50)* ($AG$51/$AG$52) * Generic!AC124 -> 5.365015611 | AF124: 5.368379103 | AG124: 5.433536879 | AH124: 4.960434829 | AS124: 0.6286988531 | AT124: 0.01097286499 | AU124: -0.6177259881 | AV124: -0.0107811435 | AW124: =ABS(AV124)*'Simple AR Calculator'!$C$8 -> 2.58747444 | AX124: 5.363792869 | AY124: 13.87867695 | AZ124: 70 | BE124: 5.40867718 | BF124: 0.09439922497 | BG124: -5.314277955 | BH124: -0.0926187165 | BI124: 0.6286988531 | BJ124: 8.602969694 | BK124: 74.01108756 | BL124: 1.091114534 | BM124: 4.957020559 | BN124: 24.57205283 | BO124: 0 | BR124: 8.171443747 | BS124: 0.142618598 | BT124: -8.028825149 | BU124: 0.9901979263
C125: Knuckle Dia. | D125: ='Simple AR Calculator'!C13 -> 10 | F125: =AVERAGE(E124,F124) -> 20.46923701 | G125: Wi = | H125: (KoWoSo) / (AKiSi) | J125: =(E119*E121*E123) / (I118*E120*E124) -> 66.25896166 | T125: 1.440902961 | U125: 0.02514850088 | V125: -1.41575446 | W125: 0.9996947339 | X125: 19.64370506 | Z125: 6.447792753 | AA125: 0.112535213 | AB125: -6.33525754 | AC125: 0.9938932411 | AD125: 1.00614428 | AE125: =($AG$47/$AG$48) * ($AG$49/$AG$50)* ($AG$51/$AG$52) * Generic!AC125 -> 5.36619613 | AF125: 5.369987414 | AG125: 5.432341545 | AH125: 4.959343573 | AS125: 0.6177259881 | AT125: 0.01078135237 | AU125: -0.6069446357 | AV125: -0.01059298415 | AW125: =ABS(AV125)*'Simple AR Calculator'!$C$8 -> 2.542316196 | AX125: 5.365015611 | AY125: 13.63956608 | BE125: 5.314277955 | BF125: 0.09275164768 | BG125: -5.221526307 | BH125: -0.09100673248 | BI125: 0.6177259881 | BJ125: 8.602969694 | BK125: 74.01108756 | BL125: 1.076757764 | BM125: 4.935444286 | BN125: 24.3586103 | BO125: 0 | BR125: 8.028825149 | BS125: =(RADIANS(BR125)) -> 0.1401294339 | BT125: -7.888695715 | BU125: =COS(RADIANS(BT125)) -> 0.9905365614
C126: Shank Thickness | D126: ='Simple AR Calculator'!C14 -> 6 | G126: Si = | H126: (KoWoSo) / (AKiWi) | J126: =(E119*E121*E123) / (I118*E120*E122) -> 21.40093456 | T126: 1.41575446 | U126: 0.02470957673 | V126: -1.391044884 | W126: 0.9997052962 | X126: 19.63802195 | Z126: 6.33525754 | AA126: 0.110571103 | AB126: -6.224686437 | AC126: 0.9941043391 | AD126: 1.005930626 | AE126: =($AG$47/$AG$48) * ($AG$49/$AG$50)* ($AG$51/$AG$52) * Generic!AC126 -> 5.367335884 | AF126: 5.371541452 | AG126: 5.431187987 | AH126: 4.958290457 | AS126: 0.6069446357 | AT126: 0.01059318227 | AU126: -0.5963514534 | AV126: -0.01040810844 | AW126: =ABS(AV126)*'Simple AR Calculator'!$C$8 -> 2.497946025 | AX126: 5.36619613 | AY126: 13.40446829 | BE126: 5.221526307 | BF126: 0.09113282604 | BG126: -5.130393481 | BH126: -0.08942265057 | BI126: 0.6069446357 | BJ126: 8.602969694 | BK126: 74.01108756 | BL126: 1.062400994 | BM126: 4.914835675 | BN126: 24.15560972 | BO126: 0 | BR126: =ABS(BT125) -> 7.888695715 | BS126: 0.1376837139 | BT126: -7.751012001 | BU126: 0.9908635154
C127: Blow Dist. (Ham Travel) | D127: ='Simple AR Calculator'!C15 -> 45 | F127: ='Simple AR Calculator'!E56 -> 43 | G127: Wo = | H127: (AKiWiSi) / (KoSo) | J127: =(I118*E120*E122*E124) / (E119*E123) -> 93.5212139 | T127: 1.391044884 | U127: 0.02427831326 | V127: -1.36676657 | W127: 0.9997154931 | X127: 19.63253391 | Z127: 6.224686437 | AA127: 0.1086412732 | AB127: -6.116045164 | AC127: 0.9943081469 | AD127: 1.005724436 | AE127: =($AG$47/$AG$48) * ($AG$49/$AG$50)* ($AG$51/$AG$52) * Generic!AC127 -> 5.368436276 | AF127: 5.373043002 | AG127: 5.430074733 | AH127: 4.957274134 | AS127: 0.5963514534 | AT127: 0.01040829636 | AU127: -0.5859431571 | AV127: -0.01022645906 | AW127: =ABS(AV127)*'Simple AR Calculator'!$C$8 -> 2.454350175 | AX127: 5.367335884 | AY127: 13.17332177 | BE127: 5.130393481 | BF127: 0.08954225817 | BG127: -5.040851223 | BH127: -0.08786599574 | BI127: 0.5963514534 | BJ127: 8.602969694 | BK127: 74.01108756 | BL127: 1.048044224 | BM127: 4.895207057 | BN127: 23.96305213 | BO127: 0 | BR127: 7.751012001 | BS127: 0.1352806798 | BT127: -7.615731321 | BU127: 0.9911791901
C128: Let-Off / Aftertouch | D128: ='Simple AR Calculator'!C16 -> 2 | E128: ='Simple AR Calculator'!C22 -> 1.25 | T128: 1.36676657 | U128: 0.02385457676 | V128: -1.342911994 | W128: 0.9997253371 | X128: 19.62723429 | Z128: 6.116045164 | AA128: 0.1067451253 | AB128: -6.009300039 | AC128: 0.9945049156 | AD128: 1.005525447 | AE128: =($AG$47/$AG$48) * ($AG$49/$AG$50)* ($AG$51/$AG$52) * Generic!AC128 -> 5.369498663 | AF128: 5.374493796 | AG128: 5.42900036 | AH128: 4.956293308 | AS128: 0.5859431571 | AT128: 0.01022663732 | AU128: -0.5757165198 | AV128: -0.01004797974 | AW128: =ABS(AV128)*'Simple AR Calculator'!$C$8 -> 2.411515138 | AX128: 5.368436276 | AY128: 12.94606535 | BE128: 5.040851223 | BF128: 0.08797945094 | BG128: -4.952871772 | BH128: -0.08633630063 | BI128: 0.5859431571 | BJ128: 8.602969694 | BK128: 74.01108756 | BL128: 1.033687454 | BM128: 4.876571932 | BN128: 23.78095381 | BO128: 0 | BR128: 7.615731321 | BS128: 0.1329195865 | BT128: -7.482811734 | BU128: 0.9914839736
C129: Spread | D129: ='Simple AR Calculator'!C17 -> 113 | T129: 1.342911994 | U129: 0.02343823585 | V129: -1.319473758 | W129: 0.9997348406 | X129: 19.62211667 | Y129: 74 | Z129: 6.009300039 | AA129: 0.1048820714 | AB129: -5.904417967 | AC129: 0.994694888 | AD129: 1.005333406 | AE129: =($AG$47/$AG$48) * ($AG$49/$AG$50)* ($AG$51/$AG$52) * Generic!AC129 -> 5.370524356 | AF129: 5.37589551 | AG129: 5.427963499 | AH129: 4.955346727 | AS129: 0.5757165198 | AT129: 0.01004814883 | AU129: -0.5656683709 | AV129: -0.009872615162 | AW129: =ABS(AV129)*'Simple AR Calculator'!$C$8 -> 2.369427639 | AX129: 5.369498663 | AY129: 12.72263854 | AZ129: 75 | BE129: 4.952871772 | BF129: 0.08644391985 | BG129: -4.866427852 | BH129: -0.08483310544 | BI129: 0.5757165198 | BJ129: 8.602969694 | BK129: 74.01108756 | BL129: 1.019330683 | BM129: 4.858945043 | BN129: 23.60934693 | BO129: 0 | BR129: 7.482811734 | BS129: 0.1305997021 | BT129: -7.352212032 | BU129: 0.9917782404
C130: Key Length (optional) | D130: ='Simple AR Calculator'!C18 -> 515 | H130: Ar = Outs / Ins | J130: =(J123*E121*E123) / (E120*E122*F125) -> 5.153413823 | K130: =O24 -> 5.411764706 | T130: 1.319473758 | U130: 0.02302916147 | V130: -1.296444596 | W130: 0.9997440152 | X130: 19.61717486 | Z130: 5.904417967 | AA130: 0.1030515339 | AB130: -5.801366433 | AC130: 0.9948782985 | AD130: 1.005148068 | AE130: =($AG$47/$AG$48) * ($AG$49/$AG$50)* ($AG$51/$AG$52) * Generic!AC130 -> 5.37151462 | AF130: 5.377249767 | AG130: 5.426962828 | AH130: 4.954433186 | AS130: 0.5656683709 | AT130: 0.009872775547 | AU130: -0.5557955954 | AV130: -0.009700310974 | AW130: =ABS(AV130)*'Simple AR Calculator'!$C$8 -> 2.328074634 | AX130: 5.370524356 | AY130: 12.50298152 | BE130: 4.866427852 | BF130: 0.08493518883 | BG130: -4.781492663 | BH130: -0.08335595787 | BI130: 0.5656683709 | BJ130: 8.602969694 | BK130: 74.01108756 | BL130: 1.004973913 | BM130: 4.842342461 | BN130: 23.44828051 | BO130: 0 | BR130: 7.352212032 | BS130: 0.1283203073 | BT130: -7.223891725 | BU130: 0.9920623524
C131: Key ratio Front to Back | D131: ='Simple AR Calculator'!C23 -> 1.967213115 | E131: ='Simple AR Calculator'!D23 -> 1.840715973 | T131: 1.296444596 | U131: 0.02262722678 | V131: -1.27381737 | W131: 0.9997528724 | X131: 19.61240284 | Z131: 5.801366433 | AA131: 0.1012529454 | AB131: -5.700113488 | AC131: 0.9950553732 | AD131: 1.004969198 | AE131: =($AG$47/$AG$48) * ($AG$49/$AG$50)* ($AG$51/$AG$52) * Generic!AC131 -> 5.372470676 | AF131: 5.37855814 | AG131: 5.425997075 | AH131: 4.953551521 | AS131: =ABS(AU130) -> 0.5557955954 | AT131: 0.009700463108 | AU131: =AT131-AS131 -> -0.5460951323 | AV131: -0.009531013782 | AW131: =ABS(AV131)*'Simple AR Calculator'!$C$8 -> 2.287443308 | AX131: 5.37151462 | AY131: 12.28703517 | BE131: 4.781492663 | BF131: 0.08345279014 | BG131: -4.698039873 | BH131: -0.08190441295 | BI131: 0.5557955954 | BJ131: 8.602969694 | BK131: 74.01108756 | BL131: 0.9906171431 | BM131: 4.826781665 | BN131: 23.29782124 | BO131: 0 | BR131: 7.223891725 | BS131: 0.1260806954 | BT131: -7.09781103 | BU131: 0.9923366593
C132: Key ratio Back / Front | D132: ='Simple AR Calculator'!C24 -> 0.5083333333 | E132: ='Simple AR Calculator'!D24 -> 0.5432668671 | T132: 1.27381737 | U132: 0.02223230717 | V132: -1.251585062 | W132: 0.9997614232 | X132: 19.60779483 | Z132: =ABS(AB131) -> 5.700113488 | AA132: 0.0994857481 | AB132: =AA132-Z132 -> -5.60062774 | AC132: 0.9952263308 | AD132: 1.004796566 | AE132: =($AG$47/$AG$48) * ($AG$49/$AG$50)* ($AG$51/$AG$52) * Generic!AC132 -> 5.373393705 | AF132: 5.37982215 | AG132: 5.42506501 | AH132: 4.952700612 | AS132: 0.5460951323 | AT132: 0.009531158087 | AU132: -0.5365639742 | AV132: -0.009364671116 | AW132: =ABS(AV132)*'Simple AR Calculator'!$C$8 -> 2.247521068 | AX132: 5.372470676 | AY132: 12.07474103 | BE132: 4.698039873 | BF132: 0.08199626418 | BG132: -4.616043609 | BH132: -0.08047803302 | BI132: 0.5460951323 | BJ132: 8.602969694 | BK132: 74.01108756 | BL132: 0.9762603729 | BM132: 4.812281645 | BN132: 23.15805463 | BO132: 0 | BR132: 7.09781103 | BS132: 0.1238801722 | BT132: -6.973930858 | BU132: 0.9926014985
C133: Whip ratio | D133: ='Simple AR Calculator'!C25 -> 1.472 | E133: ='Simple AR Calculator'!D25 -> 1.411450037 | T133: 1.251585062 | U133: 0.02184428021 | V133: -1.229740782 | W133: 0.9997696781 | X133: 19.60334522 | Y133: 78 | Z133: 5.60062774 | AA133: 0.09774939424 | AB133: -5.502878346 | AC133: 0.9953913821 | AD133: 1.004629956 | AE133: =($AG$47/$AG$48) * ($AG$49/$AG$50)* ($AG$51/$AG$52) * Generic!AC133 -> 5.374284845 | AF133: 5.381043272 | AG133: 5.42416545 | AH133: 4.951879377 | AS133: 0.5365639742 | AT133: 0.009364807997 | AU133: -0.5271991662 | AV133: -0.009201231425 | AW133: =ABS(AV133)*'Simple AR Calculator'!$C$8 -> 2.208295542 | AX133: 5.373393705 | AY133: 11.86604136 | BE133: 4.616043609 | BF133: 0.08056515939 | BG133: -4.53547845 | BH133: -0.07907638757 | BI133: 0.5365639742 | BJ133: 8.602969694 | BK133: 74.01108756 | BL133: 0.9619036027 | BM133: 4.798863 | BN133: 23.0290861 | BO133: 0 | BR133: 6.973930858 | BS133: 0.1217180553 | BT133: -6.852212802 | BU133: 0.992857196
C134: Shank ratio | D134: ='Simple AR Calculator'!C26 -> 7.647058824 | E134: ='Simple AR Calculator'!D26 -> 6.428138198 | T134: =ABS(V133) -> 1.229740782 | U134: 0.0214630256 | V134: =U134-T134 -> -1.208277757 | W134: 0.9997776474 | X134: 19.59904861 | Y134: 79 | Z134: 5.502878346 | AA134: 0.09604334547 | AB134: -5.406835 | AC134: 0.995550731 | AD134: 1.004469153 | AE134: =($AG$47/$AG$48) * ($AG$49/$AG$50)* ($AG$51/$AG$52) * Generic!AC134 -> 5.375145196 | AF134: 5.382222934 | AG134: 5.423297253 | AH134: 4.951086775 | AS134: 0.5271991662 | AT134: 0.009201361264 | AU134: -0.5179978049 | AV134: -0.009040644056 | AW134: =ABS(AV134)*'Simple AR Calculator'!$C$8 -> 2.169754573 | AX134: 5.374284845 | AY134: 11.66087912 | AZ134: 80 | BE134: 4.53547845 | BF134: 0.0791590321 | BG134: -4.456319418 | BH134: -0.07769905315 | BI134: 0.5271991662 | BJ134: 8.602969694 | BK134: 74.01108756 | BL134: 0.9475468325 | BM134: 4.786548056 | BN134: 22.9110423 | BO134: 0 | BR134: 6.852212802 | BS134: 0.1195936744 | BT134: -6.732619128 | BU134: 0.9931040666
T135: 1.208277757 | U135: 0.02108842513 | V135: -1.187189331 | W135: 0.999785341 | X135: 19.59489977 | Z135: 5.406835 | AA135: 0.09436707286 | AB135: -5.312467927 | AC135: 0.9957045742 | AD135: 1.004313956 | AE135: =($AG$47/$AG$48) * ($AG$49/$AG$50)* ($AG$51/$AG$52) * Generic!AC135 -> 5.375975821 | AF135: 5.383362516 | AG135: 5.422459316 | AH135: 4.950321798 | AS135: 0.5179978049 | AT135: 0.009040767214 | AU135: -0.5089570377 | AV135: -0.008882859238 | AW135: =ABS(AV135)*'Simple AR Calculator'!$C$8 -> 2.131886217 | AX135: 5.375145196 | AY135: 11.45919796 | BE135: 4.456319418 | BF135: 0.07777744636 | BG135: -4.378541971 | BH135: -0.07634561328 | BI135: 0.5179978049 | BJ135: 8.602969694 | BK135: 74.01108756 | BL135: 0.9331900624 | BM135: 4.775360987 | BN135: 22.80407256 | BO135: 0 | BR135: 6.732619128 | BS135: 0.1175063711 | BT135: -6.615112757 | BU135: 0.9933424144
T136: 1.187189331 | U136: 0.02072036268 | V136: -1.166468969 | W136: 0.9997927683 | X136: 19.59089364 | Z136: 5.312467927 | AA136: 0.09272005674 | AB136: -5.219747871 | AC136: 0.9958531016 | AD136: 1.004164167 | AE136: =($AG$47/$AG$48) * ($AG$49/$AG$50)* ($AG$51/$AG$52) * Generic!AC136 -> 5.376777745 | AF136: 5.384463356 | AG136: 5.421650579 | AH136: 4.949583478 | AS136: 0.5089570377 | AT136: 0.008882976059 | AU136: -0.5000740617 | AV136: -0.008727828069 | AW136: =ABS(AV136)*'Simple AR Calculator'!$C$8 -> 2.094678737 | AX136: 5.375975821 | AY136: 11.26094224 | BE136: 4.378541971 | BF136: 0.07641997383 | BG136: -4.302121997 | BH136: -0.07501565836 | BI136: 0.5089570377 | BJ136: 8.602969694 | BK136: 74.01108756 | BL136: 0.9188332922 | BM136: 4.765327953 | BN136: 22.7083505 | BO136: 0 | BR136: 6.615112757 | BS136: 0.115455498 | BT136: -6.499657259 | BU136: 0.9935725328
T137: 1.166468969 | U137: 0.02035872413 | V137: -1.146110245 | W137: 0.9997999387 | X137: 19.58702535 | Z137: 5.219747871 | AA137: 0.09110178646 | AB137: -5.128646084 | AC137: 0.9959964966 | AD137: 1.004019596 | AE137: =($AG$47/$AG$48) * ($AG$49/$AG$50)* ($AG$51/$AG$52) * Generic!AC137 -> 5.377551959 | AF137: 5.385526749 | AG137: 5.420870016 | AH137: 4.948870879 | AS137: 0.5000740617 | AT137: 0.00872793888 | AU137: -0.4913461228 | AV137: -0.0085755025 | AW137: =ABS(AV137)*'Simple AR Calculator'!$C$8 -> 2.0581206 | AX137: 5.376777745 | AY137: 11.06605704 | BE137: 4.302121997 | BF137: 0.07508619368 | BG137: -4.227035804 | BH137: -0.07370878555 | BI137: 0.5000740617 | BJ137: 8.602969694 | BK137: 74.01108756 | BL137: 0.904476522 | BM137: 4.756477247 | BN137: 22.6240758 | BO137: 0 | BR137: 6.499657259 | BS137: 0.1134404194 | BT137: -6.386216839 | BU137: 0.9937947055
T138: 1.146110245 | U138: 0.02000339736 | V138: -1.126106847 | W138: 0.999806861 | X138: 19.58329017 | Z138: 5.128646084 | AA138: 0.08951176034 | AB138: -5.039134324 | AC138: 0.9961349364 | AD138: 1.00388006 | AE138: =($AG$47/$AG$48) * ($AG$49/$AG$50)* ($AG$51/$AG$52) * Generic!AC138 -> 5.378299419 | AF138: 5.386553946 | AG138: 5.42011664 | AH138: 4.9481831 | AS138: 0.4913461228 | AT138: 0.008575607609 | AU138: -0.4827705152 | AV138: -0.00842583532 | AW138: =ABS(AV138)*'Simple AR Calculator'!$C$8 -> 2.022200477 | AX138: 5.377551959 | AY138: 10.87448814 | BE138: 4.227035804 | BF138: 0.07377569237 | BG138: -4.153260111 | BH138: -0.07242459865 | BI138: 0.4913461228 | BJ138: 8.602969694 | BK138: 74.01108756 | BL138: 0.8901197518 | BM138: 4.748839463 | BN138: 22.55147624 | BO138: 0 | BR138: 6.386216839 | BS138: 0.1114605106 | BT138: -6.274756329 | BU138: 0.9940092063
T139: 1.126106847 | U139: 0.01965427222 | V139: -1.106452575 | W139: 0.9998135438 | X139: 19.57968355 | Z139: 5.039134324 | AA139: 0.0879494854 | AB139: -4.951184838 | AC139: 0.9962685919 | AD139: 1.003745384 | AE139: =($AG$47/$AG$48) * ($AG$49/$AG$50)* ($AG$51/$AG$52) * Generic!AC139 -> 5.379021047 | AF139: 5.38754616 | AG139: 5.419389498 | AH139: 4.947519271 | AS139: 0.4827705152 | AT139: 0.008425935021 | AU139: -0.4743445801 | AV139: -0.008278780141 | AW139: =ABS(AV139)*'Simple AR Calculator'!$C$8 -> 1.986907234 | AX139: 5.378299419 | AY139: 10.68618202 | AZ139: 85 | BE139: =ABS(BG138) -> 4.153260111 | BF139: 0.07248806363 | BG139: =BF139-BE139 -> -4.080772048 | BH139: -0.07116270809 | BI139: 0.4827705152 | BJ139: 8.602969694 | BK139: 74.01108756 | BL139: 0.8757629816 | BM139: 4.74244767 | BN139: 22.4908099 | BO139: 0 | BR139: 6.274756329 | BS139: 0.1095151577 | BT139: -6.165241171 | BU139: 0.9942162995
T140: 1.106452575 | U140: 0.01931124045 | V140: -1.087141335 | W140: 0.9998199953 | X140: 19.57620109 | Z140: 4.951184838 | AA140: 0.0864144773 | AB140: -4.864770361 | AC140: 0.9963976284 | AD140: 1.003615396 | AE140: =($AG$47/$AG$48) * ($AG$49/$AG$50)* ($AG$51/$AG$52) * Generic!AC140 -> 5.379717737 | AF140: 5.388504565 | AG140: 5.418687671 | AH140: 4.946878552 | AS140: 0.4743445801 | AT140: 0.008278874713 | AU140: -0.4660657054 | AV140: -0.008134291385 | AW140: =ABS(AV140)*'Simple AR Calculator'!$C$8 -> 1.952229932 | AX140: 5.379021047 | AY140: 10.5010859 | BE140: 4.080772048 | BF140: 0.07122290826 | BG140: -4.009549139 | BH140: -0.06992273071 | BI140: 0.4743445801 | BJ140: 8.602969694 | BK140: 74.01108756 | BL140: 0.8614062114 | BM140: 4.737337616 | BN140: 22.44236769 | BO140: 0 | BR140: 6.165241171 | BS140: 0.1076037576 | BT140: -6.057637413 | BU140: 0.9944162404
T141: 1.087141335 | U141: 0.01897419572 | V141: -1.068167139 | W141: 0.9998262237 | X141: 19.57283853 | Z141: 4.864770361 | AA141: 0.08490626015 | AB141: -4.779864101 | AC141: 0.9965222053 | AD141: 1.003489932 | AE141: =($AG$47/$AG$48) * ($AG$49/$AG$50)* ($AG$51/$AG$52) * Generic!AC141 -> 5.380390348 | AF141: 5.389430294 | AG141: 5.418010272 | AH141: 4.946260135 | AS141: 0.4660657054 | AT141: 0.00813438109 | AU141: -0.4579313243 | AV141: -0.007992324267 | AW141: =ABS(AV141)*'Simple AR Calculator'!$C$8 -> 1.918157824 | AX141: 5.379717737 | AY141: 10.31914767 | BE141: 4.009549139 | BF141: 0.069979834 | BG141: -3.939569305 | BH141: -0.06870428978 | BI141: 0.4660657054 | BJ141: 8.602969694 | BK141: 74.01108756 | BL141: 0.8470494412 | BM141: 4.733547942 | BN141: 22.40647612 | BO141: 0 | BR141: 6.057637413 | BS141: 0.1057257178 | BT141: -5.951911696 | BU141: 0.9946092757
H142: DAR = | I142: ='Simple AR Calculator'!H8 -> 4.929058058 | T142: 1.068167139 | U142: 0.01864303354 | V142: -1.049524105 | W142: 0.9998322365 | X142: 19.56959178 | Y142: 87 | Z142: 4.779864101 | AA142: 0.08342436636 | AB142: -4.696439735 | AC142: 0.9966424764 | AD142: 1.003368835 | AE142: =($AG$47/$AG$48) * ($AG$49/$AG$50)* ($AG$51/$AG$52) * Generic!AC142 -> 5.381039712 | AF142: 5.390324445 | AG142: 5.417356447 | AH142: 4.945663239 | AS142: 0.4579313243 | AT142: 0.007992409358 | AU142: -0.449938915 | AV142: -0.007852834787 | AW142: =ABS(AV142)*'Simple AR Calculator'!$C$8 -> 1.884680349 | AX142: 5.380390348 | AY142: 10.14031596 | BE142: 3.939569305 | BF142: 0.06875845549 | BG142: -3.87081085 | BH142: -0.06750701482 | BI142: 0.4579313243 | BJ142: 8.602969694 | BK142: 74.01108756 | BL142: 0.832692671 | BM142: 4.731120427 | BN142: 22.3835005 | BO142: 0 | BR142: 5.951911696 | BS142: 0.1038804559 | BT142: -5.84803124 | BU142: 0.9947956434
T143: 1.049524105 | U143: 0.01831765122 | V143: -1.031206454 | W143: 0.9998380413 | X143: 19.56645684 | Z143: 4.696439735 | AA143: 0.08196833649 | AB143: -4.614471398 | AC143: 0.9967585905 | AD143: 1.00325195 | AE143: =($AG$47/$AG$48) * ($AG$49/$AG$50)* ($AG$51/$AG$52) * Generic!AC143 -> 5.381666632 | AF143: 5.391188081 | AG143: 5.41672537 | AH143: 4.94508711 | AS143: 0.449938915 | AT143: 0.007852915499 | AU143: -0.4420859995 | AV143: -0.007715779708 | AW143: =ABS(AV143)*'Simple AR Calculator'!$C$8 -> 1.85178713 | AX143: 5.381039712 | AY143: 9.964540085 | BE143: 3.87081085 | BF143: 0.06755839405 | BG143: -3.803252456 | BH143: -0.06633054155 | BI143: 0.449938915 | BJ143: 8.602969694 | BK143: 74.01108756 | BL143: 0.8183359008 | BM143: 4.730100251 | BN143: 22.37384838 | BO143: 0 | BR143: 5.84803124 | BS143: 0.1020673999 | BT143: -5.74596384 | BU143: 0.9949755735
P144: 10 | T144: 1.031206454 | U144: 0.01799794789 | V144: -1.013208506 | W144: 0.9998436453 | X144: 19.5634299 | Z144: 4.614471398 | AA144: 0.08053771913 | AB144: -4.533933679 | AC144: 0.9968706911 | AD144: 1.003139132 | AE144: =($AG$47/$AG$48) * ($AG$49/$AG$50)* ($AG$51/$AG$52) * Generic!AC144 -> 5.382271882 | AF144: 5.39202223 | AG144: 5.416116245 | AH144: 4.944531022 | AS144: 0.4420859995 | AT144: 0.007715856268 | AU144: -0.4343701432 | AV144: -0.007581116551 | AW144: =ABS(AV144)*'Simple AR Calculator'!$C$8 -> 1.819467972 | AX144: 5.381666632 | AY144: 9.791770074 | AZ144: 90 | BE144: 3.803252456 | BF144: 0.06637927764 | BG144: -3.736873178 | BH144: -0.06517451179 | BI144: 0.4420859995 | BJ144: 8.602969694 | BK144: 74.01108756 | BL144: 0.8039791306 | BM144: 4.730536292 | BN144: 22.37797361 | BO144: 0 | BR144: 5.74596384 | BS144: 0.1002859877 | BT144: -5.645677852 | BU144: 0.9951492878
F145: ='Simple AR Calculator'!C7 -> 122 | H145: 3.33 | K145: ='Simple AR Calculator'!C8 -> 240 | T145: 1.013208506 | U145: 0.01768382444 | V145: -0.9955246818 | W145: 0.9998490553 | X145: =SQRT($H$62^2+$F$60^2-2*$H$62*$F$60*(COS(RADIANS(V145)))) -> 19.56050725 | Z145: 4.533933679 | AA145: 0.07913207076 | AB145: -4.454801608 | AC145: 0.9969789168 | AD145: 1.003030238 | AE145: =($AG$47/$AG$48) * ($AG$49/$AG$50)* ($AG$51/$AG$52) * Generic!AC145 -> 5.382856211 | AF145: 5.392827883 | AG145: 5.415528306 | AH145: 4.943994276 | AS145: 0.4343701432 | AT145: 0.007581189171 | AU145: -0.426788954 | AV145: -0.007448803575 | AW145: =ABS(AV145)*'Simple AR Calculator'!$C$8 -> 1.787712858 | AX145: 5.382271882 | AY145: 9.621956649 | BE145: 3.736873178 | BF145: 0.06522074069 | BG145: -3.671652438 | BH145: -0.06403857334 | BI145: 0.4343701432 | BJ145: 8.602969694 | BK145: 74.01108756 | BL145: 0.7896223605 | BM145: 4.732481456 | BN145: 22.39638073 | BO145: 0 | BR145: 5.645677852 | BS145: 0.09853566703 | BT145: -5.547142185 | BU145: 0.9953170009
T146: 0.9955246818 | U146: 0.01737518348 | V146: -0.9781494984 | W146: 0.9998542782 | X146: 19.55768531 | Z146: 4.454801608 | AA146: 0.07775095559 | AB146: -4.377050653 | AC146: 0.9970834014 | AD146: 1.00292513 | AE146: =($AG$47/$AG$48) * ($AG$49/$AG$50)* ($AG$51/$AG$52) * Generic!AC146 -> 5.38342034 | AF146: 5.393606004 | AG146: 5.414960812 | AH146: 4.943476193 | AS146: 0.426788954 | AT146: 0.007448872459 | AU146: -0.4193400816 | AV146: -0.007318799769 | AW146: =ABS(AV146)*'Simple AR Calculator'!$C$8 -> 1.756511945 | AX146: 5.382856211 | AY146: 9.45505123 | BE146: 3.671652438 | BF146: 0.06408242402 | BG146: -3.607570014 | BH146: -0.06292237993 | BI146: 0.426788954 | BJ146: 8.602969694 | BK146: 74.01108756 | BL146: 0.7752655903 | BM146: 4.735993037 | BN146: 22.42963005 | BO146: 0 | BR146: 5.547142185 | BS146: 0.09681589521 | BT146: -5.45032629 | BU146: 0.9954789196
D147: BalHt.+ | F147: BalHtTot | G147: Dip+ | H147: DipDiff | I147: Cap Rise | J147: DAR*BHT | K147: DAR*BHT | N147: tan | O147: angle | P147: RODD/BalHt+ | T147: 0.9781494984 | U147: 0.01707192932 | V147: -0.961077569 | W147: 0.9998593203 | X147: 19.55496063 | Z147: 4.377050653 | AA147: 0.07639394541 | AB147: -4.300656707 | AC147: 0.9971842741 | AD147: 1.002823677 | AE147: =($AG$47/$AG$48) * ($AG$49/$AG$50)* ($AG$51/$AG$52) * Generic!AC147 -> 5.383964969 | AF147: 5.394357521 | AG147: 5.414413048 | AH147: 4.942976124 | AS147: 0.4193400816 | AT147: 0.007318865109 | AU147: -0.4120212165 | AV147: -0.007191064837 | AW147: =ABS(AV147)*'Simple AR Calculator'!$C$8 -> 1.725855561 | AX147: 5.38342034 | AY147: 9.291005931 | BE147: 3.607570014 | BF147: 0.06296397473 | BG147: -3.544606039 | BH147: -0.0618255911 | BI147: 0.4193400816 | BJ147: 8.602969694 | BK147: 74.01108756 | BL147: 0.7609088201 | BM147: 4.741133127 | BN147: 22.47834333 | BO147: 0 | BR147: 5.45032629 | BS147: 0.09512613907 | BT147: -5.355200151 | BU147: 0.995635244
D148: mm | E148: inches | F148: 3.33 | G148: 10 | I148: =G148*($F$145/$K$145) -> 5.083333333 | J148: mm | K148: inches | N148: =G148/($F$145+$K$145) -> 0.02762430939 | O148: =DEGREES(ATAN(N148)) -> 1.582353923 | P148: =G148-10 -> 0 | T148: 0.961077569 | U148: 0.01677396795 | V148: -0.9443036011 | W148: 0.999864188 | X148: 19.55232985 | Z148: 4.300656707 | AA148: 0.07506061954 | AB148: -4.225596088 | AC148: 0.9972816596 | AD148: 1.00272575 | AE148: =($AG$47/$AG$48) * ($AG$49/$AG$50)* ($AG$51/$AG$52) * Generic!AC148 -> 5.384490769 | AF148: 5.395083334 | AG148: 5.413884325 | AH148: 4.942493438 | AS148: 0.4120212165 | AT148: 0.007191126816 | AU148: -0.4048300897 | AV148: -0.007065559186 | AW148: =ABS(AV148)*'Simple AR Calculator'!$C$8 -> 1.695734205 | AX148: 5.383964969 | AY148: 9.129773555 | BE148: 3.544606039 | BF148: 0.06186504606 | BG148: -3.482740993 | BH148: -0.06074787212 | BI148: 0.4120212165 | BJ148: 8.602969694 | BK148: 74.01108756 | BL148: 0.7465520499 | BM148: 4.747969066 | BN148: 22.54321025 | BO148: 0 | BR148: 5.355200151 | BS148: 0.09346587474 | BT148: -5.261734276 | BU148: 0.995786167
D149: =E149*25.4 -> 0.127 | E149: 0.005 | F149: =$H$145+D149 -> 3.457 | G149: =F149*3 -> 10.371 | H149: =G149-10 -> 0.371 | I149: 5.271925 | J149: =$I$142*D149 -> 0.6259903733 | K149: =J149/25.4 -> 0.02464529029 | L149: =(I149-$I$148)*(1-Q149) -> 0.1240333333 | M149: =J149-D149 -> 0.4989903733 | N149: 0.02864917127 | O149: =DEGREES(ATAN(N149)) -> 1.641027727 | P149: =H149/D149 -> 2.921259843 | Q149: =1/P149 -> 0.3423180593 | R149: =1/P149 -> 0.3423180593 | T149: 0.9443036011 | U149: 0.01648120698 | V149: -0.9278223941 | W149: 0.9998688872 | X149: 19.54978977 | Z149: 4.225596088 | AA149: 0.07375056459 | AB149: -4.151845523 | AC149: 0.9973756783 | AD149: 1.002631227 | AE149: =($AG$47/$AG$48) * ($AG$49/$AG$50)* ($AG$51/$AG$52) * Generic!AC149 -> 5.384998392 | AF149: 5.395784311 | AG149: 5.413373979 | AH149: 4.942027528 | AS149: 0.4048300897 | AT149: 0.007065617976 | AU149: -0.3977644717 | AV149: -0.006942243914 | AW149: =ABS(AV149)*'Simple AR Calculator'!$C$8 -> 1.666138539 | AX149: 5.384490769 | AY149: 8.971307585 | AZ149: 95 | BE149: 3.482740993 | BF149: 0.06078529732 | BG149: -3.421955695 | BH149: -0.05968889389 | BI149: 0.4048300897 | BJ149: 8.602969694 | BK149: 74.01108756 | BL149: 0.7321952797 | BM149: 4.756573949 | BN149: 22.62499573 | BO149: 0 | BR149: 5.261734276 | BS149: 0.09183458748 | BT149: -5.169899689 | BU149: 0.995931875
D150: 0.254 | E150: =D150/25.4 -> 0.01 | F150: 3.584 | G150: 10.752 | H150: 0.752 | I150: 5.4656 | J150: 1.251980747 | K150: 0.04929058058 | L150: 0.25315 | M150: 0.9979807467 | N150: 0.02970165746 | O150: 1.701279452 | P150: 2.960629921 | Q150: 0.3377659574 | R150: 0.3377659574 | S150: =P150-P149 -> 0.03937007874 | T150: 0.9278223941 | U150: 0.01619355565 | V150: -0.9116288385 | W150: 0.9998734239 | X150: 19.54733726 | Z150: 4.151845523 | AA150: 0.07246337441 | AB150: -4.079382149 | AC150: 0.9974664467 | AD150: 1.002539989 | AE150: =($AG$47/$AG$48) * ($AG$49/$AG$50)* ($AG$51/$AG$52) * Generic!AC150 -> 5.385488466 | AF150: 5.396461293 | AG150: 5.412881368 | AH150: 4.941577809 | AS150: 0.3977644717 | AT150: 0.006942299678 | AU150: -0.390822172 | AV150: -0.006821080796 | AW150: =ABS(AV150)*'Simple AR Calculator'!$C$8 -> 1.637059391 | AX150: 5.384998392 | AY150: 8.815562189 | BE150: 3.421955695 | BF150: 0.05972439374 | BG150: -3.362231302 | BH150: -0.05864833288 | BI150: 0.3977644717 | BJ150: 8.602969694 | BK150: 74.01108756 | BL150: 0.7178385095 | BM150: 4.767027194 | BN150: 22.72454826 | BO150: 0 | BR150: 5.169899689 | BS150: 0.09023177157 | BT150: -5.079667917 | BU150: 0.9960725479
D151: 0.381 | E151: 0.015 | F151: 3.711 | G151: 11.133 | H151: 1.133 | I151: 5.659275 | J151: 1.87797112 | K151: 0.07393587087 | L151: 0.3822666667 | M151: 1.49697112 | N151: 0.03075414365 | O151: 1.761527412 | P151: 2.973753281 | Q151: 0.3362753751 | R151: 0.3362753751 | S151: =P151-P150 -> 0.01312335958 | T151: 0.9116288385 | U151: 0.01591092479 | V151: -0.8957179137 | W151: 0.9998778036 | X151: 19.54496932 | Z151: 4.079382149 | AA151: 0.07119864994 | AB151: -4.008183499 | AC151: 0.9975540768 | AD151: 1.00245192 | AE151: =($AG$47/$AG$48) * ($AG$49/$AG$50)* ($AG$51/$AG$52) * Generic!AC151 -> 5.385961596 | AF151: 5.397115093 | AG151: 5.412405874 | AH151: 4.941143716 | AS151: 0.390822172 | AT151: 0.006821133691 | AU151: -0.3840010383 | AV151: -0.006702032276 | AW151: =ABS(AV151)*'Simple AR Calculator'!$C$8 -> 1.608487746 | AX151: 5.385488466 | AY151: 8.662492205 | BE151: 3.362231302 | BF151: 0.05868200643 | BG151: -3.303549295 | BH151: -0.05762587102 | BI151: 0.390822172 | BJ151: 8.602969694 | BK151: 74.01108756 | BL151: 0.7034817393 | BM151: 4.779415177 | BN151: 22.84280943 | BO151: 0 | BR151: 5.079667917 | BS151: 0.08865693006 | BT151: -4.991010987 | BU151: 0.9962083595
D152: 0.508 | E152: 0.02 | F152: 3.838 | G152: 11.514 | H152: 1.514 | I152: 5.85295 | J152: 2.503961493 | K152: 0.09858116116 | L152: 0.5113833333 | M152: 1.995961493 | N152: 0.03180662983 | O152: 1.821771477 | P152: 2.980314961 | Q152: 0.3355350066 | R152: 0.3355350066 | S152: =P152-P151 -> 0.00656167979 | T152: 0.8957179137 | U152: 0.01563322676 | V152: -0.8800846869 | W152: 0.9998820318 | X152: 19.54268304 | Z152: 4.008183499 | AA152: 0.06995599908 | AB152: -3.9382275 | AC152: 0.9976386773 | AD152: 1.002366912 | AE152: =($AG$47/$AG$48) * ($AG$49/$AG$50)* ($AG$51/$AG$52) * Generic!AC152 -> 5.386418368 | AF152: 5.397746497 | AG152: 5.411946898 | AH152: 4.940724703 | AS152: 0.3840010383 | AT152: 0.00670208245 | AU152: -0.3772989559 | AV152: -0.006585061452 | AW152: =ABS(AV152)*'Simple AR Calculator'!$C$8 -> 1.580414748 | AX152: 5.385961596 | AY152: 8.512053141 | BE152: 3.303549295 | BF152: 0.0576578122 | BG152: -3.245891483 | BH152: -0.0566211956 | BI152: 0.3840010383 | BJ152: 8.602969694 | BK152: 74.01108756 | BL152: 0.6891249691 | BM152: 4.793831951 | BN152: 22.98082477 | BO152: 0 | BR152: 4.991010987 | BS152: 0.08710957473 | BT152: -4.903901412 | BU152: 0.9963394776
D153: 0.635 | E153: 0.025 | F153: 3.965 | G153: 11.895 | H153: 1.895 | I153: 6.046625 | J153: 3.129951867 | K153: 0.1232264514 | L153: 0.6405 | M153: 2.494951867 | N153: 0.03285911602 | O153: 1.882011512 | P153: 2.984251969 | Q153: 0.3350923483 | R153: 0.3350923483 | S153: =P153-P152 -> 0.003937007874 | T153: 0.8800846869 | U153: 0.01536037548 | V153: -0.8647243114 | W153: 0.9998861136 | X153: 19.54047561 | Z153: 3.9382275 | AA153: 0.06873503656 | AB153: -3.869492463 | AC153: 0.9977203526 | AD153: 1.002284856 | AE153: =($AG$47/$AG$48) * ($AG$49/$AG$50)* ($AG$51/$AG$52) * Generic!AC153 -> 5.386859347 | AF153: 5.398356264 | AG153: 5.411503865 | AH153: 4.940320246 | AS153: 0.3772989559 | AT153: 0.006585109044 | AU153: -0.3707138468 | AV153: -0.006470132066 | AW153: =ABS(AV153)*'Simple AR Calculator'!$C$8 -> 1.552831696 | AX153: 5.386418368 | AY153: 8.364201169 | BE153: 3.245891483 | BF153: 0.05665149354 | BG153: -3.189239989 | BH153: -0.05563399922 | BI153: 0.3772989559 | BJ153: 8.602969694 | BK153: 74.01108756 | BL153: 0.6747681989 | BM153: =BE153/BL153 -> 4.810380051 | BN153: 23.13975623 | BO153: 0 | BR153: 4.903901412 | BS153: 0.08558922584 | BT153: -4.818312186 | BU153: 0.9964660643
D154: 0.762 | E154: 0.03 | F154: 4.092 | G154: 12.276 | H154: 2.276 | I154: 6.2403 | J154: 3.75594224 | K154: 0.1478717417 | L154: 0.7696166667 | M154: 2.99394224 | N154: 0.03391160221 | O154: 1.942247385 | P154: 2.98687664 | Q154: 0.334797891 | R154: 0.334797891 | S154: =P154-P153 -> 0.002624671916 | T154: 0.8647243114 | U154: 0.01509228636 | V154: -0.8496320251 | W154: 0.9998900542 | X154: 19.53834433 | Z154: =ABS(AB153) -> 3.869492463 | AA154: 0.06753538386 | AB154: =AA154-Z154 -> -3.801957079 | AC154: 0.997799204 | AD154: 1.00220565 | AE154: =($AG$47/$AG$48) * ($AG$49/$AG$50)* ($AG$51/$AG$52) * Generic!AC154 -> 5.387285078 | AF154: 5.398945129 | AG154: 5.41107622 | AH154: 4.939929836 | AS154: 0.3707138468 | AT154: 0.00647017721 | AU154: -0.3642436696 | AV154: -0.006357208493 | AW154: =ABS(AV154)*'Simple AR Calculator'!$C$8 -> 1.525730038 | AX154: 5.386859347 | AY154: 8.218893118 | AZ154: 100 | BE154: 3.189239989 | BF154: 0.05566273845 | BG154: -3.133577251 | BH154: -0.05466397969 | BI154: 0.3707138468 | BJ154: 8.602969694 | BK154: 74.01108756 | BL154: 0.6604114287 | BR154: 4.818312186 | BS154: 0.08409541204 | BT154: -4.734216774 | BU154: 0.9965882758
T155: 0.8496320251 | U155: 0.01482887627 | V155: -0.8348031488 | W155: 0.9998938585 | X155: =SQRT($H$62^2+$F$60^2-2*$H$62*$F$60*(COS(RADIANS(V155)))) -> 19.53628656 | Z155: 3.801957079 | AA155: 0.06635666905 | AB155: -3.73560041 | AC155: 0.9978753289 | AD155: 1.002129195 | AE155: =($AG$47/$AG$48) * ($AG$49/$AG$50)* ($AG$51/$AG$52) * Generic!AC155 -> 5.387696089 | AF155: 5.399513802 | AG155: 5.410663425 | AH155: 4.939552983 | AS155: 0.3642436696 | AT155: 0.006357251314 | AU155: -0.3578864183 | AV155: -0.00624625573 | AW155: =ABS(AV155)*'Simple AR Calculator'!$C$8 -> 1.499101375 | AX155: 5.387285078 | AY155: 8.076086469 | BE155: 3.133577251 | BF155: 0.0546912404 | BG155: -3.078886011 | BH155: -0.05371083994 | BI155: 0.3642436696 | BJ155: 8.602969694 | BK155: 74.01108756 | BL155: 0.6460546586 | BO155: =AVERAGE(BM55:BM153) -> 5.969550571 | BP155: =AVERAGE(BN55:BN153) -> 37.08841432 | BR155: 4.734216774 | BS155: 0.08262767022 | BT155: -4.651589104 | BU155: 0.9967062633
D156: =J149/D149 -> 4.929058058 | E156: 4.929058058 | T156: 0.8348031488 | U156: 0.01457006355 | V156: -0.8202330852 | W156: 0.9998975311 | X156: 19.5342998 | Z156: 3.73560041 | AA156: 0.0651985267 | AB156: -3.670401883 | AC156: 0.9979488215 | AD156: 1.002055394 | AE156: =($AG$47/$AG$48) * ($AG$49/$AG$50)* ($AG$51/$AG$52) * Generic!AC156 -> 5.388092888 | AF156: 5.400062968 | AG156: 5.410264964 | AH156: 4.939189216 | AS156: 0.3578864183 | AT156: 0.006246296347 | AU156: -0.351640122 | AV156: -0.006137239382 | AW156: =ABS(AV156)*'Simple AR Calculator'!$C$8 -> 1.472937452 | AX156: 5.387696089 | AY156: 7.935739348 | BE156: 3.078886011 | BF156: 0.05373669818 | BG156: -3.025149312 | BH156: -0.05277428794 | BI156: 0.3578864183 | BJ156: 8.602969694 | BK156: 74.01108756 | BL156: 0.6316978884 | BR156: 4.651589104 | BS156: 0.08118554532 | BT156: -4.570403559 | BU156: 0.9968201727
D157: 4.929058058 | E157: 4.929058058 | T157: 0.8202330852 | U157: 0.01431576797 | V157: -0.8059173173 | W157: 0.9999010767 | X157: 19.53238158 | Z157: 3.670401883 | AA157: 0.06406059774 | AB157: -3.606341286 | AC157: 0.9980197729 | AD157: 1.001984156 | AE157: =($AG$47/$AG$48) * ($AG$49/$AG$50)* ($AG$51/$AG$52) * Generic!AC157 -> 5.388475967 | AF157: 5.400593292 | AG157: 5.409880336 | AH157: 4.938838079 | AS157: 0.351640122 | AT157: 0.00613727791 | AU157: -0.345502844 | AV157: -0.006030125658 | AW157: =ABS(AV157)*'Simple AR Calculator'!$C$8 -> 1.447230158 | AX157: 5.388092888 | AY157: 7.797810522 | BE157: 3.025149312 | BF157: 0.05279881587 | BG157: -2.972350497 | BH157: -0.05185403665 | BI157: 0.351640122 | BJ157: 8.602969694 | BK157: 74.01108756 | BL157: 0.6173411182 | BR157: 4.570403559 | BS157: 0.07976859025 | BT157: -4.490634969 | BU157: 0.9969301446
D158: 4.929058058 | E158: 4.929058058 | T158: 0.8059173173 | U158: 0.01406591069 | V158: -0.7918514066 | W158: 0.9999044996 | X158: 19.53052956 | Z158: 3.606341286 | AA158: 0.06294252939 | AB158: -3.543398756 | AC158: 0.9980882708 | AD158: 1.001915391 | AE158: =($AG$47/$AG$48) * ($AG$49/$AG$50)* ($AG$51/$AG$52) * Generic!AC158 -> 5.388845798 | AF158: 5.401105414 | AG158: 5.409509061 | AH158: 4.938499131 | AS158: 0.345502844 | AT158: 0.006030162204 | AU158: -0.3394726818 | AV158: -0.005924881353 | AW158: =ABS(AV158)*'Simple AR Calculator'!$C$8 -> 1.421971525 | AX158: 5.388475967 | AY158: 7.662259387 | BE158: 2.972350497 | BF158: 0.05187730269 | BG158: -2.920473194 | BH158: -0.05094980388 | BI158: 0.345502844 | BJ158: 8.602969694 | BK158: 74.01108756 | BL158: 0.602984348 | BR158: 4.490634969 | BS158: 0.07837636571 | BT158: -4.412258603 | BU158: 0.9970363151
D159: 4.929058058 | E159: 4.929058058 | T159: 0.7918514066 | U159: 0.01382041423 | V159: -0.7780309924 | W159: 0.999907804 | X159: 19.52874145 | Z159: 3.543398756 | AA159: 0.06184397501 | AB159: -3.481554781 | AC159: 0.9981544 | AD159: 1.001849012 | AE159: =($AG$47/$AG$48) * ($AG$49/$AG$50)* ($AG$51/$AG$52) * Generic!AC159 -> 5.389202841 | AF159: 5.401599955 | AG159: 5.409150673 | AH159: 4.938171948 | AS159: 0.3394726818 | AT159: 0.005924916019 | AU159: -0.3335477658 | AV159: -0.005821473845 | AW159: =ABS(AV159)*'Simple AR Calculator'!$C$8 -> 1.397153723 | AX159: 5.388845798 | AY159: 7.529045968 | BE159: 2.920473194 | BF159: 0.05097187295 | BG159: -2.869501321 | BH159: -0.05006131226 | BI159: 0.3394726818 | BJ159: 8.602969694 | BK159: 74.01108756 | BL159: 0.5886275778 | BR159: 4.412258603 | BS159: 0.07700844007 | BT159: -4.335250163 | BU159: 0.9971388155
D160: 4.929058058 | E160: 4.929058058 | T160: 0.7780309924 | U160: 0.0135792025 | V160: -0.7644517899 | W160: 0.9999109942 | X160: 19.52701505 | Z160: 3.481554781 | AA160: 0.06076459402 | AB160: -3.420790187 | AC160: 0.9982182425 | AD160: 1.001784938 | AE160: =($AG$47/$AG$48) * ($AG$49/$AG$50)* ($AG$51/$AG$52) * Generic!AC160 -> 5.389547537 | AF160: 5.402077514 | AG160: 5.408804723 | AH160: 4.93785612 | AS160: 0.3335477658 | AT160: 0.005821506726 | AU160: -0.3277262591 | AV160: -0.005719871077 | AW160: =ABS(AV160)*'Simple AR Calculator'!$C$8 -> 1.372769058 | AX160: 5.389202841 | AY160: 7.39813091 | BE160: 2.869501321 | BF160: 0.05008224594 | BG160: -2.819419075 | BH160: -0.04918828915 | BI160: 0.3335477658 | BJ160: 8.602969694 | BK160: 74.01108756 | BL160: 0.5742708076 | BR160: 4.335250163 | BS160: 0.07566438924 | BT160: -4.259585774 | BU160: 0.9972377725
D161: 4.929058058 | E161: 4.929058058 | T161: 0.7644517899 | U161: 0.01334220071 | V161: -0.7511095892 | W161: 0.9999140739 | X161: 19.52534825 | Z161: 3.420790187 | AA161: 0.05970405179 | AB161: -3.361086135 | AC161: 0.9982798771 | AD161: 1.001723087 | AE161: =($AG$47/$AG$48) * ($AG$49/$AG$50)* ($AG$51/$AG$52) * Generic!AC161 -> 5.389880313 | AF161: 5.402538668 | AG161: 5.408470779 | AH161: 4.937551253 | AS161: 0.3277262591 | AT161: 0.005719902266 | AU161: -0.3220063568 | AV161: -0.005620041554 | AW161: =ABS(AV161)*'Simple AR Calculator'!$C$8 -> 1.348809973 | AX161: 5.389547537 | AY161: 7.269475468 | BE161: 2.819419075 | BF161: 0.04920814585 | BG161: -2.770210929 | BH161: -0.04833046656 | BI161: 0.3277262591 | BJ161: 8.602969694 | BK161: 74.01108756 | BL161: 0.5599140374 | BR161: 4.259585774 | BS161: 0.07434379652 | BT161: -4.185241977 | BU161: 0.9973333085
T162: 0.7511095892 | U162: 0.01310933537 | V162: -0.7380002538 | W162: 0.9999170471 | X162: 19.52373899 | Z162: 3.361086135 | AA162: 0.05866201951 | AB162: -3.302424116 | AC162: 0.9983393803 | AD162: 1.001663382 | AE162: =($AG$47/$AG$48) * ($AG$49/$AG$50)* ($AG$51/$AG$52) * Generic!AC162 -> 5.39020158 | AF162: 5.402983978 | AG162: 5.408148423 | AH162: 4.937256964 | AS162: 0.3220063568 | AT162: 0.005620071139 | AU162: -0.3163862857 | AV162: -0.00552195433 | AW162: =ABS(AV162)*'Simple AR Calculator'!$C$8 -> 1.325269039 | AX162: 5.389880313 | AY162: 7.143041504 | BE162: 2.770210929 | BF162: 0.04834930169 | BG162: -2.721861627 | BH162: -0.04748758107 | BI162: 0.3220063568 | BJ162: 8.602969694 | BK162: 74.01108756 | BL162: 0.5455572672 | BR162: 4.185241977 | BS162: 0.07304625249 | BT162: -4.112195725 | BU162: 0.9974255417
T163: 0.7380002538 | U163: 0.01288053431 | V163: -0.7251197195 | W163: 0.9999199174 | X163: 19.52218528 | Z163: 3.302424116 | AA163: 0.05763817412 | AB163: -3.244785942 | AC163: 0.9983968256 | AD163: 1.001605749 | AE163: =($AG$47/$AG$48) * ($AG$49/$AG$50)* ($AG$51/$AG$52) * Generic!AC163 -> 5.390511738 | AF163: 5.403413984 | AG163: 5.407837251 | AH163: 4.936972886 | AS163: 0.3163862857 | AT163: 0.005521982393 | AU163: -0.3108643033 | AV163: -0.005425579 | AW163: =ABS(AV163)*'Simple AR Calculator'!$C$8 -> 1.30213896 | AX163: 5.39020158 | AY163: 7.018791481 | BE163: 2.721861627 | BF163: 0.04750544718 | BG163: -2.67435618 | BH163: -0.04665937378 | BI163: 0.3163862857 | BJ163: 8.602969694 | BK163: 74.01108756 | BL163: 0.531200497 | BR163: 4.112195725 | BS163: 0.07177135488 | BT163: -4.04042437 | BU163: 0.9975145861
T164: 0.7251197195 | U164: 0.01265572658 | V164: -0.7124639929 | W164: 0.9999226883 | X164: 19.52068521 | Z164: 3.244785942 | AA164: 0.05663219821 | AB164: -3.188153744 | AC164: 0.9984522843 | AD164: 1.001550115 | AE164: =($AG$47/$AG$48) * ($AG$49/$AG$50)* ($AG$51/$AG$52) * Generic!AC164 -> 5.390811168 | AF164: 5.403829209 | AG164: 5.407536875 | AH164: 4.936698664 | AS164: 0.3108643033 | AT164: 0.005425605619 | AU164: -0.3054386977 | AV164: -0.005330885688 | AW164: =ABS(AV164)*'Simple AR Calculator'!$C$8 -> 1.279412565 | AX164: 5.390511738 | AY164: 6.896688449 | BE164: 2.67435618 | BF164: 0.04667632072 | BG164: -2.62767986 | BH164: -0.04584559018 | BI164: 0.3108643033 | BJ164: 8.602969694 | BK164: 74.01108756 | BL164: 0.5168437268 | BR164: 4.04042437 | BS164: 0.07051870843 | BT164: -3.969905661 | BU164: 0.9976005519
AE165: Cos | AF165: Parts Calc | AG165: AR invCos | AS165: 0.3054386977 | AT165: 0.005330910937 | AU165: -0.3001077867 | AV165: -0.005237845039 | AW165: =ABS(AV165)*'Simple AR Calculator'!$C$8 -> 1.257082809 | AX165: =AE164 -> 5.390811168 | AY165: 6.776696048 | BE165: 2.62767986 | BF165: 0.04586166524 | BG165: -2.581818194 | BH165: -0.04504598015 | BI165: 0.3054386977 | BJ165: 8.602969694 | BK165: 74.01108756 | BL165: 0.5024869567 | BR165: 3.969905661 | BS165: 0.06928792478 | BT165: -3.900617737 | BU165: 0.9976835455
AS166: 0.3001077867 | AT166: 0.005237868989 | AU166: -0.2948699177 | AV166: -0.005146428212 | AW166: =ABS(AV166)*'Simple AR Calculator'!$C$8 -> 1.235142771 | AX166: =AE165 -> Cos | AY166: =AW166*AX166 ->  | BE166: 2.581818194 | BF166: 0.04506122818 | BG166: -2.536756966 | BH166: -0.04426029783 | BI166: 0.3001077867 | BJ166: 8.602969694 | BK166: 74.01108756 | BL166: 0.4881301865
AK167: =3.1416/180 -> 0.01745333333 | AL167: =TAN(RADIANS(AF171)) -> 0.1123263334 | AN167: tanA = Tpi/180 | AS167: 0.2948699177 | AT167: 0.00514645093 | AU167: -0.2897234668 | AV167: -0.005056606867 | AW167: =ABS(AV167)*'Simple AR Calculator'!$C$8 -> 1.213585648 | AX167: 0 | AY167: 0 | BE167: 2.536756966 | BF167: 0.04427476138 | BG167: -2.492482205 | BH167: -0.04348830159 | BI167: 0.2948699177 | BJ167: 8.602969694 | BK167: 74.01108756 | BL167: 0.4737734163
S168: angle | T168: Involute T = tanA - A | V168: [where T is the involute curve pts. And where ang A is in rads] | AI168: T*pi/180=tan(A)-A*pi/180 | AK168: =(AE171*AK167) -> 0.1118577246 | AL168: =((TAN(RADIANS(S172))-(S172*AK167))) -> 0.1118577246 | AN168: =AJ170*3.1416/180 -> 0.6528481577 | AO168: =DEGREES(TAN(AN168)) -> 43.81455825 | AS168: 0.2897234668 | AT168: 0.005056628416 | AU168: -0.2846668384 | AV168: -0.004968353161 | AW168: =ABS(AV168)*'Simple AR Calculator'!$C$8 -> 1.192404759 | AX168: 0 | AY168: 0 | BE168: 2.492482205 | BF168: 0.04350202102 | BG168: -2.448980184 | BH168: -0.04272975394 | BI168: 0.2897234668 | BJ168: 8.602969694 | BK168: 74.01108756 | BL168: 0.4594166461
S169: =Generic!Z54 -> 22.11498979 | X169: mm | AE169: Involute T = tanA - A | AG169: [where T is the involute curve pts. And where ang A is in rads] | AO169: =AO168-AE171 -> 37.40559771 | AS169: 0.2846668384 | AT169: 0.004968373601 | AU169: -0.2796984648 | AV169: -0.004881639735 | AW169: =ABS(AV169)*'Simple AR Calculator'!$C$8 -> 1.171593536 | AX169: 0 | AY169: 0 | BE169: 2.448980184 | BF169: 0.04274276752 | BG169: -2.406237416 | BH169: -0.04198442144 | BI169: 0.2846668384 | BJ169: 8.602969694 | BK169: 74.01108756 | BL169: 0.4450598759
T170: A Rads | U170: Δ Inv. T | W170: a | X170: ='Simple AR Calculator'!G128 -> 19.53753946 | AE170: ang T | AF170: A Rads | AG170: Δ Inv. T | AI170: a | AJ170: =S171 -> 37.40535663 | AK170: =$AO$168-AE171 -> 37.40559771 | AS170: 0.2796984648 | AT170: 0.004881659124 | AU170: -0.2748168057 | AV170: -0.004796439708 | AW170: =ABS(AV170)*'Simple AR Calculator'!$C$8 -> 1.15114553 | AX170: Involute T = tanA - A | BE170: 2.406237416 | BF170: 0.0419967655 | BG170: -2.364240651 | BH170: -0.04125207469 | BI170: 0.2796984648 | BJ170: 8.602969694 | BK170: 74.01108756 | BL170: 0.4307031057
R171: ='Simple AR Calculator'!$J$131 -> 4.042562623 | S171: =N185 -> 37.40535663 | U171: =S171 -> 37.40535663 | V171: =TAN(RADIANS(S172)) -> 0.7647058824 | W171: =V171*$O$186 -> 13 | X171: =SQRT($W$171^2+$O$186^2) -> 21.40093456 | Y171: =$S$171-U171 -> 0 | AE171: ='Simple AR Calculator'!L212 -> 6.408960539 | AF171: =AE171 -> 6.408960539 | AG171: =AE171 -> 6.408960539 | AH171: =TAN(RADIANS(AE171)) -> 0.1123263334 | AI171: =AH171*$AB$186 ->  | AJ171: =SQRT($AI$171^2+$AB$186^2) ->  | AK171: =$AO$168-AE172 -> 37.40559771 | AS171: 0.2748168057 | AT171: 0.004796458099 | AU171: -0.2700203476 | AV171: -0.004712726668 | AW171: =ABS(AV171)*'Simple AR Calculator'!$C$8 -> 1.1310544 | AX171: =AH170 -> 0 | AY171: 0 | BE171: 2.364240651 | BF171: 0.04126378366 | BG171: -2.322976867 | BH171: -0.04053248821 | BI171: 0.2748168057 | BJ171: 8.602969694 | BK171: 74.01108756 | BL171: 0.4163463355
S172: =S171 -> 37.40535663 | T172: =(RADIANS(S172)) -> 0.6528466311 | U172: =T172-S172 -> -36.75251 | V172: =TAN(RADIANS(S172)) -> 0.7647058824 | W172: 13 | X172: =SQRT($W$171^2+$O$186^2) -> 21.40093456 | Y172: =$S$171+U172 -> 0.6528466311 | AE172: =AE171 -> 6.408960539 | AF172: =(RADIANS(AE172)) -> 0.111857463 | AG172: =AF172-AE172 -> -6.297103076 | AH172: =TAN(RADIANS(AE172)) -> 0.1123263334 | AI172: =AH172*$AB$186 ->  | AJ172: =SQRT($AI$172^2+$AB$186^2) ->  | AK172: 37.51745517 | AS172: 0.2700203476 | AT172: 0.004712744113 | AU172: -0.2653076035 | AV172: -0.004630474664 | AW172: =ABS(AV172)*'Simple AR Calculator'!$C$8 -> 1.111313919 | AX172: =AH171 -> 0.1123263334 | AY172: 0.1248298178 | BE172: 2.322976867 | BF172: 0.04054359478 | BG172: -2.282433272 | BH172: -0.03982544041 | BI172: 0.2700203476 | BJ172: 8.602969694 | BK172: 74.01108756 | BL172: 0.4019895653
S173: =ABS(U172) -> 36.75251 | T173: =(RADIANS(S173)) -> 0.6414523079 | U173: =T173-S173 -> -36.11105769 | V173: =TAN(RADIANS(S173)) -> 0.7468036556 | W173: 12.69566215 | X173: =SQRT(W173^2+$O$186^2) -> 21.21744182 | Y173: 1.294298939 | AE173: =ABS(AG172) -> 6.297103076 | AF173: =ABS(AH172) -> 0.1123263334 | AG173: -6.184776743 | AH173: =TAN(RADIANS(AE173)) -> 0.110349851 | AJ173: =SQRT(AI173^2+$AB$186^2) ->  | AK173: 37.62978151 | AS173: 0.2653076035 | AT173: 0.004630491211 | AU173: -0.2606771123 | AV173: -0.004549658197 | AW173: =ABS(AV173)*'Simple AR Calculator'!$C$8 -> 1.091917967 | AX173: =AH172 -> 0.1123263334 | AY173: 0.1226511417 | BE173: 2.282433272 | BF173: 0.03983597556 | BG173: -2.242597297 | BH173: -0.0391307135 | BI173: 0.2653076035 | BJ173: 8.602969694 | BK173: 74.01108756 | BL173: 0.3876327951
S174: =ABS(U173) -> 36.11105769 | T174: =(RADIANS(S174)) -> 0.6302568531 | U174: -35.48080084 | V174: =TAN(RADIANS(S174)) -> 0.7295082013 | W174: 12.40163942 | X174: =SQRT(W174^2+$O$186^2) -> 21.04282919 | Y174: 1.924555792 | AE174: =ABS(AG173) -> 6.184776743 | AF174: =ABS(AH173) -> 0.110349851 | AG174: -6.074426892 | AH174: 0.1083659405 | AJ174: =SQRT(AI174^2+$AB$186^2) ->  | AK174: 37.74013136 | AS174: 0.2606771123 | AT174: 0.004549673893 | AU174: -0.2561274384 | AV174: -0.004470252216 | AW174: =ABS(AV174)*'Simple AR Calculator'!$C$8 -> 1.072860532 | AX174: 6.297103076 | AY174: 6.755913355 | BE174: 2.242597297 | BF174: 0.03914070662 | BG174: -2.20345659 | BH174: -0.03844809343 | BI174: 0.2606771123 | BJ174: 8.602969694 | BK174: 74.01108756 | BL174: 0.3732760249
S175: 35.48080084 | T175: 0.6192567959 | U175: -34.86154404 | V175: =TAN(RADIANS(S175)) -> 0.7127876114 | W175: 12.11738939 | X175: 20.87656882 | Y175: 2.543812588 | AE175: =ABS(AG174) -> 6.074426892 | AF175: 0.1083659405 | AG175: -5.966060951 | AH175: 0.1064177595 | AK175: 37.8484973 | AS175: 0.2561274384 | AT175: 0.004470267104 | AU175: -0.2516571713 | AV175: -0.004392232102 | AW175: =ABS(AV175)*'Simple AR Calculator'!$C$8 -> 1.054135705 | AX175: 6.184776743 | AY175: 6.519593989 | BE175: 2.20345659 | BF175: 0.03845757242 | BG175: -2.164999018 | BH175: -0.03777736985 | BI175: 0.2561274384 | BJ175: 8.602969694 | BK175: 74.01108756 | BL175: 0.3589192548
S176: 34.86154404 | T176: 0.6084487259 | U176: -34.25309532 | V176: 0.696612309 | W176: 11.84240925 | X176: 20.71817214 | Y176: 3.152261314 | AE176: 5.966060951 | AF176: 0.1064177595 | AG176: -5.859643192 | AH176: 0.1045053807 | AK176: 37.95491506 | AS176: 0.2516571713 | AT176: 0.004392246225 | AU176: -0.247264925 | AV176: -0.004315573671 | AW176: =ABS(AV176)*'Simple AR Calculator'!$C$8 -> 1.035737681 | AX176: 6.074426892 | AY176: 6.291512822 | BE176: 2.164999018 | BF176: 0.03778636116 | BG176: -2.127212657 | BH176: -0.03711833603 | BI176: 0.2516571713 | BJ176: 8.602969694 | BK176: 74.01108756 | BL176: 0.3445624846
S177: 34.25309532 | T177: 0.5978292923 | U177: -33.65526603 | V177: 0.6809548361 | W177: 11.57623221 | X177: 20.5671863 | Y177: 3.750090606 | AE177: 5.859643192 | AF177: 0.1045053807 | AG177: -5.755137811 | AH177: 0.102628118 | AK177: 38.05942044 | AS177: 0.247264925 | AT177: 0.004315587066 | AU177: -0.242949338 | AV177: -0.004240253156 | AW177: =ABS(AV177)*'Simple AR Calculator'!$C$8 -> 1.017660758 | AX177: 5.966060951 | AY177: 6.071426107 | BE177: 2.127212657 | BF177: 0.03712686475 | BG177: -2.090085792 | BH177: -0.03647078879 | BI177: 0.247264925 | BJ177: 8.602969694 | BK177: 74.01108756 | BL177: 0.3302057144
S178: 33.65526603 | T178: 0.5873952028 | U178: -33.06787082 | V178: 0.665789665 | W178: 11.31842431 | X178: 20.42319095 | Y178: 4.337485809 | AE178: 5.755137811 | AF178: 0.102628118 | AG178: -5.652509693 | AH178: 0.1007852869 | AK178: 38.16204855 | AS178: 0.242949338 | AT178: 0.004240265863 | AU178: -0.2387090721 | AV178: -0.00416624721 | AW178: =ABS(AV178)*'Simple AR Calculator'!$C$8 -> 0.9998993303 | AX178: 5.859643192 | AY178: 5.859053304 | BE178: 2.090085792 | BF178: 0.03647887872 | BG178: -2.053606913 | BH178: -0.03583452847 | BI178: 0.242949338 | BJ178: 8.602969694 | BK178: 74.01108756 | BL178: 0.3158489442
S179: 33.06787082 | T179: 0.5771432225 | U179: -32.4907276 | V179: 0.6510930285 | W179: 11.06858149 | X179: 20.28579543 | Y179: 4.914629031 | AE179: 5.652509693 | AF179: 0.1007852869 | AG179: -5.551724406 | AH179: 0.09897621862 | AK179: 38.26283384 | AS179: 0.2387090721 | AT179: 0.004166259263 | AU179: -0.2345428128 | AV179: -0.004093532888 | AW179: =ABS(AV179)*'Simple AR Calculator'!$C$8 -> 0.9824478932 | AX179: 5.755137811 | AY179: 5.654123018 | BE179: 2.053606913 | BF179: 0.03584220217 | BG179: -2.017764711 | BH179: -0.03520935884 | BI179: 0.2387090721 | BJ179: 8.602969694 | BK179: 74.01108756 | BL179: 0.301492174
J180: =X170 -> 19.53753946 | M180: =N185 -> 37.40535663 | S180: 32.4907276 | T180: 0.567070173 | U180: -31.92365743 | V180: 0.6368427687 | W180: 10.82632707 | X180: 20.15463614 | Y180: 5.481699204 | AE180: 5.551724406 | AF180: 0.09897621862 | AG180: -5.452748188 | AH180: 0.09720025887 | AJ180: =SQRT($AI$171^2+$AB$186^2) ->  | AK180: 38.36181006 | AS180: 0.2345428128 | AT180: 0.004093544321 | AU180: -0.2304492685 | AV180: -0.00402208765 | AW180: =ABS(AV180)*'Simple AR Calculator'!$C$8 -> 0.965301036 | AX180: 5.652509693 | AY180: 5.456373463 | BE180: 2.017764711 | BF180: 0.03521663774 | BG180: -1.982548073 | BH180: -0.03459508705 | BI180: 0.2345428128 | BJ180: 8.602969694 | BK180: 74.01108756 | BL180: 0.2871354038
M181: ang | O181: =Q190 -> 21.40093456 | P181: mm | S181: 31.92365743 | T181: 0.5571729314 | U181: =T181-S181 -> -31.3664845 | V181: 0.6230182002 | W181: 10.5913094 | X181: 20.0293743 | Y181: 6.038872136 | AB181: =AD190 ->  | AC181: mm | AE181: 5.452748188 | AF181: 0.09720025887 | AG181: -5.355547929 | AH181: 0.09545676813 | AJ181: =SQRT($AI$172^2+$AB$186^2) ->  | AK181: 38.45901032 | AS181: 0.2304492685 | AT181: 0.004022098494 | AU181: -0.22642717 | AV181: -0.003951889346 | AW181: =ABS(AV181)*'Simple AR Calculator'!$C$8 -> 0.9484534431 | AX181: 5.551724406 | AY181: 5.265552128 | BE181: 1.982548073 | BF181: 0.03460199146 | BG181: -1.947946082 | BH181: -0.0339915236 | BI181: 0.2304492685 | BJ181: 8.602969694 | BK181: 74.01108756 | BL181: 0.2727786336
K182: =X171 -> 21.40093456 | S182: 31.3664845 | T182: 0.5474484292 | U182: -30.81903607 | V182: 0.6095999881 | W182: 10.3631998 | X182: 19.90969387 | Y182: 6.586320565 | AE182: 5.355547929 | AF182: 0.09545676813 | AG182: -5.260091161 | AH182: 0.09374512094 | AJ182: =SQRT(AI182^2+$AB$186^2) ->  | AK182: 38.55446709 | AS182: 0.22642717 | AT182: 0.003951899633 | AU182: -0.2224752704 | AV182: -0.003882916215 | AW182: =ABS(AV182)*'Simple AR Calculator'!$C$8 -> 0.9318998917 | AX182: 5.452748188 | AY182: 5.081415445 | BE182: 1.947946082 | BF182: 0.03399807278 | BG182: -1.913948009 | BH182: -0.03339848224 | BI182: 0.22642717 | BJ182: 8.602969694 | BK182: 74.01108756 | BL182: 0.2584218634
P183: a | Q183: =Q189 -> 13 | R183: mm | S183: 30.81903607 | T183: 0.5378936516 | U183: -30.28114241 | V183: 0.5965700367 | W183: 10.14169062 | X183: 19.79529966 | Y183: 7.124214217 | AC183: a | AD183: =AD189 ->  | AE183: 5.260091161 | AF183: 0.09374512094 | AG183: -5.16634604 | AH183: 0.09206470558 | AJ183: =SQRT(AI183^2+$AB$186^2) ->  | AK183: 38.64821221 | AS183: 0.2224752704 | AT183: 0.003882925973 | AU183: -0.2185923444 | AV183: -0.003815146875 | AW183: =ABS(AV183)*'Simple AR Calculator'!$C$8 -> 0.9156352499 | AX183: 5.355547929 | AY183: 4.903728466 | BE183: 1.913948009 | BF183: 0.03340469447 | BG183: -1.880543314 | BH183: -0.03281577996 | BI183: 0.2224752704 | BJ183: 8.602969694 | BK183: 74.01108756 | BL183: 0.2440650932
S184: 30.28114241 | T184: 0.5285056364 | U184: -29.75263678 | V184: 0.5839113904 | W184: 9.926493637 | X184: 19.68591567 | Y184: 7.652719853 | AD184: mm | AE184: =ABS(AG183) -> 5.16634604 | AF184: =ABS(AH183) -> 0.09206470558 | AG184: =AF184-AE184 -> -5.074281334 | AH184: =TAN(RADIANS(AE184)) -> 0.09041492365 | AK184: 38.74027691 | AS184: 0.2185923444 | AT184: 0.00381515613 | AU184: -0.2147771883 | AV184: -0.003748560315 | AW184: =ABS(AV184)*'Simple AR Calculator'!$C$8 -> 0.8996544756 | AX184: =AD184 -> mm | AY184: =AW184*AX184 ->  | BE184: 1.880543314 | BF184: 0.03282167256 | BG184: -1.847721642 | BH184: -0.03224323688 | BI184: =AS184 -> 0.2185923444 | BJ184: =BE184/BI184 -> 8.602969694 | BK184: =BJ184^2 -> 74.01108756 | BL184: 0.229708323
N185: =K56 -> 37.40535663 | S185: 29.75263678 | T185: 0.5192814729 | U185: -29.23335531 | V185: 0.5716081428 | W185: 9.717338427 | X185: 19.58128357 | Y185: 8.172001326 | AA185: =AE171 -> 6.408960539 | AE185: 5.074281334 | AF185: 0.09041492365 | AG185: -4.98386641 | AH185: 0.08879518971 | AK185: 38.83069184 | AS185: 0.2147771883 | AT185: 0.003748569094 | AU185: -0.2110286192 | AV185: =SIN(RADIANS(AU185)) -> -0.003683135894 | AW185: =ABS(AV185)*'Simple AR Calculator'!$C$8 -> 0.8839526145 | AX185: =AE184 -> 5.16634604 | AY185: 4.566805089 | BE185: 1.847721642 | BF185: 0.03224882631 | BG185: -1.815472816 | BH185: =SIN(RADIANS(BG185)) -> -0.03168067625 | BI185: 0.2147771883 | BJ185: 8.602969694 | BK185: 74.01108756 | BL185: =BL184- $BI$50 -> 0.2153515529
O186: ='Simple AR Calculator'!C12 -> 17 | P186: mm | S186: 29.23335531 | T186: 0.5102183015 | U186: -28.723137 | V186: 0.5596453548 | W186: 9.513971031 | X186: 19.48116128 | Y186: 8.682219627 | AB186: ='Simple AR Calculator'!#REF! ->  | AC186: mm | AE186: 4.98386641 | AF186: 0.08879518971 | AG186: -4.895071221 | AH186: 0.08720493093 | AK186: 38.91948703 | AS186: 0.2110286192 | AT186: =(RADIANS(AS186)) -> 0.003683144221 | AU186: -0.207345475 | AV186: -0.003618853329 | AW186: =ABS(AV186)*'Simple AR Calculator'!$C$8 -> 0.8685247989 | AX186: 5.074281334 | AY186: 4.407139175 | BE186: 1.815472816 | BF186: =(RADIANS(BE186)) -> 0.03168597811 | BG186: -1.783786837 | BH186: -0.03112792439 | BI186: 0.2110286192 | BJ186: 8.602969694 | BK186: 74.01108756 | BL186: 0.2009947827
S187: 28.723137 | T187: 0.5013133122 | U187: -28.22182369 | V187: 0.5480089807 | W187: 9.316152672 | X187: 19.38532178 | Y187: 9.18353294 | AE187: 4.895071221 | AF187: 0.08720493093 | AG187: -4.80786629 | AH187: 0.08564358675 | AK187: 39.00669196 | AS187: 0.207345475 | AT187: 0.003618861227 | AU187: -0.2037266137 | AV187: -0.003555692691 | AW187: =ABS(AV187)*'Simple AR Calculator'!$C$8 -> 0.8533662459 | AX187: 4.98386641 | AY187: 4.253063369 | BE187: 1.783786837 | BF187: 0.03113295347 | BG187: -1.752653884 | BH187: -0.03058481059 | BI187: 0.207345475 | BJ187: 8.602969694 | BK187: 74.01108756 | BL187: 0.1866380125
S188: 28.22182369 | T188: 0.4925637443 | U188: -27.72925995 | V188: 0.5366858004 | W188: 9.123658607 | X188: 19.29355194 | Y188: 9.676096684 | AE188: 4.80786629 | AF188: 0.08564358675 | AG188: -4.722222703 | AH188: 0.08411060852 | AK188: 39.09233555 | AS188: 0.2037266137 | AT188: 0.003555700184 | AU188: -0.2001709136 | AV188: -0.003493634401 | AW188: =ABS(AV188)*'Simple AR Calculator'!$C$8 -> 0.8384722563 | AX188: 4.895071221 | AY188: 4.104381411 | BE188: 1.752653884 | BF188: 0.03058958092 | BG188: -1.722064303 | BH188: -0.03005116712 | BI188: 0.2037266137 | BJ188: 8.602969694 | BK188: 74.01108756 | BL188: 0.1722812423
N189: a = TanA* | O189: b | P189: =TAN(RADIANS(N185)) -> 0.7647058824 | Q189: =P189*O186 -> 13 | S189: 27.72925995 | T189: 0.4839668852 | U189: -27.24529306 | V189: 0.5256633577 | W189: 8.936277081 | X189: 19.20565146 | Y189: 10.16006357 | AA189: a = TanA* | AB189: b | AC189: =TAN(RADIANS(AA185)) -> 0.1123263334 | AD189: =AC189*AB186 ->  | AE189: 4.722222703 | AF189: 0.08411060852 | AG189: -4.638112095 | AH189: 0.08260545922 | AK189: 39.17644615 | AS189: 0.2001709136 | AT189: 0.003493641508 | AU189: -0.1966772721 | AV189: -0.00343265922 | AW189: =ABS(AV189)*'Simple AR Calculator'!$C$8 -> 0.8238382128 | AX189: 4.80786629 | AY189: 3.960903971 | BE189: 1.722064303 | BF189: 0.03005569202 | BG189: -1.692008611 | BH189: -0.02952682914 | BI189: 0.2001709136 | BJ189: 8.602969694 | BK189: 74.01108756 | BL189: 0.1579244721
N190: c = sqrt(a2=b2) | Q190: =SQRT($Q$183^2+$O$186^2) -> 21.40093456 | S190: 27.24529306 | T190: 0.4755200696 | U190: -26.76977299 | V190: 0.5149299046 | W190: 8.753808378 | X190: 19.12143198 | Y190: 10.63558364 | AA190: c = sqrt(a2=b2) | AD190: =SQRT($AD$183^2+$AB$186^2) ->  | AE190: 4.638112095 | AF190: 0.08260545922 | AG190: -4.555506635 | AH190: 0.08112761314 | AK190: 39.25905161 | AS190: 0.1966772721 | AT190: 0.003432665961 | AU190: -0.1932446061 | AV190: -0.003372748244 | AW190: =ABS(AV190)*'Simple AR Calculator'!$C$8 -> 0.8094595785 | AX190: 4.722222703 | AY190: 3.822448399 | BE190: 1.692008611 | BF190: 0.02953112123 | BG190: -1.66247749 | BH190: -0.02901163467 | BI190: 0.1966772721 | BJ190: 8.602969694 | BK190: 74.01108756 | BL190: 0.1435677019
K191: T | L191: T | S191: 26.76977299 | T191: 0.4672206787 | U191: -26.30255231 | V191: 0.5044743498 | W191: 8.576063946 | X191: 19.04071618 | Y191: 11.10280432 | AE191: 4.555506635 | AF191: 0.08112761314 | AG191: -4.474379022 | AH191: 0.07967655554 | AK191: 39.34017923 | AS191: 0.1932446061 | AT191: 0.003372754638 | AU191: -0.1898718515 | AV191: -0.003313882899 | AW191: =ABS(AV191)*'Simple AR Calculator'!$C$8 -> 0.7953318958 | AX191: 4.638112095 | AY191: 3.688838485 | BE191: 1.66247749 | BF191: 0.02901570594 | BG191: -1.633461784 | BH191: -0.02850542453 | BI191: 0.1932446061 | BJ191: 8.602969694 | BK191: 74.01108756 | BL191: 0.1292109317
S192: 26.30255231 | T192: 0.4590661396 | U192: -25.84348617 | V192: 0.494286212 | W192: 8.402865604 | X192: 18.963337 | Y192: 11.56187046 | AE192: 4.474379022 | AF192: 0.07967655554 | AG192: -4.394702467 | AH192: 0.07825178245 | AK192: 39.41985578 | AS192: 0.1898718515 | AT192: 0.003313888965 | AU192: -0.1865579625 | AV192: -0.003256044938 | AW192: =ABS(AV192)*'Simple AR Calculator'!$C$8 -> 0.7814507851 | AX192: 4.555506635 | AY192: 3.559904237 | BE192: 1.633461784 | BF192: 0.02850928633 | BG192: -1.604952498 | BH192: -0.02800804231 | BI192: 0.1898718515 | BJ192: 8.602969694 | BK192: 74.01108756 | BL192: 0.1148541615
S193: 25.84348617 | T193: 0.4510539239 | U193: -25.39243225 | V193: 0.4843555771 | W193: 8.23404481 | X193: 18.88913693 | Y193: 12.01292438 | AE193: 4.394702467 | AF193: 0.07825178245 | AG193: -4.316450684 | AH193: 0.07685280032 | AK193: 39.49810756 | AS193: 0.1865579625 | AT193: 0.003256050691 | AU193: -0.1833019118 | AV193: -0.003199216429 | AW193: =ABS(AV193)*'Simple AR Calculator'!$C$8 -> 0.7678119429 | AX193: 4.474379022 | AY193: 3.43548165 | BE193: 1.604952498 | BF193: 0.02801170542 | BG193: -1.576940792 | BH193: -0.02751933429 | BI193: 0.1865579625 | BJ193: 8.602969694 | BK193: 74.01108756 | BL193: 0.1004973913
S194: 25.39243225 | T194: 0.4431815479 | U194: -24.9492507 | V194: 0.4746730587 | W194: 8.069441998 | X194: 18.81796732 | Y194: 12.45610593 | AE194: 4.316450684 | AF194: 0.07685280032 | AG194: -4.239597884 | AH194: 0.0754791258 | AK194: 39.57496036 | AS194: 0.1833019118 | AT194: 0.003199221886 | AU194: -0.1801026899 | AV194: -0.003143379754 | AW194: =ABS(AV194)*'Simple AR Calculator'!$C$8 -> 0.754411141 | AX194: 4.394702467 | AY194: 3.315412502 | BE194: 1.576940792 | BF194: 0.02752280893 | BG194: -1.549417983 | BH194: -0.02703914942 | BI194: 0.1833019118 | BJ194: 8.602969694 | BK194: 74.01108756 | BL194: 0.08614062114
S195: 24.9492507 | T195: 0.4354465707 | U195: -24.51380413 | V195: 0.4652297624 | W195: 7.908905961 | X195: 18.74968782 | Y195: 12.8915525 | AE195: 4.239597884 | AF195: 0.0754791258 | AG195: -4.164118758 | AH195: 0.07413028543 | AK195: 39.65043949 | AS195: =ABS(AU194) -> 0.1801026899 | AT195: 0.003143384931 | AU195: =AT195-AS195 -> -0.176959305 | AV195: -0.003088517604 | AW195: =ABS(AV195)*'Simple AR Calculator'!$C$8 -> 0.7412442249 | AX195: 4.316450684 | AY195: 3.199544142 | BE195: 1.549417983 | BF195: 0.0270424453 | BG195: -1.522375538 | BH195: -0.02656733929 | BI195: 0.1801026899 | BJ195: 8.602969694 | BK195: 74.01108756 | BL195: 0.07178385095
S196: 24.51380413 | T196: 0.4278465943 | U196: -24.08595754 | V196: 0.4560172524 | W196: 7.752293291 | X196: 18.68416579 | Y196: 13.31939909 | AE196: 4.164118758 | AF196: 0.07413028543 | AG196: -4.089988473 | AH196: 0.07280581546 | AK196: 39.72456978 | AS196: 0.176959305 | AT196: 0.003088522514 | AU196: -0.1738707825 | AV196: -0.00303461297 | AW196: =ABS(AV196)*'Simple AR Calculator'!$C$8 -> 0.7283071127 | AX196: 4.239597884 | AY196: 3.087729294 | BE196: 1.522375538 | BF196: 0.02657046559 | BG196: -1.495805072 | BH196: -0.02610375803 | BI196: 0.176959305 | BJ196: 8.602969694 | BK196: 74.01108756 | BL196: 0.05742708076
S197: 24.08595754 | T197: 0.4203792625 | U197: -23.66557827 | V197: 0.4470275211 | W197: 7.599467859 | X197: 18.62127578 | Y197: 13.73977836 | AE197: 4.089988473 | AF197: 0.07280581546 | AG197: -4.017182657 | AH197: 0.07150526157 | AK197: 39.79737559 | AS197: 0.1738707825 | AT197: 0.003034617627 | AU197: -0.1708361648 | AV197: -0.00298164914 | AW197: =ABS(AV197)*'Simple AR Calculator'!$C$8 -> 0.7155957936 | AX197: 4.164118758 | AY197: 2.979825867 | BE197: 1.495805072 | BF197: 0.02610672348 | BG197: -1.469698349 | BH197: -0.02564826232 | BI197: 0.1738707825 | BJ197: 8.602969694 | BK197: 74.01108756 | BL197: 0.04307031057
S198: 23.66557827 | T198: 0.4130422603 | U198: -23.25253601 | V198: 0.438252961 | W198: 7.450300336 | X198: 18.56089909 | Y198: 14.15282062 | AE198: 4.017182657 | AF198: 0.07150526157 | AG198: -3.945677396 | AH198: 0.07022817862 | AK198: 39.86888085 | AS198: 0.1708361648 | AT198: 0.002981653558 | AU198: -0.1678545113 | AV198: -0.002929609696 | AW198: =ABS(AV198)*'Simple AR Calculator'!$C$8 -> 0.7031063269 | AX198: 4.089988473 | AY198: 2.875696772 | BE198: 1.469698349 | BF198: 0.0256510752 | BG198: -1.444047274 | BH198: -0.02520071132 | BI198: 0.1708361648 | BJ198: 8.602969694 | BK198: 74.01108756 | BL198: 0.02871354038
S199: 23.25253601 | T199: 0.4058333129 | U199: -22.8467027 | V199: 0.4296863388 | W199: 7.30466776 | X199: 18.50292331 | Y199: 14.55865393 | AE199: 3.945677396 | AF199: 0.07022817862 | AG199: -3.875449217 | AH199: 0.06897413049 | AK199: 39.93910903 | AS199: 0.1678545113 | AT199: 0.002929613886 | AU199: -0.1649248974 | AV199: -0.002878478503 | AW199: =ABS(AV199)*'Simple AR Calculator'!$C$8 -> 0.6908348407 | AX199: 4.017182657 | AY199: 2.775209741 | BE199: 1.444047274 | BF199: 0.02520337948 | BG199: -1.418843894 | BH199: -0.02476096665 | BI199: 0.1678545113 | BJ199: 8.602969694 | BK199: 74.01108756 | BL199: 0.01435677019
S200: 22.8467027 | T200: 0.3987501854 | U200: -22.44795252 | V200: 0.4213207719 | W200: 7.162453122 | X200: 18.44724193 | Y200: 14.95740411 | AE200: 3.875449217 | AF200: 0.06897413049 | AG200: -3.806475086 | AH200: 0.0677426898 | AK200: 40.00808316 | AS200: 0.1649248974 | AT200: 0.002878482478 | AU200: -0.1620464149 | AV200: -0.002828239711 | AW200: =ABS(AV200)*'Simple AR Calculator'!$C$8 -> 0.6787775306 | AX200: 3.945677396 | AY200: 2.678237159
S201: 22.44795252 | T201: 0.3917906817 | U201: -22.05616183 | V201: 0.4131497056 | W201: 7.023544996 | X201: 18.39375395 | Y201: 15.3491948 | AE201: 3.806475086 | AF201: 0.0677426898 | AG201: -3.738732397 | AH201: 0.06653343771 | AK201: 40.07582585 | AS201: 0.1620464149 | AT201: 0.002828243481 | AU201: -0.1592181714 | AV201: -0.002778877744 | AW201: =ABS(AV201)*'Simple AR Calculator'!$C$8 -> 0.6669306586 | AX201: 3.875449217 | AY201: 2.584655899
S202: 22.05616183 | T202: 0.3849526444 | U202: -21.67120919 | V202: 0.4051668934 | W202: 6.887837188 | X202: 18.34236356 | Y202: 15.73414744 | AE202: 3.738732397 | AF202: 0.06653343771 | AG202: -3.672198959 | AH202: 0.06534596375 | AK202: 40.14235929 | AS202: 0.1592181714 | AT202: 0.002778881321 | AU202: -0.1564392901 | AV202: -0.0027303773 | AW202: =ABS(AV202)*'Simple AR Calculator'!$C$8 -> 0.6552905519 | AX202: 3.806475086 | AY202: 2.49434716
S203: 21.67120919 | T203: 0.3782339533 | U203: -21.29297524 | V203: 0.3973663777 | W203: =V203*$O$186 -> 6.755228421 | X203: 18.29297983 | Y203: 16.11238139 | AE203: 3.672198959 | AF203: 0.06534596375 | AG203: -3.606852995 | AH203: 0.06417986561 | AK203: 40.20770525 | AS203: 0.1564392901 | AT203: 0.002730380692 | AU203: -0.1537089094 | AV203: -0.002682723341 | AW203: =ABS(AV203)*'Simple AR Calculator'!$C$8 -> 0.6438536019 | AX203: 3.738732397 | AY203: 2.40719632
... 78 more rows

Sheet Flow Chart
H4: Click here for Why We Evaluate Actions
A70: 85544 | B70: activation code
A71: 2019-03-27T09:29:44 | B71: =DATEVALUE(MONTH(A71) & "/" & DAY(A71) & "/" & YEAR(A71)) -> 43551

Sheet HRK (hidden)
E22: ='Summary Page'!E19 -> 8.244486403 | G22: ='Summary Page'!E10 -> 5.722039216 | I22: ='Summary Page'!E14 -> 1.967213115
E26: =G22/E22 -> 0.6940443511 | G26: =E22/G22 -> 1.440830112 | N26: =E22/E27 -> 1.099264854
E27: 7.5 | G27: =G22 -> 5.722039216 | N27: =1/N26 -> 0.9096988743
E28: =E22/2 -> 4.122243201 | G28: =IF(E22<E27,((E28 * N27)+0.4),E27/2) -> 3.75 | N28: =G27*N26 -> 6.290036601
E30: =udfsizeoval("Oval 2",E28) ->  | G30: =udfsizeautoshape("AutoShape 12",G28) -> 

Sheet INSTRUCTIONS

Sheet Identities (hidden)
X3: Thus Shk_ang = (AR * K_ang * Ki / So)
X4: =(AA22*U22*(O11/O16)) -> 18.66695233
C5: ='[5]Simple AR Calculator'!C6:D6 -> SSA ca 1916
C6: Sa = arc length = profile rise (which is primarily vertical) | N6: Equations | Q6: DIP | R6: involute | S6: ∆ knuck | T6: key rads | U6: ∆key ang | V6: cap rise | W6: whip ang | X6: whip rise | Y6: ∆shk ang | Z6: ∆hamRise | AA6: ∆AR | AC6: Saham | AD6: key ang | AE6: shk ang | AF6: shk ang | AG6: AR
C7: Sa = radius θ = rθ | N7: Sa = radiusθ | Q7: 1.5 | R7: =[5]Generic!AJ54 -> 19.91230775 | S7: =L11 -> 19.91230775 | T7: =Q7/$O$11 -> 0.00612244898 | U7: =DEGREES(T7) -> 0.3507904868 | V7: =T7*$O$10 -> 0.7900094633 | W7: =(V7*360)/(6.28*$O$13) -> 0.6786546093 | X7: =(W7/360) * (6.28 * $O$12) -> 1.115766496 | Y7: =(X7*360) / (6.28 * R7) -> 3.212140829 | Z7: =(Y7/360) * (6.28 * $O$16) -> 7.708496238 | AA7: =Z7/Q7 -> 5.138997492 | AB7: ='[5]Simple AR Calculator'!C35 -> 5.138997492 | AH7: 1 | AI7: =AH7*R7 -> 19.91230775
C8: Linear speed = rω | N8: angle = (n ͦ / 360) * ( 2πr) | Q8: =Q7+$Q$27 -> 1.923130968 | R8: =[5]Generic!AJ55 -> 19.58001214 | S8: =S7 - (S7* $L$16%) -> 19.78087318 | T8: 0.007849514157 | U8: 0.4497440324 | V8: 1.012861109 | W8: 0.8700944639 | X8: 1.430510068 | Y8: 4.188136416 | Z8: 10.05069065 | AA8: 5.226212264 | AH8: 2 | AI8: 39.16002429
C9: Key Sa = | D9: =L9*O10 -> 4.355635802 | E9: mm | I9: key ang. | J9: =DEGREES(L9) -> 1.934047216 | K9: degs | L9: =(Q23 ) /O11 -> 0.03375549181 | N9: DATA | Q9: 2.346261937 | R9: =[5]Generic!AJ56 -> 19.29689876 | S9: 19.65030616 | T9: 0.009576579333 | U9: 0.548697578 | V9: 1.235712756 | W9: 1.061534319 | X9: 1.745253641 | Y9: 5.184583714 | Z9: 12.44196509 | AA9: 5.302888349 | AH9: 3 | AI9: 57.89069627
C10: Whip Sa = | D10: =(J10/360) * ((6.28 *O12)) -> 6.148545018 | E10: mm | G10: diff | I10: whip ang | J10: =(D9*360)/(2*PI()*O13) -> 3.739795405 | K10: degs | L10: =RADIANS(J10) -> 0.06527174318 | N10: Ko = | O10: ='[5]Simple AR Calculator'!D7 -> 129.034879 | Q10: 2.769392905 | R10: =[5]Generic!AJ57 -> 19.05621151 | S10: 19.52060098 | T10: 0.01130364451 | U10: 0.6476511236 | V10: 1.458564402 | W10: 1.252974173 | X10: 2.059997213 | Y10: 6.196877703 | Z10: 14.87126841 | AA10: 5.36986586 | AH10: 4 | AI10: 76.22484603
C11: Shk Sa = | D11: =(J11/360)*(2*PI()* O16) -> 42.47845431 | E11: mm | F11: ='[5]Simple AR Calculator'!E44 -> 42.5 | G11: =D11-F11 -> -0.02154568877 | I11: shk ang | J11: =(D10*360) / (2*PI()*S7) -> 17.69185591 | K11: degs Re | L11: ='[5]Simple AR Calculator'!E77 -> 19.91230775 | N11: Ki = | O11: ='[5]Simple AR Calculator'!D8 -> 245 | Q11: 3.192523873 | R11: =[5]Generic!AJ58 -> 18.85198559 | S11: 19.39175193 | T11: 0.01303070969 | U11: 0.7466046691 | V11: 1.681416048 | W11: 1.444414028 | X11: 2.374740785 | Y11: 7.221076882 | Z11: 17.32914182 | AA11: 5.428038288 | AH11: 5 | AI11: 94.25992796
C12: Shk Sa = | D12: =(J12/360)*(2*PI()*O16) -> 47.24502073 | E12: mm | F12: ='[5]Simple AR Calculator'!A15 -> 46.96622805 | G12: =D12-F12 -> 0.2787926736 | I12: shk ang | J12: =(D10*360)/(2*PI()*O15) -> 19.67708366 | K12: degs Re | L12: ='[5]Simple AR Calculator'!F16 -> 17.90334816 | N12: Wo = | O12: ='[5]Simple AR Calculator'!D9 -> 94.24696431 | Q12: 3.615654842 | R12: =[5]Generic!AJ59 -> 18.67899001 | S12: 19.26375337 | T12: 0.01475777486 | U12: 0.8455582147 | V12: 1.904267694 | W12: 1.635853883 | X12: 2.689484357 | Y12: 8.253886448 | Z12: 19.80767843 | AA12: 5.478310099 | AH12: 6 | AI12: 112.07394
I13: shk ang | J13: =DEGREES(F11/O16) -> 17.70082948 | N13: Wi = | O13: ='[5]Simple AR Calculator'!D10 -> 66.73080248 | Q13: 4.03878581 | R13: =[5]Generic!AJ60 -> 18.53266489 | S13: 19.1365997 | T13: 0.01648484004 | U13: 0.9445117603 | V13: 2.12711934 | W13: 1.827293737 | X13: 3.004227929 | Y13: 9.29261327 | Z13: 22.30041528 | AA13: 5.521564234 | AH13: 7 | AI13: 129.7286542
C14: Angular Velocity ω | G14: Identity | N14: Si = | O14: ='[5]Simple AR Calculator'!K13 -> 19.91230775 | Q14: 4.461916778 | R14: =[5]Generic!AJ61 -> 18.40905672 | S14: 19.01028532 | T14: 0.01821190522 | U14: 1.043465306 | V14: 2.349970986 | W14: 2.018733592 | X14: 3.318971501 | Y14: 10.33510384 | Z14: 24.80218436 | AA14: 5.558638942 | AH14: 8 | AI14: 147.2724538
C15: Interpret | G15: e.g. 21.4 / 19.2 = 0.2279 / 0.2045 | J15: =L11/L12 -> 1.11221139 | K15: same as | L15: =G30/H30 -> 1.11221139 | N15: Si = | O15: ='[5]Simple AR Calculator'!F16 -> 17.90334816 | Q15: 4.885047747 | R15: =[5]Generic!AJ62 -> 18.304754 | S15: 18.88480469 | T15: 0.0199389704 | U15: 1.142418851 | V15: 2.572822632 | W15: 2.210173447 | X15: 3.633715073 | Y15: 11.37967426 | Z15: 27.30894468 | AA15: 5.590312746 | AH15: 9 | AI15: 164.742786
C16: ω of gear pairs A | E16: =G28 -> 94.24696431 | F16: =G30 -> 0.2112779748 | G16: e.g. 21.4 / 19.2 = 11.4% | J16: =(J15-1)*100 -> 11.22113903 | K16: % | L16: =J16/17 -> 0.6600670019 | N16: So = | O16: ='[5]Simple AR Calculator'!D11 -> 137.5681649 | P16: ='[5]Simple AR Calculator'!C11 -> 130 | Q16: 5.308178715 | R16: =[5]Generic!AJ63 -> 18.21682507 | S16: 18.76015233 | T16: 0.02166603557 | U16: 1.241372397 | V16: 2.795674279 | W16: 2.401613301 | X16: 3.948458645 | Y16: 12.42503906 | Z16: 29.81761135 | AA16: 5.617296054 | AH16: 10 | AI16: 182.1682507
D17: B | E17: =G29 -> 19.91230775 | G17: 0.2279 / 0.2045 = 11.4% | J17: =(L15-1)*100 -> 11.22113903 | K17: % | N17: at = | O17: ='[5]Simple AR Calculator'!C22 -> 1.25 | Q17: 5.731309684 | R17: =[5]Generic!AJ64 -> 18.14275979 | S17: 18.63632276 | T17: 0.02339310075 | U17: 1.340325943 | V17: 3.018525925 | W17: 2.593053156 | X17: 4.263202217 | Y17: 13.47024329 | Z17: 32.32589267 | AA17: 5.640227881 | AH17: 11 | AI17: 199.5703577
C18: is faster than A | E18: =H28 -> 94.24696431 | F18: =H30 -> 0.1899620672 | G18: Hammer rise | N18: LO = | O18: ='[5]Simple AR Calculator'!C16 -> 2 | Q18: 6.154440652 | R18: =[5]Generic!AJ65 -> 18.08041558 | S18: 18.51331054 | T18: 0.02512016593 | U18: 1.439279488 | V18: 3.241377571 | W18: 2.784493011 | X18: 4.577945789 | Y18: 14.51460074 | Z18: 34.83214192 | AA18: 5.659676303 | AH18: 12 | AI18: 216.9649869
D19: B | E19: =H29 -> 17.90334816 | G19: 44.67 mm / 40 mm = 11.7% | J19: =((D12/D11) -1) *100 -> 11.22113903 | K19: % | N19: dip = | O19: =[5]Compare!H9 -> 9.520095494 | P19: =O19-O17 -> 8.270095494 | Q19: 6.57757162 | R19: =[5]Generic!AJ66 -> 18.02796855 | S19: 18.39111029 | T19: 0.0268472311 | U19: 1.538233034 | V19: 3.464229217 | W19: 2.975932865 | X19: 4.892689361 | Y19: 15.55763966 | Z19: 37.33522693 | AA19: 5.676141452 | AH19: 13 | AI19: 234.3635912
Q20: 7.000702589 | R20: =[5]Generic!AJ67 -> 17.98386966 | S20: 18.26971663 | T20: 0.02857429628 | U20: 1.637186579 | V20: 3.687080863 | W20: 3.16737272 | X20: 5.207432933 | Y20: 16.59905622 | Z20: 39.83441862 | AA20: 5.690060121 | AH20: 14 | AI20: 251.7741753
C21: But with either ω, the hammer must rise the same final distance of = | I21: =D11 -> 42.47845431 | J21: mm | Q21: 7.423833557 | R21: =[5]Generic!AJ68 -> 17.94680589 | S21: 18.14912426 | T21: 0.03030136146 | U21: 1.736140125 | V21: 3.909932509 | W21: 3.358812575 | X21: 5.522176505 | Y21: 17.63867569 | Z21: 42.32929763 | AA21: 5.701811242 | AH21: 15 | AI21: 269.2020884
C22: So, as A driver slows down from | F22: =G30 -> 0.2112779748 | G22: to | H22: =H30 -> 0.1899620672 | I22: B follower speeds up from | K22: =G31 -> 4.733101029 | L22: to | M22: =H31 -> 5.264208876 | Q22: 7.846964525 | R22: =[5]Generic!AJ69 -> 17.91566614 | S22: 18.02932788 | T22: 0.03202842663 | U22: 1.835093671 | V22: 4.132784155 | W22: 3.550252429 | X22: 5.836920077 | Y22: 18.67642048 | Z22: 44.8196778 | AA22: 5.71172173 | AH22: 16 | AI22: 286.6506582
Q23: 8.270095494 | R23: =[5]Generic!AJ70 -> 17.8895115 | S23: 17.91032224 | T23: 0.03375549181 | U23: 1.934047216 | V23: 4.355635802 | W23: 3.741692284 | X23: 6.151663649 | Y23: 19.71228443 | Z23: 47.30554433 | AA23: 5.720072322 | AB23: ='[5]Simple AR Calculator'!C37 -> 5.715651545 | AH23: 17 | AI23: 304.1216955
C24: The size of the gears and the sequence in which they engage define the ratio of the angular velocity ωA of the input gear to the angular velocity ωB of the output gear,
C25: known as the speed ratio, or gear ratio, of the gear train. Let R be the speed ratio, then | Q25: ='[5]Simple AR Calculator'!D37 -> 7.43572271 | S25: 1 | U25: =L11 -> 19.91230775
Q26: ='[5]Simple AR Calculator'!D35 -> 8.270095494 | S26: 1.5 | U26: =L11 - (S7* $L$16%) -> 19.78087318
F27: f/d | G27: speed ratio R = ang. Velocity | M27: radius proportions = ang. Velocity | Q27: =(Q26-1.5) / 16 -> 0.4231309684 | S27: 2 | U27: =U26 - (S8* $L$16%) -> 19.65030616
C28: of input | D28: Wa = drive | E28: =O11 -> 245 | F28: driver A = | G28: ='[5]Simple AR Calculator'!D9 -> 94.24696431 | H28: =G28 -> 94.24696431 | I28: =O10 -> 129.034879 | L28: output | M28: rB = radius | N28: =G29 -> 19.91230775 | O28: =H29 -> 17.90334816 | S28: 2.5 | U28: 19.52060098
C29: to output | D29: Wb = follow | E29: ='[5]Simple AR Calculator'!C7 -> 123 | F29: follow B = | G29: ='[5]Simple AR Calculator'!K13 -> 19.91230775 | H29: =O15 -> 17.90334816 | I29: =O13 -> 66.73080248 | L29: input | M29: rA = radius | N29: =G28 -> 94.24696431 | O29: =N29 -> 94.24696431 | S29: 3 | U29: 19.39175193
D30: R = wA / wB | E30: =E28/E29 -> 1.991869919 | G30: =G29/G28 -> 0.2112779748 | H30: =H29/H28 -> 0.1899620672 | I30: =I29/I28 -> 0.5171532147 | J30: =G30*I30 -> 0.1092630839 | L30: O:I | M30: R = rB / rA | N30: =N28/N29 -> 0.2112779748 | O30: =O28/O29 -> 0.1899620672 | S30: 3.5 | U30: 19.26375337 | AG30: 2141
G31: =1/G30 -> 4.733101029 | H31: =1/H30 -> 5.264208876 | S31: 4 | U31: 19.1365997 | AG31: 2127
S32: 4.5 | U32: 19.01028532 | AG32: 2114
C33: The speed ratio (aka gear ratio R) of two gears rolling without slipping on their pitch circles is given by, | S33: 5 | U33: 18.88480469 | AG33: 2102
I34: rB out / | J34: rA in | S34: 5.5 | U34: 18.76015233 | AG34: 2089
S35: 6 | U35: 18.63632276 | AG35: 2078
S36: 6.5 | U36: 18.51331054 | AG36: 2066
C37: therefore | I37: =O13 -> 66.73080248 | J37: =O10 -> 129.034879 | K37: 66.7 | L37: 129 | S37: 7 | U37: 18.39111029 | AG37: 2056
I38: =O14 -> 19.91230775 | J38: =O12 -> 94.24696431 | K38: =O15 -> 17.90334816 | L38: 94.2 | S38: 7.5 | U38: 18.26971663 | AG38: 2045
I39: =O15 -> 17.90334816 | S39: 8 | U39: 18.14912426 | AG39: 2036
F40: GR = VR = rB / rA = out / in | I40: =I38/J38 -> 0.2112779748 | J40: is VR of IN as a function of OUT, or A as a function of B | S40: 8.5 | U40: 18.02932788 | AG40: 2026
J41: meaning that the input V is mult. X | M41: =I40 -> 0.2112779748 | N41: of the the output veloctiy of | Q41: 1 | S41: 8.75 | U41: =L12 -> 17.90334816 | AG41: 2017
C42: Wa = rB / Ra | E42: =I38/J38 -> 0.2112779748 | F42: Wa = (Wb * rB) / rA | I42: =(I40*I38) / J38 -> 0.04463838265 | AG42: 2009
C43: Wb = rA/Rb | E43: =J38/I38 -> 4.733101029 | F43: Wb = (Wa * rA) / rB | I43: =(I42 * J38) / I38 -> 0.2112779748 | J43: =1/I43 -> 4.733101029 | K43: Linear speed = rω = | M43: =I38*E42 -> 4.207032056 | N43: 4.22434787 | AG43: 2001
F44: Wa / Wb proof = | I44: =I42/I43 -> 0.2112779748 | M44: =I38*I40 -> 4.207032056 | N44: 4.22434787 | AG44: 1994
F45: Wb / Wa proof = | I45: =I43/I42 -> 4.733101029 | M45: =J38*I42 -> 4.207032056 | N45: 4.22434787 | AG45: 1987
D46: =(G30-H30) / 16 -> 0.001332244229 | E46: =G30 -> 0.2112779748 | F46: =(I38-I39) / 16 -> 0.1255599743 | G46: =I38 -> 19.91230775 | H46: =(O12*H30) / G30 -> 84.73835561 | I46: =DEGREES(I40) -> 12.10533626 | J46: degs shank proportion of rotation | M46: 4.8 | AG46: 1981
E47: =E46-$D$46 -> 0.2099457306 | G47: =G46-$F$46 -> 19.78674778 | H47: =H48-$I$51 -> 85.33264365 | I47: =DEGREES(I42) -> 2.55759093 | J47: degs whip proportion of rotation | AG47: 1975
E48: 0.2086134864 | G48: 19.6611878 | H48: 85.9269317 | I48: =I46/I47 -> 4.733101029 | J48: ratio shank/whip | AG48: 1970
E49: 0.2072812421 | G49: 19.53562783 | H49: 86.52121974 | I49: =(J10*I46) / I47 -> 17.70082948 | J49: cf to shank angle above | L49: =J11 -> 17.69185591 | M49: =J12 -> 19.67708366 | AG49: 1965
E50: 0.2059489979 | G50: 19.41006785 | H50: 87.11550778 | AG50: 1961
E51: 0.2046167537 | G51: 19.28450788 | H51: 87.70979583 | I51: =(H62-H46) / 16 -> 0.5942880435 | AG51: 1958
E52: 0.2032845094 | G52: 19.15894791 | H52: 88.30408387 | AG52: 1955
E53: 0.2019522652 | G53: 19.03338793 | H53: 88.89837191 | S53: =S7 -> 19.91230775
E54: 0.200620021 | G54: 18.90782796 | H54: 89.49265996 | S54: =S7 -> 19.91230775
E55: 0.1992877768 | G55: 18.78226798 | H55: 90.086948 | S55: =-(7.7289492*10^(-4))*P55^3+0.0311787*P55^2-0.4643636*P55+$S$54 -> 19.91230775
E56: 0.1979555325 | G56: 18.65670801 | H56: 90.68123604 | S56: 19.91230775
E57: 0.1966232883 | G57: 18.53114803 | H57: 91.27552409 | S57: 19.91230775
E58: 0.1952910441 | G58: 18.40558806 | H58: 91.86981213 | S58: 19.91230775
E59: 0.1939587998 | G59: 18.28002809 | H59: 92.46410018 | S59: 19.91230775
E60: 0.1926265556 | G60: 18.15446811 | H60: 93.05838822 | S60: 19.91230775
E61: 0.1912943114 | G61: 18.02890814 | H61: 93.65267626 | S61: 19.91230775
E62: 0.1899620672 | G62: 17.90334816 | H62: =O12 -> 94.24696431 | S62: 19.91230775
E63: VR recession | G63: Shk I recession | S63: 19.91230775
S64: 19.91230775
S65: 19.91230775
S66: 19.91230775
S67: 19.91230775
S68: 19.91230775
S69: 19.91230775
S70: 19.91230775
S72: c | T72: b
S73: =R75 -> 1
S74: x | T74: f(x) = cx^b | U74: =LINEST(S75:S91,R75:R91^1,2,3) -> -0.1148992136
H75: avg | R75: 1 | S75: 21.40701053 | T75: =S75+$U$74 -> 21.29211132
R76: 2 | S76: 21.28719836 | T76: 21.17229915
R77: 3 | S77: 21.16805676 | T77: 21.05315754
R78: 4 | S78: 21.04958197 | T78: 20.93468276
R79: 5 | S79: 20.93177028 | T79: 20.81687107
R80: 6 | S80: 20.81461796 | T80: 20.69971875
R81: 7 | S81: 20.69812133 | T81: 20.58322211
R82: 8 | S82: 20.58227671 | T82: 20.4673775
R83: 9 | S83: 20.46708046 | T83: 20.35218125
R84: 10 | S84: 20.35252895 | T84: 20.23762973
R85: 11 | S85: 20.23861857 | T85: 20.12371935
R86: 12 | S86: 20.12534572 | T86: 20.01044651
R87: 13 | S87: 20.01270686 | T87: 19.89780764
R88: 14 | S88: 19.90069841 | T88: 19.7857992
R89: 15 | S89: 19.78931686 | T89: 19.67441765
R90: 16 | S90: 19.67855871 | T90: 19.56365949
R91: 17 | S91: 19.56842044 | T91: 19.45352123

Sheet Unit Circle (hidden)
V1: Kθ = | W1: =AC29 -> 2.081731678
K2: =O27 -> 44.1855335 | L2: =B28 -> 43 | V2: Si = | W2: ='Simple AR Calculator'!K13 -> 21.40093456 | X2: ='Simple AR Calculator'!F16 -> 19.53753946
A3: ='Simple AR Calculator'!F7/1000 -> 0.05 | E3: = copy in | G3: ='Simple AR Calculator'!C6 -> Standard Action | I3: Ham Rise = | K3: =O23 -> 41.92876052 | L3: =((L2/K3) -1) * 100 -> 2.554903773 | M3: % reduction | P3: =AE14 -> 44.1855335 | V3: Ko = | W3: ='Simple AR Calculator'!D7 -> 130.3840481
A4: ='Simple AR Calculator'!H7 -> 5.722039216 | B4: =1/A4 -> 0.1747628708 | C4: =50*B4 -> 8.738143539 | K4: =G11 -> 39.6111256 | M4: Hammer shortfall mm | P4: =L2-K4 -> 3.388874405 | V4: Wo = | W4: ='Simple AR Calculator'!E9 -> 93.5212139
A5: ARCS & Standard | I5: 360 | M5: 1.25 | N5: AT | O5: mm | P5: =M5*'Simple AR Calculator'!H8 -> 6.161322572 | V5: Wi = | W5: ='Simple AR Calculator'!D10 -> 66.25896166
A6: Key ro | B6: =B17 -> 0.5429083254 | C6: arc L = | D6: =(D13/360) * (6.28 *E10) -> 6.685948482 | E6: Jack Top | G6: =V27*D10*E35 -> 42.87235284 | I6: =B37+I7 -> 56.14026937 | J6: =I5-I6 -> 303.8597306 | O6: mm | P6: =P4+P5 -> 9.550196977 | V6: Sθ = | W6: =(W4 * ((W3 * W1) / W5)) / W2 -> 17.9011933
A7: Whip ro | B7: =D10 -> 1.412071447 | C7: arc L = | D7: =(E13/360) * (6.28 *E10) -> 40.94588651 | E7: Ro | G7: =E36*G8 -> 43.33178899 | H7: per 19.3 | I7: =Generic!H52 -> 37.40535663 | J7: =I5-I7 -> 322.5946434 | K7: Knuckle | M7: ='Simple AR Calculator'!D12 -> 21.40093456 | N7: =P7/Compare!H9 -> 5.161430917 | O7: mm | P7: =K3+P6 -> 51.47895749 | S7: Key Back | T7: arc L = θ / 360 * (2πr) | V7: =(T13/360)*((PI()*2*U10)) -> 4.737252997 | AA7: Hammer | AN7: =AE9 -> 137.5681649
A8: Sk ro | B8: =E35 -> 6.428138198 | C8: arc L = | D8: =(E16/360) * (6.28 *E10) -> 34.25993803 | E8: =G15/G18 -> 1.183619689 | G8: =G15-G18 -> 6.154014902 | H8: net vert | K8: Rest | M8: Ro | N8: AR | P8: =((P7/L2) - 1) * 100 -> 19.7185058 | Q8: % | Y8: mm | AC8: ='Simple AR Calculator'!C11 -> 130
A9: AR prod | B9: =B6*B7*B8 -> 4.927973661 | C9: diff | D9: =D7-D8 -> 6.685948482 | E9: ='Simple AR Calculator'!C9 -> 92 | G9: =(V11*'Simple AR Calculator'!D25) -> 6.680513033 | H9: per ratio | J9: arc | K9: =(J16/360) * (6.28 * M15) -> 120.433424 | M9: =N15/N13 -> 1.36703257 | U9: ='Simple AR Calculator'!C7 -> 122 | W9: =U9/1000 -> 0.122 | AC9: =AE9 -> 137.5681649 | AE9: ='Simple AR Calculator'!D11 -> 137.5681649 | AF9: arc L = θ / 360 * (2πr) | AH9: =(AA20/360) * (6.28 * AE9) -> 44.96004752 | AI9: mm
A10: AR arc | B10: =AH9/AE30 -> 5.157140425 | C10: WipRo = | D10: =D6/S10 -> 1.412071447 | E10: ='Simple AR Calculator'!D9 -> 93.5212139 | G10: =G9*E35 -> 42.94326101 | H10: per 21.4 | J10: arc | K10: =(J13/360) * (6.28 * M13) -> 113.4391674 | M10: lift Ro | R10: arc L = | S10: =(T13/360) * (6.28 * U10) -> 4.734851411 | U10: ='Simple AR Calculator'!D7 -> 130.3840481 | W10: =U10/1000 -> 0.1303840481 | AE10: =(AC17*360) /( 6.28*AC9) -> 18.73491274 | AF10: is Sk ang. | AR10: =H33 -> 21.40093456
A11: AR vert | B11: =AE14/AE30 -> 5.068299826 | C11: VertRo = | D11: =G8/V27 -> 1.302936054 | G11: =(G8*B28) / G9 -> 39.6111256 | H11: proportion | J11: diff = | K11: =K9-K10 -> 6.994256523 | M11: =-(O19/O20) * -1 -> 6.428138198 | V11: =W15 -> 4.733085024 | AE11: =(D6*360) / (6.28 * W2) -> 17.90907453 | AF11: is Sk ang. | AR11: =AN7/AR10 -> 6.428138198 | AS11: sk ro
A12: Arc Tvl | B12: =AE30 * B6*B7*B8 -> 42.96216735 | K12: =K9/K10 -> 1.061656451 | AE12: =(AC29 * AC26 / AC9) * B10 -> 18.72953545 | AF12: is (θKey*Ki/So) * DAR
A13: Arc tvl2 | B13: =AH9 -> 44.96004752 | C13: wip ang> | D13: =T29 -> 4.098224522 | E13: =E16+T29 -> 25.09822452 | F13: degrees | J13: =J6 -> 303.8597306 | K13: degrees | M13: =H33 -> 21.40093456 | N13: =O17 -> -13 | O13: =M15*K14 -> 11.92377918 | P13: mm initial | T13: ='Simple AR Calculator'!F72 -> 2.081731678 | U13: degrees | AB13: degrees = | AC13: =AE10 -> 18.73491274 | AE13: =AE9*AC14 -> 130.2790798 | AF13: mm shortening
A14: Sk angle | B14: =AE10 -> 18.73491274 | E14: cos = | F14: =COS(RADIANS(E13)) -> 0.9055819436 | G14: =F14*E10 -> 84.69112266 | H14: mm shortening | J14: cos = | K14: =COS(RADIANS(J13)) -> 0.5571616112 | O14: =K15*M15 -> -17.77142341 | P14: mm vertical | T14: cos = | U14: =COS(RADIANS(T13)) -> 0.9993400265 | W14: =U10*U14 -> 130.2979981 | X14: mm shortening | AB14: cos = | AC14: =COS(RADIANS(AC13)) -> 0.9470147389 | AE14: =AC15*AE9 -> 44.1855335 | AF14: mm vertical rise
A15: Sk ang2 | B15: ='Simple AR Calculator'!J145 -> 17.90907453 | E15: sine = | F15: =SIN(RADIANS(E13)) -> 0.4241713608 | G15: =F15*E10 -> 39.66902057 | H15: mm vertical | J15: sine = | K15: =SIN(RADIANS(J13)) -> -0.8304040818 | M15: =H33 -> 21.40093456 | N15: =O14 -> -17.77142341 | O15: =O14*M11 -> -114.2371657 | P15: ham rise | T15: sine = | U15: =SIN(RADIANS(T13)) -> 0.03632507861 | W15: =U15*W14 -> 4.733085024 | X15: mm vertical rise | AB15: sine = | AC15: =SIN(RADIANS(AC13)) -> 0.3211901062 | AE15: =AC14*AE9 -> 130.2790798 | AF15: mm horizontal | AQ15: =AN37 -> 17.74140405 | AR15: mm
A16: Verticals | E16: 21 | F16: degrees | J16: =J7 -> 322.5946434 | K16: degrees | O16: =M13*K17 -> 17 | P16: mm lengthening | T16: degrees = | U16: =(S10*360) / (6.28 * U10) -> 2.081731678 | W16: =U10-W14 -> 0.08605001012 | X16: run scrub | AA16: mm vertical rise = | AC16: =AC15*AE9 -> 44.1855335 | AE16: =AE9-AE13 -> 7.289085139 | AF16: run | AN16: =AE9 -> 137.5681649
A17: Key ro | B17: =AB24 -> 0.5429083254 | E17: cos = | F17: =COS(RADIANS(E16)) -> 0.9335804265 | G17: =F17*E10 -> 87.30957476 | H17: mm shortening | J17: cos = | K17: =COS(RADIANS(J16)) -> 0.794357833 | O17: =K18*M13 -> -13 | P17: mm vertical | W17: =W15/W16 -> 55.00388689 | X17: slope | AA17: arc distance = | AC17: =AH9 -> 44.96004752 | AE17: =AE14/AE16 -> 6.061876444 | AF17: slope
A18: Whip ro | B18: =G8/V27 -> 1.302936054 | E18: sine = | F18: =SIN(RADIANS(E16)) -> 0.3583679495 | G18: =F18*E10 -> 33.51500567 | H18: mm vertical | J18: sine = | K18: =SIN(RADIANS(J16)) -> -0.6074501076 | O18: =O17*M11 -> -83.56579658 | P18: =ABS(O15-O18) -> 30.67136909 | W18: =S10-W16 -> 4.648801401 | AE18: for every 6.07 mm or ham rise | AR18: =H34 -> 19.53753946
A19: Sk ro | B19: =E35 -> 6.428138198 | C19: =AC15*M13 -> 6.873768444 | J19: arc L = θ / 360 * (2πr) | O19: =O20*E35 -> 30.67136909 | P19: net ham rise | AE19: there is 1 mm of run | AR19: =AN16/AR18 -> 7.041222629 | AS19: sk ro
A20: Sk ro | B20: =E36 -> 7.041222629 | C20: =AE14/G8 -> 7.179952309 | D20: =AC16 / C19 -> 6.428138198 | F20: Si = | G20: =G8/ SIN(RADIANS(B14)) -> 19.16003881 | H20: =G20* AC15 -> 6.154014902 | J20: =AE10 / 360 *(6.28 * M13) -> 6.994256523 | O20: =ABS(O14-O17) -> 4.771423411 | P20: NET RISE | R20: =AE14/O20 -> 9.260451168 | AA20: =AE10 -> 18.73491274
A21: AR = | B21: =B17*B18*B20 -> 4.980783667 | C21: =B17*B18*C20 -> 5.078917551 | D21: =B17*B18*C20 -> 5.078917551 | F21: Sro = | G21: =AC9 / G20 -> 7.179952309 | O21: =O14/O17 -> 1.36703257 | P21: verticals ro | V21: arc L = θ / 360 * (2πr) | X21: =(T29/360) * (6.28 * U26) -> 4.736935992 | Y21: mm
A22: =AE30 * B17 * B18* B20 -> 43.42256598 | B22: =B21*AE30 -> 43.42256598 | C22: =C21*AE30 -> 44.27809903 | D22: =B13-C22 -> 0.6819484961 | F22: Ham rise> | G22: =G21*G8 -> 44.1855335 | H22: =AE14 -> 44.1855335 | O22: =K11/O20 -> 1.465863731 | P22: knk_arc/net rise | AD22: arc L = θ / 360 * (2πr) | AF22: =(AC29/360) * (6.28 * AC26) -> 8.715516623 | AG22: mm | AQ22: =AP37 -> 13.44875468 | AR22: mm
K23: Knuckle | O23: =O21*P18 -> 41.92876052 | P23: verts ro*net vert ham_rise | T23: ro | AB23: key ro
D24: SHANK RATIO IDENTITIES | K24: Deployed | O24: =(D6*E27) / H33 -> 42.97820083 | P24: jack_arc*sk ro | S24: Wippen | T24: =G8/V27 -> 1.302936054 | AB24: =V11/AE30 -> 0.5429083254
D25: arc L = θ / 360 * (2πr) | F25: =(B37/360) * (6.28 * E27) -> 44.96004752 | G25: mm arc | O25: =(K11*E27) / H33 -> 44.96004752 | P25: knk_arc*sk ro | R25: arc L = | S25: =(T29/360) * (6.28 * U26) -> 4.736935992 | U25: ='Simple AR Calculator'!C10 -> 62.5
F26: =AE14 -> 44.1855335 | G26: mm vert | O26: =P18/O20 -> 6.428138198 | P26: aka skro / 21.4 | U26: ='Simple AR Calculator'!D10 -> 66.25896166 | AC26: ='Simple AR Calculator'!C8 -> 240
E27: ='Simple AR Calculator'!D11 -> 137.5681649 | O27: =G8*C20 -> 44.1855335 | P27: sk ro * jack_vert | V27: =W30 -> 4.723190279
B28: =C28-2 -> 43 | C28: ='Simple AR Calculator'!C15 -> 45
C29: =DEGREES(ATAN(C30)) -> 17.35779936 | D29: degrees | J29: 360 | K29: degrees | N29: =ABS(O33) -> 6.328549338 | O29: =M30*K30 -> 19.53753946 | P29: mm shortening | T29: ='Simple AR Calculator'!C149 -> 4.098224522 | U29: degrees | W29: =U26*U30 -> 66.08953736 | X29: mm shortening | AC29: ='Simple AR Calculator'!F72 -> 2.081731678 | AD29: degs | AE29: =AC26*AC30 -> 239.8416064 | AF29: mm shortening
C30: =B28/E27 -> 0.3125723166 | E30: =B28/E27 -> 0.3125723166 | G30: =B28/D33 -> 0.3307692308 | H30: =DEGREES(ATAN(G30)) -> 18.30262624 | I30: degrees | J30: cos = | K30: =COS(RADIANS(J29)) -> 1 | M30: =H34 -> 19.53753946 | O30: =K31*M30 -> -4.787277255e-15 | P30: mm vertical | T30: cos = | U30: =COS(RADIANS(T29)) -> 0.997442998 | W30: =U31*W29 -> 4.723190279 | X30: mm vertical rise | AB30: cos = | AC30: =COS(RADIANS(AC29)) -> 0.9993400265 | AE30: =AC31*AC26 -> 8.718018866 | AF30: mm vertical rise | AP30: 21.4
D31: degrees | E31: =DEGREES(ASIN(E30)) -> 18.21431881 | J31: sine = | K31: =SIN(RADIANS(J29)) -> -2.45029691e-16 | O31: =O30*E36 -> -3.370828494e-14 | P31: ham rise | T31: sine = | U31: =SIN(RADIANS(T29)) -> 0.07146653566 | W31: =U26-W29 -> 0.1694242968 | X31: run scrub | AB31: sine = | AC31: =SIN(RADIANS(AC29)) -> 0.03632507861 | AE31: =AC26-AE29 -> 0.1583936281 | AF31: capstan scrub run
J32: 341.1 | K32: degrees | O32: =M30*K33 -> 18.48418003 | P32: mm lengthening | T32: Degrees = | U32: =(S25*360) / (6.28 * U26) -> 4.098224522 | W32: =W30/W31 -> 27.87788038 | X32: slope | AB32: Degrees = | AC32: =(AE30*360) / (6.28 * AC26) -> 2.082329347 | AE32: =AE30/AE31 -> 55.04021197 | AF32: slope | AP32: =AR18 -> 19.53753946
D33: 130 | H33: ='Simple AR Calculator'!D12 -> 21.40093456 | I33: mm | J33: cos = | K33: =COS(RADIANS(J32)) -> 0.9460853588 | O33: =K34*M30 -> -6.328549338 | P33: mm vertical | AB33: radians = | AC33: =RADIANS(AC29) -> 0.03633307192
H34: ='Simple AR Calculator'!F16 -> 19.53753946 | I34: mm | J34: sine = | K34: =SIN(RADIANS(J32)) -> -0.3239174182 | O34: =(O33*E36) * -1 -> 44.56072481 | P34: ham rise | AM34: degrees = | AN34: 56 | AP34: 43.5
C35: SkRo @ 21.4 | E35: =E27/H33 -> 6.428138198 | F35: Ro | H35: 21.4 | I35: ? | AM35: sine | AN35: =SIN(RADIANS(AN34)) -> 0.8290375726 | AP35: =SIN(RADIANS(AP34)) -> 0.6883545757
C36: SkRo @ 19.3 | E36: =E27/H34 -> 7.041222629 | F36: Ro | O36: =O33*-1 -> 6.328549338 | P36: NET RISE | AM36: cos | AN36: =COS(RADIANS(AN34)) -> 0.5591929035 | AP36: =COS(RADIANS(AP34)) -> 0.725374371
B37: =AE10 -> 18.73491274 | C37: degrees at AE 10 | AM37: y = | AN37: =AN35*AP30 -> 17.74140405 | AP37: =AP35*AP32 -> 13.44875468
AM38: x = | AN38: =AN36*AP30 -> 11.96672813 | AP38: =AP36*AP32 -> 14.17203039
Z39: 94 | AE39: sine | AF39: cos | AG39: Sine Up | AH39: Cos over | AM39: slope = | AN39: =AN35/AN36 -> 1.482560969 | AP39: =AP35/AP36 -> 0.9489645667
AD40: 21 | AE40: 0.35837 | AF40: 0.93358 | AG40: 33.7 | AH40: 87.8 | AM40: diff y - x = | AN40: =AN37-AP37 -> 4.292649371
E41: 94 | AD41: 21.5 | AE41: 0.3665 | AF41: 0.93042 | AG41: 34.5 | AH41: 87.5 | AM41: ham rise = | AN41: =AN40*AR11 -> 27.59374339 | AP41: =AN40*AR19 -> 30.22549989
AD42: 22 | AE42: 0.37461 | AF42: 0.92718 | AG42: 35.2 | AH42: 87.2
F43: =D60-D57 -> 6.198775906 | G43: mm net rise | AD43: 22.5 | AE43: 0.38268 | AF43: 0.92388 | AG43: 36 | AH43: 86.8
AD44: 23 | AE44: 0.39073 | AF44: 0.9205 | AG44: 36.7 | AH44: 86.5
AD45: 23.5 | AE45: 0.39875 | AF45: 0.91706 | AG45: 37.5 | AH45: 86.2
AD46: 24 | AE46: 0.40674 | AF46: 0.91355 | AG46: 38.2 | AH46: 85.9
M47: 19.1 | AD47: 24.5 | AE47: 0.41469 | AF47: 0.90996 | AG47: 39 | AH47: 85.5
L48: 21.4 | Z48: sine | AA48: =SIN(RADIANS(AD52)) -> 0.7071067812 | AC48: =AA48*Z39 -> 66.46803743 | AD48: 25 | AE48: 0.42262 | AF48: 0.90631 | AG48: 39.7 | AH48: 85.2
I49: =E10 -> 93.5212139 | Z49: cos | AA49: =COS(RADIANS(AD52)) -> 0.7071067812 | AC49: =AA49*Z39 -> 66.46803743 | AD49: 30 | AE49: 0.55 | AF49: 0.86603 | AG49: =AG48-AG40 -> 6 | AH49: =AH48-AH40 -> -2.6
AD50: 35 | AE50: 0.57358 | AF50: 0.81915
AD51: 40 | AE51: 0.64279 | AF51: 0.76604
AD52: 45 | AE52: 0.70711 | AF52: 0.70711
N54: arc L = | O54: =(D13/360) * (6.28 *E41) -> 6.720177499
B55: 20 | C55: degrees jack top at rest | I55: INERTIA Torque Rads | O55: INERTIA Torque
B56: cos = | C56: =COS(RADIANS(B55)) -> 0.9396926208 | D56: =C56*I49 -> 87.88119459 | E56: mm horizontal | H56: Rθ = So ang. / Ki ang. | K56: =B14/AC29 -> 8.999677018 | L56: =K56^2 -> 80.99418642 | N56: Rθ = So ang. / Ki ang. | Q56: =B14/AC29 -> 8.999677018 | R56: =Q56^2 -> 80.99418642
B57: sine = | C57: =SIN(RADIANS(B55)) -> 0.3420201433 | D57: =C57*I49 -> 31.98613898 | E57: mm vertical | H57: Rθ = ratio of dip / Ki to x / So | N57: Rθ = ratio of dip / Ki to x / So
B58: =B55+T29 -> 24.09822452 | C58: degrees jack top deployed | H58: where x = (dip * So) / Ki | K58: =(AE30 * AC9) / AC26 -> 4.997174405 | N58: where x = (dip * So) / Ki | Q58: =(AE30 * AC8) / AC26 -> 4.722260219
B59: cos = | C59: =COS(RADIANS(B58)) -> 0.9128468301 | D59: =C59*I49 -> 85.37054366 | E59: mm horizontal | H59: Then: Rθ = (AR * dip) / x | K59: =(B9 * AE30) / K58 -> 8.597291963 | L59: =K59^2 -> 73.91342909 | N59: Then: Rθ = (AR * dip) / x | Q59: =(A4 * AE30) / Q58 -> 10.56376471 | R59: =Q59^2 -> 111.5931248
B60: sine = | C60: =SIN(RADIANS(B58)) -> 0.4083021733 | D60: =C60*I49 -> 38.18491489 | E60: mm vertical | H60: SW_A61 = | K60: =C4 -> 8.738143539 | L60: =1/K59 -> 0.1163156962 | N60: SW_A61 = | Q60: =C4 -> 8.738143539 | R60: =1/Q59 -> 0.09466322167
H61: I_SW = | K61: =K60*(AC9/1000)^2 -> 0.1653693665 | N61: I_SW = | Q61: =Q60*(AC9/1000)^2 -> 0.1653693665
H62: SW_E44 = | K62: ='Key Leads'!H189 -> 10.11148843 | M62: 8.74 | N62: SW_E44 = | Q62: ='Key Leads'!H189 -> 10.11148843
H63: I_SW = | K63: =K62*(AC9/1000)^2 -> 0.1913599186 | M63: =M62*(AC9/1000)^2 -> 0.1654045 | N63: I_SW = | Q63: =K62*(AC9/1000)^2 -> 0.1913599186
H64: I_sys = | K64: =(K61*L59) * 10 -> 122.2301694 | L64: =('Key Leads'!F60/1000*'Key Leads'!D67^2) * 10000 -> 2.89 | M64: =(M63*L59) * 10 -> 122.2561378 | N64: I_sys = | Q64: =(Q63*R59) * 10 -> 213.5445127 | R64: =('Key Leads'!F60 / 1000*'Key Leads'!D67^2) * 10000 -> 2.89
H65: Plus I_ki (motor) | K65: =(AC26/10)^2 * A3 -> 28.8 | N65: Plus I_ki (motor) | Q65: =(AC26/10)^2 * A3 -> 28.8
H66: Total I felt at key | K66: =K64+K65 -> 151.0301694 | N66: Total I felt at key | Q66: =Q64+Q65 -> 242.3445127
H67: Force_capstan = | K67: =((K60/1000 * 'Simple AR Calculator'!C26* 'Simple AR Calculator'!C25) ) + 'Key Leads'!F60 / 1000 -> 0.1153606557 | N67: Force_capstan = | Q67: =((K60/1000 * 'Simple AR Calculator'!C26* 'Simple AR Calculator'!C25) ) + 'Key Leads'!F60 / 1000 -> 0.1153606557
H68: I_capstan = | K68: =(K67 * W10 ^2) -> 0.001961131148 | L68: =K66+L64 -> 153.9201694 | N68: I_capstan = | Q68: =(Q67 * W9 ^2) -> 0.001717028 | R68: =Q66+R64 -> 245.2345127
H69: Torq_o = | I69: =(K64/10000) * K59 -> 0.1050848453 | J69: =K60/50 -> 0.1747628708 | K69: Inertia = | L69: =I69/K59 -> 0.01222301694 | N69: Torq_o = | O69: =(Q64/10000) * Q59 -> 0.2255833986 | P69: =Q60/50 -> 0.1747628708 | Q69: Inertia = | R69: =O69/Q59 -> 0.02135445127
I70: =B4 -> 0.1747628708 | O70: =B4 -> 0.1747628708
B71: =G3 -> Standard Action | S71: torque = (moment of inertia)(angular acceleration)
B72: Kodar = | C72: WH * (v * Ss) / (s*rs + v * Ss) | F72: =(C79*(C80*E85)/(E84 * C82 + C80 * E85)) -> 129.6738239 | G72: is Kodar | I72: H | K72: KoDar | L72: ='Simple AR Calculator'!D7 -> 130.3840481 | M72: per sarc
B73: WH = | C73: line from balance hole to wippen center, aka the magic line | J73: ra = Widar | L73: =F72 -> 129.6738239 | M73: per here | S73: τ = Iα
B74: v = | C74: kidar (e.g. 240 mm) | L74: =L72-L73 -> 0.7102242049 | M74: mm
B75: Ss = | C75: (profile rise * Wodar) / Widar | F75: =(C81 * C82) / U26 -> 6.685948482 | K75: P | S75: τ = torque, around a defined axis (N∙m)
B76: s = | C76: full dip, inc AT
B77: rs = | C77: Wodar | K77: =C90 -> 46 | S77: I = moment of inertia (kg∙m2)
N78: v
B79: WH = | C79: =((C83 * C86) / C87) + C83 -> 195.5964548 | E79: 206.5 | F79: enter actual when available | K79: =C86 -> 122 | Q79: A | S79: α = angular acceleration (radians/s2)
B80: v = | C80: ='Simple AR Calculator'!D8 -> 240 | I80: C | K80: =C88 -> 184.5 | M80: W | N80: underside of key | P80: =C80 -> 240
B81: pro_rise = | C81: =S25 -> 4.736935992 | D81: =C81/2 -> 2.368467996
B82: Wod = | C82: ='Simple AR Calculator'!E9 -> 93.5212139
B83: Wid = | C83: ='Simple AR Calculator'!D10 -> 66.25896166 | J83: =C79-F72 -> 65.92263092 | K83: is Wid here | M83: =L73/J83 -> 1.967060812 | N83: Ro key out to whip in
B84: s = targ | C84: =AF22 -> 8.715516623 | D84: =Compare!H9 -> 9.973776327 | E84: =C84/2 -> 4.357758312 | J84: =C83-J83 -> 0.3363307427 | K84: diff
B85: Ss = | C85: =G9 -> 6.680513033 | D85: =H9 -> per ratio | E85: =C85/2 -> 3.340256516
B86: Kom = | C86: ='Simple AR Calculator'!C7 -> 122 | J86: S S = o/h
B87: Wim = | C87: ='Simple AR Calculator'!C10 -> 62.5 | J87: sine = | K87: =C90/F72 -> 0.3547362036 | L87: per here | N87: tan = | O87: =SQRT(L73^2 - K79^2) -> 43.94656533 | P87: is new cap
B88: CW = | C88: =C86+C87 -> 184.5 | J88: Ang W = | K88: =DEGREES(ASIN(K87)) -> 20.77727778 | L88: degrees per here
B89: heel ht. = | C89: =Archives!D18 -> 22 | F89: heel + cap | G89: =C89+C90 -> 68
B90: Cap ht | C90: =Archives!D17 -> 46 | J90: sine = | K90: =C90/L72 -> 0.3528038949 | L90: per sarc
B91: Cos HCW | C91: =C88/C79 -> 0.9432686302 | J91: Ang W | K91: =DEGREES(ASIN(K90)) -> 20.65891006 | L91: degrees per sarc
B92: ang. HWC | C92: =DEGREES(ACOS(C91)) -> 19.39206851 | D92: degrees | E92: =C92+C93 -> 90
B93: ang. CHW | C93: =90 - C92 -> 70.60793149 | D93: degrees | F93: new cap | G93: =O87 -> 43.94656533 | K93: =SQRT(L73^2 - K77^2) -> 121.2406722
F94: new heel | G94: =G89-G93 -> 24.05343467 | K94: =K79-K93 -> 0.7593277624
B95: Pfieffer | C95: jack top rise | G95: =G93+G94 -> 68
B96: Ss = (dip * kod * wod) / (ki * wid)
B97: Ss = | C97: =(C84 * L72 * C82) / (C80 * C83) -> 6.683006201 | D97: mm

Sheet Archives
C2: ENTRY AND / OR OUTGOING DATA | F2: Using this page: Read >
A3: Main Page | C3: Data Entry | D3: Inputs in mm | F3: < Read | G3: Archives Below | J3: INCOMING DATA | M3: Action Geometry Program ver. AGPcompex619 © June 2019 by Nick Gravagne. All rights reserved. Do not copy or distribute without express permission.
C4: Piano Name | D4: Standard Action | J4: Standard Action | U4: RENNER 3 NOTE MDL CLASS | X4: ADJUSTABLE mdl. | Y4: Renner pts. | AA4: SSO 215,109 12/2017 | AD4: ADJUSTABLE mdl. | AG4: Steinert C revision 1 | AJ4: SSA Jason 179--- | AM4: SSL 367 ca 1949 | AP4: SSL 367 ca 1949 | AQ4: original | AS4: SSO 215,109 12/2017 | AV4: Louie B 185644 | AY4: Yamaha Model | BB4: Louie B 185644 orig | BE4: SSA ca 1916 | BH4: Generic Turbo | BK4: Jamie w/ Ren Key
C5: Key Output Arm | D5: 122 | E5: 130.3840481 | J5: 122 | K5: 130.3840481 | U5: 132 | V5: 139.121255 | X5: 121 | Y5: 124.2465694 | AA5: 113.5 | AB5: 120.3422204 | AD5: 132 | AE5: 138.8272308 | AG5: 117.25 | AH5: 124.955202 | AJ5: 113 | AK5: 121.3733496 | AM5: 112 | AN5: 118.2387838 | AP5: 112 | AQ5: 118.2387838 | AS5: 114 | AT5: 120.8139065 | AV5: 135 | AW5: 141.9894362 | AY5: 117 | AZ5: 123.3288287 | BB5: 136 | BC5: 142.9405471 | BE5: 126 | BF5: 131.8976876 | BH5: 133.5 | BI5: 139.2779236 | BK5: 133.5 | BL5: 139.6834278
C6: Key Input Arm | D6: 240 | E6: 240 | J6: 240 | K6: 240 | U6: 260 | V6: 260 | X6: 236 | Y6: 246 | AA6: 240 | AB6: 240 | AD6: 260 | AE6: 260 | AG6: 234.8 | AH6: 234.8 | AJ6: 236 | AK6: 236 | AM6: 241 | AN6: 241 | AP6: 241 | AQ6: 241 | AS6: 240 | AT6: 240 | AV6: 260 | AW6: 260 | AY6: 246 | AZ6: 246 | BB6: 260 | BC6: 260 | BE6: 245 | BF6: 245 | BH6: 266 | BI6: 266 | BK6: 266 | BL6: 266
C7: Whippen Output Arm | D7: 92 | E7: 93.5212139 | J7: 92 | K7: 93.5212139 | L7: ='Simple AR Calculator'!E9 -> 93.5212139 | U7: 92 | V7: 93.51941811 | X7: 92 | Y7: 92.94705818 | AA7: 93 | AB7: 94.82636935 | AD7: 91.5 | AE7: 93.09466884 | AG7: 94.6 | AH7: 94.99366055 | AJ7: 93 | AK7: 93.86998648 | AM7: 92.8 | AN7: 93.67161552 | AP7: 93.5 | AQ7: 94.3651501 | AS7: 93 | AT7: 94.82636935 | AV7: 89.5 | AW7: 93.01253903 | AY7: 92 | AZ7: 93.18971992 | BB7: 90.2 | BC7: 93.68629792 | BE7: 91 | BF7: 94.24696431 | BH7: 91 | BI7: 93.00281879 | BK7: 91.8 | BL7: 93.64555515
C8: Whippen Input Arm | D8: 62.5 | E8: 66.25896166 | J8: 62.5 | K8: 66.25896166 | U8: 62 | V8: 65.95642501 | X8: 62.5 | Y8: 63.90618123 | AA8: 62.5 | AB8: 66.392846 | AD8: 62.5 | AE8: 66.59767263 | AG8: 63.45 | AH8: 67.62737981 | AJ8: 63 | AK8: 66.89730936 | AM8: 61 | AN8: 63.60031446 | AP8: 61 | AQ8: 63.60031446 | AS8: 62 | AT8: 65.9223786 | AV8: 63 | AW8: 67.41661516 | AY8: 60 | AZ8: 63.90618123 | BB8: 62 | BC8: 66.48308055 | BE8: 60 | BF8: 63.90618123 | BH8: 62.7 | BI8: 66.99440275 | BK8: 59.2 | BL8: 63.51094394
C9: Shank Output Arm | D9: 130 | E9: 137.5681649 | J9: 130 | K9: 137.5681649 | U9: 130 | V9: 137.8985134 | X9: 130 | Y9: 138.9280389 | AA9: 130 | AB9: 137.8985134 | AD9: 130 | AE9: 139.5366977 | AG9: 129.2 | AH9: 138.8648624 | AJ9: 130 | AK9: 137.8985134 | AM9: 130 | AN9: 138.5784976 | AP9: 130 | AQ9: 138.5784976 | AS9: 130 | AT9: 137.8985134 | AV9: 130 | AW9: 137.5681649 | AY9: 130 | AZ9: 137.5681649 | BB9: 130 | BC9: 137.5681649 | BE9: 130 | BF9: 137.5681649 | BH9: 130 | BI9: 135.0740538 | BK9: 130 | BL9: 137.8985134
C10: Shank Input Arm | D10: 17 | E10: 21.40093456 | J10: 17 | K10: 21.40093456 | U10: 17 | V10: 21.40701053 | X10: 17 | Y10: 21.14546346 | AA10: 15.5 | AB10: 20.26209515 | AD10: 17 | AE10: 21.14546346 | AG10: 16.2 | AJ10: 15.5 | AM10: 16.2 | AN10: 20.77113382 | AP10: 15.5 | AQ10: 20.22992832 | AS10: 15.5 | AV10: 16.2 | AW10: 20.89688972 | AY10: 17 | AZ10: 21.40093456 | BB10: 15.5 | BC10: 20.35902748 | BE10: 15.5 | BH10: 17 | BI10: 21.40701053 | BK10: 16.2 | BL10: 20.77113382
C11: Knuckle Diameter | D11: 10 | J11: 10 | U11: 10 | X11: 10 | Y11: but orig key | AA11: 10 | AD11: 10 | AG11: 10.4 | AJ11: 10 | AK11: Oiginal data | AM11: 10 | AN11: modified w/ 16.2 knuckle | AP11: 10 | AS11: 10 | AV11: 10 | AY11: 10 | BB11: 10 | BE11: 9.5 | BH11: 10 | BK11: 10 | BL11: green wip heel 12_2018
C12: Shank Thickness | D12: 6 | J12: 6 | U12: 6.02 | X12: 5.15 | AA12: 6.1 | AD12: 5.15 | AG12: 6.3 | AJ12: 5.88 | AM12: 6 | AP12: 6 | AS12: 6.1 | AV12: 6.4 | AY12: 6 | BB12: 6.4 | BE12: 6 | BH12: 6.02 | BK12: 6
C13: Mfg. Blow Distance | D13: 45 | J13: 45 | U13: 46 | X13: 46 | AA13: 45 | AD13: 46 | AG13: 45 | AJ13: 45 | AM13: 44.5 | AP13: 44.5 | AS13: 44.5 | AV13: 45 | AY13: 47 | BB13: 45 | BE13: 45 | BH13: 46 | BK13: 46
C14: Let-Off | D14: 2 | J14: 2 | U14: 2 | X14: 2 | AA14: 1.6 | AD14: 2 | AG14: 2 | AJ14: 2 | AM14: 2 | AP14: 2 | AS14: 1.6 | AV14: 2 | AY14: 2 | BB14: 2 | BE14: 2 | BH14: 2 | BK14: 2
C15: Spread | D15: 113 | J15: 113 | U15: 113 | X15: 112.5 | AA15: 111 | AD15: 112.5 | AG15: 113 | AJ15: 111.5 | AM15: 112 | AP15: 112 | AS15: 113 | AV15: 112.5 | AY15: 112.5 | BB15: 112.5 | BE15: 111 | BH15: 112.7 | BK15: 112.5
C16: Key Length (optional) | D16: 515 | J16: 515 | U16: 520 | X16: 492 | AA16: 483 | AD16: 492 | AG16: 487.4 | AJ16: 480 | AM16: 515 | AP16: 515 | AS16: 483 | AV16: 515 | AY16: 492 | BB16: 515 | BE16: 500 | BH16: 530 | BK16: 532
C17: Capstan Height | D17: 46 | J17: 46 | U17: 43.94 | X17: 44 | AA17: 40 | AD17: 43 | AG17: 43.2 | AJ17: 44.3 | AM17: 37.9 | AP17: 37.9 | AS17: 40 | AV17: 44 | AY17: 39 | BB17: 44 | BE17: 39 | BH17: 40.3 | BK17: 41.1
C18: Whipen Heel Height | D18: 22 | J18: 22 | U18: 22.5 | X18: 23 | AA18: 22.4 | AD18: 23 | AG18: 23.4 | AJ18: 22.5 | AM18: 18 | AP18: 18 | AS18: 22.4 | AV18: 24 | AY18: 22 | BB18: 24 | BE18: 22 | BH18: 23.6 | BK18: 23
C19: Hammer Bore | D19: 45 | J19: 45 | U19: 46 | X19: 52 | AA19: 45 | AD19: 50.7 | AG19: 50.9 | AJ19: 46 | AM19: 48 | AP19: 48 | AS19: 46 | AV19: 45 | AY19: 45 | BB19: 45 | BE19: 45 | BH19: 46 | BK19: 46
C20: Aftertouch | D20: 1.25 | J20: 1.25 | U20: 1.25 | X20: 1.25 | AA20: 1.25 | AD20: 1.25 | AG20: 1.25 | AJ20: 1.25 | AM20: 1.25 | AP20: 1.25 | AS20: 1.25 | AV20: 1.25 | AY20: 1.25 | BB20: 1.25 | BE20: 1.25 | BH20: 1.25 | BK20: 1.25
C21: Key Ratio Front | D21: 1.954887218 | E21: 1.863138191 | H21: Key Ratio Front | J21: =1/J22 -> 1.967213115 | K21: =1/K22 -> 1.840715973 | U21: 1.96969697 | V21: 1.868873307 | X21: 2.053422371 | Y21: 1.953042289 | AA21: 2.114537445 | AB21: 1.994312547 | AD21: 1.96969697 | AE21: 1.872831422 | AM21: 2.151785714 | AN21: 2.038248299 | AP21: 2.151785714 | AQ21: 2.038248299 | AV21: 1.925925926 | AW21: 1.831122138 | AY21: 2.102564103 | AZ21: 1.994667447 | BB21: 1.911764706 | BC21: 1.81893805 | BE21: 2.053422371 | BF21: 1.953042289 | BH21: 2 | BI21: 1.902068137 | BK21: 1.992509363 | BL21: 1.904306074
C22: Key Ratio Back | D22: 0.5115384615 | E22: 0.5367288399 | H22: Key Ratio Back | J22: =J5/K6 -> 0.5083333333 | K22: =K5/K6 -> 0.5432668671 | U22: 0.5076923077 | V22: 0.5350817501 | X22: 0.4869918699 | Y22: 0.5120216831 | AA22: 0.4729166667 | AB22: 0.5014259181 | AD22: 0.5076923077 | AE22: 0.5339508875 | AM22: 0.4647302905 | AN22: 0.4906173603 | AP22: 0.4647302905 | AQ22: 0.4906173603 | AV22: 0.5192307692 | AW22: 0.5461132163 | AY22: 0.4756097561 | AZ22: 0.5013367022 | BB22: 0.5230769231 | BC22: 0.5497713349 | BE22: 0.4869918699 | BF22: 0.5120216831 | BH22: 0.5 | BI22: 0.5257435211 | BK22: 0.5018796992 | BL22: 0.5251256684
C23: Whip ratio | D23: 1.378254211 | E23: 1.339220338 | H23: Whip Ratio | J23: =J7/J8 -> 1.472 | K23: =L7/K8 -> 1.411450037 | U23: 1.483870968 | V23: 1.417897015 | X23: 1.563573883 | Y23: 1.493862414 | AA23: 1.488 | AB23: 1.428261854 | AD23: 1.464 | AE23: 1.3978667 | AM23: 1.521311475 | AN23: 1.472816861 | AP23: 1.532786885 | AQ23: 1.483721439 | AV23: 1.420634921 | AW23: 1.379667888 | AY23: 1.533333333 | AZ23: 1.458227015 | BB23: 1.45483871 | BC23: 1.409175043 | BE23: 1.563573883 | BF23: 1.493862414 | BH23: 1.5 | BI23: 1.427103395 | BK23: 1.550675676 | BL23: 1.474479032
C24: Shank ratio | D24: 7.647058824 | E24: 6.428138198 | H24: Shank Ratio | J24: 7.647058824 | K24: 6.428138198 | U24: 7.647058824 | V24: 6.441745483 | X24: 7.647058824 | Y24: 6.57011085 | AA24: 8.387096774 | AB24: 6.805738122 | AD24: 7.647058824 | AE24: 6.598895216 | AM24: 8.024691358 | AN24: 6.671686719 | AP24: 8.387096774 | AQ24: 6.850172447 | AV24: 8.024691358 | AW24: 6.58318854 | AY24: 7.647058824 | AZ24: 6.428138198 | BB24: 8.387096774 | BC24: 6.800229972 | BE24: 7.647058824 | BF24: 6.57011085 | BH24: 7.647058824 | BI24: 6.428138198 | BK24: 8.024691358 | BL24: 6.638949738
C25: Whip Weight | D25: 17 | H25: Whip Weight | J25: 17 | U25: 17 | X25: 18.7 | AA25: 17 | AD25: 17 | AM25: 15.6 | AP25: 15.6 | AV25: 17 | AY25: 17 | BB25: 17 | BE25: 18.7 | BH25: 17 | BK25: 17
C26: DW Target | D26: 50 | H26: DW Target | J26: 50 | U26: 50 | X26: 50 | AA26: 50 | AD26: 50 | AM26: 50 | AP26: 50 | AV26: 50 | AY26: 50 | BB26: 50 | BE26: 50 | BH26: 50 | BK26: 50
C28: MAR | D28: 5.722039216 | H28: MAR | J28: 5.722039216 | U28: 5.760910816 | X28: 5.822835881 | AA28: 5.902 | AD28: 5.683764706 | AM28: 5.673452969 | AP28: 5.974401566 | AV28: 5.919312169 | AY28: 5.576757532 | BB28: 6.976503489 | BE28: 5.822835881 | BH28: 5.735294118 | BK28: 6.245237249
C29: DAR | D29: 4.929058058 | H29: DAR | J29: 4.929058058 | U29: 4.887293137 | X29: 5.025411744 | AA29: 4.874048536 | AD29: 4.925363686 | AM29: 4.820890907 | AP29: 4.986511077 | AV29: 4.960135449 | AY29: 4.699372215 | BB29: 5.584064091 | BE29: 5.025411744 | BH29: 4.822970149 | BK29: 5.140451064
C30: Dip | D30: 9.973776327 | H30: DIP | J30: 9.973776327 | U30: 10.25293859 | X30: 10.00550149 | AA30: 10.05171785 | AD30: 10.18335047 | AM30: 10.06579791 | AP30: 9.772993199 | AV30: 9.919118101 | AY30: 10.82574713 | BB30: 9.040025203 | BE30: 10.00550149 | BH30: 9.958326758 | BK30: 9.809560135
C31: Inertia | D31: 153.3044409 | H31: Inertia | J31: 153.2069852 | U31: 173.5312959 | X31: 212.0025511 | AA31: 198.0034531 | AD31: 175.0526536 | AM31: 206.1028248 | AP31: 213.3973808 | AV31: 173.1100056 | AY31: 200.8127519 | BB31: 165.2711724 | BE31: 212.0025511 | BH31: 199.2830549 | BK31: 240.2577313
C32: Capstan Change | D32: 0 | H32: Capstan Change | J32: 0 | U32: 0 | AD32: 0 | AV32: 0 | BB32: 2
B38: To copy any data block below, left click in the blue heading box and drag down to capture the entrire grid of all cells of any color, right click, then select copy.
C39: Go to top, left grid (Entry and / or Ougoing Data). Right click in Piano Name entry cell, right click and choose paste.
D40: TOP | P40: TOP | Z40: TOP | AK40: TOP | AN40: TOP
A42: Main Page | C42: Piano Name | D42: SSBadRick modified | G42: Yamaha Model | J42: SSM 1927 mod | M42: SSBadRick Orig | P42: SSBadRick Orig | Q42: incrrease spread to 113.5 | S42: Standard Action | V42: Louie B 185644 | W42: new parts | Y42: SSM c1957 | AB42: Yamaha | AE42: SSBadRick Orig | AH42: Louie B 185644 | AI42: new parts | AK42: M&H AA mod 18905 | AZ42: Bosie D. Skolnik
C43: Key Output Arm | D43: 132.5 | E43: 138.1204185 | G43: 119.8 | H43: 125.957334 | J43: 113 | K43: 119.2182872 | M43: 136 | N43: 141.4814475 | P43: 136 | Q43: 141.4814475 | S43: 122 | T43: 130.3840481 | V43: 133 | W43: 139.5494984 | Y43: 121.9 | Z43: 127.9867571 | AB43: 123 | AC43: 129.034879 | AE43: 134.5 | AF43: 140.0401728 | AH43: 134 | AI43: 140.7302384 | AK43: 121.7 | AL43: 127.7962832 | AZ43: 152 | BA43: 141.4814475
C44: Key Input Arm | D44: 245 | E44: 245 | G44: 246 | H44: 246 | J44: 238 | K44: 238 | M44: 245 | N44: 245 | P44: 245 | Q44: 245 | S44: 240 | T44: 240 | V44: 260 | W44: 260 | Y44: 240 | Z44: 240 | AB44: 246 | AC44: 246 | AE44: 245 | AF44: 245 | AH44: 260 | AI44: 260 | AK44: 232 | AL44: 232 | AZ44: 308 | BA44: 245
C45: Whippen Output Arm | D45: 93.2 | E45: 93.69640612 | G45: 91 | H45: 92.94705818 | J45: 92 | K45: 93.36842663 | M45: 94.7 | N45: 95.18858398 | P45: 94.7 | Q45: 95.75426609 | S45: 92 | T45: 93.5212139 | V45: 91.5 | W45: 93.55290488 | Y45: 92 | Z45: 93.45501536 | AB45: 93 | AC45: 94.19693707 | AE45: 94.7 | AF45: 95.18858398 | AH45: 91.5 | AI45: 93.55290488 | AK45: 92.15494334 | AL45: 93.57263734 | AZ45: 89.3 | BA45: 95.18858398
C46: Whippen Input Arm | D46: 64.5 | E46: 68.1487344 | G46: 58.2 | H46: 62.21928961 | J46: 59 | K46: 62.96824597 | M46: 64.5 | N46: 68.1487344 | P46: 65.70894448 | Q46: 69.29405014 | S46: 62.5 | T46: 66.25896166 | V46: 65.3 | W46: 69.57075535 | Y46: 61 | Z46: 64.84597135 | AB46: 61 | AC46: 64.84597135 | AE46: 62.5 | AF46: 66.25896166 | AH46: 63 | AI46: 67.06713055 | AK46: 63 | AL46: 66.73080248 | AZ46: 62.63 | BA46: 68.1487344
C47: Shank Output Arm | D47: 130 | E47: 137.5681649 | G47: 130 | H47: 138.9280389 | J47: 130 | K47: 137.5681649 | M47: 130 | N47: 137.5681649 | P47: 130 | Q47: 137.5681649 | S47: 130 | T47: 137.5681649 | V47: 131 | W47: 139.1761474 | Y47: 130 | Z47: 137.5681649 | AB47: 130 | AC47: 137.5681649 | AE47: 130 | AF47: 137.5681649 | AH47: 130 | AI47: 137.2443077 | AK47: 127 | AL47: 135.7681848 | AZ47: 130 | BA47: 137.5681649
C48: Shank Input Arm | D48: 17 | E48: 21.40093456 | G48: 17 | H48: 21.14546346 | J48: 16.2 | M48: 15.5 | N48: 20.22992832 | P48: 15.5 | Q48: 20.22992832 | S48: 17 | T48: 21.40093456 | V48: 16.2 | W48: 20.78365704 | Y48: 16.2 | AB48: 17 | AE48: 15.5 | AF48: 20.22992832 | AH48: 16.2 | AI48: 20.78365704 | AK48: 17 | AZ48: 17 | BA48: 20.22992832
C49: Knuck Diameter | D49: 10 | G49: 10 | J49: 10 | M49: 10 | P49: 10 | S49: 10 | V49: 10 | Y49: 9.5 | AB49: 10 | AE49: 10 | AH49: 10 | AK49: 10 | AZ49: 8
C50: Shank Thickness | D50: 6 | G50: 5.15 | J50: 6 | M50: 6 | P50: 6 | S50: 6 | V50: 6.04 | Y50: 6 | AB50: 6 | AE50: 6 | AH50: 6.04 | AK50: 6 | AZ50: 4.85
C51: Blow Distance | D51: 45 | G51: 46 | J51: 45 | M51: 45 | P51: 45 | S51: 45 | V51: 45 | Y51: 44.5 | AB51: 46 | AE51: 45 | AH51: 45 | AK51: 47 | AZ51: 46
C52: Let-Off | D52: 1.5 | G52: 2 | J52: 2 | M52: 1.5 | P52: 1.5 | S52: 2 | V52: 2 | Y52: 2 | AB52: 2 | AE52: 1.5 | AH52: 2 | AK52: 2 | AZ52: 2
C53: Spread | D53: 112.5 | G53: 112.5 | J53: 112 | M53: 112.5 | P53: 113.5 | S53: 113 | V53: 112.5 | Y53: 112 | AB53: 113.5 | AE53: 112.5 | AH53: 112.5 | AK53: 113 | AZ53: 112.5
C54: Key Length (optional) | D54: 520 | G54: 492 | J54: 482 | M54: 520 | P54: 520 | S54: 515 | V54: 515 | Y54: 485 | AB54: 492 | AE54: 520 | AH54: 515 | AK54: 482 | AZ54: 582.2
C55: Capstan Height | D55: 39 | G55: 38.9 | J55: 38 | M55: 39 | P55: 39 | S55: 46 | V55: 42.25 | Y55: 39 | AB55: 39 | AE55: 39 | AH55: 43 | AK55: 39 | AZ55: 41.75
C56: Whipen Heel Height | D56: 22 | G56: 22 | J56: 22 | M56: 22 | P56: 22 | S56: 22 | V56: 24 | Y56: 22 | AB56: 22 | AE56: 22 | AH56: 23 | AK56: 22 | AZ56: 23.3
C57: Hammer Bore | D57: 45 | G57: 49 | J57: 45 | M57: 45 | P57: 45 | S57: 45 | V57: 47 | Y57: 45 | AB57: 45 | AE57: 45 | AH57: 44 | AK57: 48 | AZ57: 48.6
C58: Aftertouch | D58: 1.25 | G58: 1.25 | J58: 1.25 | M58: 1.25 | P58: 1.25 | S58: 1.25 | V58: 1.25 | Y58: 1.25 | AB58: 1.25 | AE58: 1.25 | AH58: 1.25 | AK58: 1.25 | AZ58: 1.25
C59: Key Ratio Front | D59: 1.849056604 | E59: 1.773814492 | G59: 2.053422371 | H59: 1.953042289 | J59: 1.849056604 | K59: 1.773814492 | M59: 1.801470588 | N59: 1.731675808 | P59: 1.801470588 | Q59: 1.731675808 | S59: 1.967213115 | T59: 1.840715973 | V59: =1/V60 -> 1.954887218 | W59: =1/W60 -> 1.863138191 | Y59: 1.968826907 | Z59: 1.875194007 | AB59: 2 | AC59: 1.906461275 | AE59: 1.821561338 | AF59: 1.749497984 | AH59: 1.940298507 | AI59: 1.847506285 | AK59: 1.906327034 | AL59: 1.81538926 | AZ59: 1.954887218 | BA59: 1.863138191
C60: Key Ratio Back | D60: 0.5408163265 | E60: 0.5637568101 | G60: 0.4869918699 | H60: 0.5120216831 | J60: 0.5408163265 | K60: 0.5637568101 | M60: 0.5551020408 | N60: 0.5774752961 | P60: 0.5551020408 | Q60: 0.5774752961 | S60: 0.5083333333 | T60: 0.5432668671 | V60: =V43/W44 -> 0.5115384615 | W60: =W43/W44 -> 0.5367288399 | Y60: 0.5079166667 | Z60: 0.5332781547 | AB60: 0.5 | AC60: 0.5245320285 | AE60: 0.5489795918 | AF60: 0.5715925421 | AH60: 0.5153846154 | AI60: 0.5412701477 | AK60: 0.5245689655 | AL60: 0.5508460483 | AZ60: 0.5115384615 | BA60: 0.5367288399
C61: Whip ratio | D61: 1.44496124 | E61: 1.374881088 | G61: 1.563573883 | H61: 1.493862414 | J61: 1.44496124 | K61: 1.374881088 | M61: 1.468217054 | N61: 1.396776988 | P61: 1.441204097 | Q61: 1.381854083 | S61: 1.472 | T61: 1.411450037 | V61: =V45/V46 -> 1.401225115 | W61: =X45/W46 -> 0 | Y61: 1.508196721 | Z61: 1.441184601 | AB61: 1.524590164 | AC61: 1.452625894 | AE61: 1.5152 | AF61: 1.436614484 | AH61: 1.452380952 | AI61: 1.394914381 | AK61: 1.462776878 | AL61: 1.402240553 | AZ61: 1.378254211 | BA61: 1.339220338
C62: Shank ratio | D62: 7.647058824 | E62: 6.428138198 | G62: 7.647058824 | H62: 6.57011085 | J62: 7.647058824 | K62: 6.428138198 | M62: 7.647058824 | N62: 6.428138198 | P62: 7.647058824 | Q62: 6.428138198 | S62: 7.647058824 | T62: 6.428138198 | V62: 7.647058824 | W62: 6.428138198 | Y62: 8.024691358 | Z62: 6.723132182 | AB62: 7.647058824 | AC62: 6.428138198 | AE62: 8.387096774 | AF62: 6.800229972 | AH62: 7.647058824 | AI62: 6.428138198 | AK62: 7.470588235 | AL62: 6.34403065 | AZ62: 7.647058824 | BA62: 6.428138198
C63: Whip Weight | D63: 17 | G63: 17 | J63: 17 | M63: 17 | P63: 17 | S63: 17 | V63: 17 | AE63: 17 | AH63: 17 | AZ63: 17
C64: DW Target | D64: 50 | G64: 50 | J64: 50 | M64: 50 | P64: 50 | S64: 50 | V64: 50 | Y64: 17 | AB64: 17 | AE64: 50 | AH64: 50 | AK64: 17 | AZ64: 50
Y65: 50 | AB65: 50 | AK65: 50
C66: MAR | D66: 5.90720143 | G66: 5.822835881 | J66: 5.975860111 | M66: 5.722039216 | P66: 5.975860111 | S66: 5.722039216 | V66: 5.722039216 | AE66: 6.976503489 | AH66: 5.722039216 | AZ66: 5.722039216
C67: DAR | D67: 5.021985936 | G67: 5.025411744 | J67: 4.982440768 | M67: 4.929058058 | P67: 4.982440768 | S67: 4.929058058 | V67: 4.929058058 | Y67: 6.147220536 | AB67: 5.829315333 | AE67: 5.584064091 | AH67: 4.929058058 | AK67: 5.732386702 | AZ67: 4.929058058
C68: Dip | D68: 10.01147416 | G68: 10.00550149 | J68: 9.980660739 | M68: 9.973776327 | P68: 9.980660739 | S68: 9.973776327 | V68: 9.973776327 | Y68: 5.167078465 | AB68: 4.897912229 | AE68: 9.040025203 | AH68: 9.973776327 | AK68: 4.900247699 | AZ68: 9.973776327
C69: Inertia | D69: 181.9922006 | G69: 161.1794647 | J69: 155.9627508 | M69: 153.3044409 | P69: 155.9627508 | S69: 153.2069852 | V69: 153.3044409 | Y69: 9.475150884 | AB69: 10.23341945 | AE69: 165.2711724 | AH69: 153.3044409 | AK69: 10.43320925 | AZ69: 153.3044409
C70: Capstan Change | D70: 2.8 | G70: 0 | J70: 0 | M70: 0 | P70: 0 | S70: 0 | V70: 0 | Y70: 210.7244495 | AB70: 209.7847127 | AE70: 2 | AH70: 0 | AK70: 191.6224857 | AZ70: 0
D73: TOP | P73: TOP | Z73: TOP
A75: Main Page | C75: Piano Name | D75: Yamaha Model | G75: YC Model mod | J75: Renner 17 mod | M75: Renner 17 mod | N75: mod2 | P75: Scott SSL | S75: SSB-VB | V75: Bechstein | Y75: Bechstein | Z75: move cap 4 mm | AB75: SSB-VB | AC75: mod | AH75: SSD orig | AI75: dims at note 44 | AK75: SSO Asu 186339 Orig
C76: Key Output Arm | D76: 117 | E76: 123.3288287 | G76: 127 | H76: 135.0052458 | J76: 128 | K76: 134.714513 | M76: 130.8 | N76: 137.3777275 | P76: 114 | Q76: 120.1665511 | S76: 130 | T76: 135.4400236 | V76: 146.75 | W76: 151.8438754 | Y76: 143.75 | Z76: 148.9465089 | AB76: 130 | AC76: 135.4400236 | AH76: 157 | AI76: 161.7714437 | AK76: 116.86 | AL76: 122.8831136
C77: Key Input Arm | D77: 246 | E77: 246 | G77: 276 | H77: 276 | J77: 266 | K77: 266 | M77: 266 | N77: 266 | P77: 237 | Q77: 237 | S77: 245 | T77: 245 | V77: 290 | W77: 290 | Y77: 290 | Z77: 290 | AB77: 245 | AC77: 245 | AH77: 303 | AI77: 303 | AK77: 236 | AL77: 236
C78: Whippen Output Arm | D78: 92 | E78: 93.18971992 | G78: 92 | H78: 93.81657652 | J78: 93 | K78: 93.6004339 | M78: 93 | N78: 93.6004339 | P78: 93 | Q78: 94.37613732 | S78: 92.5 | T78: 94.29769682 | V78: 93 | W78: 95.24144838 | Y78: 93 | Z78: 95.24144838 | AB78: 91 | AC78: 92.82675059 | AH78: 92.5 | AI78: 93.94126461 | AK78: 92 | AL78: 93.930485
C79: Whippen Input Arm | D79: 60 | E79: 63.90618123 | G79: 58 | H79: 59.05294235 | J79: 62 | K79: 64.56004957 | M79: 59.2 | N79: 61.87600504 | P79: 63 | Q79: 66.73080248 | S79: 62 | T79: 65.78753681 | V79: 55.25 | W79: 59.46900453 | Y79: 58.25 | Z79: 62.26606218 | AB79: 62 | AC79: 65.78753681 | AH79: 66 | AI79: 69.57010852 | AK79: 62.14 | AL79: 65.91949332
C80: Shank Output Arm | D80: 130 | E80: 137.5681649 | G80: 130 | H80: 141.9471733 | J80: 130 | K80: 137.5681649 | M80: 130 | N80: 137.5681649 | P80: 130 | Q80: 137.5681649 | S80: 127 | T80: 134.7367804 | V80: 128 | W80: 135.67977 | Y80: 128 | Z80: 135.67977 | AB80: 127 | AC80: 134.7367804 | AH80: 130 | AI80: 140.014285 | AK80: 130 | AL80: 137.5681649
C81: Shank Input Arm | D81: 17 | E81: 21.40093456 | G81: 17 | H81: 21.56601261 | J81: 17 | K81: 21.40093456 | M81: 17 | N81: 21.40093456 | P81: 16.2 | S81: 15.5 | V81: 17 | W81: 21.40093456 | Y81: 17 | AB81: 17 | AC81: 21.50768758 | AH81: 16.2 | AK81: 16.2
C82: Knuck Diameter | D82: 10 | G82: 10 | J82: 10 | M82: 10 | P82: 10 | S82: 10 | V82: 10 | Y82: 10 | Z82: move cap 4 mm | AB82: 10 | AH82: 9.6 | AK82: 10
C83: Shank Thickness | D83: 6 | G83: 6.54 | J83: 6 | M83: 6 | P83: 6 | S83: 6.35 | V83: 6 | Y83: 6 | AB83: 6.35 | AH83: 6 | AK83: 6.23
C84: Blow Distance | D84: 47 | G84: 46 | J84: 46 | M84: 46 | P84: 44.5 | S84: 44.5 | V84: 46 | Y84: 46 | AB84: 45 | AH84: 44.5 | AK84: 45
C85: Let-Off | D85: 2 | G85: 2 | J85: 2 | M85: 2 | P85: 2 | S85: 2 | V85: 2 | Y85: 2 | AB85: 2 | AH85: 2 | AK85: 2
C86: Spread | D86: 112.5 | G86: 113.5 | J86: 112.5 | M86: 112.5 | P86: 113 | S86: 112.5 | V86: 115 | Y86: 115 | AB86: 112.5 | AH86: 112.5 | AK86: 112.85
C87: Key Length (optional) | D87: 492 | G87: 535 | J87: 482 | M87: 482 | P87: 485 | S87: 515 | V87: 482 | Y87: 482 | AB87: 515 | AH87: 420 | AK87: 500
C88: Capstan Height | D88: 39 | G88: 39 | J88: 42 | M88: 42 | P88: 38 | S88: 38 | V88: 39 | Y88: 39 | AB88: 38 | AH88: 39 | AK88: 38
C89: Whipen Heel Height | D89: 22 | G89: 21 | J89: 18 | M89: 18 | P89: 22 | S89: 22 | V89: 22 | Y89: 22 | AB89: 22 | AH89: 22 | AK89: 22
C90: Hammer Bore | D90: 45 | G90: 57 | J90: 45 | M90: 45 | P90: 45 | S90: 45 | V90: 45 | Y90: 45 | AB90: 45 | AH90: 52 | AK90: 45
C91: Aftertouch | D91: 1.25 | G91: 1.25 | J91: 1.25 | M91: 1.25 | P91: 1.25 | S91: 1.25 | V91: 1.25 | Y91: 1.25 | AB91: 1.25 | AH91: 1.25 | AK91: 1.25
C92: Key Ratio Front | D92: 2.102564103 | E92: 1.994667447 | G92: 2.053422371 | H92: 1.953042289 | J92: 2.078125 | K92: 1.97454598 | M92: 2.033639144 | N92: 1.93626729 | P92: 2.078947368 | Q92: 1.972262646 | S92: 1.884615385 | T92: 1.808918763 | V92: 1.976149915 | W92: 1.909856418 | Y92: 2.017391304 | Z92: 1.947007702 | AB92: 1.884615385 | AC92: 1.808918763 | AH92: 1.929936306 | AI92: 1.873012894 | AK92: 2.019510525
C93: Key Ratio Back | D93: 0.4756097561 | E93: 0.5013367022 | G93: 0.4869918699 | H93: 0.5120216831 | J93: 0.4812030075 | K93: 0.5064455374 | M93: 0.4917293233 | N93: 0.516457622 | P93: 0.4810126582 | Q93: 0.5070318611 | S93: 0.5306122449 | T93: 0.552816423 | V93: 0.5060344828 | W93: 0.5235995704 | Y93: 0.4956896552 | Z93: 0.5136086512 | AB93: 0.5306122449 | AC93: 0.552816423 | AH93: 0.5181518152 | AI93: 0.5338991542 | AK93: 0.4951694915
C94: Whip ratio | D94: 1.533333333 | E94: 1.458227015 | G94: 1.563573883 | H94: 1.493862414 | J94: 1.5 | K94: 1.449819734 | M94: 1.570945946 | N94: 1.512709714 | P94: 1.476190476 | Q94: 1.414281468 | S94: 1.491935484 | T94: 1.433367191 | V94: 1.683257919 | W94: 1.6015309 | Y94: 1.596566524 | Z94: 1.529588431 | AB94: 1.467741935 | AC94: 1.41100815 | AH94: 1.401515152 | AI94: 1.350310738 | AK94: 1.48052784
C95: Shank ratio | D95: 7.647058824 | E95: 6.428138198 | G95: 7.647058824 | H95: 6.57011085 | J95: 7.647058824 | K95: 6.428138198 | M95: 7.647058824 | N95: 6.428138198 | P95: 8.024691358 | Q95: 6.623045528 | S95: 8.193548387 | T95: 6.623306487 | V95: 8.387096774 | W95: 6.800229972 | Y95: 7.529411765 | Z95: 6.339899301 | AB95: 8.387096774 | AC95: 6.800229972 | AH95: 8.024691358 | AI95: 6.822258415 | AK95: 8.024691358
C96: Whip Weight | D96: 17 | G96: 18.7 | J96: 17 | M96: 17 | P96: 16.5 | S96: 16.5 | V96: 17 | Y96: 16.5 | AB96: 17 | AH96: 16.5 | AK96: 16.5
C97: DW Target | D97: 50 | G97: 50 | J97: 50 | M97: 50 | P97: 50 | S97: 50 | V97: 50 | Y97: 50 | AB97: 50 | AH97: 50 | AK97: 50
C99: MAR | D99: 5.576757532 | G99: 5.822835881 | J99: 5.519681557 | M99: 5.90720143 | P99: 5.698062941 | S99: 6.486334388 | V99: 6.976503489 | Y99: 5.958787837 | AB99: 6.976503489 | AH99: 5.827511764 | AK99: 5.882999279
C100: DAR | D100: 4.699372215 | G100: 5.025411744 | J100: 4.719890906 | M100: 5.021985936 | P100: 4.749291669 | S100: 5.248234695 | V100: 5.584064091 | Y100: 4.980687346 | AB100: 5.584064091 | AH100: 4.918369129 | AK100: 4.89693498
C101: Dip | D101: 10.82574713 | G101: 10.00550149 | J101: 10.57224937 | M101: 10.01147416 | P101: 10.19870287 | S101: 9.347961023 | V101: 9.040025203 | Y101: 10.08412207 | AB101: 9.040025203 | AH101: 9.891075707 | AK101: 10.03100285
C102: Inertia | D102: 150.049628 | G102: 212.0025511 | J102: 174.0327579 | M102: 181.9922006 | P102: 185.632383 | S102: 218.7287981 | V102: 165.2711724 | Y102: 301.285202 | AB102: 165.2711724 | AH102: 318.1081038 | AK102: 188.5645303
C103: Capstan Change | D103: 0 | J103: 0 | M103: 2.8 | V103: 2 | AB103: 2
D108: TOP | P108: TOP | X108: TOP
A110: Main Page | C110: Piano Name | G110: Standard Action | J110: SSB Teflon | K110: mod | M110: SSB Teflon | P110: SSO Asu 186339 Orig | S110: SSD Orig | V110: SSD Orig Mod | AB110: SSO 106…JS | AE110: M&H AA.orig.18905 | AH110: Petrov | AK110: Petrov | AL110: cap -1.5
C111: Key Output Arm | G111: 122 | H111: 130.3840481 | J111: 133.9 | K111: 139.1876791 | M111: 135 | N111: 140.2462121 | P111: 115 | Q111: =SQRT(P123^2 + P111^2) -> 121.1156472 | S111: 171 | T111: 175.1713447 | V111: 169 | W111: 173.2195139 | AB111: 108 | AC111: 114.4901743 | AE111: 124.7 | AF111: 130.3613823 | AH111: 118 | AI111: 123.9677377 | AK111: 119.5 | AL111: 125.3963716
C112: Key Input Arm | G112: 240 | H112: 240 | J112: 262 | K112: 262 | M112: 262 | N112: 262 | P112: 236 | Q112: =P112 -> 236 | S112: 324 | T112: 324 | V112: 324 | W112: 324 | AB112: 237 | AC112: 237 | AE112: 232 | AF112: 232 | AH112: 234 | AI112: 234 | AK112: 234 | AL112: 234
C113: Whippen Output Arm | G113: 92 | H113: 93.5212139 | J113: 93 | K113: 94.61986326 | M113: 93 | N113: 94.61986326 | P113: 92 | Q113: =R113 -> 0 | S113: 92.5 | T113: 93.94126461 | V113: 92.5 | W113: 93.43807687 | AB113: 92.3 | AC113: 93.00674997 | AE113: 93.8 | AF113: 94.5614355 | AH113: 92 | AI113: 93.5212139 | AK113: 92 | AL113: 93.5212139
C114: Whippen Input Arm | G114: 62.5 | H114: 66.25896166 | J114: 64.1 | K114: 67.77027372 | M114: 63 | N114: 66.73080248 | P114: 64 | Q114: =SQRT(P124^2 + P114^2) -> 67.67569726 | S114: 63 | T114: 66.73080248 | V114: 65 | W114: 68.62215386 | AB114: 62 | AC114: 65.78753681 | AE114: 61 | AF114: 64.84597135 | AH114: 62 | AI114: 65.78753681 | AK114: 60.5 | AL114: 64.37584951
C115: Shank Output Arm | G115: 130 | H115: 137.5681649 | J115: 130 | K115: 137.5681649 | M115: 130 | N115: 137.5681649 | P115: 130 | Q115: =SQRT(P125^2 + P115^2) -> 137.5681649 | S115: 130 | T115: 140.014285 | V115: 130 | W115: 140.014285 | AB115: 130 | AC115: 137.5681649 | AE115: 127.3 | AF115: 135.0195912 | AH115: 130 | AI115: 137.5681649 | AK115: 130 | AL115: 137.5681649
C116: Shank Input Arm | G116: 17 | H116: 21.40093456 | J116: 17 | K116: 21.10094785 | M116: 17 | N116: 21.10094785 | P116: 16.2 | S116: 16.2 | T116: 20.52315765 | V116: 17 | AB116: 17 | AE116: 17.3 | AH116: 17 | AI116: NOTES: | AK116: 17 | AL116: 21.40093456
C117: Knuck Diameter | G117: 10 | J117: 9.5 | M117: 9.5 | P117: 10 | S117: 9.6 | V117: 9.6 | AB117: 10 | AE117: 9.17 | AH117: 10 | AK117: 10
C118: Shank Thickness | G118: 6 | J118: 6 | M118: 6 | P118: 6.23 | S118: 6 | V118: 6 | AB118: 6 | AE118: 6.06 | AH118: 6 | AK118: 6
C119: Blow Distance | G119: 45 | J119: 44.5 | M119: 44.5 | P119: 45 | S119: 45 | V119: 44.5 | AB119: 44.9667646 | AE119: 47 | AH119: 46 | AK119: 46
C120: Let-Off | G120: 2 | J120: 2 | M120: 2 | P120: 2 | S120: 2 | V120: 2 | AB120: 2 | AE120: 2 | AH120: 2 | AK120: 2
C121: Spread | G121: 113 | J121: 114 | M121: 114 | P121: 112.85 | S121: 112.5 | V121: 112.5 | AB121: 112 | AE121: 113.7 | AH121: 113 | AK121: 113
C122: Key Length (optional) | G122: 515 | J122: 520 | M122: 520 | P122: 500 | S122: 515 | V122: 515 | AB122: 482 | AE122: 482 | AH122: 485 | AK122: 485
C123: Capstan Height | G123: 46 | J123: 38 | M123: 38 | P123: 38 | S123: 38 | V123: 38 | AB123: 38 | AE123: 38 | AH123: 38 | AK123: 38
C124: Whipen Heel Height | G124: 22 | J124: 22 | M124: 22 | P124: 22 | S124: 22 | V124: 22 | AB124: 22 | AE124: 22 | AH124: 22 | AK124: 22
C125: Hammer Bore | G125: 45 | J125: 45 | M125: 45 | P125: 45 | S125: 52 | V125: 52 | AB125: 45 | AE125: 45 | AH125: 45 | AK125: 45
C126: Aftertouch | G126: 1.25 | J126: 1.25 | M126: 1.25 | P126: 1.25 | S126: 1.25 | V126: 1.25 | AB126: 1.25 | AE126: 1.25 | AH126: 1.25 | AK126: 1.25
C127: Key Ratio Front | G127: 1.967213115 | H127: 1.840715973 | J127: =1/J128 -> 1.956684093 | K127: =1/K128 -> 1.88235052 | M127: 1.940740741 | N127: 1.868143147 | S127: 1.894736842 | T127: 1.849617588 | AK127: =1/AK128 -> 1.958158996 | AL127: =1/AL128 -> 1.866082703
C128: Key Ratio Back | G128: 0.5083333333 | H128: 0.5432668671 | J128: =J111/K112 -> 0.5110687023 | K128: =K111/K112 -> 0.5312506834 | M128: 0.5152671756 | N128: 0.5352908858 | S128: 0.5277777778 | T128: 0.5406522984 | AK128: =AK111/AL112 -> 0.5106837607 | AL128: =AL111/AL112 -> 0.5358819297
C129: Whip ratio | G129: 1.472 | H129: 1.411450037 | J129: =J113/J114 -> 1.450858034 | K129: =L113/K114 -> 0 | M129: 1.476190476 | N129: 1.417933844 | S129: 1.468253968 | T129: 1.407764647 | AK129: =AK113/AK114 -> 1.520661157 | AL129: =AM113/AL114 -> 0
C130: Shank ratio | G130: 7.647058824 | H130: 6.428138198 | J130: 7.647058824 | K130: 6.428138198 | M130: 7.647058824 | N130: 6.519525375 | S130: 8.024691358 | T130: 6.822258415 | AK130: 8.387096774 | AL130: 6.800229972
C131: Whip Weight | G131: 17 | J131: 17 | M131: 17 | S131: 17 | AK131: 17
C132: DW Target | G132: 50 | J132: 50 | M132: 50 | S132: 50 | AK132: 50
C134: MAR | G134: 5.722039216 | J134: 5.975860111 | M134: 5.81660145 | S134: 6.218428158 | AK134: 6.976503489
C135: DAR | G135: 4.929058058 | J135: 4.982440768 | M135: 4.948365808 | S135: 5.192497235 | AK135: 5.584064091
C136: Dip | G136: 9.973776327 | J136: 9.980660739 | M136: 9.838694055 | S136: 9.4348864 | AK136: 9.040025203
C137: Inertia | G137: 153.2069852 | J137: 155.9627508 | M137: 177.8841198 | S137: 339.3755138 | AK137: 165.2711724
C138: Capstan Change | G138: 0 | J138: 0 | M138: 0 | S138: 0 | AK138: 2
D142: TOP | P142: TOP | X142: TOP | AI142: TOP
A144: Main Page | C144: Piano Name | D144: SSB David Orig | G144: SSB David Mod. | M144: SSO 106529 Az | P144: SSO 106529 Az mod | V144: Baldwin M W.T. | Y144: Baldwin M Tru orig | AB144: M&H AA mod 18905 | AE144: SSO 106529 Az mod | AH144: M&H AA JS
C145: Key Output Arm | D145: 135 | E145: 140.2462121 | G145: 133 | H145: =SQRT(G157^2 + G145^2) -> 138.3220879 | M145: 108 | N145: 114.8259553 | P145: 110.3 | Q145: 127.7962832 | V145: 114 | W145: 120.4865138 | Y145: 125 | Z145: =SQRT(Y157^2 + Y145^2) -> 130.9427356 | AB145: 121.7 | AC145: 127.7962832 | AE145: 108 | AF145: 114.8259553 | AH145: 123 | AI145: 129.034879
C146: Key Input Arm | D146: 260 | E146: 260 | G146: 260 | H146: =G146 -> 260 | M146: 237 | N146: 237 | P146: 237 | Q146: 232 | V146: 228 | W146: 228 | Y146: 250 | Z146: =Y146 -> 250 | AB146: 232 | AC146: 232 | AE146: 237 | AF146: 237 | AH146: 231 | AI146: 231
C147: Whippen Output Arm | D147: 92 | E147: 92.56136459 | G147: 92 | H147: =I147 -> 0 | M147: 92.3 | N147: 92.99449842 | P147: 93.1 | Q147: 93.57263734 | V147: 92 | W147: 93.40016551 | Y147: 93 | Z147: =AA147 -> 0 | AB147: 92.15494334 | AC147: 93.57263734 | AE147: 92.3 | AF147: 92.99449842 | AH147: 93 | AI147: 94.02588486
C148: Whippen Input Arm | D148: 62 | E148: 65.78753681 | G148: 64 | H148: =SQRT(G158^2 + G148^2) -> 67.67569726 | M148: 62 | N148: 65.78753681 | P148: 59.7 | Q148: 66.73080248 | V148: 65 | W148: 68.62215386 | Y148: 63 | Z148: =SQRT(Y158^2 + Y148^2) -> 66.73080248 | AB148: 63 | AC148: 66.73080248 | AE148: 62 | AF148: 65.78753681 | AH148: 63 | AI148: 66.73080248
C149: Shank Output Arm | D149: 130 | E149: 137.5681649 | G149: 130 | H149: =SQRT(G159^2 + G149^2) -> 137.5681649 | M149: 130 | N149: 138.5784976 | P149: 130 | Q149: 135.7681848 | V149: 130 | W149: 138.5784976 | Y149: 141.4 | Z149: =SQRT(Y159^2 + Y149^2) -> 149.3250146 | AB149: 127 | AC149: 135.7681848 | AE149: 130 | AF149: 138.5784976 | AH149: 127 | AI149: 135.7681848
C150: Shank Input Arm | D150: 17 | E150: 21.58448517 | G150: 17 | M150: 17 | P150: 16.2 | V150: 17 | Y150: 17 | AB150: 17 | AE150: 17 | AH150: 17.75
C151: Knuck Diameter | D151: 10 | G151: 10 | H151: capstan -2 | M151: 10 | P151: 10 | V151: 9.4 | Y151: 10.6 | AB151: 10 | AE151: 10 | AH151: 10 | AI151: NOTES: dims at note 1
C152: Shank Thickness | D152: 6.6 | G152: 6.6 | M152: 6.2 | P152: 6.2 | V152: 6.65 | Y152: 6.65 | AB152: 6 | AE152: 6.2 | AH152: 6.35
C153: Blow Distance | D153: 45 | G153: 45 | M153: 44.5 | P153: 44.5 | V153: 47.6 | Y153: 47.6 | AB153: 45 | AE153: 44.5 | AH153: 47.83004537
C154: Let-Off | D154: 2 | G154: 2 | M154: 2 | P154: 2 | V154: 1.6 | Y154: 1.6 | AB154: 2 | AE154: 2 | AH154: 1.6
C155: Spread | D155: 111.5 | G155: 111.5 | M155: 112 | P155: 112 | V155: 112.75 | Y155: 112.3 | AB155: 113 | AE155: 112 | AH155: 114
C156: Key Length (optional) | D156: 515 | G156: 515 | M156: 482 | P156: 482 | V156: 515 | Y156: 515 | AB156: 482 | AE156: 482 | AH156: 482
C157: Capstan Height | D157: 38 | G157: 38 | M157: 39 | P157: 39 | V157: 39 | Y157: 39 | AB157: 39 | AE157: 39 | AH157: 39
C158: Whipen Heel Height | D158: 22 | G158: 22 | M158: 22 | P158: 22 | V158: 22 | Y158: 22 | AB158: 22 | AE158: 22 | AH158: 22
C159: Hammer Bore | D159: 45 | G159: 45 | M159: 48 | P159: 48 | V159: 48 | Y159: 48 | AB159: 48 | AE159: 48 | AH159: 48
C160: Aftertouch | D160: 1.25 | G160: 1.25 | M160: 1.25 | P160: 1.25 | V160: 1.25 | Y160: 1.25 | AB160: 1.25 | AE160: 1.25 | AH160: 1.25
C161: Key Ratio Front | D161: 1.925925926 | E161: 1.853882512
C162: Key Ratio Back | D162: 0.5192307692 | E162: 0.539408508
C163: Whip ratio | D163: 1.483870968 | E163: 1.406974164
C164: Shank ratio | D164: 7.647058824 | E164: 6.373474458
C165: Whip Weight | D165: 17
C166: DW Target | D166: 50
C168: MAR | D168: 5.891840607
C169: DAR | D169: 4.837045409
C170: Dip | D170: 10.13972428
C171: Inertia | D171: 166.8468983
C172: Capstan Change | D172: 0
D176: TOP | P176: TOP | AI176: TOP
A178: Main Page | C178: Piano Name | D178: M&H AA JS | M178: M. I. | P178: SSL 367,119
C179: Key Output Arm | D179: 123 | E179: 129.034879 | M179: 115 | N179: =SQRT(M191^2 + M179^2) -> 121.4331092 | P179: 113 | Q179: 121.2424167
C180: Key Input Arm | D180: 231 | E180: 231 | M180: 250 | N180: =M180 -> 250 | P180: 239 | Q180: 239
C181: Whippen Output Arm | D181: 91.79350085 | E181: 93.45512665 | M181: 94.15 | N181: =O181 -> 0 | P181: 93 | Q181: 93.86975846
C182: Whippen Input Arm | D182: 61.79350085 | E182: 65.59296263 | M182: 57 | N182: =SQRT(M192^2 + M182^2) -> 61.09828148 | P182: 60 | Q182: 62.64183905
C183: Shank Output Arm | D183: 127 | E183: 135.7681848 | M183: 130 | N183: =SQRT(M193^2 + M183^2) -> 140.014285 | P183: 130 | Q183: 138.5784976
C184: Shank Input Arm | D184: 17 | M184: 16.2 | P184: 16
C185: Knuck Diameter | D185: 10 | M185: 10 | N185: change to 16.2 k and +2 to cap | P185: 10 | Q185: new shanks and Abel hammers
C186: Shank Thickness | D186: 6 | M186: 6 | P186: 6
C187: Blow Distance | D187: 47.83004537 | M187: 47 | P187: 44.5
C188: Let-Off | D188: 1.6 | M188: 2 | P188: 2
C189: Spread | D189: 113 | M189: 113.5 | P189: 112
C190: Key Length (optional) | D190: 482 | M190: 515 | P190: 492
C191: Capstan Height | D191: 39 | M191: 39 | P191: 43.94
C192: Whipen Heel Height | D192: 22 | M192: 22 | P192: 18
C193: Hammer Bore | D193: 48 | M193: 52 | P193: 48
C194: Aftertouch | D194: 1.25 | M194: 1.25 | P194: 1.25
C195: Key Ratio Front | J195: 2 | K195: 1.946369226
C196: Key Ratio Back | J196: 0.5 | K196: 0.5137771328
C197: Whip ratio | J197: 1.455555556 | K197: 1.395961677
C198: Shank ratio | J198: 7.647058824 | K198: 6.616825781
C199: Whip Weight | J199: 17
C200: DW Target | J200: 50
C202: MAR | J202: 5.565359477
C203: DAR | J203: 4.745674713
C204: Dip | J204: 10
C205: Inertia | J205: 310.7925544
C206: Capstan Change | J206: 0
C212: Stuff below is interesting, but you don't need to use it.
B215: Number | D215: TOP | P215: TOP | Y215: TOP | AD215: TOP
C217: MEASURE WHIPPEN HEEL HEIGHT --- ONE SIMPLE MEASUREMENT
E220: =C239 -> 62.5
D223: 61
D224: 130
E226: =C240 -> 66.25896166
C238: =D18 -> 22 | D238: Whippen Heel Height here
C239: =D8 -> 62.5 | D239: is carried in from Main Form
C240: =SQRT(C238^2 + C239^2) -> 66.25896166 | D240: is Whippen Input Distance Radial Arm
C245: MEASURE CAPSTAN-KEY HEIGHT --- ONE SIMPLE MEASUREMENT
L246: `
G253: =C266 -> 130.3840481
D254: =C264 -> 46
G259: =C265 -> 122
C264: =D17 -> 46 | D264: Height of Capstan Screw
C265: =D5 -> 122 | D265: is carried in from Main Form
C266: =SQRT(C264^2 + C265^2) -> 130.3840481 | D266: is Key Out Distance Radial Arm
C270: MEASURE HAMMER BORE --- ONE SIMPLE MEASUREMENT
D281: =C297 -> 45 | H281: =C305 -> 137.5681649
I292: =C298 -> 130
C297: =D13 -> 45 | D297: Hammer Bore Dimension
... 7 more rows

Sheet Compare
A1: ='Simple AR Calculator'!D8 -> 240
B3: ='Simple AR Calculator'!C6 -> Standard Action | H3: Read Why You Are Here --->>>
L4: ='Simple AR Calculator'!H7 -> 5.722039216
B5: Piano Size | C5: = Concert or Largest Grand | G5: =((H5/F6)-1) *100 -> 0.3006000127 | H5: ='Simple AR Calculator'!H8 -> 4.929058058 | I5: Action Ratio per your measurements | S5: =H9 -> 9.973776327 | T5: mm
A6: ='Simple AR Calculator'!C16 -> 2 | B6: Nominal Action Ratio per Mfg. Specs | F6: =(F8-A6)/(F9-A7) -> 4.914285714 | G6: =((H6/F6)-1) *100 -> 0.3006000127 | H6: ='Simple AR Calculator'!H9 -> 4.929058058 | I6: AR per Comp. Blow and Comp. Dip below
A7: ='Simple AR Calculator'!C22 -> 1.25 | B7: This is what you want | I7: This is what you have
A8: ='Simple AR Calculator'!F47 -> 9.129533366 | B8: Blow Distance per Mfg. spec | E8: =F8/25.4 -> 1.771653543 | F8: =Archives!D13 -> 45 | H8: ='Simple AR Calculator'!A15 -> 45 | I8: Computed Blow Distance | M8: =DipCalc!H16 -> 45.12925801 | P8: =H12 -> 17
A9: =F9-A7 -> 8.75 | B9: Dip -- target dip you prefer | E9: =F9/25.4 -> 0.3937007874 | F9: 10 | H9: ='Simple AR Calculator'!H47 -> 9.973776327 | I9: Comp. dip per above AR and Comp. Blow
A10: ='Simple AR Calculator'!C7 -> 122 | B10: Piano Size | C10: 1
A11: ='Simple AR Calculator'!C8 -> 240 | B11: Enter a trial knuckle dimension change >> | H11: The items under consideration are below.
A12: ='Simple AR Calculator'!D25 -> 1.411450037 | H12: ='Simple AR Calculator'!C12 -> 17 | I12: Knuckle dimension mm | O12: MOVE CAPSTAN
A13: ='Simple AR Calculator'!D26 -> 6.428138198 | B13: Enter capstan change trial >> | E13: =(F8-M8) - 0.3 -> -0.4292580054 | G13: =#REF!-A8 ->  | H13: ='Simple AR Calculator'!C23 -> 1.967213115 | I13: Key Ratio | O13: <<plus<< | P13: =F13 -> 0 | Q13: >>minus>>
H14: ='Key Leads'!I185 -> 8.873632738 | I14: Hammer weight grams @ note C40
H15: ='Key Leads'!L185 -> 3.47826087 | I15: Aprox. key leads required at note C40
B16: Try a 2 to 1 Key Ratio
N19: Archives
B20: Comp_Res | N20: Hammers Page
N22: THEORETICAL MAXIMUM HAMMER WEIGHTS FOR THIS ACTION
N23: Note # to Hammer Weight Summary for Action | S23: =B3 -> Standard Action
B24: WRW -> | C24: 17 | E24: ='What If...'!G66 -> 120.6666667 | F24: if 2 to 1 | K24: Ent. DW> | L24: 50 | N24: Note -->> | O24: A 1 | P24: E 20 | Q24: A# 26 | R24: B 27 | S24: C 40 | T24: A 49 | U24: A 61 | V24: C 88 | W24: Inert. Avg
E25: =Archives!D5 -> 122 | F25: original | N25: Ham gms | O25: ='Key Leads'!D140 -> 10.84845318 | P25: ='Key Leads'!E140 -> 9.99211511 | Q25: ='Key Leads'!F140 -> 9.677541943 | R25: ='Key Leads'!G140 -> 9.625113082 | S25: ='Key Leads'!H140 -> 8.873632738 | T25: ='Key Leads'!I140 -> 8.244486403 | U25: ='Key Leads'!J140 -> 7.265814326 | V25: ='Key Leads'!K140 -> 4.277369236 | W25: ='Key Leads'!L140 -> 135.8361821
E26: ='What If...'!H19 -> 122 | F26: your final
H27: ='What If...'!K66 -> 241.3333333 | I27: if 2 to 1
H28: =Archives!D6 -> 240 | I28: original
H29: ='Simple AR Calculator'!D8 -> 240 | I29: your final
O31: Changes (if any) made here on the Compare Page | R31: Original Input Data from the Archives Page
I32: 0
O34: MAR | P34: DAR | R34: MAR | S34: DAR
O35: =B3 -> Standard Action | R35: =O35 -> Standard Action | Y35: =O35 -> Standard Action
N36: ='Simple AR Calculator'!B7 -> Key Out | O36: ='Simple AR Calculator'!C7 -> 122 | P36: ='Simple AR Calculator'!D7 -> 130.3840481 | R36: =Archives!D5 -> 122 | S36: =Archives!E5 -> 130.3840481 | Y36: 122 | Z36: =P36 -> 130.3840481
N37: ='Simple AR Calculator'!B8 -> Key In | O37: ='Simple AR Calculator'!C8 -> 240 | P37: ='Simple AR Calculator'!D8 -> 240 | R37: =Archives!D6 -> 240 | S37: =Archives!E6 -> 240 | Y37: 240 | Z37: 240
N38: ='Simple AR Calculator'!B9 -> Whip_out | O38: ='Simple AR Calculator'!C9 -> 92 | P38: ='Simple AR Calculator'!D9 -> 93.5212139 | R38: =Archives!D7 -> 92 | S38: =Archives!E7 -> 93.5212139 | Y38: 92 | Z38: 93.5212139
N39: ='Simple AR Calculator'!B10 -> Whip_in | O39: ='Simple AR Calculator'!C10 -> 62.5 | P39: ='Simple AR Calculator'!D10 -> 66.25896166 | R39: =Archives!D8 -> 62.5 | S39: =Archives!E8 -> 66.25896166 | Y39: 62.5 | Z39: 66.25896166
N40: ='Simple AR Calculator'!B11 -> Shank_out | O40: ='Simple AR Calculator'!C11 -> 130 | P40: ='Simple AR Calculator'!D11 -> 137.5681649 | R40: =Archives!D9 -> 130 | S40: =Archives!E9 -> 137.5681649 | Y40: 130 | Z40: 137.5681649
N41: ='Simple AR Calculator'!B12 -> Shank_Input | O41: ='Simple AR Calculator'!C12 -> 17 | P41: ='Simple AR Calculator'!K13 -> 21.40093456 | R41: =Archives!D10 -> 17 | Y41: 17 | Z41: 21.40093456
N42: Knuckle Dia. | O42: ='Simple AR Calculator'!C13 -> 10 | R42: =Archives!D11 -> 10 | Y42: 10
N43: Shank Thk. | O43: ='Simple AR Calculator'!C14 -> 6 | P43: modified 10/31/18 | R43: =Archives!D12 -> 6 | Y43: 6
N44: Blow Dist. | O44: ='Simple AR Calculator'!C15 -> 45 | R44: =Archives!D13 -> 45 | Y44: 45
N45: ='Simple AR Calculator'!B16 -> Let-Off | O45: ='Simple AR Calculator'!C16 -> 2 | R45: =Archives!D14 -> 2 | Y45: 2
N46: ='Simple AR Calculator'!B17 -> Spread | O46: ='Simple AR Calculator'!C17 -> 113 | R46: =Archives!D15 -> 113 | Y46: 113
N47: Key Length | O47: ='Simple AR Calculator'!C18 -> 515 | R47: =Archives!D16 -> 515 | Y47: 515
N48: Capstan Hl. | O48: ='Simple AR Calculator'!C19 -> 46 | R48: =Archives!D17 -> 46 | Y48: 46
N49: Whip Heel | O49: ='Simple AR Calculator'!C20 -> 22 | R49: =Archives!D18 -> 22 | Y49: 22
N50: Ham Bore | O50: ='Simple AR Calculator'!C21 -> 45 | R50: =Archives!D19 -> 45 | Y50: 45
N51: ='Simple AR Calculator'!B22 -> Aftertouch | O51: ='Simple AR Calculator'!C22 -> 1.25 | R51: =Archives!D20 -> 1.25 | Y51: 1.25
N52: Key Ro Fr. | O52: ='Simple AR Calculator'!C23 -> 1.967213115 | P52: ='Simple AR Calculator'!D23 -> 1.840715973 | R52: =Archives!D21 -> 1.954887218 | S52: =Archives!E21 -> 1.863138191 | Y52: =O52 -> 1.967213115 | Z52: 1.840715973
N53: Key Ro Bk. | O53: ='Simple AR Calculator'!C24 -> 0.5083333333 | P53: ='Simple AR Calculator'!D24 -> 0.5432668671 | R53: =Archives!D22 -> 0.5115384615 | S53: =Archives!E22 -> 0.5367288399 | Y53: 0.5083333333 | Z53: 0.5432668671
N54: ='Simple AR Calculator'!B25 -> Whip ratio | O54: ='Simple AR Calculator'!C25 -> 1.472 | P54: ='Simple AR Calculator'!D25 -> 1.411450037 | R54: =Archives!D23 -> 1.378254211 | S54: =Archives!E23 -> 1.339220338 | Y54: 1.472 | Z54: 1.411450037
N55: ='Simple AR Calculator'!B26 -> Shank ratio | O55: ='Simple AR Calculator'!C26 -> 7.647058824 | P55: ='Simple AR Calculator'!D26 -> 6.428138198 | R55: =Archives!D24 -> 7.647058824 | S55: =Archives!E24 -> 6.428138198 | Y55: 7.647058824 | Z55: 6.428138198
N56: Whip Wt. | O56: ='Simple AR Calculator'!C27 -> 17 | R56: =Archives!D26 -> 50 | Y56: =O56 -> 17
N57: DW Target | O57: ='Simple AR Calculator'!C28 -> 50 | R57: =Archives!D27 -> 0 | Y57: =O57 -> 50
N59: MAR = | O59: ='Simple AR Calculator'!C30 -> 5.722039216 | R59: =Archives!D29 -> 4.929058058 | Y59: =O59 -> 5.722039216
N60: DAR = | O60: ='Simple AR Calculator'!C31 -> 4.929058058 | R60: =Archives!D30 -> 9.973776327 | Y60: =O60 -> 4.929058058
N61: Dip = | O61: ='Simple AR Calculator'!C32 -> 9.973776327 | R61: =Archives!D31 -> 153.3044409 | Y61: =O61 -> 9.973776327
N62: Inertia = | O62: ='Simple AR Calculator'!C33 -> 153.2069852 | R62: =Archives!D32 -> 0 | Y62: =O62 -> 153.2069852
N63: Capstan Chg | O63: ='Simple AR Calculator'!C34 -> 0 | R63: =Archives!D33 -> 0 | Y63: =O63 -> 0
B98: 320

Sheet Hammers
A1: ='Simple AR Calculator'!C24 -> 0.5083333333
A2: ='Simple AR Calculator'!C25 -> 1.472 | Y2: DRAG CURSOR TO COPY ANY COLUMN (don't include heading text), PASTE DATA TO LEFT IN EITHER THE MY WEIGHTS OR ORGINAL WEIGHTS COLUMNS
A3: ='Simple AR Calculator'!C26 -> 7.647058824
A4: ='Simple AR Calculator'!F6 -> 17 | C4: ='Simple AR Calculator'!C6:D6 -> Standard Action | G4: Back to Compare Page | AA4: Go to My Weights | AK4: Go to My Weights
A5: ='Key Leads'!P75 -> 38 | B5: My FWs | C5: Note | D5: Ham Wts | E5: My Wts. | F5: Orig. Wts. | W5: Back to Calc Page | Y5: RENNER HAMMERS TRENDLINE CURVES | AE5: NY SSB Trendline | AF5: Renner AB BP Actual Weights | AG5: NY SSB Trendline Original | AH5: Renner SMOL BP Actual Weights | AI5: Ren G5-PBP Mdl D tapered no T-Pins | AJ5: Jason SSO Act Trendline | AL5: Renner SMLO Blue Points | AP5: NY S&S D smooth Trendline | AX5: f(x)=-(4.690744*10^(-4))*x^2-0.0256072*x+9.8644805
B6: =(((E6+1.5)*$A$3*$A$2)+$A$4)*$A$1-$A$5 -> 32.03285435 | C6: A 1 | D6: ='Key Leads'!I146 -> 10.84845318 | E6: 9.2289002 | F6: 7.7 | Y6: SMOL BP | Z6: AB BP | AA6: D PB | AB6: G4L Std | AC6: G4L Full | AD6: G4L Std | AM6: AB Blue Points | AN6: Mdl. D Blue Points | AO6: NY S&S D per samples | AQ6: NY S&S D full side taper | AR6: SSB new from factory | AS6: SSL new Abels | AT6: SSB 185644 Original | AU6: Abel GA - S5
B7: =(((E7+1.5)*$A$3*$A$2)+$A$4)*$A$1-$A$5 -> 31.93329888 | C7: A# 2 | D7: ='Key Leads'!I147 -> 10.8135006 | E7: 9.2115016 | Y7: Trendline | Z7: Trendline | AA7: Trendline | AB7: 8mm tpr | AC7: Side tpr | AD7: 8mm tpr | AX7: x f(x)
B8: 31.8280351 | C8: B 3 | D8: ='Key Leads'!I148 -> 10.76107174 | E8: 9.1931054 | X8: Note | AB8: Trendline | AC8: Trendline | AD8: Trendline2 | AK8: Note
B9: 31.71706989 | C9: C 4 | D9: ='Key Leads'!I149 -> 10.72611917 | E9: 9.1737128 | X9: A 1 | Y9: 9.2923 | Z9: 9.2289002 | AA9: 10.416005 | AB9: 11.1421995 | AC9: 9.7015881 | AD9: 10.9861003 | AE9: 9.527441687 | AF9: 9.8 | AG9: 8.927441687 | AH9: 9.1 | AI9: 10.5 | AJ9: 8.6626314 | AK9: A 1 | AL9: 9.1 | AM9: 9.8 | AN9: 10.5 | AO9: 12.08 | AP9: 12.0751883 | AQ9: =AP9-1 -> 11.0751883 | AR9: 9.8 | AS9: 9.74 | AT9: 7.4874991 | AU9: 9.8384042
B10: 31.60041009 | C10: C# 5 | D10: ='Key Leads'!I150 -> 10.67369031 | E10: 9.153325 | X10: A# 2 | Y10: 9.2457 | Z10: 9.2115016 | AA10: 10.42724 | AB10: 11.083996 | AC10: 9.6654009 | AD10: 10.9366024 | AE10: 9.482263027 | AF10: 9.5 | AG10: 8.882263027 | AH10: 9 | AI10: 10.5 | AJ10: 8.6492824 | AK10: A# 2 | AL10: 9 | AM10: 9.5 | AN10: 10.5 | AO10: 11.9 | AP10: 12.0047651 | AQ10: =AP10-1 -> 11.0047651 | AR10: 10.1 | AS10: 9.7 | AT10: 7.4554473 | AU10: 9.8113898
B11: 31.4780626 | C11: D 6 | D11: ='Key Leads'!I151 -> 10.63873773 | E11: 9.1319432 | X11: B 3 | Y11: 9.1987 | Z11: 9.1931054 | AA11: 10.435735 | AB11: 11.0253865 | AC11: 9.6284161 | AD11: 10.8865081 | AE11: 9.452143921 | AF11: 9.2 | AG11: 8.852143921 | AH11: 8.8 | AI11: 10.6 | AJ11: 8.6348154 | AK11: B 3 | AL11: 8.8 | AM11: 9.2 | AN11: 10.6 | AO11: 11.8 | AP11: 11.9336225 | AQ11: 10.9336225 | AR11: 10 | AS11: 9.45 | AT11: 7.4228093 | AU11: 9.7834372
B12: 31.35003426 | C12: D# 7 | D12: ='Key Leads'!I152 -> 10.58630887 | E12: 9.1095686 | X12: C 4 | Y12: 9.1513 | Z12: 9.1737128 | AA12: 10.44152 | AB12: 10.966368 | AC12: 9.5906413 | AD12: 10.8358192 | AE12: 9.406965261 | AF12: 9.1 | AG12: 8.806965261 | AH12: 8.8 | AI12: 10.7 | AJ12: 8.6192303 | AK12: C 4 | AL12: 8.8 | AM12: 9.1 | AN12: 10.7 | AO12: 11.7 | AP12: 11.8617605 | AQ12: 10.8617605 | AR12: 10.1 | AS12: 9.47 | AT12: 7.389585 | AU12: 9.7545465
B13: 31.21633194 | C13: E 8 | D13: ='Key Leads'!I153 -> 10.53388001 | E13: 9.0862024 | X13: C# 5 | Y13: 9.1035 | Z13: 9.153325 | AA13: 10.444625 | AB13: 10.9069375 | AC13: 9.5520838 | AD13: 10.7845375 | AE13: 9.376846154 | AF13: 9.1 | AG13: 8.776846154 | AH13: 8.9 | AI13: 10.6 | AJ13: 8.6025273 | AK13: C# 5 | AL13: 8.9 | AM13: 9.1 | AN13: 10.6 | AO13: 11.6 | AP13: 11.7891791 | AQ13: 10.7891791 | AR13: 10.4 | AS13: 9.28 | AT13: 7.3557744 | AU13: 9.7247176
B14: 31.07696252 | C14: F 9 | D14: ='Key Leads'!I154 -> 10.49892744 | E14: 9.0618458 | X14: D 6 | Y14: 9.0553 | Z14: 9.1319432 | AA14: 10.44508 | AB14: 10.847092 | AC14: 9.5127513 | AD14: 10.7326648 | AE14: 9.331667494 | AF14: 9.1 | AG14: 8.731667494 | AH14: 8.8 | AI14: 10.5 | AJ14: 8.5847063 | AK14: D 6 | AL14: 8.8 | AM14: 9.1 | AN14: 10.5 | AO14: 11.55 | AP14: 11.7158782 | AQ14: 10.7158782 | AR14: 10.3 | AS14: 9.36 | AT14: 7.3213775 | AU14: 9.6939506
B15: 30.93193286 | C15: F# 10 | D15: ='Key Leads'!I155 -> 10.44649857 | E15: 9.0365 | X15: D# 7 | Y15: 9.0067 | Z15: 9.1095686 | AA15: 10.442915 | AB15: 10.7868285 | AC15: 9.4726511 | AD15: 10.6802029 | AE15: 9.286488834 | AF15: 8.9 | AG15: 8.686488834 | AH15: 8.7 | AI15: 10.6 | AJ15: 8.5657672 | AK15: D# 7 | AL15: 8.7 | AM15: 8.9 | AN15: 10.6 | AO15: 11.5 | AP15: 11.6418579 | AQ15: 10.6418579 | AR15: 10.3 | AS15: 9.27 | AT15: 7.2863944 | AU15: 9.6622455
B16: 30.78124983 | C16: G 11 | D16: ='Key Leads'!I156 -> 10.411546 | E16: 9.0101662 | X16: E 8 | Y16: 8.9577 | Z16: 9.0862024 | AA16: 10.43816 | AB16: 10.726144 | AC16: 9.4317908 | AD16: 10.6271536 | AE16: 9.256369727 | AF16: 8.7 | AG16: 8.656369727 | AH16: 8.8 | AI16: 10.5 | AJ16: 8.5457102 | AK16: E 8 | AL16: 8.8 | AM16: 8.7 | AN16: 10.5 | AO16: 11.45 | AP16: 11.5671182 | AQ16: 10.5671182 | AR16: 10.4 | AS16: 9.18 | AT16: 7.2508249 | AU16: 9.6296021
B17: 30.62492028 | C17: G# 12 | D17: ='Key Leads'!I157 -> 10.35911714 | E17: 8.9828456 | X17: F 9 | Y17: 8.9083 | Z17: 9.0618458 | AA17: 10.430845 | AB17: 10.6650355 | AC17: 9.3901778 | AD17: 10.5735187 | AE17: 9.211191067 | AF17: 8.7 | AG17: 8.611191067 | AH17: 9 | AI17: 10.2 | AJ17: 8.5245351 | AK17: F 9 | AL17: 9 | AM17: 8.7 | AN17: 10.2 | AO17: 11.4 | AP17: 11.4916591 | AQ17: 10.4916591 | AR17: 10.3 | AS17: 9.16 | AT17: 7.2146692 | AU17: 9.5960207
B18: 30.4629511 | C18: A 13 | D18: ='Key Leads'!I158 -> 10.32416456 | E18: 8.9545394 | X18: F# 10 | Y18: 8.8585 | Z18: 9.0365 | AA18: 10.421 | AB18: 10.6035 | AC18: 9.3478196 | AD18: 10.5193 | AE18: 9.18107196 | AF18: 8.7 | AG18: 8.58107196 | AH18: 9.1 | AI18: 10.5 | AJ18: 8.5022421 | AK18: F# 10 | AL18: 9.1 | AM18: 8.7 | AN18: 10.5 | AO18: 11.36 | AP18: 11.4154805 | AQ18: 10.4154805 | AR18: 10.1 | AS18: 9.06 | AT18: 7.1779271 | AU18: 9.5615011
B19: 30.29534913 | C19: A# 14 | D19: ='Key Leads'!I159 -> 10.2717357 | E19: 8.9252488 | X19: G 11 | Y19: 8.8083 | Z19: 9.0101662 | AA19: 10.408655 | AB19: 10.5415345 | AC19: 9.3047238 | AD19: 10.4644993 | AE19: 9.1358933 | AF19: 8.8 | AG19: 8.5358933 | AH19: 9.3 | AI19: 10.5 | AJ19: 8.478831 | AK19: G 11 | AL19: 9.3 | AM19: 8.8 | AN19: 10.5 | AO19: 11.32 | AP19: 11.3385826 | AQ19: 10.3385826 | AR19: 10.3 | AS19: 9.06 | AT19: 7.1405988 | AU19: 9.5260433
B20: 30.12212126 | C20: B 15 | D20: ='Key Leads'!I160 -> 10.23678313 | E20: 8.894975 | X20: G# 12 | Y20: 8.7577 | Z20: 8.9828456 | AA20: 10.39384 | AB20: 10.479136 | AC20: 9.2608978 | AD20: 10.4091184 | AE20: 9.105774194 | AF20: 8.7 | AG20: 8.505774194 | AH20: 9.3 | AI20: 10.4 | AJ20: 8.4543019 | AK20: G# 12 | AL20: 9.3 | AM20: 8.7 | AN20: 10.4 | AO20: 11.28 | AP20: 11.2609651 | AQ20: 10.2609651 | AR20: 10.3 | AS20: 9.11 | AT20: 7.1026842 | AU20: 9.4896474
B21: 29.94327435 | C21: C 16 | D21: ='Key Leads'!I161 -> 10.18435427 | E21: 8.8637192 | X21: A 13 | Y21: 8.7067 | Z21: 8.9545394 | AA21: 10.376585 | AB21: 10.4163015 | AC21: 9.2163491 | AD21: 10.3531591 | AE21: 9.060595533 | AF21: 9.3 | AG21: 8.460595533 | AH21: 9.2 | AI21: 10.3 | AJ21: 8.4286548 | AK21: A 13 | AL21: 9.2 | AM21: 9.3 | AN21: 10.3 | AO21: 11.23 | AP21: 11.1826283 | AQ21: 10.1826283 | AR21: 10.3 | AS21: 9.02 | AT21: 7.0641833 | AU21: 9.4523133
B22: 29.75881526 | C22: C# 17 | D22: ='Key Leads'!I162 -> 10.13192541 | E22: 8.8314826 | X22: A# 14 | Y22: 8.6553 | Z22: 8.9252488 | AA22: 10.35692 | AB22: 10.353028 | AC22: 9.1710851 | AD22: 10.2966232 | AE22: 9.030476427 | AF22: 9.1 | AG22: 8.430476427 | AH22: 9.1 | AI22: 10.1 | AJ22: 8.4018897 | AK22: A# 14 | AL22: 9.1 | AM22: 9.1 | AN22: 10.1 | AO22: 11.18 | AP22: 11.1035721 | AQ22: 10.1035721 | AR22: 10.1 | AS22: 8.85 | AT22: 7.0250961 | AU22: 9.4140411
B23: 29.56875086 | C23: D 18 | D23: ='Key Leads'!I163 -> 10.09697283 | E23: 8.7982664 | X23: B 15 | Y23: 8.6035 | Z23: 8.894975 | AA23: 10.334875 | AB23: 10.2893125 | AC23: 9.1251135 | AD23: 10.2395125 | AE23: 8.985297767 | AF23: 8.9 | AG23: 8.385297767 | AH23: 9.2 | AI23: 10 | AJ23: 8.3740066 | AK23: B 15 | AL23: 9.2 | AM23: 8.9 | AN23: 10 | AO23: 11.13 | AP23: 11.0237964 | AQ23: 10.0237964 | AR23: 9.9 | AS23: 9.1 | AT23: 6.9854227 | AU23: 9.3748308
B24: 29.37308802 | C24: D# 19 | D24: ='Key Leads'!I164 -> 10.04454397 | E24: 8.7640718 | X24: C 16 | Y24: 8.5513 | Z24: 8.8637192 | AA24: 10.31048 | AB24: 10.225152 | AC24: 9.0784416 | AD24: 10.1818288 | AE24: 8.940119107 | AF24: 9 | AG24: 8.340119107 | AH24: 9.1 | AI24: 9.8 | AJ24: 8.3450055 | AK24: C 16 | AL24: 9.1 | AM24: 9 | AN24: 9.8 | AO24: 11.08 | AP24: 10.9433013 | AQ24: 9.9433013 | AR24: 10 | AS24: 8.91 | AT24: 6.9451629 | AU24: 9.3346823
B25: 29.1718336 | C25: E 20 | D25: ='Key Leads'!I165 -> 9.99211511 | E25: 8.7289 | F25: 6.7 | X25: C# 17 | Y25: 8.4987 | Z25: 8.8314826 | AA25: 10.283765 | AB25: 10.1605435 | AC25: 9.0310769 | AD25: 10.1235739 | AE25: 8.91 | AF25: 8.9 | AG25: 8.31 | AH25: 8.8 | AI25: 9.9 | AJ25: 8.3148864 | AK25: C# 17 | AL25: 8.8 | AM25: 8.9 | AN25: 9.9 | AO25: 11.02 | AP25: 10.8620868 | AQ25: 9.8620868 | AR25: 9.9 | AS25: 9.04 | AT25: 6.9043169 | AU25: 9.2935956
B26: 28.96499447 | C26: F 21 | D26: ='Key Leads'!I166 -> 9.939686249 | E26: 8.6927522 | F26: 6.5 | X26: D 18 | Y26: 8.4457 | Z26: 8.7982664 | AA26: 10.25476 | AB26: 10.095484 | AC26: 8.9830269 | AD26: 10.0647496 | AE26: 8.86482134 | AF26: 8.8 | AG26: 8.26482134 | AH26: 8.8 | AI26: 10.1 | AJ26: 8.2836493 | AK26: D 18 | AL26: 8.8 | AM26: 8.8 | AN26: 10.1 | AO26: 10.95 | AP26: 10.7801528 | AQ26: 9.7801528 | AR26: 9.7 | AS26: 8.66 | AT26: 6.8628845 | AU26: 9.2515708
B27: 28.7525775 | C27: F# 22 | D27: ='Key Leads'!I167 -> 9.887257388 | E27: 8.6556296 | X27: D# 19 | Y27: 8.3923 | Z27: 8.7640718 | AA27: 10.223495 | AB27: 10.0299705 | AC27: 8.9342992 | AD27: 10.0053577 | AE27: 8.81964268 | AF27: 8.7 | AG27: 8.21964268 | AH27: 8.5 | AI27: 9.9 | AJ27: 8.2512942 | AK27: D# 19 | AL27: 8.5 | AM27: 8.7 | AN27: 9.9 | AO27: 10.88 | AP27: 10.6974994 | AQ27: 9.6974994 | AR27: 9.8 | AS27: 8.44 | AT27: 6.8208659 | AU27: 9.2086078
B28: 28.53458955 | C28: G 23 | D28: ='Key Leads'!I168 -> 9.834828527 | E28: 8.6175334 | X28: E 20 | Y28: 8.3385 | Z28: 8.7289 | AA28: 10.19 | AB28: 9.964 | AC28: 8.8849012 | AD28: 9.9454 | AE28: 8.77446402 | AF28: 8.7 | AG28: 8.17446402 | AH28: 8.3 | AI28: 9.9 | AJ28: 8.217821 | AK28: E 20 | AL28: 8.3 | AM28: 8.7 | AN28: 9.9 | AO28: 10.81 | AP28: 10.6141266 | AQ28: 9.6141266 | AR28: 9.3 | AS28: 8.54 | AT28: 6.778261 | AU28: 9.1647067
B29: 28.31103749 | C29: G# 24 | D29: ='Key Leads'!I169 -> 9.782399666 | E29: 8.5784648 | X29: F 21 | Y29: 8.2843 | Z29: 8.6927522 | AA29: 10.154305 | AB29: 9.8975695 | AC29: 8.8348404 | AD29: 9.8848783 | AE29: 8.72928536 | AF29: 8.7 | AG29: 8.12928536 | AH29: 8 | AI29: 9.5 | AJ29: 8.1832299 | AK29: F 21 | AL29: 8 | AM29: 8.7 | AN29: 9.5 | AO29: 10.73 | AP29: 10.5300344 | AQ29: 9.5300344 | AR29: 9 | AS29: 8.21 | AT29: 6.7350698 | AU29: 9.1198675
B30: 28.08192818 | C30: A 25 | D30: ='Key Leads'!I170 -> 9.729970804 | E30: 8.538425 | X30: F# 22 | Y30: 8.2297 | Z30: 8.6556296 | AA30: 10.11644 | AB30: 9.830676 | AC30: 8.7841242 | AD30: 9.8237944 | AE30: 8.6841067 | AF30: 8.6 | AG30: 8.0841067 | AH30: 7.9 | AI30: 9.6 | AJ30: 8.1475207 | AK30: F# 22 | AL30: 7.9 | AM30: 8.6 | AN30: 9.6 | AO30: 10.65 | AP30: 10.4452228 | AQ30: 9.4452228 | AR30: 9.6 | AS30: 8.28 | AT30: 6.6912923 | AU30: 9.0740901
B31: 27.8472685 | C31: A# 26 | D31: ='Key Leads'!I171 -> 9.677541943 | E31: 8.4974152 | X31: G 23 | Y31: 8.1747 | Z31: 8.6175334 | AA31: 10.076435 | AB31: 9.7633165 | AC31: 8.7327602 | AD31: 9.7621501 | AE31: 8.63892804 | AF31: 8.8 | AG31: 8.03892804 | AH31: 7.9 | AI31: 9.5 | AJ31: 8.1106936 | AK31: G 23 | AL31: 7.9 | AM31: 8.8 | AN31: 9.5 | AO31: 10.56 | AP31: 10.3596917 | AQ31: 9.3596917 | AR31: 9.3 | AS31: 8.25 | AT31: 6.6469286 | AU31: 9.0273745
B32: 27.6070653 | C32: B 27 | D32: ='Key Leads'!I172 -> 9.625113082 | E32: 8.4554366 | X32: G# 24 | Y32: 8.1193 | Z32: 8.5784648 | AA32: 10.03432 | AB32: 9.695488 | AC32: 8.6807559 | AD32: 9.6999472 | AE32: 8.59374938 | AF32: 8.8 | AG32: 7.99374938 | AH32: 7.9 | AI32: 9.5 | AJ32: 8.0727484 | AK32: G# 24 | AL32: 7.9 | AM32: 8.8 | AN32: 9.5 | AO32: 10.47 | AP32: 10.2734412 | AQ32: 9.2734412 | AR32: 9.6 | AS32: 8.3 | AT32: 6.6019785 | AU32: 8.9797208
B33: 27.36132546 | C33: C 28 | D33: ='Key Leads'!I173 -> 9.572684221 | E33: 8.4124904 | F33: 6.3 | X33: A 25 | Y33: 8.0635 | Z33: 8.538425 | AA33: 9.990125 | AB33: 9.6271875 | AC33: 8.6281187 | AD33: 9.6371875 | AE33: 8.54857072 | AF33: 8.9 | AG33: 7.94857072 | AH33: 7.8 | AI33: 9.4 | AJ33: 8.0336853 | AK33: A 25 | AL33: 7.8 | AM33: 8.9 | AN33: 9.4 | AO33: 10.38 | AP33: 10.1864713 | AQ33: 9.1864713 | AR33: 9.3 | AS33: 7.99 | AT33: 6.5564422 | AU33: 8.931129
B34: 27.11005584 | C34: C# 29 | D34: ='Key Leads'!I174 -> 9.520255359 | E34: 8.3685778 | X34: A# 26 | Y34: 8.0073 | Z34: 8.4974152 | AA34: 9.94388 | AB34: 9.558412 | AC34: 8.5748561 | AD34: 9.5738728 | AE34: 8.50339206 | AF34: 8.8 | AG34: 7.90339206 | AH34: 7.7 | AI34: 9.4 | AJ34: 7.9935041 | AK34: A# 26 | AL34: 7.7 | AM34: 8.8 | AN34: 9.4 | AO34: 10.29 | AP34: 10.0987819 | AQ34: 9.0987819 | AR34: 9.5 | AS34: 8.22 | AT34: 6.5103195 | AU34: 8.881599
B35: 26.85326331 | C35: D 30 | D35: ='Key Leads'!I175 -> 9.450350211 | E35: 8.3237 | X35: B 27 | Y35: 7.9507 | Z35: 8.4554366 | AA35: 9.895615 | AB35: 9.4891585 | AC35: 8.5209756 | AD35: 9.5100049 | AE35: 8.4582134 | AF35: 8.2 | AG35: 7.8582134 | AH35: 7.7 | AI35: 9.4 | AJ35: 7.9522049 | AK35: B 27 | AL35: 7.7 | AM35: 8.2 | AN35: 9.4 | AO35: 10.19 | AP35: 10.0103732 | AQ35: 9.0103732 | AR35: 9.3 | AS35: 7.99 | AT35: 6.4636106 | AU35: 8.8311309
B36: 26.59095473 | C36: D# 31 | D36: ='Key Leads'!I176 -> 9.39792135 | E36: 8.2778582 | X36: C 28 | Y36: 7.8937 | Z36: 8.4124904 | AA36: 9.84536 | AB36: 9.419424 | AC36: 8.4664847 | AD36: 9.4455856 | AE36: 8.413034739 | AF36: 8.2 | AG36: 7.813034739 | AH36: 7.6 | AI36: 9.3 | AJ36: 7.9097877 | AK36: C 28 | AL36: 7.6 | AM36: 8.2 | AN36: 9.3 | AO36: 10.09 | AP36: 9.921245 | AQ36: 8.921245 | AR36: 8.9 | AS36: 7.8 | AT36: 6.4163154 | AU36: 8.7797246
B37: 26.32313698 | C37: E 32 | D37: ='Key Leads'!I177 -> 9.345492489 | E37: 8.2310536 | X37: C# 29 | Y37: 7.8363 | Z37: 8.3685778 | AA37: 9.793145 | AB37: 9.3492055 | AC37: 8.4113909 | AD37: 9.3806167 | AE37: 8.352796526 | AF37: 8.3 | AG37: 7.752796526 | AH37: 7.6 | AI37: 9.3 | AJ37: 7.8662525 | AK37: C# 29 | AL37: 7.6 | AM37: 8.3 | AN37: 9.3 | AO37: 9.99 | AP37: 9.8313974 | AQ37: 8.8313974 | AR37: 8.8 | AS37: 7.97 | AT37: 6.3684339 | AU37: 8.7273801
B38: 26.04981691 | C38: F 33 | D38: ='Key Leads'!I178 -> 9.293063627 | E38: 8.1832874 | X38: D 30 | Y38: 7.7785 | Z38: 8.3237 | AA38: 9.739 | AB38: 9.2785 | AC38: 8.3557017 | AD38: 9.3151 | AE38: 8.307617866 | AF38: 8.2 | AG38: 7.707617866 | AH38: 7.7 | AI38: 8.6 | AJ38: 7.8215993 | AK38: D 30 | AL38: 7.7 | AM38: 8.2 | AN38: 8.6 | AO38: 9.89 | AP38: 9.7408303 | AQ38: 8.7408303 | AR38: 9 | AS38: 7.8 | AT38: 6.3199661 | AU38: 8.6740975
B39: 25.77100139 | C39: F# 34 | D39: ='Key Leads'!I179 -> 9.240634766 | E39: 8.1345608 | G39: Back to Calc Page | X39: D# 31 | Y39: 7.7203 | Z39: 8.2778582 | AA39: 9.682955 | AB39: 9.2073045 | AC39: 8.2994246 | AD39: 9.2490373 | AE39: 8.262439206 | AF39: 8.2 | AG39: 7.662439206 | AH39: 7.7 | AI39: 8.7 | AJ39: 7.7758281 | AK39: D# 31 | AL39: 7.7 | AM39: 8.2 | AN39: 8.7 | AO39: 9.8 | AP39: 9.6495439 | AQ39: 8.6495439 | AR39: 8.8 | AS39: 7.7 | AT39: 6.2709121 | AU39: 8.6198768
B40: 25.48669729 | C40: G 35 | D40: ='Key Leads'!I180 -> 9.170729618 | E40: 8.084875 | X40: E 32 | Y40: 7.6617 | Z40: 8.2310536 | AA40: 9.62504 | AB40: 9.135616 | AC40: 8.242567 | AD40: 9.1824304 | AE40: 8.217260546 | AF40: 7.9 | AG40: 7.617260546 | AH40: 7.6 | AI40: 8.6 | AJ40: 7.7289389 | AK40: E 32 | AL40: 7.6 | AM40: 7.9 | AN40: 8.6 | AO40: 9.7 | AP40: 9.557538 | AQ40: 8.557538 | AR40: 9.1 | AS40: 7.76 | AT40: 6.2212717 | AU40: 8.5647179
B41: 25.19691148 | C41: G# 36 | D41: ='Key Leads'!I181 -> 9.118300757 | E41: 8.0342312 | X41: F 33 | Y41: 7.6027 | Z41: 8.1832874 | AA41: 9.565285 | AB41: 9.0634315 | AC41: 8.1851364 | AD41: 9.1152811 | AE41: 8.172081886 | AF41: 7.8 | AG41: 7.572081886 | AH41: 7.6 | AI41: 8.4 | AJ41: 7.6809317 | AK41: F 33 | AL41: 7.6 | AM41: 7.8 | AN41: 8.4 | AO41: 9.6 | AP41: 9.4648127 | AQ41: 8.4648127 | AR41: 8.9 | AS41: 7.85 | AT41: 6.1710451 | AU41: 8.5086209
B42: 24.90165083 | C42: A 37 | D42: ='Key Leads'!I182 -> 9.048395608 | E42: 7.9826306 | X42: F# 34 | Y42: 7.5433 | Z42: 8.1345608 | AA42: 9.50372 | AB42: 8.990748 | AC42: 8.1271403 | AD42: 9.0475912 | AE42: 8.111843672 | AF42: 8 | AG42: 7.511843672 | AH42: 7.6 | AI42: 8.4 | AJ42: 7.6318064 | AK42: F# 34 | AL42: 7.6 | AM42: 8 | AN42: 8.4 | AO42: 9.5 | AP42: 9.3713679 | AQ42: 8.3713679 | AR42: 9.2 | AS42: 7.76 | AT42: 6.1202321 | AU42: 8.4515857
B43: 24.60092219 | C43: A# 38 | D43: ='Key Leads'!I183 -> 8.995966747 | E43: 7.9300744 | X43: G 35 | Y43: 7.4835 | Z43: 8.084875 | AA43: 9.440375 | AB43: 8.9175625 | AC43: 8.0685863 | AD43: 8.9793625 | AE43: 8.066665012 | AF43: 8 | AG43: 7.466665012 | AH43: 7.5 | AI43: 8.3 | AJ43: 7.5815632 | AK43: G 35 | AL43: 7.5 | AM43: 8 | AN43: 8.3 | AO43: 9.4 | AP43: 9.2772038 | AQ43: 8.2772038 | AR43: 9.5 | AS43: 7.81 | AT43: 6.0688329 | AU43: 8.3936124
B44: 24.29473244 | C44: B 39 | D44: ='Key Leads'!I184 -> 8.943537886 | E44: 7.8765638 | X44: G# 36 | Y44: 7.4233 | Z44: 8.0342312 | AA44: 9.37528 | AB44: 8.843872 | AC44: 8.0094817 | AD44: 8.9105968 | AE44: 8.006426799 | AF44: 8.1 | AG44: 7.406426799 | AH44: 7.3 | AI44: 8.4 | AJ44: 7.530202 | AK44: G# 36 | AL44: 7.3 | AM44: 8.1 | AN44: 8.4 | AO44: 9.3 | AP44: 9.1823202 | AQ44: 8.1823202 | AR44: 9.4 | AS44: 7.6 | AT44: 6.0168474 | AU44: 8.3347009
B45: 23.98308844 | C45: C 40 | D45: ='Key Leads'!I185 -> 8.873632738 | E45: 7.8221 | F45: 5.9 | X45: A 37 | Y45: 7.3627 | Z45: 7.9826306 | AA45: 9.308465 | AB45: 8.7696735 | AC45: 7.9498341 | AD45: 8.8412959 | AE45: 7.961248139 | AF45: 8.1 | AG45: 7.361248139 | AH45: 7.3 | AI45: 8.4 | AJ45: 7.4777227 | AK45: A 37 | AL45: 7.3 | AM45: 8.1 | AN45: 8.4 | AO45: 9.2 | AP45: 9.0867172 | AQ45: 8.0867172 | AR45: 9.4 | AS45: 7.6 | AT45: 5.9642756 | AU45: 8.2748512
B46: 23.66599706 | C46: C# 41 | D46: ='Key Leads'!I186 -> 8.803727589 | E46: 7.7666842 | X46: A# 38 | Y46: 7.3017 | Z46: 7.9300744 | AA46: 9.23996 | AB46: 8.694964 | AC46: 7.889651 | AD46: 8.7714616 | AE46: 7.916069479 | AF46: 7.9 | AG46: 7.316069479 | AH46: 7.3 | AI46: 8.4 | AJ46: 7.4241255 | AK46: A# 38 | AL46: 7.3 | AM46: 7.9 | AN46: 8.4 | AO46: 9.1 | AP46: 8.9903947 | AQ46: 7.9903947 | AR46: 9.2 | AS46: 7.63 | AT46: 5.9111176 | AU46: 8.2140635
B47: 23.34346516 | C47: D 42 | D47: ='Key Leads'!I187 -> 8.751298728 | E47: 7.7103176 | X47: B 39 | Y47: 7.2403 | Z47: 7.8765638 | AA47: 9.169795 | AB47: 8.6197405 | AC47: 7.8289399 | AD47: 8.7010957 | AE47: 7.855831266 | AF47: 7.9 | AG47: 7.255831266 | AH47: 7.3 | AI47: 8.3 | AJ47: 7.3694102 | AK47: B 39 | AL47: 7.3 | AM47: 7.9 | AN47: 8.3 | AO47: 9 | AP47: 8.8933529 | AQ47: 7.8933529 | AR47: 9.3 | AS47: 7.55 | AT47: 5.8573732 | AU47: 8.1523375
B48: 23.01549962 | C48: D# 43 | D48: ='Key Leads'!I188 -> 8.68139358 | E48: 7.6530014 | X48: C 40 | Y48: 7.1785 | Z48: 7.8221 | AA48: 9.098 | AB48: 8.544 | AC48: 7.7677081 | AD48: 8.6302 | AE48: 7.795593052 | AF48: 7.8 | AG48: 7.195593052 | AH48: 7.1 | AI48: 8.1 | AJ48: 7.3135769 | AK48: C 40 | AL48: 7.1 | AM48: 7.8 | AN48: 8.1 | AO48: 8.9 | AP48: 8.7955916 | AQ48: 7.7955916 | AR48: 8.9 | AS48: 7.39 | AT48: 5.8030425 | AU48: 8.0896735
B49: 22.68210729 | C49: E 44 | D49: ='Key Leads'!I189 -> 8.611488431 | E49: 7.5947368 | F49: 5.5 | X49: C# 41 | Y49: 7.1163 | Z49: 7.7666842 | AA49: 9.024605 | AB49: 8.4677395 | AC49: 7.7059634 | AD49: 8.5587763 | AE49: 7.750414392 | AF49: 7.8 | AG49: 7.150414392 | AH49: 7 | AI49: 8 | AJ49: 7.2566257 | AK49: C# 41 | AL49: 7 | AM49: 7.8 | AN49: 8 | AO49: 8.8 | AP49: 8.6971109 | AQ49: 7.6971109 | AR49: 8.9 | AS49: 7.33 | AT49: 5.7481256 | AU49: 8.0260712
B50: 22.34329505 | C50: F 45 | D50: ='Key Leads'!I190 -> 8.541583283 | E50: 7.535525 | X50: D 42 | Y50: 7.0537 | Z50: 7.7103176 | AA50: 8.94964 | AB50: 8.390956 | AC50: 7.643713 | AD50: 8.4868264 | AE50: 7.690176179 | AF50: 7.8 | AG50: 7.090176179 | AH50: 6.8 | AI50: 7.9 | AJ50: 7.1985564 | AK50: D 42 | AL50: 6.8 | AM50: 7.8 | AN50: 7.9 | AO50: 8.7 | AP50: 8.5979108 | AQ50: 7.5979108 | AR50: 8.7 | AS50: 7.33 | AT50: 5.6926224 | AU50: 7.9615309
B51: 21.99906976 | C51: F# 46 | D51: ='Key Leads'!I191 -> 8.471678135 | E51: 7.4753672 | X51: D# 43 | Y51: 6.9907 | Z51: 7.6530014 | AA51: 8.873135 | AB51: 8.3136465 | AC51: 7.5809645 | AD51: 8.4143521 | AE51: 7.629937965 | AF51: 7.7 | AG51: 7.029937965 | AH51: 6.9 | AI51: 7.8 | AJ51: 7.1393691 | AK51: D# 43 | AL51: 6.9 | AM51: 7.7 | AN51: 7.8 | AO51: 8.6 | AP51: 8.4979912 | AQ51: 7.4979912 | AR51: 8.8 | AS51: 7.28 | AT51: 5.6365328 | AU51: 7.8960523
B52: 21.64943829 | C52: G 47 | D52: ='Key Leads'!I192 -> 8.401772986 | E52: 7.4142646 | X52: E 44 | Y52: 6.9273 | Z52: 7.5947368 | AA52: 8.79512 | AB52: 8.235808 | AC52: 7.5177254 | AD52: 8.3413552 | AE52: 7.569699752 | AF52: 7.6 | AG52: 6.969699752 | AH52: 6.7 | AI52: 7.7 | AJ52: 7.0790638 | AK52: E 44 | AL52: 6.7 | AM52: 7.6 | AN52: 7.7 | AO52: 8.54 | AP52: 8.3973522 | AQ52: 7.3973522 | AR52: 8.5 | AS52: 7.24 | AT52: 5.579857 | AU52: 7.8296357
B53: 21.2944075 | C53: G# 48 | D53: ='Key Leads'!I193 -> 8.331867838 | E53: 7.3522184 | X53: F 45 | Y53: 6.8635 | Z53: 7.535525 | AA53: 8.715625 | AB53: 8.1574375 | AC53: 7.4540032 | AD53: 8.2678375 | AE53: 7.509461538 | AF53: 7.7 | AG53: 6.909461538 | AH53: 6.8 | AI53: 7.9 | AJ53: 7.0176405 | AK53: F 45 | AL53: 6.8 | AM53: 7.7 | AN53: 7.9 | AO53: 8.45 | AP53: 8.2959938 | AQ53: 7.2959938 | AR53: 8.2 | AS53: 7.52 | AT53: 5.5225949 | AU53: 7.7622808
B54: 20.93398426 | C54: A 49 | D54: ='Key Leads'!I194 -> 8.244486403 | E54: 7.2892298 | F54: 5.2 | X54: F# 46 | Y54: 6.7993 | Z54: 7.4753672 | AA54: 8.63468 | AB54: 8.078532 | AC54: 7.3898054 | AD54: 8.1938008 | AE54: 7.449223325 | AF54: 7.6 | AG54: 6.849223325 | AH54: 6.8 | AI54: 7.7 | AJ54: 6.9550992 | AK54: F# 46 | AL54: 6.8 | AM54: 7.6 | AN54: 7.7 | AO54: 8.35 | AP54: 8.193916 | AQ54: 7.193916 | AR54: 8.6 | AS54: 7.2 | AT54: 5.4647466 | AU54: 7.6939879
B55: 20.56817544 | C55: A# 50 | D55: ='Key Leads'!I195 -> 8.174581254 | E55: 7.2253 | X55: G 47 | Y55: 6.7347 | Z55: 7.4142646 | AA55: 8.552315 | AB55: 7.9990885 | AC55: 7.3251394 | AD55: 8.1192469 | AE55: 7.388985112 | AF55: 7.5 | AG55: 6.788985112 | AH55: 6.7 | AI55: 7.4 | AJ55: 6.8914398 | AK55: G 47 | AL55: 6.7 | AM55: 7.5 | AN55: 7.4 | AO55: 8.3 | AP55: 8.0911187 | AQ55: 7.0911187 | AR55: 7.8 | AS55: 7.57 | AT55: 5.4063119 | AU55: 7.6247568
B56: 20.1969879 | C56: B 51 | D56: ='Key Leads'!I196 -> 8.104676106 | E56: 7.1604302 | X56: G# 48 | Y56: 6.6697 | Z56: 7.3522184 | AA56: 8.46856 | AB56: 7.919104 | AC56: 7.2600127 | AD56: 8.0441776 | AE56: 7.313687345 | AF56: 7.3 | AG56: 6.713687345 | AH56: 6.7 | AI56: 7.2 | AJ56: 6.8266625 | AK56: G# 48 | AL56: 6.7 | AM56: 7.3 | AN56: 7.2 | AO56: 8.2 | AP56: 7.9876021 | AQ56: 6.9876021 | AR56: 8.1 | AS56: 7.49 | AT56: 5.3472909 | AU56: 7.5545875
B57: 19.82042851 | C57: C 52 | D57: ='Key Leads'!I197 -> 8.017294671 | E57: 7.0946216 | X57: A 49 | Y57: 6.6043 | Z57: 7.2892298 | AA57: 8.383445 | AB57: 7.8385755 | AC57: 7.1944328 | AD57: 7.9685947 | AE57: 7.253449132 | AF57: 7.2 | AG57: 6.653449132 | AH57: 6.7 | AI57: 7 | AJ57: 6.7607672 | AK57: A 49 | AL57: 6.7 | AM57: 7.2 | AN57: 7 | AO57: 8 | AP57: 7.883366 | AQ57: 6.883366 | AR57: 8.1 | AS57: 7.38 | AT57: 5.2876837 | AU57: 7.4834801
B58: 19.43850413 | C58: C# 53 | D58: ='Key Leads'!I198 -> 7.947389522 | E58: 7.0278754 | X58: A# 50 | Y58: 6.5385 | Z58: 7.2253 | AA58: 8.297 | AB58: 7.7575 | AC58: 7.1284073 | AD58: 7.8925 | AE58: 7.193210918 | AF58: 7.2 | AG58: 6.593210918 | AH58: 6.5 | AI58: 6.9 | AJ58: 6.6937539 | AK58: A# 50 | AL58: 6.5 | AM58: 7.2 | AN58: 6.9 | AO58: 7.9 | AP58: 7.7784104 | AQ58: 6.7784104 | AR58: 8 | AS58: 7.08 | AT58: 5.2274902 | AU58: 7.4114345
B59: 19.05122164 | C59: D 54 | D59: ='Key Leads'!I199 -> 7.860008087 | E59: 6.9601928 | X59: B 51 | Y59: 6.4723 | Z59: 7.1604302 | AA59: 8.209255 | AB59: 7.6758745 | AC59: 7.0619436 | AD59: 7.8158953 | AE59: 7.117913151 | AF59: 7.2 | AG59: 6.517913151 | AH59: 6.5 | AI59: 6.6 | AJ59: 6.6256225 | AK59: B 51 | AL59: 6.5 | AM59: 7.2 | AN59: 6.6 | AO59: 7.8 | AP59: 7.6727355 | AQ59: 6.6727355 | AR59: 8 | AS59: 7.33 | AT59: 5.1667104 | AU59: 7.3384508
B60: 18.6585879 | C60: D# 55 | D60: ='Key Leads'!I200 -> 7.790102939 | E60: 6.891575 | X60: C 52 | Y60: 6.4057 | Z60: 7.0946216 | AA60: 8.12024 | AB60: 7.593696 | AC60: 6.9950491 | AD60: 7.7387824 | AE60: 7.057674938 | AF60: 7.1 | AG60: 6.457674938 | AH60: 6.5 | AI60: 6.6 | AJ60: 6.5563732 | AK60: C 52 | AL60: 6.5 | AM60: 7.1 | AN60: 6.6 | AO60: 7.7 | AP60: 7.5663411 | AQ60: 6.5663411 | AR60: 7.8 | AS60: 7.56 | AT60: 5.1053443 | AU60: 7.2645289
B61: 18.26060977 | C61: E 56 | D61: ='Key Leads'!I201 -> 7.702721503 | E61: 6.8220232 | X61: C# 53 | Y61: 6.3387 | Z61: 7.0278754 | AA61: 8.029985 | AB61: 7.5109615 | AC61: 6.9277314 | AD61: 7.6611631 | AE61: 6.982377171 | AF61: 7 | AG61: 6.382377171 | AH61: 6.5 | AI61: 6.7 | AJ61: 6.4860058 | AK61: C# 53 | AL61: 6.5 | AM61: 7 | AN61: 6.7 | AO61: 7.6 | AP61: 7.4592273 | AQ61: 6.4592273 | AR61: 7.3 | AS61: 7.31 | AT61: 5.0433919 | AU61: 7.1896689
B62: 17.85729413 | C62: F 57 | D62: ='Key Leads'!I202 -> 7.615340068 | E62: 6.7515386 | X62: D 54 | Y62: 6.2713 | Z62: 6.9601928 | AA62: 7.93852 | AB62: 7.427668 | AC62: 6.859998 | AD62: 7.5830392 | AE62: 6.922138958 | AF62: 6.9 | AG62: 6.322138958 | AH62: 6.2 | AI62: 6.3 | AJ62: 6.4145204 | AK62: D 54 | AL62: 6.2 | AM62: 6.9 | AN62: 6.3 | AO62: 7.5 | AP62: 7.3513941 | AQ62: 6.3513941 | AR62: 7.6 | AS62: 7.06 | AT62: 4.9808532 | AU62: 7.1138707
B63: 17.44864783 | C63: F# 58 | D63: ='Key Leads'!I203 -> 7.527958633 | E63: 6.6801224 | X63: D# 55 | Y63: 6.2035 | Z63: 6.891575 | AA63: 7.845875 | AB63: 7.3438125 | AC63: 6.7918563 | AD63: 7.5044125 | AE63: 6.846841191 | AF63: 6.9 | AG63: 6.246841191 | AH63: 6.1 | AI63: 6.2 | AJ63: 6.3419171 | AK63: D# 55 | AL63: 6.1 | AM63: 6.9 | AN63: 6.2 | AO63: 7.4 | AP63: 7.2428414 | AQ63: 6.2428414 | AR63: 7.6 | AS63: 7.06 | AT63: 4.9177282 | AU63: 7.0371344
B64: 17.03467775 | C64: G 59 | D64: ='Key Leads'!I204 -> 7.440577197 | E64: 6.6077758 | X64: E 56 | Y64: 6.1353 | Z64: 6.8220232 | AA64: 7.75208 | AB64: 7.259392 | AC64: 6.7233139 | AD64: 7.4252848 | AE64: 6.771543424 | AF64: 6.6 | AG64: 6.171543424 | AH64: 6 | AI64: 5.9 | AJ64: 6.2681957 | AK64: E 56 | AL64: 6 | AM64: 6.6 | AN64: 5.9 | AO64: 7.2 | AP64: 7.1335694 | AQ64: 6.1335694 | AR64: 7.2 | AS64: 7.04 | AT64: 4.854017 | AU64: 6.95946
B65: 16.61539075 | C65: G# 60 | D65: ='Key Leads'!I205 -> 7.353195762 | E65: 6.5345 | X65: F 57 | Y65: 6.0667 | Z65: 6.7515386 | AA65: 7.657165 | AB65: 7.1744035 | AC65: 6.6543781 | AD65: 7.3456579 | AE65: 6.696245658 | AF65: 6.5 | AG65: 6.096245658 | AH65: 5.8 | AI65: 5.8 | AJ65: 6.1933563 | AK65: F 57 | AL65: 5.8 | AM65: 6.5 | AN65: 5.8 | AO65: 7.16 | AP65: 7.0235779 | AQ65: 6.0235779 | AR65: 7.2 | AS65: 6.71 | AT65: 4.7897194 | AU65: 6.8808474
B66: 16.19079369 | C66: A 61 | D66: ='Key Leads'!I206 -> 7.265814326 | E66: 6.4602962 | F66: 4.7 | X66: F# 58 | Y66: 5.9977 | Z66: 6.6801224 | AA66: 7.56116 | AB66: 7.088844 | AC66: 6.5850566 | AD66: 7.2655336 | AE66: 6.620947891 | AF66: 6.4 | AG66: 6.020947891 | AH66: 5.9 | AI66: 6.6 | AJ66: 6.1173989 | AK66: F# 58 | AL66: 5.9 | AM66: 6.4 | AN66: 6.6 | AO66: 7 | AP66: 6.9128669 | AQ66: 5.9128669 | AR66: 7.3 | AS66: 6.35 | AT66: 4.7248356 | AU66: 6.8012966
B67: 15.76089345 | C67: A# 62 | D67: ='Key Leads'!I207 -> 7.160956604 | E67: 6.3851656 | X67: G 59 | Y67: 5.9283 | Z67: 6.6077758 | AA67: 7.464095 | AB67: 7.0027105 | AC67: 6.5153568 | AD67: 7.1849137 | AE67: 6.545650124 | AF67: 6.3 | AG67: 5.945650124 | AH67: 5.8 | AI67: 6.4 | AJ67: 6.0403235 | AK67: G 59 | AL67: 5.8 | AM67: 6.3 | AN67: 6.4 | AO67: 6.9 | AP67: 6.8014366 | AQ67: 5.8014366 | AR67: 7.1 | AS67: 6.35 | AT67: 4.6593655 | AU67: 6.7208077
B68: 15.32569689 | C68: B 63 | D68: ='Key Leads'!I208 -> 7.073575169 | E68: 6.3091094 | H68: NOTE | X68: G# 60 | Y68: 5.8585 | Z68: 6.5345 | AA68: 7.366 | AB68: 6.916 | AC68: 6.4452861 | AD68: 7.1038 | AE68: 6.470352357 | AF68: 6.5 | AG68: 5.870352357 | AH68: 5.7 | AI68: 6.4 | AJ68: 5.9621301 | AK68: G# 60 | AL68: 5.7 | AM68: 6.5 | AN68: 6.4 | AO68: 6.8 | AP68: 6.6892868 | AQ68: 5.6892868 | AR68: 7.1 | AS68: 6.3 | AT68: 4.5933091 | AU68: 6.6393807
B69: 14.88521088 | C69: C 64 | D69: ='Key Leads'!I209 -> 6.968717446 | E69: 6.2321288 | F69: 4.6 | X69: A 61 | Y69: 5.7883 | Z69: 6.4602962 | AA69: 7.266905 | AB69: 6.8287095 | AC69: 6.3748521 | AD69: 7.0221943 | AE69: 6.379995037 | AF69: 6.5 | AG69: 5.779995037 | AH69: 5.7 | AI69: 6.3 | AJ69: 5.8828187 | AK69: A 61 | AL69: 5.7 | AM69: 6.5 | AN69: 6.3 | AO69: 6.65 | AP69: 6.5764176 | AQ69: 5.5764176 | AR69: 7.1 | AS69: 6.11 | AT69: 4.5266664 | AU69: 6.5570155
B70: 14.43944228 | C70: C# 65 | D70: ='Key Leads'!I210 -> 6.881336011 | E70: 6.154225 | X70: A# 62 | Y70: 5.7177 | Z70: 6.3851656 | AA70: 7.16684 | AB70: 6.740836 | AC70: 6.3040623 | AD70: 6.9400984 | AE70: 6.30469727 | AF70: 6.4 | AG70: 5.70469727 | AH70: 5.6 | AI70: 6.2 | AJ70: 5.8023893 | AK70: A# 62 | AL70: 5.6 | AM70: 6.4 | AN70: 6.2 | AO70: 6.5 | AP70: 6.462829 | AQ70: 5.462829 | AR70: 6.5 | AS70: 5.91 | AT70: 4.4594374 | AU70: 6.4737121
B71: =(((E71+1.5)*$A$3*$A$2)+$A$4)*$A$1-$A$5 -> 13.98839796 | C71: D 66 | D71: ='Key Leads'!I211 -> 6.776478288 | E71: 6.0753992 | X71: B 63 | Y71: 5.6467 | Z71: 6.3091094 | AA71: 7.065835 | AB71: 6.6523765 | AC71: 6.232924 | AD71: 6.8575141 | AE71: 6.21433995 | AF71: 6.3 | AG71: 5.61433995 | AH71: 5.75 | AI71: 6.1 | AJ71: 5.7208418 | AK71: B 63 | AL71: 5.75 | AM71: 6.3 | AN71: 6.1 | AO71: 6.4 | AP71: 6.348521 | AQ71: 5.348521 | AR71: 6.5 | AS71: 6.29 | AT71: 4.3916221 | AU71: 6.3894706
B72: 13.53208479 | C72: D# 67 | D72: ='Key Leads'!I212 -> 6.671620566 | E72: 5.9956526 | X72: C 64 | Y72: 5.5753 | Z72: 6.2321288 | AA72: 6.96392 | AB72: 6.563328 | AC72: 6.161445 | AD72: 6.7744432 | AE72: 6.139042184 | AF72: 6.3 | AG72: 5.539042184 | AH72: 5.6 | AI72: 6 | AJ72: 5.6381764 | AK72: C 64 | AL72: 5.6 | AM72: 6.3 | AN72: 6 | AO72: 6.2 | AP72: 6.2334935 | AQ72: 5.2334935 | AR72: 6.4 | AS72: 5.98 | AT72: 4.3232206 | AU72: 6.304291
B73: 13.07050963 | C73: E 68 | D73: ='Key Leads'!I213 -> 6.566762843 | E73: 5.9149864 | W73: Back | X73: C# 65 | Y73: 5.5035 | Z73: 6.154225 | AA73: 6.861125 | AB73: 6.4736875 | AC73: 6.0896325 | AD73: 6.6908875 | AE73: 6.048684864 | AF73: 6.2 | AG73: 5.448684864 | AH73: 5.4 | AI73: 5.9 | AJ73: 5.554393 | AK73: C# 65 | AL73: 5.4 | AM73: 6.2 | AN73: 5.9 | AO73: 6 | AP73: 6.1177466 | AQ73: 5.1177466 | AR73: 6.2 | AS73: 6.07 | AT73: 4.2542327 | AU73: 6.2181732
B74: 12.60367935 | C74: F 69 | D74: ='Key Leads'!I214 -> 6.461905121 | E74: 5.8334018 | X74: D 66 | Y74: 5.4313 | Z74: 6.0753992 | AA74: 6.75748 | AB74: 6.383452 | AC74: 6.0174941 | AD74: 6.6068488 | AE74: 5.958327543 | AF74: 6 | AG74: 5.358327543 | AH74: 5.3 | AI74: 5.8 | AJ74: 5.4694915 | AK74: D 66 | AL74: 5.3 | AM74: 6 | AN74: 5.8 | AO74: 5.9 | AP74: 6.0012803 | AQ74: =AP74-1 -> 5.0012803 | AR74: 6.2 | AS74: 5.88 | AT74: 4.1846586 | AU74: 6.1311172
B75: 12.13160082 | C75: F# 70 | D75: ='Key Leads'!I215 -> 6.339571111 | E75: 5.7509 | X75: D# 67 | Y75: 5.3587 | Z75: 5.9956526 | AA75: 6.653015 | AB75: 6.2926185 | AC75: 5.9450373 | AD75: 6.5223289 | AE75: 5.867970223 | AF75: 5.8 | AG75: 5.267970223 | AH75: 5.4 | AI75: 5.5 | AJ75: 5.383472 | AK75: D# 67 | AL75: 5.4 | AM75: 5.8 | AN75: 5.5 | AO75: 5.8 | AP75: 5.8840946 | AQ75: 4.8840946 | AR75: 6.2 | AS75: 5.91 | AT75: 4.1144982 | AU75: 6.0431231
B76: 11.65428089 | C76: G 71 | D76: ='Key Leads'!I216 -> 6.234713389 | E76: 5.6674822 | X76: E 68 | Y76: 5.2857 | Z76: 5.9149864 | AA76: 6.54776 | AB76: 6.201184 | AC76: 5.8722696 | AD76: 6.4373296 | AE76: 5.777612903 | AF76: 5.8 | AG76: 5.177612903 | AH76: 5.1 | AI76: 5.5 | AJ76: 5.2963346 | AK76: E 68 | AL76: 5.1 | AM76: 5.8 | AN76: 5.5 | AO76: 5.7 | AP76: 5.7661894 | AQ76: 4.7661894 | AR76: 6.1 | AS76: 6.06 | AT76: 4.0437515 | AU76: 5.9541909
B77: 11.17172645 | C77: G# 72 | D77: ='Key Leads'!I217 -> 6.129855666 | E77: 5.5831496 | G77: Back to Calc Page | X77: F 69 | Y77: 5.2123 | Z77: 5.8334018 | AA77: 6.441745 | AB77: 6.1091455 | AC77: 5.7991985 | AD77: 6.3518527 | AE77: 5.67219603 | AF77: 5.6 | AG77: 5.07219603 | AH77: 4.8 | AI77: 5.4 | AJ77: 5.2080791 | AK77: F 69 | AL77: 4.8 | AM77: 5.6 | AN77: 5.4 | AO77: 5.5 | AP77: 5.6475648 | AQ77: 4.6475648 | AR77: 5.8 | AS77: 6 | AT77: 3.9724185 | AU77: 5.8643205
B78: 10.68394435 | C78: A 73 | D78: ='Key Leads'!I218 -> 6.007521657 | E78: 5.4979034 | X78: F# 70 | Y78: 5.1385 | Z78: 5.7509 | AA78: 6.335 | AB78: 6.0165 | AC78: 5.7258314 | AD78: 6.2659 | AE78: 5.58183871 | AF78: 5.6 | AG78: 4.98183871 | AH78: 4.7 | AI78: 5.2 | AJ78: 5.1187056 | AK78: F# 70 | AL78: 4.7 | AM78: 5.6 | AN78: 5.2 | AO78: 5.4 | AP78: 5.5282208 | AQ78: 4.5282208 | AR78: 5.7 | AS78: 6.1 | AT78: 3.9004992 | AU78: 5.7735119
B79: 10.19094146 | C79: A# 74 | D79: ='Key Leads'!I219 -> 5.902663934 | E79: 5.4117448 | X79: G 71 | Y79: 5.0643 | Z79: 5.6674822 | AA79: 6.227555 | AB79: 5.9232445 | AC79: 5.6521758 | AD79: 6.1794733 | AE79: 5.49148139 | AF79: 5.5 | AG79: 4.89148139 | AH79: 4.7 | AI79: 4.7 | AJ79: 5.0282142 | AK79: G 71 | AL79: 4.7 | AM79: 5.5 | AN79: 4.7 | AO79: 5.23 | AP79: 5.4081574 | AQ79: 4.4081574 | AR79: 5.6 | AS79: 6.11 | AT79: 3.8279937 | AU79: 5.6817652
B80: 9.692724651 | C80: B 75 | D80: ='Key Leads'!I220 -> 5.780329925 | E80: 5.324675 | X80: G# 72 | Y80: 4.9897 | Z80: 5.5831496 | AA80: 6.11944 | AB80: 5.829376 | AC80: 5.5782393 | AD80: 6.0925744 | AE80: 5.386064516 | AF80: 5.3 | AG80: 4.786064516 | AH80: 4.6 | AI80: 4.7 | AJ80: 4.9366047 | AK80: G# 72 | AL80: 4.6 | AM80: 5.3 | AN80: 4.7 | AO80: 5 | AP80: 5.2873745 | AQ80: 4.2873745 | AR80: 5.7 | AS80: 6 | AT80: 3.7549018 | AU80: 5.5890804
B81: 9.189300785 | C81: C 76 | D81: ='Key Leads'!I221 -> 5.657995915 | E81: 5.2366952 | F81: 3.5 | X81: A 73 | Y81: 4.9147 | Z81: 5.4979034 | AA81: 6.010685 | AB81: 5.7348915 | AC81: 5.5040292 | AD81: 6.0052051 | AE81: 5.295707196 | AF81: 5.3 | AG81: 4.695707196 | AH81: 4.5 | AI81: 4.6 | AJ81: 4.8438772 | AK81: A 73 | AL81: 4.5 | AM81: 5.3 | AN81: 4.6 | AO81: 4.9 | AP81: 5.1658722 | AQ81: 4.1658722 | AR81: 5.5 | AS81: 5.91 | AT81: 3.6812237 | AU81: 5.4954574
B82: 8.68067673 | C82: C# 77 | D82: ='Key Leads'!I222 -> 5.553138193 | E82: 5.1478066 | X82: A# 74 | Y82: 4.8393 | Z82: 5.4117448 | AA82: 5.90132 | AB82: 5.639788 | AC82: 5.4295532 | AD82: 5.9173672 | AE82: 5.190290323 | AF82: 5 | AG82: 4.590290323 | AH82: 4.4 | AI82: 4.4 | AJ82: 4.7500317 | AK82: A# 74 | AL82: 4.4 | AM82: 5 | AN82: 4.4 | AO82: 4.8 | AP82: 5.0436505 | AQ82: 4.0436505 | AR82: 5.5 | AS82: 5.72 | AT82: 3.6069592 | AU82: 5.4008963
B83: 8.166859352 | C83: D 78 | D83: ='Key Leads'!I223 -> 5.430804183 | E83: 5.0580104 | X83: B 75 | Y83: 4.7635 | Z83: 5.324675 | AA83: 5.791375 | AB83: 5.5440625 | AC83: 5.3548186 | AD83: 5.8290625 | AE83: 5.084873449 | AF83: 5.1 | AG83: 4.484873449 | AH83: 4.5 | AI83: 4.3 | AJ83: 4.6550682 | AK83: B 75 | AL83: 4.5 | AM83: 5.1 | AN83: 4.3 | AO83: 4.7 | AP83: 4.9207094 | AQ83: 3.9207094 | AR83: 5.4 | AS83: 5.65 | AT83: 3.5321085 | AU83: 5.305397
B84: 7.647855518 | C84: D# 79 | D84: ='Key Leads'!I224 -> 5.308470174 | E84: 4.9673078 | X84: C 76 | Y84: 4.6873 | Z84: 5.2366952 | AA84: 5.68088 | AB84: 5.447712 | AC84: 5.279833 | AD84: 5.7402928 | AE84: 4.994516129 | AF84: 5.2 | AG84: 4.394516129 | AH84: 4.4 | AI84: 4.3 | AJ84: 4.5589866 | AK84: C 76 | AL84: 4.4 | AM84: 5.2 | AN84: 4.3 | AO84: 4.6 | AP84: 4.7970488 | AQ84: 3.7970488 | AR84: 5.6 | AS84: 5.47 | AT84: 3.4566715 | AU84: 5.2089596
B85: 7.123672094 | C85: E 80 | D85: ='Key Leads'!I225 -> 5.203612451 | E85: 4.8757 | X85: C# 77 | Y85: 4.6107 | Z85: 5.1478066 | AA85: 5.569865 | AB85: 5.3507335 | AC85: 5.2046039 | AD85: 5.6510599 | AE85: 4.889099256 | AF85: 5.2 | AG85: 4.289099256 | AH85: 4.4 | AI85: 4.3 | AJ85: 4.4617871 | AK85: C# 77 | AL85: 4.4 | AM85: 5.2 | AN85: 4.3 | AO85: 4.5 | AP85: 4.6726688 | AQ85: 3.6726688 | AR85: 5.7 | AS85: 5.51 | AT85: 3.3806482 | AU85: 5.111584
B86: 6.594315947 | C86: F 81 | D86: ='Key Leads'!I226 -> 5.081278442 | E86: 4.7831882 | X86: D 78 | Y86: 4.5337 | Z86: 5.0580104 | AA86: 5.45836 | AB86: 5.253124 | AC86: 5.1291387 | AD86: 5.5613656 | AE86: 4.783682382 | AF86: 4.9 | AG86: 4.183682382 | AH86: 4.3 | AI86: 4.1 | AJ86: 4.3634696 | AK86: D 78 | AL86: 4.3 | AM86: 4.9 | AN86: 4.1 | AO86: 4.4 | AP86: 4.5475694 | AQ86: 3.5475694 | AR86: 5.5 | AS86: 5.43 | AT86: 3.3040386 | AU86: 5.0132703
B87: 6.059793942 | C87: F# 82 | D87: ='Key Leads'!I227 -> 4.958944432 | E87: 4.6897736 | X87: D# 79 | Y87: 4.4563 | Z87: 4.9673078 | AA87: 5.346395 | AB87: 5.1548805 | AC87: 5.0534449 | AD87: 5.4712117 | AE87: 4.693325062 | AF87: 4.8 | AG87: 4.093325062 | AH87: 4.2 | AI87: 4 | AJ87: 4.2640341 | AK87: D# 79 | AL87: 4.2 | AM87: 4.8 | AN87: 4 | AO87: 4.3 | AP87: 4.4217506 | AQ87: 3.4217506 | AR87: 5.2 | AS87: 5.08 | AT87: 3.2268428 | AU87: 4.9140184
B88: 5.520112947 | C88: G 83 | D88: ='Key Leads'!I228 -> 4.85408671 | E88: 4.5954574 | X88: E 80 | Y88: 4.3785 | Z88: 4.8757 | AA88: 5.234 | AB88: 5.056 | AC88: 4.97753 | AD88: 5.3806 | AE88: 4.587908189 | AF88: 4.7 | AG88: 3.987908189 | AH88: 4.2 | AI88: 4 | AJ88: 4.1634805 | AK88: E 80 | AL88: 4.2 | AM88: 4.7 | AN88: 4 | AO88: 4.2 | AP88: 4.2952123 | AQ88: 3.2952123 | AR88: 5.5 | AS88: 5.05 | AT88: 3.1490606 | AU88: 4.8138283
B89: 4.975279828 | C89: G# 84 | D89: ='Key Leads'!I229 -> 4.7317527 | E89: 4.5002408 | X89: F 81 | Y89: 4.3003 | Z89: 4.7831882 | AA89: 5.121205 | AB89: 4.9564795 | AC89: 4.9014016 | AD89: 5.2895323 | AE89: 4.482491315 | AF89: 4.6 | AG89: 3.882491315 | AH89: 4.1 | AI89: 4 | AJ89: 4.061809 | AK89: F 81 | AL89: 4.1 | AM89: 4.6 | AN89: 4 | AO89: 4.1 | AP89: 4.1679547 | AQ89: 3.1679547 | AR89: 5.6 | AS89: 5.32 | AT89: 3.0706922 | AU89: 4.7127002
B90: 4.425301451 | C90: A 85 | D90: ='Key Leads'!I230 -> 4.609418691 | E90: 4.404125 | X90: F# 82 | Y90: 4.2217 | Z90: 4.6897736 | AA90: 5.00804 | AB90: 4.856316 | AC90: 4.825067 | AD90: 5.1980104 | AE90: 4.392133995 | AF90: 4.3 | AG90: 3.792133995 | AH90: 4.1 | AI90: 4.1 | AJ90: 3.9590194 | AK90: F# 82 | AL90: 4.1 | AM90: 4.3 | AN90: 4.1 | AO90: 4 | AP90: 4.0399776 | AQ90: 3.0399776 | AR90: 5.1 | AS90: 5.33 | AT90: 2.9917375 | AU90: 4.6106338
B91: 3.870184683 | C91: A# 86 | D91: ='Key Leads'!I231 -> 4.504560968 | E91: 4.3071112 | X91: G 83 | Y91: 4.1427 | Z91: 4.5954574 | AA91: 4.894535 | AB91: 4.7555065 | AC91: 4.7485338 | AD91: 5.1060361 | AE91: 4.286717122 | AF91: 4.4 | AG91: 3.686717122 | AH91: 4 | AI91: 4 | AJ91: 3.8551118 | AK91: G 83 | AL91: 4 | AM91: 4.4 | AN91: 4 | AO91: 3.91 | AP91: 3.911281 | AQ91: 2.911281 | AR91: 5.3 | AS91: 4.94 | AT91: 2.9121964 | AU91: 4.5076294
B92: 3.30993639 | C92: B 87 | D92: ='Key Leads'!I232 -> 4.382226959 | E92: 4.2092006 | X92: G# 84 | Y92: 4.0633 | Z92: 4.5002408 | AA92: 4.78072 | AB92: 4.654048 | AC92: 4.6718095 | AD92: 5.0136112 | AE92: 4.181300248 | AF92: 4.4 | AG92: 3.581300248 | AH92: 4 | AI92: 3.8 | AJ92: 3.7500863 | AK92: G# 84 | AL92: 4 | AM92: 4.4 | AN92: 3.8 | AO92: 3.9 | AP92: 3.7818651 | AQ92: 2.7818651 | AR92: 5.5 | AS92: 4.69 | AT92: 2.8320691 | AU92: 4.4036867
B93: 2.744563439 | C93: C 88 | D93: ='Key Leads'!I233 -> 4.277369236 | E93: 4.1103944 | F93: 2.3 | X93: A 85 | Y93: 3.9835 | Z93: 4.404125 | AA93: 4.666625 | AB93: 4.5519375 | AC93: 4.5949015 | AD93: 4.9207375 | AE93: 4.090942928 | AF93: 4.4 | AG93: 3.490942928 | AH93: 3.8 | AI93: 3.7 | AJ93: 3.6439427 | AK93: A 85 | AL93: 3.8 | AM93: 4.4 | AN93: 3.7 | AO93: 3.88 | AP93: 3.6517297 | AQ93: 2.6517297 | AR93: 5.1 | AS93: 4.67 | AT93: 2.7513556 | AU93: 4.298806
X94: A# 86 | Y94: 3.9033 | Z94: 4.3071112 | AA94: 4.55228 | AB94: 4.449172 | AC94: 4.5178174 | AD94: 4.8274168 | AE94: 3.985526055 | AF94: 4.4 | AG94: 3.385526055 | AH94: 3.8 | AI94: 3.7 | AJ94: 3.5366811 | AK94: A# 86 | AL94: 3.8 | AM94: 4.4 | AN94: 3.7 | AO94: 3.84 | AP94: 3.5208749 | AQ94: 2.5208749 | AR94: 4.8 | AS94: 4.52 | AT94: 2.6700557 | AU94: 4.192987
C95: Avg Ham | D95: =AVERAGE(D6:D93) -> 8.206554916 | E95: =AVERAGE(AR9:AR96) -> 7.980681818 | F95: =AVERAGE(F6:F93) ->  | X95: B 87 | Y95: 3.8227 | Z95: 4.2092006 | AA95: 4.437715 | AB95: 4.3457485 | AC95: 4.4405646 | AD95: 4.7336509 | AE95: 3.895168734 | AF95: 4.1 | AG95: 3.295168734 | AH95: 3.7 | AI95: 3.7 | AJ95: 3.4283015 | AK95: B 87 | AL95: 3.7 | AM95: 4.1 | AN95: 3.7 | AO95: 3.81 | AP95: 3.3893007 | AQ95: 2.3893007 | AR95: 4.7 | AS95: 4.51 | AT95: 2.5881695 | AU95: 4.08623
X96: C 88 | Y96: 3.7417 | Z96: 4.1103944 | AA96: 4.32296 | AB96: 4.241664 | AC96: 4.3631506 | AD96: 4.6394416 | AE96: 3.337965261 | AF96: 3.9 | AG96: 2.737965261 | AH96: 3.7 | AI96: 3.8 | AJ96: 3.3188039 | AK96: C 88 | AL96: 3.7 | AM96: 3.9 | AN96: 3.8 | AO96: 3.77 | AP96: 3.4 | AQ96: 2.4 | AR96: 5 | AS96: 4.4 | AT96: 2.5056971 | AU96: 3.9785347

Sheet Summary Page
B1: Number | P1: ='Key Leads'!D133 -> 2.253333333e-05
D2: ='Simple AR Calculator'!C6 -> Standard Action | P2: ='Key Leads'!K133 -> 8.59918379
P3: ='Key Leads'!E133 -> 0.1375681649
P4: ='Key Leads'!L54 -> 240
P5: ='Key Leads'!M57 -> 120
I6: ='Simple AR Calculator'!C8 -> 240 | P6: ='Key Leads'!M72 -> 13.8
G7: MAXIMUM ALLOWABLE HAMMER WEIGHTS PER PROGRAM | N7: MY HAMMER WEIGHTS per HAMMERS PG. | T7: =Compare!L24 -> 50
C8: Back to Compare Page | D8: Go to Hammers Page | G8: Note | H8: Maximum Hammer Weight Grams | I8: ='Key Leads'!J145 -> Inertia | J8: ='Key Leads'!K145 -> # of Lds | K8: ='Key Leads'!L145 -> # of Lds | L8: # of Lds. Accel. | N8: Note | O8: My Hammer Weights (Gm) | P8: My Key Front Weights | Q8: Inertia | R8: ='Key Leads'!S145 -> # of Lds | S8: # of Lds | T8: =30 + T7 - 50 -> 30
T9: MAR
C10: Mass and Force Based Ratio (MAR) | E10: ='Simple AR Calculator'!H7 -> 5.722039216 | G10: A 1 | H10: ='Key Leads'!I146 -> 10.84845318 | I10: ='Key Leads'!J146 -> 172.8076284 | J10: ='Key Leads'!K146 -> 5.985507246 | K10: ='Key Leads'!L146 -> 4.788405797 | L10: ='Key Leads'!AG146 -> 8.97826087 | N10: A 1 | O10: =Hammers!E6 -> 9.2289002 | P10: =Hammers!B6 -> 32.03285435 | Q10: =(O10/1000*$P$3^2 + $P$1) *($P$2^2*10000) -> 145.8142416 | R10: =(P10* (P4/P5)) / P6 -> 4.64244266 | S10: =Hammers!B6 * ('Key Leads'!$L$54 / 'Key Leads'!$N$59) / 'Key Leads'!$M$72 -> 3.713954128 | T10: =(P10+$T$8) / (O10+1.6) -> 5.728453786
C11: Distance Ratio (DAR) @ Max Dip | E11: ='Simple AR Calculator'!H8 -> 4.929058058 | G11: A# 2 | H11: ='Key Leads'!I147 -> 10.8135006 | I11: ='Key Leads'!J147 -> 172.3184925 | J11: ='Key Leads'!K147 -> 5.956521739 | K11: ='Key Leads'!L147 -> 4.765217391 | L11: ='Key Leads'!AG147 -> 8.934782609 | N11: A# 2 | O11: =Hammers!E7 -> 9.2115016 | P11: =Hammers!B7 -> 31.93329888 | Q11: 145.5707608 | R11: =Hammers!B7 * ('Simple AR Calculator'!$C$8 / 'Simple AR Calculator'!$C$7) / 'Key Leads'!$M$72 -> 4.552145243 | S11: =Hammers!B7 * ('Key Leads'!$L$54 / 'Key Leads'!$N$59) / 'Key Leads'!$M$72 -> 3.702411464 | T11: =(P11+$T$8) / (O11+1.6) -> 5.728464109
C12: Average DAR mid stroke of key | E12: ='Simple AR Calculator'!F8 -> 5.386859347 | G12: B 3 | H12: ='Key Leads'!I148 -> 10.76107174 | I12: ='Key Leads'!J148 -> 171.5847887 | J12: ='Key Leads'!K148 -> 5.913043478 | K12: ='Key Leads'!L148 -> 4.730434783 | L12: ='Key Leads'!AG148 -> 8.869565217 | N12: B 3 | O12: =Hammers!E8 -> 9.1931054 | P12: =Hammers!B8 -> 31.8280351 | Q12: 145.3133194 | R12: =Hammers!B8 * ('Simple AR Calculator'!$C$8 / 'Simple AR Calculator'!$C$7) / 'Key Leads'!$M$72 -> 4.537139715 | S12: =Hammers!B8 * ('Key Leads'!$L$54 / 'Key Leads'!$N$59) / 'Key Leads'!$M$72 -> 3.690206968 | T12: 5.72847506
C13: ='Simple AR Calculator'!G10 -> Regulation Dip mm | E13: ='Simple AR Calculator'!H10 -> 9.973776327 | G13: C 4 | H13: ='Key Leads'!I149 -> 10.72611917 | I13: ='Key Leads'!J149 -> 171.0956528 | J13: ='Key Leads'!K149 -> 5.884057971 | K13: ='Key Leads'!L149 -> 4.707246377 | L13: ='Key Leads'!AG149 -> 8.826086957 | N13: C 4 | O13: =Hammers!E9 -> 9.1737128 | P13: =Hammers!B9 -> 31.71706989 | Q13: 145.041934 | R13: =Hammers!B9 * ('Simple AR Calculator'!$C$8 / 'Simple AR Calculator'!$C$7) / 'Key Leads'!$M$72 -> 4.521321438 | S13: =Hammers!B9 * ('Key Leads'!$L$54 / 'Key Leads'!$N$59) / 'Key Leads'!$M$72 -> 3.677341436 | T13: 5.728486644
C14: Key Ratio (front / back) | E14: ='Simple AR Calculator'!C23 -> 1.967213115 | G14: C# 5 | H14: ='Key Leads'!I150 -> 10.67369031 | I14: ='Key Leads'!J150 -> 170.361949 | J14: ='Key Leads'!K150 -> 5.84057971 | K14: ='Key Leads'!L150 -> 4.672463768 | L14: ='Key Leads'!AG150 -> 8.760869565 | N14: C# 5 | O14: =Hammers!E10 -> 9.153325 | P14: =Hammers!B10 -> 31.60041009 | Q14: 144.7566216 | R14: =Hammers!B10 * ('Simple AR Calculator'!$C$8 / 'Simple AR Calculator'!$C$7) / 'Key Leads'!$M$72 -> 4.504691389 | S14: =Hammers!B10 * ('Key Leads'!$L$54 / 'Key Leads'!$N$59) / 'Key Leads'!$M$72 -> 3.663815663 | T14: 5.728498868
G15: D 6 | H15: ='Key Leads'!I151 -> 10.63873773 | I15: ='Key Leads'!J151 -> 169.8728131 | J15: ='Key Leads'!K151 -> 5.811594203 | K15: ='Key Leads'!L151 -> 4.649275362 | L15: ='Key Leads'!AG151 -> 8.717391304 | N15: D 6 | O15: =Hammers!E11 -> 9.1319432 | P15: =Hammers!B11 -> 31.4780626 | Q15: 144.4573988 | R15: =Hammers!B11 * ('Simple AR Calculator'!$C$8 / 'Simple AR Calculator'!$C$7) / 'Key Leads'!$M$72 -> 4.487250548 | S15: =Hammers!B11 * ('Key Leads'!$L$54 / 'Key Leads'!$N$59) / 'Key Leads'!$M$72 -> 3.649630446 | T15: 5.728511738
C16: Strike Weight @ note C40 | E16: =E17+1.6 -> 10.47363274 | G16: D# 7 | H16: ='Key Leads'!I152 -> 10.58630887 | I16: ='Key Leads'!J152 -> 169.1391093 | J16: ='Key Leads'!K152 -> 5.768115942 | K16: ='Key Leads'!L152 -> 4.614492754 | L16: ='Key Leads'!AG152 -> 8.652173913 | N16: D# 7 | O16: =Hammers!E12 -> 9.1095686 | P16: =Hammers!B12 -> 31.35003426 | Q16: 144.1442825 | R16: =Hammers!B12 * ('Simple AR Calculator'!$C$8 / 'Simple AR Calculator'!$C$7) / 'Key Leads'!$M$72 -> 4.468999894 | S16: =Hammers!B12 * ('Key Leads'!$L$54 / 'Key Leads'!$N$59) / 'Key Leads'!$M$72 -> 3.634786581 | T16: 5.728525261
C17: Hammer Weight @ note C40 | E17: =H49 -> 8.873632738 | G17: E 8 | H17: ='Key Leads'!I153 -> 10.53388001 | I17: ='Key Leads'!J153 -> 168.4054055 | J17: ='Key Leads'!K153 -> 5.724637681 | K17: ='Key Leads'!L153 -> 4.579710145 | L17: ='Key Leads'!AG153 -> 8.586956522 | N17: E 8 | O17: =Hammers!E13 -> 9.0862024 | P17: =Hammers!B13 -> 31.21633194 | Q17: 143.8172896 | R17: =Hammers!B13 * ('Simple AR Calculator'!$C$8 / 'Simple AR Calculator'!$C$7) / 'Key Leads'!$M$72 -> 4.449940406 | S17: =Hammers!B13 * ('Key Leads'!$L$54 / 'Key Leads'!$N$59) / 'Key Leads'!$M$72 -> 3.619284863 | T17: 5.728539443
C18: Strike Weight @ note A49 | E18: =E19+1.6 -> 9.844486403 | G18: F 9 | H18: ='Key Leads'!I154 -> 10.49892744 | I18: ='Key Leads'!J154 -> 167.9162696 | J18: ='Key Leads'!K154 -> 5.695652174 | K18: ='Key Leads'!L154 -> 4.556521739 | L18: ='Key Leads'!AG154 -> 8.543478261 | N18: F 9 | O18: =Hammers!E14 -> 9.0618458 | P18: =Hammers!B14 -> 31.07696252 | Q18: 143.4764366 | R18: =Hammers!B14 * ('Simple AR Calculator'!$C$8 / 'Simple AR Calculator'!$C$7) / 'Key Leads'!$M$72 -> 4.430073061 | S18: =Hammers!B14 * ('Key Leads'!$L$54 / 'Key Leads'!$N$59) / 'Key Leads'!$M$72 -> 3.60312609 | T18: 5.728554293
C19: Hammer Weight @ note A49 | E19: =H58 -> 8.244486403 | G19: F# 10 | H19: ='Key Leads'!I155 -> 10.44649857 | I19: ='Key Leads'!J155 -> 167.1825658 | J19: ='Key Leads'!K155 -> 5.652173913 | K19: ='Key Leads'!L155 -> 4.52173913 | L19: ='Key Leads'!AG155 -> 8.47826087 | N19: F# 10 | O19: =Hammers!E15 -> 9.0365 | P19: =Hammers!B15 -> 30.93193286 | Q19: 143.1217406 | R19: =Hammers!B15 * ('Simple AR Calculator'!$C$8 / 'Simple AR Calculator'!$C$7) / 'Key Leads'!$M$72 -> 4.40939884 | S19: =Hammers!B15 * ('Key Leads'!$L$54 / 'Key Leads'!$N$59) / 'Key Leads'!$M$72 -> 3.586311057 | T19: 5.728569817
C20: Strike Weight @ ~note A61 | E20: =E21+1.6 -> 8.865814326 | G20: G 11 | H20: ='Key Leads'!I156 -> 10.411546 | I20: ='Key Leads'!J156 -> 166.6934299 | J20: ='Key Leads'!K156 -> 5.623188406 | K20: ='Key Leads'!L156 -> 4.498550725 | L20: ='Key Leads'!AG156 -> 8.434782609 | N20: G 11 | O20: =Hammers!E16 -> 9.0101662 | P20: =Hammers!B16 -> 30.78124983 | Q20: 142.7532182 | R20: =Hammers!B16 * ('Simple AR Calculator'!$C$8 / 'Simple AR Calculator'!$C$7) / 'Key Leads'!$M$72 -> 4.387918721 | S20: =Hammers!B16 * ('Key Leads'!$L$54 / 'Key Leads'!$N$59) / 'Key Leads'!$M$72 -> 3.56884056 | T20: 5.728586026
C21: Hammer Weight @ ~note A61 | E21: =H70 -> 7.265814326 | G21: G# 12 | H21: ='Key Leads'!I157 -> 10.35911714 | I21: ='Key Leads'!J157 -> 165.9597261 | J21: ='Key Leads'!K157 -> 5.579710145 | K21: ='Key Leads'!L157 -> 4.463768116 | L21: ='Key Leads'!AG157 -> 8.369565217 | N21: G# 12 | O21: =Hammers!E17 -> 8.9828456 | P21: =Hammers!B17 -> 30.62492028 | Q21: 142.3708862 | R21: =Hammers!B17 * ('Simple AR Calculator'!$C$8 / 'Simple AR Calculator'!$C$7) / 'Key Leads'!$M$72 -> 4.365633682 | S21: =Hammers!B17 * ('Key Leads'!$L$54 / 'Key Leads'!$N$59) / 'Key Leads'!$M$72 -> 3.550715395 | T21: 5.728602927
G22: A 13 | H22: ='Key Leads'!I158 -> 10.32416456 | I22: ='Key Leads'!J158 -> 165.4705903 | J22: ='Key Leads'!K158 -> 5.550724638 | K22: ='Key Leads'!L158 -> 4.44057971 | L22: ='Key Leads'!AG158 -> 8.326086957 | N22: A 13 | O22: =Hammers!E18 -> 8.9545394 | P22: =Hammers!B18 -> 30.4629511 | Q22: 141.9747616 | R22: =Hammers!B18 * ('Simple AR Calculator'!$C$8 / 'Simple AR Calculator'!$C$7) / 'Key Leads'!$M$72 -> 4.342544704 | S22: =Hammers!B18 * ('Key Leads'!$L$54 / 'Key Leads'!$N$59) / 'Key Leads'!$M$72 -> 3.531936359 | T22: 5.72862053
C23: Inertia and Leads @ C40 | G23: A# 14 | H23: ='Key Leads'!I159 -> 10.2717357 | I23: ='Key Leads'!J159 -> 164.7368864 | J23: ='Key Leads'!K159 -> 5.507246377 | K23: ='Key Leads'!L159 -> 4.405797101 | L23: ='Key Leads'!AG159 -> 8.260869565 | N23: A# 14 | O23: =Hammers!E19 -> 8.9252488 | P23: =Hammers!B19 -> 30.29534913 | Q23: 141.5648609 | R23: =Hammers!B19 * ('Simple AR Calculator'!$C$8 / 'Simple AR Calculator'!$C$7) / 'Key Leads'!$M$72 -> 4.318652763 | S23: =Hammers!B19 * ('Key Leads'!$L$54 / 'Key Leads'!$N$59) / 'Key Leads'!$M$72 -> 3.512504247 | T23: 5.728638845
C24: Number of key leads | E24: =J49 -> 4.347826087 | G24: B 15 | H24: ='Key Leads'!I160 -> 10.23678313 | I24: ='Key Leads'!J160 -> 164.2477506 | J24: ='Key Leads'!K160 -> 5.47826087 | K24: ='Key Leads'!L160 -> 4.382608696 | L24: ='Key Leads'!AG160 -> 8.217391304 | N24: B 15 | O24: =Hammers!E20 -> 8.894975 | P24: =Hammers!B20 -> 30.12212126 | Q24: 141.1412011 | R24: =Hammers!B20 * ('Simple AR Calculator'!$C$8 / 'Simple AR Calculator'!$C$7) / 'Key Leads'!$M$72 -> 4.29395884 | S24: =Hammers!B20 * ('Key Leads'!$L$54 / 'Key Leads'!$N$59) / 'Key Leads'!$M$72 -> 3.492419857 | T24: 5.728657883
C25: Inertia (no keystick) | E25: =I49 -> 145.1714515 | G25: C 16 | H25: ='Key Leads'!I161 -> 10.18435427 | I25: ='Key Leads'!J161 -> 163.5140468 | J25: ='Key Leads'!K161 -> 5.434782609 | K25: ='Key Leads'!L161 -> 4.347826087 | L25: ='Key Leads'!AG161 -> 8.152173913 | N25: C 16 | O25: =Hammers!E21 -> 8.8637192 | P25: =Hammers!B21 -> 29.94327435 | Q25: 140.7037989 | R25: =Hammers!B21 * ('Simple AR Calculator'!$C$8 / 'Simple AR Calculator'!$C$7) / 'Key Leads'!$M$72 -> 4.268463913 | S25: =Hammers!B21 * ('Key Leads'!$L$54 / 'Key Leads'!$N$59) / 'Key Leads'!$M$72 -> 3.471683983 | T25: 5.728677653
C26: Inertia (est. keystick) | E26: =E32 -> 30.9230191 | G26: C# 17 | H26: ='Key Leads'!I162 -> 10.13192541 | I26: ='Key Leads'!J162 -> 162.7803429 | J26: ='Key Leads'!K162 -> 5.391304348 | K26: ='Key Leads'!L162 -> 4.313043478 | L26: ='Key Leads'!AG162 -> 8.086956522 | N26: C# 17 | O26: =Hammers!E22 -> 8.8314826 | P26: =Hammers!B22 -> 29.75881526 | Q26: 140.2526711 | R26: =Hammers!B22 * ('Simple AR Calculator'!$C$8 / 'Simple AR Calculator'!$C$7) / 'Key Leads'!$M$72 -> 4.242168961 | S26: =Hammers!B22 * ('Key Leads'!$L$54 / 'Key Leads'!$N$59) / 'Key Leads'!$M$72 -> 3.450297421 | T26: 5.728698168
C27: Inertia Hammer Sys. And Key | E27: =E25+E26 -> 176.0944706 | G27: D 18 | H27: ='Key Leads'!I163 -> 10.09697283 | I27: ='Key Leads'!J163 -> 162.2912071 | J27: ='Key Leads'!K163 -> 5.362318841 | K27: ='Key Leads'!L163 -> 4.289855072 | L27: ='Key Leads'!AG163 -> 8.043478261 | N27: D 18 | O27: =Hammers!E23 -> 8.7982664 | P27: =Hammers!B23 -> 29.56875086 | Q27: 139.7878345 | R27: =Hammers!B23 * ('Simple AR Calculator'!$C$8 / 'Simple AR Calculator'!$C$7) / 'Key Leads'!$M$72 -> 4.215074962 | S27: =Hammers!B23 * ('Key Leads'!$L$54 / 'Key Leads'!$N$59) / 'Key Leads'!$M$72 -> 3.428260969 | T27: 5.728719439
G28: D# 19 | H28: ='Key Leads'!I164 -> 10.04454397 | I28: ='Key Leads'!J164 -> 161.5575033 | J28: ='Key Leads'!K164 -> 5.31884058 | K28: ='Key Leads'!L164 -> 4.255072464 | L28: ='Key Leads'!AG164 -> 7.97826087 | N28: D# 19 | O28: =Hammers!E24 -> 8.7640718 | P28: =Hammers!B24 -> 29.37308802 | Q28: 139.3093059 | R28: =Hammers!B24 * ('Simple AR Calculator'!$C$8 / 'Simple AR Calculator'!$C$7) / 'Key Leads'!$M$72 -> 4.187182896 | S28: =Hammers!B24 * ('Key Leads'!$L$54 / 'Key Leads'!$N$59) / 'Key Leads'!$M$72 -> 3.405575422 | T28: 5.72874148
C29: Inertia and Leads @ A49 | G29: E 20 | H29: ='Key Leads'!I165 -> 9.99211511 | I29: ='Key Leads'!J165 -> 160.8237994 | J29: ='Key Leads'!K165 -> 5.275362319 | K29: ='Key Leads'!L165 -> 4.220289855 | L29: ='Key Leads'!AG165 -> 7.913043478 | N29: E 20 | O29: =Hammers!E25 -> 8.7289 | P29: =Hammers!B25 -> 29.1718336 | Q29: 138.8171021 | R29: =Hammers!B25 * ('Simple AR Calculator'!$C$8 / 'Simple AR Calculator'!$C$7) / 'Key Leads'!$M$72 -> 4.158493742 | S29: =Hammers!B25 * ('Key Leads'!$L$54 / 'Key Leads'!$N$59) / 'Key Leads'!$M$72 -> 3.382241577 | T29: 5.728764302
C30: Number of key leads | E30: =J58 -> 3.826086957 | G30: F 21 | H30: ='Key Leads'!I166 -> 9.939686249 | I30: ='Key Leads'!J166 -> 160.0900956 | J30: ='Key Leads'!K166 -> 5.231884058 | K30: ='Key Leads'!L166 -> 4.185507246 | L30: ='Key Leads'!AG166 -> 7.847826087 | N30: F 21 | O30: =Hammers!E26 -> 8.6927522 | P30: =Hammers!B26 -> 28.96499447 | Q30: 138.3112399 | R30: =Hammers!B26 * ('Simple AR Calculator'!$C$8 / 'Simple AR Calculator'!$C$7) / 'Key Leads'!$M$72 -> 4.129008478 | S30: =Hammers!B26 * ('Key Leads'!$L$54 / 'Key Leads'!$N$59) / 'Key Leads'!$M$72 -> 3.358260229 | T30: 5.72878792
C31: Inertia (no keystick) | E31: =I58 -> 136.3670057 | G31: F# 22 | H31: ='Key Leads'!I167 -> 9.887257388 | I31: ='Key Leads'!J167 -> 159.3563918 | J31: ='Key Leads'!K167 -> 5.188405797 | K31: ='Key Leads'!L167 -> 4.150724638 | L31: ='Key Leads'!AG167 -> 7.782608696 | N31: F# 22 | O31: =Hammers!E27 -> 8.6556296 | P31: =Hammers!B27 -> 28.7525775 | Q31: 137.7917361 | R31: =Hammers!B27 * ('Simple AR Calculator'!$C$8 / 'Simple AR Calculator'!$C$7) / 'Key Leads'!$M$72 -> 4.098728082 | S31: =Hammers!B27 * ('Key Leads'!$L$54 / 'Key Leads'!$N$59) / 'Key Leads'!$M$72 -> 3.333632174 | T31: 5.728812349
C32: Inertia (est. keystick) | E32: =E38 -> 30.9230191 | G32: G 23 | H32: ='Key Leads'!I168 -> 9.834828527 | I32: ='Key Leads'!J168 -> 158.622688 | J32: ='Key Leads'!K168 -> 5.144927536 | K32: ='Key Leads'!L168 -> 4.115942029 | L32: ='Key Leads'!AG168 -> 7.717391304 | N32: G 23 | O32: =Hammers!E28 -> 8.6175334 | P32: =Hammers!B28 -> 28.53458955 | Q32: 137.2586075 | R32: =Hammers!B28 * ('Simple AR Calculator'!$C$8 / 'Simple AR Calculator'!$C$7) / 'Key Leads'!$M$72 -> 4.067653535 | S32: =Hammers!B28 * ('Key Leads'!$L$54 / 'Key Leads'!$N$59) / 'Key Leads'!$M$72 -> 3.308358208 | T32: 5.728837603
C33: Inertia Hammer Sys. And Key | E33: =E31+E32 -> 167.2900248 | G33: G# 24 | H33: ='Key Leads'!I169 -> 9.782399666 | I33: ='Key Leads'!J169 -> 157.8889842 | J33: ='Key Leads'!K169 -> 5.101449275 | K33: ='Key Leads'!L169 -> 4.08115942 | L33: ='Key Leads'!AG169 -> 7.652173913 | N33: G# 24 | O33: =Hammers!E29 -> 8.5784648 | P33: =Hammers!B29 -> 28.31103749 | Q33: 136.7118708 | R33: =Hammers!B29 * ('Simple AR Calculator'!$C$8 / 'Simple AR Calculator'!$C$7) / 'Key Leads'!$M$72 -> 4.035785814 | S33: =Hammers!B29 * ('Key Leads'!$L$54 / 'Key Leads'!$N$59) / 'Key Leads'!$M$72 -> 3.282439129 | T33: 5.728863697
G34: A 25 | H34: ='Key Leads'!I170 -> 9.729970804 | I34: ='Key Leads'!J170 -> 157.1552804 | J34: ='Key Leads'!K170 -> 5.057971014 | K34: ='Key Leads'!L170 -> 4.046376812 | L34: ='Key Leads'!AG170 -> 7.586956522 | N34: A 25 | O34: =Hammers!E30 -> 8.538425 | P34: =Hammers!B30 -> 28.08192818 | Q34: 136.1515429 | R34: =Hammers!B30 * ('Simple AR Calculator'!$C$8 / 'Simple AR Calculator'!$C$7) / 'Key Leads'!$M$72 -> 4.003125899 | S34: =Hammers!B30 * ('Key Leads'!$L$54 / 'Key Leads'!$N$59) / 'Key Leads'!$M$72 -> 3.255875731 | T34: 5.728890649
C35: Inertia and Leads @ ~note 52-54 | G35: A# 26 | H35: ='Key Leads'!I171 -> 9.677541943 | I35: ='Key Leads'!J171 -> 156.4215766 | J35: ='Key Leads'!K171 -> 5.014492754 | K35: ='Key Leads'!L171 -> 4.011594203 | L35: ='Key Leads'!AG171 -> 7.52173913 | N35: A# 26 | O35: =Hammers!E31 -> 8.4974152 | P35: =Hammers!B31 -> 27.8472685 | Q35: 135.5776406 | R35: =Hammers!B31 * ('Simple AR Calculator'!$C$8 / 'Simple AR Calculator'!$C$7) / 'Key Leads'!$M$72 -> 3.969674768 | S35: =Hammers!B31 * ('Key Leads'!$L$54 / 'Key Leads'!$N$59) / 'Key Leads'!$M$72 -> 3.228668811 | T35: 5.728918476
C36: Number of key leads | E36: =J61 -> 3.637681159 | G36: B 27 | H36: ='Key Leads'!I172 -> 9.625113082 | I36: ='Key Leads'!J172 -> 155.6878728 | J36: ='Key Leads'!K172 -> 4.971014493 | K36: ='Key Leads'!L172 -> 3.976811594 | L36: ='Key Leads'!AG172 -> 7.456521739 | N36: B 27 | O36: =Hammers!E32 -> 8.4554366 | P36: =Hammers!B32 -> 27.6070653 | Q36: 134.9901806 | R36: =Hammers!B32 * ('Simple AR Calculator'!$C$8 / 'Simple AR Calculator'!$C$7) / 'Key Leads'!$M$72 -> 3.9354334 | S36: =Hammers!B32 * ('Key Leads'!$L$54 / 'Key Leads'!$N$59) / 'Key Leads'!$M$72 -> 3.200819165 | T36: 5.728947195
C37: Inertia (no keystick) | E37: =AVERAGE(I61:I63) -> 132.1278281 | G37: C 28 | H37: ='Key Leads'!I173 -> 9.572684221 | I37: ='Key Leads'!J173 -> 154.9541689 | J37: ='Key Leads'!K173 -> 4.927536232 | K37: ='Key Leads'!L173 -> 3.942028986 | L37: ='Key Leads'!AG173 -> 7.391304348 | N37: C 28 | O37: =Hammers!E33 -> 8.4124904 | P37: =Hammers!B33 -> 27.36132546 | Q37: 134.3891797 | R37: =Hammers!B33 * ('Simple AR Calculator'!$C$8 / 'Simple AR Calculator'!$C$7) / 'Key Leads'!$M$72 -> 3.900402774 | S37: =Hammers!B33 * ('Key Leads'!$L$54 / 'Key Leads'!$N$59) / 'Key Leads'!$M$72 -> 3.17232759 | T37: 5.728976825
C38: Inertia (est. keystick) | E38: ='Simple AR Calculator'!H13 -> 30.9230191 | G38: C# 29 | H38: ='Key Leads'!I174 -> 9.520255359 | I38: ='Key Leads'!J174 -> 154.2204651 | J38: ='Key Leads'!K174 -> 4.884057971 | K38: ='Key Leads'!L174 -> 3.907246377 | L38: ='Key Leads'!AG174 -> 7.326086957 | N38: C# 29 | O38: =Hammers!E34 -> 8.3685778 | P38: =Hammers!B34 -> 27.11005584 | Q38: 133.7746548 | R38: =Hammers!B34 * ('Simple AR Calculator'!$C$8 / 'Simple AR Calculator'!$C$7) / 'Key Leads'!$M$72 -> 3.864583869 | S38: =Hammers!B34 * ('Key Leads'!$L$54 / 'Key Leads'!$N$59) / 'Key Leads'!$M$72 -> 3.14319488 | T38: 5.729007386
C39: Inertia Hammer Sys. And Key | E39: ='Simple AR Calculator'!H15 -> 153.2069852 | G39: D 30 | H39: ='Key Leads'!I175 -> 9.450350211 | I39: ='Key Leads'!J175 -> 153.2421934 | J39: ='Key Leads'!K175 -> 4.826086957 | K39: ='Key Leads'!L175 -> 3.860869565 | L39: ='Key Leads'!AG175 -> 7.239130435 | N39: D 30 | O39: =Hammers!E35 -> 8.3237 | P39: =Hammers!B35 -> 26.85326331 | Q39: 133.1466226 | R39: =Hammers!B35 * ('Simple AR Calculator'!$C$8 / 'Simple AR Calculator'!$C$7) / 'Key Leads'!$M$72 -> 3.827977664 | S39: =Hammers!B35 * ('Key Leads'!$L$54 / 'Key Leads'!$N$59) / 'Key Leads'!$M$72 -> 3.113421833 | T39: 5.729038898
G40: D# 31 | H40: ='Key Leads'!I176 -> 9.39792135 | I40: ='Key Leads'!J176 -> 152.5084896 | J40: ='Key Leads'!K176 -> 4.782608696 | K40: ='Key Leads'!L176 -> 3.826086957 | L40: ='Key Leads'!AG176 -> 7.173913043 | N40: D# 31 | O40: =Hammers!E36 -> 8.2778582 | P40: =Hammers!B36 -> 26.59095473 | Q40: 132.5050999 | R40: =Hammers!B36 * ('Simple AR Calculator'!$C$8 / 'Simple AR Calculator'!$C$7) / 'Key Leads'!$M$72 -> 3.790585136 | S40: =Hammers!B36 * ('Key Leads'!$L$54 / 'Key Leads'!$N$59) / 'Key Leads'!$M$72 -> 3.083009244 | T40: 5.729071382
G41: E 32 | H41: ='Key Leads'!I177 -> 9.345492489 | I41: ='Key Leads'!J177 -> 151.7747858 | J41: ='Key Leads'!K177 -> 4.739130435 | K41: ='Key Leads'!L177 -> 3.791304348 | L41: ='Key Leads'!AG177 -> 7.108695652 | N41: E 32 | O41: =Hammers!E37 -> 8.2310536 | P41: =Hammers!B37 -> 26.32313698 | Q41: 131.8501035 | R41: =Hammers!B37 * ('Simple AR Calculator'!$C$8 / 'Simple AR Calculator'!$C$7) / 'Key Leads'!$M$72 -> 3.752407267 | S41: =Hammers!B37 * ('Key Leads'!$L$54 / 'Key Leads'!$N$59) / 'Key Leads'!$M$72 -> 3.05195791 | T41: 5.729104862
G42: F 33 | H42: ='Key Leads'!I178 -> 9.293063627 | I42: ='Key Leads'!J178 -> 151.041082 | J42: ='Key Leads'!K178 -> 4.695652174 | K42: ='Key Leads'!L178 -> 3.756521739 | L42: ='Key Leads'!AG178 -> 7.043478261 | N42: F 33 | O42: =Hammers!E38 -> 8.1832874 | P42: =Hammers!B38 -> 26.04981691 | Q42: =(O42/1000*$P$3^2 + $P$1) *($P$2^2*10000) -> 131.1816503 | R42: =Hammers!B38 * ('Simple AR Calculator'!$C$8 / 'Simple AR Calculator'!$C$7) / 'Key Leads'!$M$72 -> 3.713445033 | S42: =Hammers!B38 * ('Key Leads'!$L$54 / 'Key Leads'!$N$59) / 'Key Leads'!$M$72 -> 3.020268627 | T42: 5.729139359
C43: =Compare!B3 -> Standard Action | G43: F# 34 | H43: ='Key Leads'!I179 -> 9.240634766 | I43: ='Key Leads'!J179 -> 150.3073781 | J43: ='Key Leads'!K179 -> 4.652173913 | K43: ='Key Leads'!L179 -> 3.72173913 | L43: ='Key Leads'!AG179 -> 6.97826087 | N43: F# 34 | O43: =Hammers!E39 -> 8.1345608 | P43: =Hammers!B39 -> 25.77100139 | Q43: 130.4997569 | R43: =Hammers!B39 * ('Simple AR Calculator'!$C$8 / 'Simple AR Calculator'!$C$7) / 'Key Leads'!$M$72 -> 3.673699414 | S43: =Hammers!B39 * ('Key Leads'!$L$54 / 'Key Leads'!$N$59) / 'Key Leads'!$M$72 -> 2.98794219 | T43: 5.729174899
G44: G 35 | H44: ='Key Leads'!I180 -> 9.170729618 | I44: ='Key Leads'!J180 -> 149.3291064 | J44: ='Key Leads'!K180 -> 4.594202899 | K44: ='Key Leads'!L180 -> 3.675362319 | L44: ='Key Leads'!AG180 -> 6.891304348 | N44: G 35 | O44: =Hammers!E40 -> 8.084875 | P44: =Hammers!B40 -> 25.48669729 | Q44: 129.8044403 | R44: =Hammers!B40 * ('Simple AR Calculator'!$C$8 / 'Simple AR Calculator'!$C$7) / 'Key Leads'!$M$72 -> 3.633171389 | S44: =Hammers!B40 * ('Key Leads'!$L$54 / 'Key Leads'!$N$59) / 'Key Leads'!$M$72 -> 2.954979396 | T44: 5.729211507
D45: =Compare!O34 -> MAR | E45: =Compare!P34 -> DAR | G45: G# 36 | H45: ='Key Leads'!I181 -> 9.118300757 | I45: ='Key Leads'!J181 -> 148.5954026 | J45: ='Key Leads'!K181 -> 4.550724638 | K45: ='Key Leads'!L181 -> 3.64057971 | L45: ='Key Leads'!AG181 -> 6.826086957 | N45: G# 36 | O45: =Hammers!E41 -> 8.0342312 | P45: =Hammers!B41 -> 25.19691148 | Q45: 129.0957171 | R45: =Hammers!B41 * ('Simple AR Calculator'!$C$8 / 'Simple AR Calculator'!$C$7) / 'Key Leads'!$M$72 -> 3.591861936 | S45: =Hammers!B41 * ('Key Leads'!$L$54 / 'Key Leads'!$N$59) / 'Key Leads'!$M$72 -> 2.921381042 | T45: 5.729249209
C46: =Compare!N36 -> Key Out | D46: =Compare!O36 -> 122 | E46: =Compare!P36 -> 130.3840481 | G46: A 37 | H46: ='Key Leads'!I182 -> 9.048395608 | I46: ='Key Leads'!J182 -> 147.6171308 | J46: ='Key Leads'!K182 -> 4.492753623 | K46: ='Key Leads'!L182 -> 3.594202899 | L46: ='Key Leads'!AG182 -> 6.739130435 | N46: A 37 | O46: =Hammers!E42 -> 7.9826306 | P46: =Hammers!B42 -> 24.90165083 | Q46: 128.3736042 | R46: =Hammers!B42 * ('Simple AR Calculator'!$C$8 / 'Simple AR Calculator'!$C$7) / 'Key Leads'!$M$72 -> 3.549772035 | S46: =Hammers!B42 * ('Key Leads'!$L$54 / 'Key Leads'!$N$59) / 'Key Leads'!$M$72 -> 2.887147922 | T46: 5.729288034
C47: =Compare!N37 -> Key In | D47: =Compare!O37 -> 240 | E47: =Compare!P37 -> 240 | G47: A# 38 | H47: ='Key Leads'!I183 -> 8.995966747 | I47: ='Key Leads'!J183 -> 146.883427 | J47: ='Key Leads'!K183 -> 4.449275362 | K47: ='Key Leads'!L183 -> 3.55942029 | L47: ='Key Leads'!AG183 -> 6.673913043 | N47: A# 38 | O47: =Hammers!E43 -> 7.9300744 | P47: =Hammers!B43 -> 24.60092219 | Q47: 127.6381184 | R47: =Hammers!B43 * ('Simple AR Calculator'!$C$8 / 'Simple AR Calculator'!$C$7) / 'Key Leads'!$M$72 -> 3.506902664 | S47: =Hammers!B43 * ('Key Leads'!$L$54 / 'Key Leads'!$N$59) / 'Key Leads'!$M$72 -> 2.852280834 | T47: 5.729328009
C48: =Compare!N38 -> Whip_out | D48: =Compare!O38 -> 92 | E48: =Compare!P38 -> 93.5212139 | G48: B 39 | H48: ='Key Leads'!I184 -> 8.943537886 | I48: ='Key Leads'!J184 -> 146.1497232 | J48: ='Key Leads'!K184 -> 4.405797101 | K48: ='Key Leads'!L184 -> 3.524637681 | L48: ='Key Leads'!AG184 -> 6.608695652 | N48: B 39 | O48: =Hammers!E44 -> 7.8765638 | P48: =Hammers!B44 -> 24.29473244 | Q48: 126.8892764 | R48: =Hammers!B44 * ('Simple AR Calculator'!$C$8 / 'Simple AR Calculator'!$C$7) / 'Key Leads'!$M$72 -> 3.463254802 | S48: =Hammers!B44 * ('Key Leads'!$L$54 / 'Key Leads'!$N$59) / 'Key Leads'!$M$72 -> 2.816780573 | T48: 5.729369166
C49: =Compare!N39 -> Whip_in | D49: =Compare!O39 -> 62.5 | E49: =Compare!P39 -> 66.25896166 | G49: C 40 | H49: ='Key Leads'!I185 -> 8.873632738 | I49: ='Key Leads'!J185 -> 145.1714515 | J49: ='Key Leads'!K185 -> 4.347826087 | K49: ='Key Leads'!L185 -> 3.47826087 | L49: ='Key Leads'!AG185 -> 6.52173913 | N49: C 40 | O49: =Hammers!E45 -> 7.8221 | P49: =Hammers!B45 -> 23.98308844 | Q49: 126.1270951 | R49: =Hammers!B45 * ('Simple AR Calculator'!$C$8 / 'Simple AR Calculator'!$C$7) / 'Key Leads'!$M$72 -> 3.418829428 | S49: =Hammers!B45 * ('Key Leads'!$L$54 / 'Key Leads'!$N$59) / 'Key Leads'!$M$72 -> 2.780647935 | T49: 5.729411537
